Workbook

Sheet How to use
C2: Note: FEEDCHECKER has been prepared with due care. Results, however, will vary from situation to situation and outputs should be viewed as estimates. This information is intended as a general guide and a tool to support feed management decisions. DairyNZ accepts no liability for decisions made based on this information.
C5: Who is the FEEDCHECKER spreadsheet targetted at?
C6: This tool has been developed to enable farmers and their advisors to assess current and proposed diets.
C8: What does FEEDCHECKER do?
C9: FeedChecker estimates the energy and nutrient demands for a selected mob of cows and compares this with what is supplied in the diet. FeedChecker will determine if the diets offered meet energy and nutrient requirements and can determine the cost of these different diets. However, it does not calculate any change to revenue. To determine the expected margin from feeding different supplements use the supplement price calculator http://www.dairynz.co.nz/feed/feed-management-tools/supplement-price-calculator
C11: FEEDCHECKER
I15: Click on the green drop down boxes and a list of options will appear
I18: If a red square appears, the value is outside recommended range. An orange square indicates the value is in excess of requirements (e.g. energy). Note FeedChecker does not calculate the most economic diet. Refer to the Supplement Price Calculator .
I19: The information symbol will appear when there is extra relevant information or instructions to follow

Sheet FEEDCHECKER
C2: NAME
D3: Calcs from Today | E3: =TODAY() -> 2022-12-06 | K3: Calcs from a different date? | Q3: =IF(I4="","i","") -> i | W3: ENERGY REQUIREMENTS | AC3: MJME/cow | CQ3: Cell | CS3: Option 1 | CU3: Option 2
W4: maintenance | AD4: =IF($H$8="","",VLOOKUP($H$8,'Data source'!$B$190:$C$199,2,FALSE)) ->  | CQ4: AB42 & AD42 | CR4: Average ME of diet (MJ ME) | CS4: =IF(OR($AA$44="",$AA41=""),11,$AA$44/$AA41) -> 11 | CU4: =IF(OR($AC$44="",$AC41=""),11,$AC$44/$AC41) -> 11
B5: 1. HERD/MOB INPUTS | W5: total MS production | AD5: =IF($H$7="Dry",0,IF(OR($H$6="",$O$7=""),"",$O$7*$CJ$11)) ->  | CI5: Energy requirements calcs | CQ5: Y40 & Z40 | CR5: Total DMI requirements (kg DM) | CS5: =IF(OR($AD$11="",CS4=""),"",$AD$11/$CS$4) ->  | CU5: =IF(OR($AE$11="",CU4=""),"",$AE$11/$CU$4) -> 
C6: Breed | J6: Cows in mob | W6: daily BCS gain/loss | AD6: =IF(OR($H$7="",$H$8="",$H$9=""),"",IF($H$9<0,$CO$8,IF($H$9>0,$CO$9,0))) ->  | CH6: Cell | CJ6: Option 1 | CK6: Option 2 | CO6: Option 1 | CP6: Option 2 | CQ6: AC43 & AE43 | CR6: Difference in ME intake (MJ) | CS6: =IF(OR(AA$44="",$AD$11=""),"",AA$44-$AD$11) ->  | CU6: =IF(OR(AC$44="",$AE$11=""),"",AC$44-CU9) -> 
C7: Stage of lactation | J7: Milk solids (kg MS/cow/day) | Q7: =IF($H$7="Dry",IF($O$7>0,"Check MS",""),IF(OR($O$7<0.3,$O$7>3),"Check MS","")) -> Check MS | W7: pregnancy | AD7: =IF($O$10="Enter PSC","",$CJ$12) -> 0 | CH7: Y46 | CI7: stage of lactation | CJ7: =IF($H$7="","",VLOOKUP($H$7,'Data source'!$B$251:$C$254,2,FALSE)) ->  | CK7: =$CJ$7 ->  | CM7: change LWT/d | CO7: =IF(OR(H8="",H9=""),"",ABS($H$8*0.0658*$H$9)/30) ->  | CP7: =$CO$7 ->  | CQ7: AC40 & AE40 | CR7: Difference in DMI (kg DM) | CS7: =IF(OR(CS6="",CS4=""),"",$CS$6/$CS$4) ->  | CU7: =IF($CU$4="","",$CU$6/$CU$4) -> 
C8: Average liveweight (kg) | J8: Terrain | W8: total activity | AD8: =IF(OR($O$8="",$O$9=""),"",$CJ$13*$O$9) ->  | CI8: breed | CJ8: =IF($H$6="","",IF($H$6="Jersey","j",IF($H$6="Friesian","f",IF($H$6="cross-bred","x","-")))) ->  | CK8: =$CJ$8 ->  | CM8: ME loss/d | CO8: =IF($H$7="","",IF($H$7="dry",$CO$7*-30,$CO$7*-37)) ->  | CP8: =$CO$8 ->  | CQ8: AE11, AF11 | CR8: ME required adjustment for avg feed ME | CS8: =IF(AND(CS4>7.5,CS4<8.5),1.15,IF(AND(CS4>8.5,CS4<9.5),1.1,IF(AND(CS4>=9.5,CS4<10.5),1.05,IF(AND(CS4>=10.5,CS4<11.5),1,IF(AND(CS4>=11.5,CS4<12.5),0.95,IF(CS4>12.5,0.9,"")))))) -> 1 | CU8: =IF(AND(CU4>7.5,CU4<8.5),1.15,IF(AND(CU4>8.5,CU4<9.5),1.1,IF(AND(CU4>=9.5,CU4<10.5),1.05,IF(AND(CU4>=10.5,CU4<11.5),1,IF(AND(CU4>=11.5,CU4<12.5),0.95,IF(CU4>12.5,0.9,"")))))) -> 1
C9: Estimated BCS loss/gain next month | I9: i | J9: Total daily walking dist. (km) | Q9: =IF(O9<15,"","Check distance") ->  | W9: Sum of ME requirements at default ME = 11 .0 | AD9: =IF(SUM(AD4:AD8)>0,SUM(AD4:AD8),"") ->  | AE9: Opt 2 | CM9: ME gain/d | CO9: =IF($H$7="","",IF($H$7="dry",$CO$7*72,$CO$7*50)) ->  | CP9: =$CO$9 ->  | CQ9: AE12 & AF 12 | CR9: Total ME requirements at diet ME = | CS9: =AD11 ->  | CU9: =$AD$9*CU8 -> 
C10: Date of next calving (PSC) | J10: Weeks to next PSC | O10: =IF($H$10="","",IF(N3="",(H10-E3)/7,(H10-N3)/7)) ->  | Q10: =IF($H$10="","Enter PSC","") -> Enter PSC | W10: Multiplier for feed quality (+/- 5% per MJ ME) | AD10: =IF($AD$9="","",$CS$8) ->  | AE10: =IF($AD$9="","",$CU$8) ->  | CI10: wk precalving | CJ10: =IF(O10="Enter PSC","",IF($O$10>12,"12+",$O$10)) -> 12+ | CK10: =$CJ$10 -> 12+
J11: =IF(P10="Enter PSC","",IF(OR(P10>52,P10<0),"Check PSC date for the next calving","")) ->  | N11: =IF(Q10="Enter PSC","",IF(OR(O10>52,O10<0),"Check PSC date for the next calving","")) ->  | W11: Total ME requirements at diet ME = | AA11: OPT.1 | AB11: =CS4 -> 11 | AD11: =IF($AD$9="","",$AD$9*$AD$10) ->  | AE11: =IF($AD$9="","",$AD$9*$AE$10) ->  | CH11: AD6 | CI11: milk production | CJ11: =IF($H$6="","",VLOOKUP($H$6,'Data source'!$B$203:$C$205,2,FALSE)) ->  | CK11: =$CJ$11 ->  | CL11: pregnancy | CM11: =IF(CJ14="12",CM12,IF(CJ14="8",CM13,IF(CJ14="4",CM14,IF(CJ14="2",CM15,0)))) -> 0
W12: All MOB inputs complete? | Y12: =IF(OR(AD4="",AD5="",AD6="",AD7="",AD8="",AD9=""),"NO","YES") -> NO | AA12: OPT.2 | AB12: =CU4 -> 11 | AC12: =IF(AD11="","i","") -> i | CI12: pregnancy | CJ12: =$CM$11 -> 0 | CK12: =$CJ$12 -> 0 | CL12: 12 | CM12: =VLOOKUP($H$8,'Data source'!$B$190:$H$199,4,FALSE) -> 
B13: 2. PASTURE QUALITY & ALLOCATION | J13: PASTURE ALLOCATION (for Option 1) | CI13: per kg walked | CJ13: =IF($O$8="","",VLOOKUP($O$8,'Data source'!$B$209:$C$211,2,FALSE)) ->  | CK13: =$CJ$13 ->  | CL13: 8 | CM13: =VLOOKUP($H$8,'Data source'!$B$190:$H$199,5,FALSE) ->  | CR13: Not needed now - replaces with a VLOOKUP at H29
C14: PASTURE QUALITY | J14: Pre-grazing cover | Q14: kg DM/ha | W14: TRANSITION COW | AF14: =IF(H7="Dry","YES","NO") -> NO | CI14: wk pre PSC blocks | CJ14: =IF(O10="Enter PSC","",IF(O10>12,"12+",IF(O10>8,"12",IF(O10>4,"8",IF(O10>2,"4","2"))))) -> 12+ | CK14: =$CJ$14 -> 12+ | CL14: 4 | CM14: =VLOOKUP($H$8,'Data source'!$B$190:$H$199,6,FALSE) ->  | CR14: fodder beet DM calc
C15: Pasture quality | J15: Post-grazing residual | Q15: kg DM/ha | W15: Transition cow (2-3 weeks pre-calving) | AD15: NO | AF15: =IF(AND($H$7="Dry",$AD$15="YES"),"YES","NO") -> NO | CL15: 2 | CM15: =VLOOKUP($H$8,'Data source'!$B$190:$H$199,7,FALSE) ->  | CR15: Bulb only | CS15: =$Q$29 -> 
C16: MJME | H16: =IF(E15="","",VLOOKUP(E15,'Data source'!$B$4:$I$12,3,FALSE)) ->  | J16: Hectares grazed/day -this mob | Q16: ha/day | W16: Are cows at or above target BCS for calving? | AD16: YES | AF16: =IF(AND($H$7="Dry",$AD$15="YES",$AD$16="YES"),"YES","NO") -> NO | CR16: bulb 90% leaf 10% | CS16: =$Q$29*0.9+$Q$30*0.1 -> 
F17: adjust MJME? | I17: =IF(H17>0,H17,H16) ->  | J17: Allocation per day | O17: =IF(OR(O14="",O15="",O16="",O6=""),"",((O14-O15)*O16)/O6) ->  | Q17: kg DM/cow | W17: =IF(AD16="NO","Use FeedChecker values below",IF(AF16="YES","Feed cows at 90% of energy requirements","")) ->  | AF17: =IF(AND($H$7="Dry",$AD$15="YES",$AD$16="NO"),"NO","") ->  | CR17: bulb 85% leaf 15% | CS17: =$Q$29*0.85+$Q$30*0.15 -> 
C18: ROUND LENGTH ESTIMATE | G18: ha grazed/day | O18: OR | CR18: bulb 80% leaf 20% | CS18: =$Q$29*0.8+$Q$30*0.2 -> 
C19: Farm area in current round (ha) | G19: =$O$16 -> 0 | H19: This mob | W19: RECOMMENDED | AA19: OPTION 1 | AC19: OPTION 2 | CJ19: =H32*0.9+H33*0.1 -> 0 | CR19: bulb 75% leaf 25% | CS19: =$Q$29*0.75+$Q$30*0.25 -> 
C20: Total area grazed (ha/day) | E20: =G19+G20+G21+G22 -> 0 | F20: all mobs | H20: Mob 2 | J20: Directly input pasture? | Q20: kg DM/cow | W20: Eaten | X20: Opt 1 | Y20: Opt 2 | AB20: diff | AD20: diff | AF20: =IF(O20="",1,0) -> 1 | CJ20: =H33*0.9+H34*0.1 -> 0 | CR20: bulb 70% leaf 30% | CS20: =$Q$29*0.7+$Q$30*0.3 -> 
H21: Mob 3 | W21: DM (90%) | X21: =X41*0.9 ->  | Y21: =Y41*0.9 ->  | AA21: =$AA$41 ->  | AB21: =AA21-X21 ->  | AC21: =AC41 ->  | AD21: =IF($O$72>0,AC21-Y21,"") ->  | CJ21: =H34*0.9+H35*0.1 -> 0
C22: Round length (days) | E22: =IF(AND($E19>0,$E$20>0),$E$19/$E$20,"") ->  | H22: Mob 4 | W22: Average MJME/kg DM | AA22: =IF(OR($Y$12="NO",$AF$16="NO",$CS$4=""),"",$CS$4) ->  | AC22: =IF(OR($Y$12="NO",$AF$16="NO",$Q$35="NO",$CS$4=""),"",$CU$4) ->  | AF22: =IF(OR(E27="",E28="",E29="",E30=""),"X","+") -> X | CJ22: =H35*0.9+H36*0.1 -> 0
W23: MJME (90%) | X23: =X44*0.9 ->  | Y23: =Y44+0.9 ->  | AA23: =$AA$44 ->  | AB23: =AA23-X23 ->  | AC23: =$AC$44 ->  | AD23: =IF($O$72>0,$AC$23-$Y$23,"") ->  | AF23: =IF(OR(E27="",E29="",E30=""),"X","3/4") -> X
AF24: =E27/10 -> 0 | CI24: Dropdown list
B25: 3. ARE YOU FEEDING CROPS? | I25: YES | M25: Are you feeding Fodder beet? | Q25: NO | AF25: =(AF24*E28)/100 -> 0 | CI25: YES
C26: CALCULATE BREAK SIZE | AF26: =(AF24*Q31)/100 ->  | CI26: NO
C27: Crop yield (T/ha) | J27: CALC DM% of FODDER BEET CROP | AF27: =AF29/E29 ->  | CJ27: =IF($H$7="","",VLOOKUP($H$7,'Data source'!$B$261:$C$264,2,FALSE)) -> 
C28: DM (%) | F28: Leave blank to use fodder beet %DM calc | J28: Bulb to leaf ratio | M28: Custom: Bulb% & Leaf% | AF28: =AF30/E29 -> 
C29: Break face (metres) | F29: =IF(AND($I$25="YES",$Q$25="YES",$E$29<O6),"check break size","") ->  | J29: Bulb DM% | Q29: =IF(AND(I25="NO",Q25="NO"),"",IF(Q25="YES",'CUSTOM FEED SET-UP'!E5,"")) ->  | AF29: =E30/AF25 -> 
C30: Allocation (kg DM/cow/day) | J30: Leaf DM% | Q30: =IF(AND(I25="NO",Q25="NO"),"",IF(Q25="YES",'CUSTOM FEED SET-UP'!E6,"")) ->  | AF30: =E30/AF26 -> 
C31: Break size (metres/day) | E31: =IF(AF22="+",AF31,IF(AND(Q25="YES",AF23="3/4"),AF32,"")) ->  | F31: =IF(E31="","",IF(AND(E28="",E31=AF32),"Using fodder beet DM% calc","Using direct input DM%")) ->  | J31: CropDM% | Q31: =IF(OR(Q25="NO",M28=""),"",VLOOKUP(M28,'CUSTOM FEED SET-UP'!B5:E12,4,FALSE)) ->  | AF31: =AF27*O6 -> 
AF32: =AF28*O6 -> 
AJ33: Feed Budget? | AN33: NO
V34: FEEDCHECKER
O35: Option 2? | Q35: NO | AJ35: 5. FEED BUDGET | AN35: OPTION 1 | AQ35: OPTION 2 | AU35: 6. FEED BREAKDOWN | AW35: ENERGY | BC35: COMPOSITION | BN35: MINERALS | BV35: DCAD | BX35: COST OF SUPPLEMENT
B36: 4. FEED AND MINERAL SUPPLY | K36: OPTION 1 | O36: OPTION 2
K37: OFFERED | M37: EATEN | O37: OFFERED | Q37: EATEN | W37: RECOMMENDED | AA37: OPTION 1 | AC37: OPTION 2 | AK37: $/tonne delivered | AL37: c/MJME eaten | AN37: t/day /mob | AO37: $/cow /day | AQ37: t/day /mob | AR37: $/cow /day | AU37: FEED TYPE | AV37: Opt. | AW37: Util. | AX37: Eaten | AY37: ME | AZ37: DM% | BA37: ME | BC37: Crude protein | BE37: NDF | BG37: SSS | BI37: Starch | BK37: Fat | BN37: Na | BO37: K | BP37: Cl | BQ37: S | BR37: Mg | BS37: Ca | BT37: P | BV37: meq | BX37: Wt | BY37: Eaten | BZ37: Eaten | CA37: Cost
C38: FEED TYPE | E38: FEED | H38: FEEDING METHOD | J38: Util. | K38: kg DM /cow | M38: kg DM /cow | O38: kg DM /cow | Q38: kg DM /cow | BA38: in diet | BC38: % DM | BD38: % diet | BE38: % DM | BF38: % diet | BG38: % DM | BH38: % diet | BI38: % SSS | BJ38: % diet | BK38: % DM | BL38: % diet | BN38: %DM | BO38: %DM | BP38: %DM | BQ38: %DM | BR38: %DM | BS38: %DM | BT38: %DM | BV38: /100g DM | BX38: Wet/Dry | BY38: c/kg DM | BZ38: c/MJ ME | CA38: $/Cow
W40: DM eaten | X40: Opt 1 | Y40: Opt 2 | AB40: diff | AD40: diff | AK40: =IF(OR(AN33="NO",X41=""),"","i") ->  | AU40: =IF(C41="","",C41) -> PASTURE | AV40: =IF(L41="","",1) ->  | AW40: =IF(OR($E41="",$H41="",$K41=0),0,VLOOKUP($H41,'Data source'!$B$121:$C$124,2,FALSE)) -> 0 | AX40: =IF(OR($E41="",$H41="",$K41=0,$K41=""),0,K41*AW40) -> 0 | AY40: =IF(OR($E41="",$H41="",$K41=0),"",$I$17) ->  | AZ40: =IF(OR($E41="",$H41="",$K41=0),"",VLOOKUP($E41,'Data source'!$B$4:$I$12,2,FALSE)) ->  | BA40: =IF(OR($E41="",$H41="",$K41=0),"",AX40*AY40) ->  | BC40: =IF(OR($E41="",$H41="-",$K41=0),"",VLOOKUP($E41,'Data source'!$B$4:$I$12,4,FALSE)) ->  | BD40: =IF(OR($E41="",$H41="",$K41=0),"",(($AX40/$AX$72)*BC40)) ->  | BE40: =IF(OR($E41="",$H41="",$K41=0),"",VLOOKUP($E41,'Data source'!$B$4:$I$12,5,FALSE)) ->  | BF40: =IF(OR($E41="",$H41="",$K41=0),"",(($AX40/$AX$72)*BE40)) ->  | BG40: =IF(OR($E41="",$H41="",$K41=0),"",VLOOKUP($E41,'Data source'!$B$4:$I$12,6,FALSE)) ->  | BH40: =IF(OR($E41="",$H41="",$K41=0),"",(($AX40/$AX$72)*BG40)) ->  | BI40: =IF(OR($E41="",$H41="",$K41=0),"",VLOOKUP($E41,'Data source'!$B$4:$I$12,7,FALSE)) ->  | BJ40: =IF(OR($E41="",$H41="",$K41=0),"",(BI40/100*BH40)*($AX40/$AX$72)) ->  | BK40: =IF(OR($E41="",$H41="",$K41=0),"",VLOOKUP($E41,'Data source'!$B$4:$I$12,8,FALSE)) ->  | BL40: =IF(OR($E41="",$H41="",$K41=0),"",(($AX40/$AX$72)*BK40)) ->  | BN40: =IF(OR($E41="",$H41="",$K41=0),0,VLOOKUP($E41,'Data source'!$B$3:$T$14,13,FALSE)) -> 0 | BO40: =IF(OR($E41="",$H41="",$K41=0),0,VLOOKUP($E41,'Data source'!$B$3:$T$14,14,FALSE)) -> 0 | BP40: =IF(OR($E41="",$H41="",$K41=0),0,VLOOKUP($E41,'Data source'!$B$3:$T$14,15,FALSE)) -> 0 | BQ40: =IF(OR($E41="",$H41="",$K41=0),0,VLOOKUP($E41,'Data source'!$B$3:$T$14,16,FALSE)) -> 0 | BR40: =IF(OR($E41="",$H41="",$K41=0),0,VLOOKUP($E41,'Data source'!$B$3:$T$14,17,FALSE)) -> 0 | BS40: =IF(OR($E41="",$H41="",$K41=0),0,VLOOKUP($E41,'Data source'!$B$3:$T$14,18,FALSE)) -> 0 | BT40: =IF(OR($E41="",$H41="",$K41=0),0,VLOOKUP($E41,'Data source'!$B$3:$T$14,19,FALSE)) -> 0 | BV40: =IF(OR($E41="",$H41="",$K41=""),0,(((43.498*$BN40)+(25.574*$BO40))-((28.206*$BP40)+(62.375*$BQ40)))*$AX40*10/1000) -> 0
C41: PASTURE | E41: =IF(E15="","",E15) ->  | J41: =AW40 -> 0 | K41: =IF(O20="",O17,O20) ->  | L41: =IF(OR(C41="",E41="",H41=""),"",K41) ->  | M41: =IF(AX40=0,"",AX40) ->  | P41: =IF(OR(C41="",E41="",H41=""),"",O41) ->  | Q41: =IF(AX41=0,"",AX41) ->  | W41: DM | X41: =IF(Y12="NO","",CS5) ->  | Y41: =IF(Y12="NO","",CU5) ->  | AA41: =IF($AX$72>0,AX72,"") ->  | AB41: =IF(AND($AX$72>0,Y12="Yes"),IF(AA41="","",$AA$41-$X$41),"") ->  | AC41: =IF(AND($Q$35="YES",$O$72>0),$AX$73,"") ->  | AD41: =IF(AND(Q35="YES",O73>0,Y12="Yes",AC41>0),$AC$41-$Y$41,"") ->  | AV41: =IF(OR(P41="",$Q$35="NO"),"",2) ->  | AW41: =IF(OR($E41="",$H41="",$O41<=0,$Q$35="NO"),"",VLOOKUP($H41,'Data source'!$B$121:$C$124,2,FALSE)) ->  | AX41: =IF(OR($E41="",$H41="",$O41<=0,$Q$35="NO"),0,$O41*$AW41) -> 0 | AY41: =IF(OR($E41="",$H41="",$O41<=0,$Q$35="NO"),"",$I$17) ->  | AZ41: =IF(OR($E41="",$H41="",$O41<=0,$Q$35="NO"),"",VLOOKUP($E$41,'Data source'!$B$4:$I$12,2,FALSE)) ->  | BA41: =IF(OR($E41="",$H41="",$O41<=0,$Q$35="NO"),"",$AX41*$AY41) ->  | BC41: =IF(OR($E41="",$H41="",$O41<=0,$Q$35="NO"),"",VLOOKUP($E$41,'Data source'!$B$4:$I$12,4,FALSE)) ->  | BD41: =IF(OR($E41="",$H41="",$O41<=0,$Q$35="NO"),"",(($AX41/$AX$73)*$BC41)) ->  | BE41: =IF(OR($E41="",$H41="",$O41<=0,$Q$35="NO"),"",VLOOKUP($E$41,'Data source'!$B$4:$I$12,5,FALSE)) ->  | BF41: =IF(OR($E41="",$H41="",$O41<=0,$Q$35="NO"),"",(($AX41/$AX$73)*BE41)) ->  | BG41: =IF(OR($E41="",$H41="",$O41<=0,$Q$35="NO"),"",VLOOKUP($E$41,'Data source'!$B$4:$I$12,6,FALSE)) ->  | BH41: =IF(OR($E41="",$H41="",$O41<=0,$Q$35="NO"),"",(($AX41/$AX$73)*BG41)) ->  | BI41: =IF(OR($E41="",$H41="",$O41<=0,$Q$35="NO"),"",VLOOKUP($E$41,'Data source'!$B$4:$I$12,7,FALSE)) ->  | BJ41: =IF(OR($E41="",$H41="",$O41<=0,$Q$35="NO"),"",(BI41/100*BH41)*($AX41/$AX$73)) ->  | BK41: =IF(OR($E41="",$H41="",$O41<=0,$Q$35="NO"),"",VLOOKUP($E$41,'Data source'!$B$4:$I$12,8,FALSE)) ->  | BL41: =IF(OR($E41="",$H41="",$O41<=0,$Q$35="NO"),"",(($AX41/$AX$73)*BK41)) ->  | BN41: =IF(OR($E41="",$H41="",$O41<=0,$Q$35="NO"),0,VLOOKUP($E41,'Data source'!$B$3:$T$14,13,FALSE)) -> 0 | BO41: =IF(OR($E41="",$H41="",$O41<=0,$Q$35="NO"),0,VLOOKUP($E41,'Data source'!$B$3:$T$14,14,FALSE)) -> 0 | BP41: =IF(OR($E41="",$H41="",$O41<=0,$Q$35="NO"),0,VLOOKUP($E41,'Data source'!$B$3:$T$14,15,FALSE)) -> 0 | BQ41: =IF(OR($E41="",$H41="",$O41<=0,$Q$35="NO"),0,VLOOKUP($E41,'Data source'!$B$3:$T$14,16,FALSE)) -> 0 | BR41: =IF(OR($E41="",$H41="",$O41<=0,$Q$35="NO"),0,VLOOKUP($E41,'Data source'!$B$3:$T$14,17,FALSE)) -> 0 | BS41: =IF(OR($E41="",$H41="",$O41<=0,$Q$35="NO"),0,VLOOKUP($E41,'Data source'!$B$3:$T$14,18,FALSE)) -> 0 | BT41: =IF(OR($E41="",$H41="",$O41<=0,$Q$35="NO"),0,VLOOKUP($E41,'Data source'!$B$3:$T$14,19,FALSE)) -> 0 | BV41: =IF(OR($E41="",$H41="",$O41<=0,$Q$35="NO"),0,((43.498*$BN41)+(25.574*$BO41))-((28.206*$BP41)+(62.375*$BQ41)))*$AX41*10/1000 -> 0
AY42: 3 | AZ42: 2 | BC42: 4 | BE42: 5 | BG42: 6 | BI42: 7 | BK42: 8 | BN42: 13 | BO42: 14 | BP42: 15 | BQ42: 16 | BR42: 17 | BS42: 18 | BT42: 19
W43: Average MJME/kg DM | AA43: =IF(OR($Y$12="NO",$CS$4=""),"",$CS$4) ->  | AC43: =IF(OR($Q$35="NO",$Y$12="NO",$CU$4=""),"",$CU$4) ->  | AF43: =IF($C44="Hay_Silage","FT1_",IF($C44="Concentrates","FT2_",IF($C44="By_products","FT3_",IF($C44="Fodder_beet_Default","FT4_",IF($C44="Other_Crops_Default","FT5_",IF($C44="Minerals","FT6_",IF($C44="Custom_Feeds_Minerals","FT7_",IF($C44="Custom_Bulb_Crops","FT8_","-")))))))) -> - | AK43: 400 | AL43: =IF(OR($E44="",$H44=""),"",IF(AY43="",IF(AY44>0,BZ44,0),BZ43)) ->  | AN43: =IF(OR($E44="",$H44="",$K44="",$O$6=""),"",($K44/1000)*$O$6) ->  | AO43: =CA43 ->  | AQ43: =IF(OR($E44="",$H44="",$O44="",$O$6=""),"",($O44/1000)*$O$6) ->  | AR43: =CA44 ->  | AU43: =IF(E44="","",E44) ->  | AV43: =IF(L44="","",1) ->  | AW43: =IF(OR($E44="",$H44="",$K44<=0),"",VLOOKUP($H44,'Data source'!$B$128:$C$188,2,FALSE)) ->  | AX43: =IF(OR($E44="",$H44="",$K44<=0),0,K44*AW43) -> 0 | AY43: =IF(OR($E44="",$H44="-",$K44=0),"",VLOOKUP($E44,'Data source'!$B$4:$I$111,3,FALSE)) ->  | AZ43: =IF(OR($E44="",$H44="-",$K44=0),"",VLOOKUP($E44,'Data source'!$B$4:$I$111,2,FALSE)) ->  | BA43: =IF(OR($E44="",$H44="",$K44<=0),"",AX43*AY43) ->  | BC43: =IF(OR($E44="",$H44="-",$K44=0),"",VLOOKUP($E44,'Data source'!$B$4:$I$111,4,FALSE)) ->  | BD43: =IF(OR($E44="",$H44="",$K44<=0),"",(($AX43/$AX$72)*BC43)) ->  | BE43: =IF(OR($E44="",$H44="-",$K44=0),"",VLOOKUP($E44,'Data source'!$B$4:$I$111,5,FALSE)) ->  | BF43: =IF(OR($E44="",$H44="",$K44<=0),"",(($AX43/$AX$72)*BE43)) ->  | BG43: =IF(OR($E44="",$H44="-",$K44=0),"",VLOOKUP($E44,'Data source'!$B$4:$I$111,6,FALSE)) ->  | BH43: =IF(OR($E44="",$H44="",$K44<=0),"",(($AX43/$AX$72)*BG43)) ->  | BI43: =IF(OR($E44="",$H44="-",$K44=0),"",VLOOKUP($E44,'Data source'!$B$4:$I$111,7,FALSE)) ->  | BJ43: =IF(OR($E44="",$H44="",$K44<=0),"",(BI43/100*BH43)*($AX43/$AX$72)) ->  | BK43: =IF(OR($E44="",$H44="-",$K44=0),"",VLOOKUP($E44,'Data source'!$B$4:$I$111,8,FALSE)) ->  | BL43: =IF(OR($E44="",$H44="",$K44<=0),"",(($AX43/$AX$72)*BK43)) ->  | BN43: =IF(OR($E44="",$H44="",$K44=0),0,VLOOKUP($E44,'Data source'!$B$4:$T$111,13,FALSE)) -> 0 | BO43: =IF(OR($E44="",$H44="",$K44=0),0,VLOOKUP($E44,'Data source'!$B$4:$T$111,14,FALSE)) -> 0 | BP43: =IF(OR($E44="",$H44="",$K44=0),0,VLOOKUP($E44,'Data source'!$B$4:$T$111,15,FALSE)) -> 0 | BQ43: =IF(OR($E44="",$H44="",$K44=0),0,VLOOKUP($E44,'Data source'!$B$4:$T$111,16,FALSE)) -> 0 | BR43: =IF(OR($E44="",$H44="",$K44=0),0,VLOOKUP($E44,'Data source'!$B$4:$T$111,17,FALSE)) -> 0 | BS43: =IF(OR($E44="",$H44="",$K44=0),0,VLOOKUP($E44,'Data source'!$B$4:$T$111,18,FALSE)) -> 0 | BT43: =IF(OR($E44="",$H44="",$K44=0),0,VLOOKUP($E44,'Data source'!$B$4:$T$111,19,FALSE)) -> 0 | BV43: =IF(OR($E44="",$H44="",$K44<=0),0,((43.498*$BN43)+(25.574*$BO43))-((28.206*$BP43)+(62.375*$BQ43)))*$AX43*10/1000 -> 0 | BX43: =IF(OR($E44="",$H44="",$K44<=0,$AK43<=0),"",VLOOKUP($E44,'Data source'!$B$15:$M$111,12,FALSE)) ->  | BY43: =IF(OR($E44="",$H44="",$K44<=0,$AK43<=0),"",IF($BX43="Dry",$AK43/$AW43/10,IF($BX43="Wet",$AK43/($AZ43/100)*$AW43/10,0))) ->  | BZ43: =IF(OR($E44="",$H44="",$K44<=0,$AK43<=0,AY43=0),"",BY43/AY43) ->  | CA43: =IF(OR($E44="",$H44="",$K44<=0,$AK43<=0),"",($BY43*$K44)/100) -> 
D44: =IF(C44="Minerals","i","") ->  | J44: =IF(OR($C44="",$E44="",$H44=""),"",VLOOKUP($H44,'Data source'!$B$128:$C$188,2,FALSE)) ->  | L44: =IF(OR(C44="",E44="",H44=""),"",K44) ->  | M44: =IF(AX43=0,"",AX43) ->  | N44: =IF(OR(C44="",E44="",H44=""),"",AN43) ->  | P44: =IF(OR(C44="",E44="",H44=""),"",O44) ->  | Q44: =IF(AX44=0,"",AX44) ->  | R44: =IF(OR(N45=">3",R45=">3"),"i","") ->  | W44: MJME | X44: =IF(Y12="No","",AD11) ->  | Y44: =IF(Y12="No","",AE11) ->  | AA44: =IF($AX$72>0,BA72,"") ->  | AB44: =IF(AND($K$72>0,Y12="Yes"),$AA$44-$X$44,"") ->  | AC44: =IF(AND($Q$35="YES",$O$72>0),$BA$73,"") ->  | AD44: =IF(AND(Q35="YES",O72>0,Y12="Yes",AC44>0),$AC$44-$Y$44,"") ->  | AV44: =IF(OR(P44="",$Q$35="NO"),"",2) ->  | AW44: =IF(OR($E44="",$H44="",$O44<=0,$Q$35="NO"),"",VLOOKUP($H44,'Data source'!$B$128:$C$188,2,FALSE)) ->  | AX44: =IF(OR($E44="",$H44="",$O44<=0,$Q$35="NO"),0,$O44*$AW44) -> 0 | AY44: =IF(OR($E44="",$H44="",$O44<=0,$Q$35="NO"),"",VLOOKUP($E44,'Data source'!$B$4:$I$111,3,FALSE)) ->  | AZ44: =IF(OR($E44="",$H44="",$O44<=0,$Q$35="NO"),"",VLOOKUP($E44,'Data source'!$B$4:$I$111,2,FALSE)) ->  | BA44: =IF(OR($E44="",$H44="",$O44<=0,$Q$35="NO"),"",$AX44*$AY44) ->  | BC44: =IF(OR($E44="",$H44="",$O44<=0,$Q$35="NO"),"",VLOOKUP($E44,'Data source'!$B$4:$I$111,4,FALSE)) ->  | BD44: =IF(OR($E44="",$H44="",$O44<=0,$Q$35="NO"),"",(($AX44/$AX$73)*$BC44)) ->  | BE44: =IF(OR($E44="",$H44="",$O44<=0,$Q$35="NO"),"",VLOOKUP($E44,'Data source'!$B$4:$I$111,5,FALSE)) ->  | BF44: =IF(OR($E44="",$H44="",$O44<=0,$Q$35="NO"),"",(($AX44/$AX$73)*BE44)) ->  | BG44: =IF(OR($E44="",$H44="",$O44<=0,$Q$35="NO"),"",VLOOKUP($E44,'Data source'!$B$4:$I$111,6,FALSE)) ->  | BH44: =IF(OR($E44="",$H44="",$O44<=0,$Q$35="NO"),"",(($AX44/$AX$73)*BG44)) ->  | BI44: =IF(OR($E44="",$H44="",$O44<=0,$Q$35="NO"),"",VLOOKUP($E44,'Data source'!$B$4:$I$111,7,FALSE)) ->  | BJ44: =IF(OR($E44="",$H44="",$O44<=0,$Q$35="NO"),"",(BI44/100*BH44)*($AX44/$AX$73)) ->  | BK44: =IF(OR($E44="",$H44="",$O44<=0,$Q$35="NO"),"",VLOOKUP($E44,'Data source'!$B$4:$I$111,8,FALSE)) ->  | BL44: =IF(OR($E44="",$H44="",$O44<=0,$Q$35="NO"),"",(($AX44/$AX$73)*BK44)) ->  | BN44: =IF(OR($E44="",$H44="",$O44<=0,$Q$35="NO"),0,VLOOKUP($E44,'Data source'!$B$4:$T$111,13,FALSE)) -> 0 | BO44: =IF(OR($E44="",$H44="",$O44<=0,$Q$35="NO"),0,VLOOKUP($E44,'Data source'!$B$4:$T$111,14,FALSE)) -> 0 | BP44: =IF(OR($E44="",$H44="",$O44<=0,$Q$35="NO"),0,VLOOKUP($E44,'Data source'!$B$4:$T$111,15,FALSE)) -> 0 | BQ44: =IF(OR($E44="",$H44="",$O44<=0,$Q$35="NO"),0,VLOOKUP($E44,'Data source'!$B$4:$T$111,16,FALSE)) -> 0 | BR44: =IF(OR($E44="",$H44="",$O44<=0,$Q$35="NO"),0,VLOOKUP($E44,'Data source'!$B$4:$T$111,17,FALSE)) -> 0 | BS44: =IF(OR($E44="",$H44="",$O44<=0,$Q$35="NO"),0,VLOOKUP($E44,'Data source'!$B$4:$T$111,18,FALSE)) -> 0 | BT44: =IF(OR($E44="",$H44="",$O44<=0,$Q$35="NO"),0,VLOOKUP($E44,'Data source'!$B$4:$T$111,19,FALSE)) -> 0 | BV44: =IF(OR($E44="",$H44="",$O44<=0,$Q$35="NO"),0,((43.498*$BN44)+(25.574*$BO44))-((28.206*$BP44)+(62.375*$BQ44)))*$AX44*10/1000 -> 0 | BX44: =IF(OR($E44="",$H44="",$O44<=0,$AK43<=0,$Q$35="NO"),"",VLOOKUP($E44,'Data source'!$B$15:$M$104,12,FALSE)) ->  | BY44: =IF(OR($E44="",$H44="",$O44<=0,$AK43<=0,$Q$35="NO"),"",IF($BX44="Dry",$AK43/$AW44/10,IF($BX44="Wet",$AK43/($AZ44/100)*$AW44/10,0))) ->  | BZ44: =IF(OR($E44="",$H44="",$O44<=0,$AK43<=0,AY44=0,$Q$35="NO"),"",IF(OR($Q16="-",$AS44="-",$O44=0),"",BY44/AY44)) ->  | CA44: =IF(OR($E44="",$H44="",$O44<=0,$AK43<=0,$Q$35="NO"),"",IF(OR($Q16="-",$AS44="-",$O44=0),"",($BY44*$O44)/100)) -> 
N45: =IF(OR($H$7="Dry", K44=""),"",IF(AND(E44="PKE",K44>3),">3","")) ->  | R45: =IF(OR($H$7="Dry", O44=""),"",IF(AND(E44="PKE",O44>3),">3","")) ->  | AL45: =IF(OR($E45="-",$H45="-",$O46<=0,$AK44<=0,$Q$35="NO"),"",IF(OR(#REF!="-",$AS45="-",$O46=0),"",($BY45*$O46)/100)) -> 
AF46: =IF($C47="Hay_Silage","FT1_",IF($C47="Concentrates","FT2_",IF($C47="By_products","FT3_",IF($C47="Fodder_beet_Default","FT4_",IF($C47="Other_Crops_Default","FT5_",IF($C47="Minerals","FT6_",IF($C47="Custom_Feeds_Minerals","FT7_",IF($C47="Custom_Bulb_Crops","FT8_","-")))))))) -> - | AK46: 200 | AL46: =IF(OR($E47="",$H47=""),"",IF(AY46="",IF(AY47>0,BZ47,0),BZ46)) ->  | AN46: =IF(OR($E47="",$H47="",$K47="",$O$6=""),"",($K47/1000)*$O$6) ->  | AO46: =CA46 ->  | AQ46: =IF(OR($E47="",$H47="",$O47="",$O$6=""),"",($O47/1000)*$O$6) ->  | AR46: =CA47 ->  | AU46: =IF(E47="","",E47) ->  | AV46: =IF(L47="","",1) ->  | AW46: =IF(OR($E47="",$H47="",$K47<=0),"",VLOOKUP($H47,'Data source'!$B$128:$C$188,2,FALSE)) ->  | AX46: =IF(OR($E47="",$H47="",$K47<=0),0,K47*AW46) -> 0 | AY46: =IF(OR($E47="",$H47="",$K47=0),"",VLOOKUP($E47,'Data source'!$B$4:$I$111,3,FALSE)) ->  | AZ46: =IF(OR($E47="",$H47="",$K47=0),"",VLOOKUP($E47,'Data source'!$B$4:$I$111,2,FALSE)) ->  | BA46: =IF(OR($E47="",$H47="",$K47<=0),"",AX46*AY46) ->  | BC46: =IF(OR($E47="",$H47="",$K47=0),"",VLOOKUP($E47,'Data source'!$B$4:$I$111,4,FALSE)) ->  | BD46: =IF(OR($E47="",$H47="",$K47<=0),"",(($AX46/$AX$72)*BC46)) ->  | BE46: =IF(OR($E47="",$H47="",$K47=0),"",VLOOKUP($E47,'Data source'!$B$4:$I$111,5,FALSE)) ->  | BF46: =IF(OR($E47="",$H47="",$K47<=0),"",(($AX46/$AX$72)*BE46)) ->  | BG46: =IF(OR($E47="",$H47="",$K47=0),"",VLOOKUP($E47,'Data source'!$B$4:$I$111,6,FALSE)) ->  | BH46: =IF(OR($E47="",$H47="",$K47<=0),"",(($AX46/$AX$72)*BG46)) ->  | BI46: =IF(OR($E47="",$H47="",$K47=0),"",VLOOKUP($E47,'Data source'!$B$4:$I$111,7,FALSE)) ->  | BJ46: =IF(OR($E47="",$H47="",$K47<=0),"",(BI46/100*BH46)*($AX46/$AX$72)) ->  | BK46: =IF(OR($E47="",$H47="",$K47=0),"",VLOOKUP($E47,'Data source'!$B$4:$I$111,8,FALSE)) ->  | BL46: =IF(OR($E47="",$H47="",$K47<=0),"",(($AX46/$AX$72)*BK46)) ->  | BN46: =IF(OR($E47="",$H47="",$K47=0),0,VLOOKUP($E47,'Data source'!$B$4:$T$111,13,FALSE)) -> 0 | BO46: =IF(OR($E47="",$H47="",$K47=0),0,VLOOKUP($E47,'Data source'!$B$4:$T$111,14,FALSE)) -> 0 | BP46: =IF(OR($E47="",$H47="",$K47=0),0,VLOOKUP($E47,'Data source'!$B$4:$T$111,15,FALSE)) -> 0 | BQ46: =IF(OR($E47="",$H47="",$K47=0),0,VLOOKUP($E47,'Data source'!$B$4:$T$111,16,FALSE)) -> 0 | BR46: =IF(OR($E47="",$H47="",$K47=0),0,VLOOKUP($E47,'Data source'!$B$4:$T$111,17,FALSE)) -> 0 | BS46: =IF(OR($E47="",$H47="",$K47=0),0,VLOOKUP($E47,'Data source'!$B$4:$T$111,18,FALSE)) -> 0 | BT46: =IF(OR($E47="",$H47="",$K47=0),0,VLOOKUP($E47,'Data source'!$B$4:$T$111,19,FALSE)) -> 0 | BV46: =IF(OR($E47="",$H47="",$K47<=0),0,((43.498*$BN46)+(25.574*$BO46))-((28.206*$BP46)+(62.375*$BQ46)))*$AX46*10/1000 -> 0 | BX46: =IF(OR($E47="",$H47="",$K47<=0,$AK46<=0),"",VLOOKUP($E47,'Data source'!$B$15:$M$111,12,FALSE)) ->  | BY46: =IF(OR($E47="",$H47="",$K47<=0,$AK46<=0),"",IF($BX46="Dry",$AK46/$AW46/10,IF($BX46="Wet",$AK46/($AZ46/100)*$AW46/10,0))) ->  | BZ46: =IF(OR($E47="",$H47="",$K47<=0,$AK46<=0,AY46=0),"",BY46/AY46) ->  | CA46: =IF(OR($E47="",$H47="",$K47<=0,$AK46<=0),"",($BY46*$K47)/100) -> 
D47: =IF(C47="Minerals","i","") ->  | J47: =IF(OR($C47="",$E47="",$H47=""),"",VLOOKUP($H47,'Data source'!$B$128:$C$188,2,FALSE)) ->  | L47: =IF(OR(C47="",E47="",H47=""),"",K47) ->  | M47: =IF(AX46=0,"",AX46) ->  | P47: =IF(OR(C47="",E47="",H47=""),"",O47) ->  | Q47: =IF(AX47=0,"",AX47) ->  | R47: =IF(OR(N48=">3",R48=">3"),"i","") ->  | W47: PROTEIN | X47: =IF(Y12="No","",CJ7) ->  | Y47: =IF(Y12="No","",CK7) ->  | AA47: =IF($K$72>0,BD72,"") ->  | AB47: =IF(OR(X47="",AA47=""),"",IF(AA47<(0.9*X47),"i","")) ->  | AC47: =IF(AND($Q$35="YES",$O$72>0),BD73,"") ->  | AD47: =IF(OR(X47="",AC47=""),"",IF(AC47<0.9*X47,"i","")) ->  | AV47: =IF(OR(P47="",$Q$35="NO"),"",2) ->  | AW47: =IF(OR($E47="",$H47="",$O47<=0,$Q$35="NO"),"",VLOOKUP($H47,'Data source'!$B$128:$C$188,2,FALSE)) ->  | AX47: =IF(OR($E47="",$H47="",$O47<=0,$Q$35="NO"),0,$O47*$AW47) -> 0 | AY47: =IF(OR($E47="",$H47="",$O47<=0,$Q$35="NO"),"",VLOOKUP($E47,'Data source'!$B$4:$I$111,3,FALSE)) ->  | AZ47: =IF(OR($E47="",$H47="",$O47<=0,$Q$35="NO"),"",VLOOKUP($E47,'Data source'!$B$4:$I$111,2,FALSE)) ->  | BA47: =IF(OR($E47="",$H47="",$O47<=0,$Q$35="NO"),"",$AX47*$AY47) ->  | BC47: =IF(OR($E47="",$H47="",$O47<=0,$Q$35="NO"),"",VLOOKUP($E47,'Data source'!$B$4:$I$111,4,FALSE)) ->  | BD47: =IF(OR($E47="",$H47="",$O47<=0,$Q$35="NO"),"",(($AX47/$AX$73)*$BC47)) ->  | BE47: =IF(OR($E47="",$H47="",$O47<=0,$Q$35="NO"),"",VLOOKUP($E47,'Data source'!$B$4:$I$111,5,FALSE)) ->  | BF47: =IF(OR($E47="",$H47="",$O47<=0,$Q$35="NO"),"",(($AX47/$AX$73)*BE47)) ->  | BG47: =IF(OR($E47="",$H47="",$O47<=0,$Q$35="NO"),"",VLOOKUP($E47,'Data source'!$B$4:$I$111,6,FALSE)) ->  | BH47: =IF(OR($E47="",$H47="",$O47<=0,$Q$35="NO"),"",(($AX47/$AX$73)*BG47)) ->  | BI47: =IF(OR($E47="",$H47="",$O47<=0,$Q$35="NO"),"",VLOOKUP($E47,'Data source'!$B$4:$I$111,7,FALSE)) ->  | BJ47: =IF(OR($E47="",$H47="",$O47<=0,$Q$35="NO"),"",(BI47/100*BH47)*($AX47/$AX$73)) ->  | BK47: =IF(OR($E47="",$H47="",$O47<=0,$Q$35="NO"),"",VLOOKUP($E47,'Data source'!$B$4:$I$111,8,FALSE)) ->  | BL47: =IF(OR($E47="",$H47="",$O47<=0,$Q$35="NO"),"",(($AX47/$AX$73)*BK47)) ->  | BN47: =IF(OR($E47="",$H47="",$O47<=0,$Q$35="NO"),0,VLOOKUP($E47,'Data source'!$B$4:$T$111,13,FALSE)) -> 0 | BO47: =IF(OR($E47="",$H47="",$O47<=0,$Q$35="NO"),0,VLOOKUP($E47,'Data source'!$B$4:$T$111,14,FALSE)) -> 0 | BP47: =IF(OR($E47="",$H47="",$O47<=0,$Q$35="NO"),0,VLOOKUP($E47,'Data source'!$B$4:$T$111,15,FALSE)) -> 0 | BQ47: =IF(OR($E47="",$H47="",$O47<=0,$Q$35="NO"),0,VLOOKUP($E47,'Data source'!$B$4:$T$111,16,FALSE)) -> 0 | BR47: =IF(OR($E47="",$H47="",$O47<=0,$Q$35="NO"),0,VLOOKUP($E47,'Data source'!$B$4:$T$111,17,FALSE)) -> 0 | BS47: =IF(OR($E47="",$H47="",$O47<=0,$Q$35="NO"),0,VLOOKUP($E47,'Data source'!$B$4:$T$111,18,FALSE)) -> 0 | BT47: =IF(OR($E47="",$H47="",$O47<=0,$Q$35="NO"),0,VLOOKUP($E47,'Data source'!$B$4:$T$111,19,FALSE)) -> 0 | BV47: =IF(OR($E47="",$H47="",$O47<=0,$Q$35="NO"),0,((43.498*$BN47)+(25.574*$BO47))-((28.206*$BP47)+(62.375*$BQ47)))*$AX47*10/1000 -> 0 | BX47: =IF(OR($E47="",$H47="",$O47<=0,$AK46<=0,$Q$35="NO"),"",VLOOKUP($E47,'Data source'!$B$15:$M$104,12,FALSE)) ->  | BY47: =IF(OR($E47="",$H47="",$O47<=0,$AK46<=0,$Q$35="NO"),"",IF($BX47="Dry",$AK46/$AW47/10,IF($BX47="Wet",$AK46/($AZ47/100)*$AW47/10,0))) ->  | BZ47: =IF(OR($E47="",$H47="",$O47<=0,$AK46<=0,AY47=0,$Q$35="NO"),"",IF(OR($I23="-",$AS47="-",$O47=0),"",BY47/AY47)) ->  | CA47: =IF(OR($E47="",$H47="",$O47<=0,$AK46<=0,$Q$35="NO"),"",IF(OR($I23="-",$AS47="-",$O47=0),"",($BY47*$O47)/100)) -> 
N48: =IF(OR($H$7="Dry", K47=""),"",IF(AND(E47="PKE",K47>3),">3","")) ->  | R48: =IF(OR($H$7="Dry", O47=""),"",IF(AND(E47="PKE",O47>3),">3","")) ->  | AL48: =IF(OR($E48="-",$H48="-",$O49<=0,$AK47<=0,$Q$35="NO"),"",IF(OR(#REF!="-",$AS48="-",$O49=0),"",($BY48*$O49)/100)) -> 
AF49: =IF($C50="Hay_Silage","FT1_",IF($C50="Concentrates","FT2_",IF($C50="By_products","FT3_",IF($C50="Fodder_beet_Default","FT4_",IF($C50="Other_Crops_Default","FT5_",IF($C50="Minerals","FT6_",IF($C50="Custom_Feeds_Minerals","FT7_",IF($C50="Custom_Bulb_Crops","FT8_","-")))))))) -> - | AL49: =IF(OR($E50="",$H50=""),"",IF(AY49="",IF(AY50>0,BZ50,0),BZ49)) ->  | AN49: =IF(OR($E50="",$H50="",$K50="",$O$6=""),"",($K50/1000)*$O$6) ->  | AO49: =CA49 ->  | AQ49: =IF(OR($E50="",$H50="",$O50="",$O$6=""),"",($O50/1000)*$O$6) ->  | AR49: =CA50 ->  | AU49: =IF(E50="","",E50) ->  | AV49: =IF(L50="","",1) ->  | AW49: =IF(OR($E50="",$H50="",$K50<=0),"",VLOOKUP($H50,'Data source'!$B$128:$C$188,2,FALSE)) ->  | AX49: =IF(OR($E50="",$H50="",$K50<=0),0,K50*AW49) -> 0 | AY49: =IF(OR($E50="",$H50="",$K50=0),"",VLOOKUP($E50,'Data source'!$B$4:$I$111,3,FALSE)) ->  | AZ49: =IF(OR($E50="",$H50="",$K50=0),"",VLOOKUP($E50,'Data source'!$B$4:$I$111,2,FALSE)) ->  | BA49: =IF(OR($E50="",$H50="",$K50<=0),"",AX49*AY49) ->  | BC49: =IF(OR($E50="",$H50="",$K50=0),"",VLOOKUP($E50,'Data source'!$B$4:$I$111,4,FALSE)) ->  | BD49: =IF(OR($E50="",$H50="",$K50<=0),"",(($AX49/$AX$72)*BC49)) ->  | BE49: =IF(OR($E50="",$H50="",$K50=0),"",VLOOKUP($E50,'Data source'!$B$4:$I$111,5,FALSE)) ->  | BF49: =IF(OR($E50="",$H50="",$K50<=0),"",(($AX49/$AX$72)*BE49)) ->  | BG49: =IF(OR($E50="",$H50="",$K50=0),"",VLOOKUP($E50,'Data source'!$B$4:$I$111,6,FALSE)) ->  | BH49: =IF(OR($E50="",$H50="",$K50<=0),"",(($AX49/$AX$72)*BG49)) ->  | BI49: =IF(OR($E50="",$H50="",$K50=0),"",VLOOKUP($E50,'Data source'!$B$4:$I$111,7,FALSE)) ->  | BJ49: =IF(OR($E50="",$H50="",$K50<=0),"",(BI49/100*BH49)*($AX49/$AX$72)) ->  | BK49: =IF(OR($E50="",$H50="",$K50=0),"",VLOOKUP($E50,'Data source'!$B$4:$I$111,8,FALSE)) ->  | BL49: =IF(OR($E50="",$H50="",$K50<=0),"",(($AX49/$AX$72)*BK49)) ->  | BN49: =IF(OR($E50="",$H50="",$K50=0),0,VLOOKUP($E50,'Data source'!$B$4:$T$111,13,FALSE)) -> 0 | BO49: =IF(OR($E50="",$H50="",$K50=0),0,VLOOKUP($E50,'Data source'!$B$4:$T$111,14,FALSE)) -> 0 | BP49: =IF(OR($E50="",$H50="",$K50=0),0,VLOOKUP($E50,'Data source'!$B$4:$T$111,15,FALSE)) -> 0 | BQ49: =IF(OR($E50="",$H50="",$K50=0),0,VLOOKUP($E50,'Data source'!$B$4:$T$111,16,FALSE)) -> 0 | BR49: =IF(OR($E50="",$H50="",$K50=0),0,VLOOKUP($E50,'Data source'!$B$4:$T$111,17,FALSE)) -> 0 | BS49: =IF(OR($E50="",$H50="",$K50=0),0,VLOOKUP($E50,'Data source'!$B$4:$T$111,18,FALSE)) -> 0 | BT49: =IF(OR($E50="",$H50="",$K50=0),0,VLOOKUP($E50,'Data source'!$B$4:$T$111,19,FALSE)) -> 0 | BV49: =IF(OR($E50="",$H50="",$K50<=0),0,((43.498*$BN49)+(25.574*$BO49))-((28.206*$BP49)+(62.375*$BQ49)))*$AX49*10/1000 -> 0 | BX49: =IF(OR($E50="",$H50="",$K50<=0,$AK49<=0),"",VLOOKUP($E50,'Data source'!$B$15:$M$104,12,FALSE)) ->  | BY49: =IF(OR($E50="",$H50="",$K50<=0,$AK49<=0),"",IF($BX49="Dry",$AK49/$AW49/10,IF($BX49="Wet",$AK49/($AZ49/100)*$AW49/10,0))) ->  | BZ49: =IF(OR($E50="",$H50="",$K50<=0,$AK49<=0,AY49=0),"",BY49/AY49) ->  | CA49: =IF(OR($E50="",$H50="",$K50<=0,$AK49<=0),"",($BY49*$K50)/100) -> 
D50: =IF(C50="Minerals","i","") ->  | J50: =IF(OR($C50="",$E50="",$H50=""),"",VLOOKUP($H50,'Data source'!$B$128:$C$188,2,FALSE)) ->  | L50: =IF(OR(C50="",E50="",H50=""),"",K50) ->  | M50: =IF(AX49=0,"",AX49) ->  | P50: =IF(OR(C50="",E50="",H50=""),"",O50) ->  | Q50: =IF(AX50=0,"",AX50) ->  | R50: =IF(OR(N51=">3",R51=">3"),"i","") ->  | W50: NDF | X50: =IF(Y12="No","",">35") ->  | AA50: =IF($K$72>0,BF72,"") ->  | AB50: =IF(OR(X50="",AA50=""),"",IF(AA50<=0.9*35,"i",IF(AA50>60/0.9,"i",""))) ->  | AC50: =IF(AND($Q$35="YES",$O$72>0),BF73,"") ->  | AD50: =IF(OR(X50="",AC50=""),"",IF(AC50<=0.9*35,"i",IF(AC50>60/0.9,"i",""))) ->  | AV50: =IF(OR(P50="",$Q$35="NO"),"",2) ->  | AW50: =IF(OR($E50="",$H50="",$O50<=0,$Q$35="NO"),"",VLOOKUP($H50,'Data source'!$B$128:$C$188,2,FALSE)) ->  | AX50: =IF(OR($E50="",$H50="",$O50<=0,$Q$35="NO"),0,$O50*$AW50) -> 0 | AY50: =IF(OR($E50="",$H50="",$O50<=0,$Q$35="NO"),"",VLOOKUP($E50,'Data source'!$B$4:$I$111,3,FALSE)) ->  | AZ50: =IF(OR($E50="",$H50="",$O50<=0,$Q$35="NO"),"",VLOOKUP($E50,'Data source'!$B$4:$I$111,2,FALSE)) ->  | BA50: =IF(OR($E50="",$H50="",$O50<=0,$Q$35="NO"),"",$AX50*$AY50) ->  | BC50: =IF(OR($E50="",$H50="",$O50<=0,$Q$35="NO"),"",VLOOKUP($E50,'Data source'!$B$4:$I$111,4,FALSE)) ->  | BD50: =IF(OR($E50="",$H50="",$O50<=0,$Q$35="NO"),"",(($AX50/$AX$73)*$BC50)) ->  | BE50: =IF(OR($E50="",$H50="",$O50<=0,$Q$35="NO"),"",VLOOKUP($E50,'Data source'!$B$4:$I$111,5,FALSE)) ->  | BF50: =IF(OR($E50="",$H50="",$O50<=0,$Q$35="NO"),"",(($AX50/$AX$73)*BE50)) ->  | BG50: =IF(OR($E50="",$H50="",$O50<=0,$Q$35="NO"),"",VLOOKUP($E50,'Data source'!$B$4:$I$111,6,FALSE)) ->  | BH50: =IF(OR($E50="",$H50="",$O50<=0,$Q$35="NO"),"",(($AX50/$AX$73)*BG50)) ->  | BI50: =IF(OR($E50="",$H50="",$O50<=0,$Q$35="NO"),"",VLOOKUP($E50,'Data source'!$B$4:$I$111,7,FALSE)) ->  | BJ50: =IF(OR($E50="",$H50="",$O50<=0,$Q$35="NO"),"",(BI50/100*BH50)*($AX50/$AX$73)) ->  | BK50: =IF(OR($E50="",$H50="",$O50<=0,$Q$35="NO"),"",VLOOKUP($E50,'Data source'!$B$4:$I$111,8,FALSE)) ->  | BL50: =IF(OR($E50="",$H50="",$O50<=0,$Q$35="NO"),"",(($AX50/$AX$73)*BK50)) ->  | BN50: =IF(OR($E50="",$H50="",$O50<=0,$Q$35="NO"),0,VLOOKUP($E50,'Data source'!$B$4:$T$111,13,FALSE)) -> 0 | BO50: =IF(OR($E50="",$H50="",$O50<=0,$Q$35="NO"),0,VLOOKUP($E50,'Data source'!$B$4:$T$111,14,FALSE)) -> 0 | BP50: =IF(OR($E50="",$H50="",$O50<=0,$Q$35="NO"),0,VLOOKUP($E50,'Data source'!$B$4:$T$111,15,FALSE)) -> 0 | BQ50: =IF(OR($E50="",$H50="",$O50<=0,$Q$35="NO"),0,VLOOKUP($E50,'Data source'!$B$4:$T$111,16,FALSE)) -> 0 | BR50: =IF(OR($E50="",$H50="",$O50<=0,$Q$35="NO"),0,VLOOKUP($E50,'Data source'!$B$4:$T$111,17,FALSE)) -> 0 | BS50: =IF(OR($E50="",$H50="",$O50<=0,$Q$35="NO"),0,VLOOKUP($E50,'Data source'!$B$4:$T$111,18,FALSE)) -> 0 | BT50: =IF(OR($E50="",$H50="",$O50<=0,$Q$35="NO"),0,VLOOKUP($E50,'Data source'!$B$4:$T$111,19,FALSE)) -> 0 | BV50: =IF(OR($E50="",$H50="",$O50<=0,$Q$35="NO"),0,((43.498*$BN50)+(25.574*$BO50))-((28.206*$BP50)+(62.375*$BQ50)))*$AX50*10/1000 -> 0 | BX50: =IF(OR($E50="",$H50="",$O50<=0,$AK49<=0,$Q$35="NO"),"",VLOOKUP($E50,'Data source'!$B$15:$M$104,12,FALSE)) ->  | BY50: =IF(OR($E50="",$H50="",$O50<=0,$AK49<=0,$Q$35="NO"),"",IF($BX50="Dry",$AK49/$AW50/10,IF($BX50="Wet",$AK49/($AZ50/100)*$AW50/10,0))) ->  | BZ50: =IF(OR($E50="",$H50="",$O50<=0,$AK49<=0,AY50=0,$Q$35="NO"),"",IF(OR($I37="-",$AS50="-",$O50=0),"",BY50/AY50)) ->  | CA50: =IF(OR($E50="",$H50="",$O50<=0,$AK49<=0,$Q$35="NO"),"",IF(OR($I37="-",$AS50="-",$O50=0),"",($BY50*$O50)/100)) -> 
N51: =IF(OR($H$7="Dry", K50=""),"",IF(AND(E50="PKE",K50>3),">3","")) ->  | R51: =IF(OR($H$7="Dry", O50=""),"",IF(AND(E50="PKE",O50>3),">3","")) ->  | AL51: =IF(OR($E51="-",$H51="-",$O52<=0,$AK50<=0,$Q$35="NO"),"",IF(OR(#REF!="-",$AS51="-",$O52=0),"",($BY51*$O52)/100)) -> 
AF52: =IF($C53="Hay_Silage","FT1_",IF($C53="Concentrates","FT2_",IF($C53="By_products","FT3_",IF($C53="Fodder_beet_Default","FT4_",IF($C53="Other_Crops_Default","FT5_",IF($C53="Minerals","FT6_",IF($C53="Custom_Feeds_Minerals","FT7_",IF($C53="Custom_Bulb_Crops","FT8_","-")))))))) -> - | AL52: =IF(OR($E53="",$H53=""),"",IF(AY52="",IF(AY53>0,BZ53,0),BZ52)) ->  | AN52: =IF(OR($E53="",$H53="",$K53="",$O$6=""),"",($K53/1000)*$O$6) ->  | AO52: =CA52 ->  | AQ52: =IF(OR($E53="",$H53="",$O53="",$O$6=""),"",($O53/1000)*$O$6) ->  | AR52: =CA53 ->  | AU52: =IF(E53="","",E53) ->  | AV52: =IF(L53="","",1) ->  | AW52: =IF(OR($E53="",$H53="",$K53<=0),"",VLOOKUP($H53,'Data source'!$B$128:$C$188,2,FALSE)) ->  | AX52: =IF(OR($E53="",$H53="",$K53<=0),0,K53*AW52) -> 0 | AY52: =IF(OR($E53="",$H53="",$K53=0),"",VLOOKUP($E53,'Data source'!$B$4:$I$111,3,FALSE)) ->  | AZ52: =IF(OR($E53="",$H53="",$K53=0),"",VLOOKUP($E53,'Data source'!$B$4:$I$111,2,FALSE)) ->  | BA52: =IF(OR($E53="",$H53="",$K53<=0),"",AX52*AY52) ->  | BC52: =IF(OR($E53="",$H53="",$K53=0),"",VLOOKUP($E53,'Data source'!$B$4:$I$111,4,FALSE)) ->  | BD52: =IF(OR($E53="",$H53="",$K53<=0),"",(($AX52/$AX$72)*BC52)) ->  | BE52: =IF(OR($E53="",$H53="",$K53=0),"",VLOOKUP($E53,'Data source'!$B$4:$I$111,5,FALSE)) ->  | BF52: =IF(OR($E53="",$H53="",$K53<=0),"",(($AX52/$AX$72)*BE52)) ->  | BG52: =IF(OR($E53="",$H53="",$K53=0),"",VLOOKUP($E53,'Data source'!$B$4:$I$111,6,FALSE)) ->  | BH52: =IF(OR($E53="",$H53="",$K53<=0),"",(($AX52/$AX$72)*BG52)) ->  | BI52: =IF(OR($E53="",$H53="",$K53=0),"",VLOOKUP($E53,'Data source'!$B$4:$I$111,7,FALSE)) ->  | BJ52: =IF(OR($E53="",$H53="",$K53<=0),"",(BI52/100*BH52)*($AX52/$AX$72)) ->  | BK52: =IF(OR($E53="",$H53="",$K53=0),"",VLOOKUP($E53,'Data source'!$B$4:$I$111,8,FALSE)) ->  | BL52: =IF(OR($E53="",$H53="",$K53<=0),"",(($AX52/$AX$72)*BK52)) ->  | BN52: =IF(OR($E53="",$H53="",$K53=0),0,VLOOKUP($E53,'Data source'!$B$4:$T$111,13,FALSE)) -> 0 | BO52: =IF(OR($E53="",$H53="",$K53=0),0,VLOOKUP($E53,'Data source'!$B$4:$T$111,14,FALSE)) -> 0 | BP52: =IF(OR($E53="",$H53="",$K53=0),0,VLOOKUP($E53,'Data source'!$B$4:$T$111,15,FALSE)) -> 0 | BQ52: =IF(OR($E53="",$H53="",$K53=0),0,VLOOKUP($E53,'Data source'!$B$4:$T$111,16,FALSE)) -> 0 | BR52: =IF(OR($E53="",$H53="",$K53=0),0,VLOOKUP($E53,'Data source'!$B$4:$T$111,17,FALSE)) -> 0 | BS52: =IF(OR($E53="",$H53="",$K53=0),0,VLOOKUP($E53,'Data source'!$B$4:$T$111,18,FALSE)) -> 0 | BT52: =IF(OR($E53="",$H53="",$K53=0),0,VLOOKUP($E53,'Data source'!$B$4:$T$111,19,FALSE)) -> 0 | BV52: =IF(OR($E53="",$H53="",$K53<=0),0,((43.498*$BN52)+(25.574*$BO52))-((28.206*$BP52)+(62.375*$BQ52)))*$AX52*10/1000 -> 0 | BX52: =IF(OR($E53="",$H53="",$K53<=0,$AK52<=0),"",VLOOKUP($E53,'Data source'!$B$15:$M$104,12,FALSE)) ->  | BY52: =IF(OR($E53="",$H53="",$K53<=0,$AK52<=0),"",IF($BX52="Dry",$AK52/$AW52/10,IF($BX52="Wet",$AK52/($AZ52/100)*$AW52/10,0))) ->  | BZ52: =IF(OR($E53="",$H53="",$K53<=0,$AK52<=0,AY52=0),"",BY52/AY52) ->  | CA52: =IF(OR($E53="",$H53="",$K53<=0,$AK52<=0),"",($BY52*$K53)/100) -> 
D53: =IF(C53="Minerals","i","") ->  | J53: =IF(OR($C53="",$E53="",$H53=""),"",VLOOKUP($H53,'Data source'!$B$128:$C$188,2,FALSE)) ->  | L53: =IF(OR(C53="",E53="",H53=""),"",K53) ->  | M53: =IF(AX52=0,"",AX52) ->  | P53: =IF(OR(C53="",E53="",H53=""),"",O53) ->  | Q53: =IF(AX53=0,"",AX53) ->  | R53: =IF(OR(N54=">3",R54=">3"),"i","") ->  | W53: SSS | X53: =IF(Y12="No","","<38") ->  | AA53: =IF($K$72>0,BH72,"") ->  | AB53: =IF(OR(X53="",AA53=""),"",IF(AA53>=38/0.9,"i","")) ->  | AC53: =IF(AND($Q$35="YES",$O$72>0),BH73,"") ->  | AD53: =IF(OR(X53="",AC53=""),"",IF(AC53>=38/0.9,"i","")) ->  | AV53: =IF(OR(P53="",$Q$35="NO"),"",2) ->  | AW53: =IF(OR($E53="",$H53="",$O53<=0,$Q$35="NO"),"",VLOOKUP($H53,'Data source'!$B$128:$C$188,2,FALSE)) ->  | AX53: =IF(OR($E53="",$H53="",$O53<=0,$Q$35="NO"),0,$O53*$AW53) -> 0 | AY53: =IF(OR($E53="",$H53="",$O53<=0,$Q$35="NO"),"",VLOOKUP($E53,'Data source'!$B$4:$I$111,3,FALSE)) ->  | AZ53: =IF(OR($E53="",$H53="",$O53<=0,$Q$35="NO"),"",VLOOKUP($E53,'Data source'!$B$4:$I$111,2,FALSE)) ->  | BA53: =IF(OR($E53="",$H53="",$O53<=0,$Q$35="NO"),"",$AX53*$AY53) ->  | BC53: =IF(OR($E53="",$H53="",$O53<=0,$Q$35="NO"),"",VLOOKUP($E53,'Data source'!$B$4:$I$111,4,FALSE)) ->  | BD53: =IF(OR($E53="",$H53="",$O53<=0,$Q$35="NO"),"",(($AX53/$AX$73)*$BC53)) ->  | BE53: =IF(OR($E53="",$H53="",$O53<=0,$Q$35="NO"),"",VLOOKUP($E53,'Data source'!$B$4:$I$111,5,FALSE)) ->  | BF53: =IF(OR($E53="",$H53="",$O53<=0,$Q$35="NO"),"",(($AX53/$AX$73)*BE53)) ->  | BG53: =IF(OR($E53="",$H53="",$O53<=0,$Q$35="NO"),"",VLOOKUP($E53,'Data source'!$B$4:$I$111,6,FALSE)) ->  | BH53: =IF(OR($E53="",$H53="",$O53<=0,$Q$35="NO"),"",(($AX53/$AX$73)*BG53)) ->  | BI53: =IF(OR($E53="",$H53="",$O53<=0,$Q$35="NO"),"",VLOOKUP($E53,'Data source'!$B$4:$I$111,7,FALSE)) ->  | BJ53: =IF(OR($E53="",$H53="",$O53<=0,$Q$35="NO"),"",(BI53/100*BH53)*($AX53/$AX$73)) ->  | BK53: =IF(OR($E53="",$H53="",$O53<=0,$Q$35="NO"),"",VLOOKUP($E53,'Data source'!$B$4:$I$111,8,FALSE)) ->  | BL53: =IF(OR($E53="",$H53="",$O53<=0,$Q$35="NO"),"",(($AX53/$AX$73)*BK53)) ->  | BN53: =IF(OR($E53="",$H53="",$O53<=0,$Q$35="NO"),0,VLOOKUP($E53,'Data source'!$B$4:$T$111,13,FALSE)) -> 0 | BO53: =IF(OR($E53="",$H53="",$O53<=0,$Q$35="NO"),0,VLOOKUP($E53,'Data source'!$B$4:$T$111,14,FALSE)) -> 0 | BP53: =IF(OR($E53="",$H53="",$O53<=0,$Q$35="NO"),0,VLOOKUP($E53,'Data source'!$B$4:$T$111,15,FALSE)) -> 0 | BQ53: =IF(OR($E53="",$H53="",$O53<=0,$Q$35="NO"),0,VLOOKUP($E53,'Data source'!$B$4:$T$111,16,FALSE)) -> 0 | BR53: =IF(OR($E53="",$H53="",$O53<=0,$Q$35="NO"),0,VLOOKUP($E53,'Data source'!$B$4:$T$111,17,FALSE)) -> 0 | BS53: =IF(OR($E53="",$H53="",$O53<=0,$Q$35="NO"),0,VLOOKUP($E53,'Data source'!$B$4:$T$111,18,FALSE)) -> 0 | BT53: =IF(OR($E53="",$H53="",$O53<=0,$Q$35="NO"),0,VLOOKUP($E53,'Data source'!$B$4:$T$111,19,FALSE)) -> 0 | BV53: =IF(OR($E53="",$H53="",$O53<=0,$Q$35="NO"),0,((43.498*$BN53)+(25.574*$BO53))-((28.206*$BP53)+(62.375*$BQ53)))*$AX53*10/1000 -> 0 | BX53: =IF(OR($E53="",$H53="",$O53<=0,$AK52<=0,$Q$35="NO"),"",VLOOKUP($E53,'Data source'!$B$15:$M$104,12,FALSE)) ->  | BY53: =IF(OR($E53="",$H53="",$O53<=0,$AK52<=0,$Q$35="NO"),"",IF($BX53="Dry",$AK52/$AW53/10,IF($BX53="Wet",$AK52/($AZ53/100)*$AW53/10,0))) ->  | BZ53: =IF(OR($E53="",$H53="",$O53<=0,$AK52<=0,AY53=0,$Q$35="NO"),"",IF(OR($I41="-",$AS53="-",$O53=0),"",BY53/AY53)) ->  | CA53: =IF(OR($E53="",$H53="",$O53<=0,$AK52<=0,$Q$35="NO"),"",IF(OR($I41="-",$AS53="-",$O53=0),"",($BY53*$O53)/100)) -> 
N54: =IF(OR($H$7="Dry", K53=""),"",IF(AND(E53="PKE",K53>3),">3","")) ->  | R54: =IF(OR($H$7="Dry", O53=""),"",IF(AND(E53="PKE",O53>3),">3","")) ->  | AL54: =IF(OR($E54="-",$H54="-",$O55<=0,$AK53<=0,$Q$35="NO"),"",IF(OR(#REF!="-",$AS54="-",$O55=0),"",($BY54*$O55)/100)) -> 
AF55: =IF($C56="Hay_Silage","FT1_",IF($C56="Concentrates","FT2_",IF($C56="By_products","FT3_",IF($C56="Fodder_beet_Default","FT4_",IF($C56="Other_Crops_Default","FT5_",IF($C56="Minerals","FT6_",IF($C56="Custom_Feeds_Minerals","FT7_",IF($C56="Custom_Bulb_Crops","FT8_","-")))))))) -> - | AL55: =IF(OR($E56="",$H56=""),"",IF(AY55="",IF(AY56>0,BZ56,0),BZ55)) ->  | AN55: =IF(OR($E56="",$H56="",$K56="",$O$6=""),"",($K56/1000)*$O$6) ->  | AO55: =CA55 ->  | AQ55: =IF(OR($E56="",$H56="",$O56="",$O$6=""),"",($O56/1000)*$O$6) ->  | AR55: =CA56 ->  | AU55: =IF(E56="","",E56) ->  | AV55: =IF(L56="","",1) ->  | AW55: =IF(OR($E56="",$H56="",$K56<=0),"",VLOOKUP($H56,'Data source'!$B$128:$C$188,2,FALSE)) ->  | AX55: =IF(OR($E56="",$H56="",$K56<=0),0,K56*AW55) -> 0 | AY55: =IF(OR($E56="",$H56="",$K56=0),"",VLOOKUP($E56,'Data source'!$B$4:$I$111,3,FALSE)) ->  | AZ55: =IF(OR($E56="",$H56="",$K56=0),"",VLOOKUP($E56,'Data source'!$B$4:$I$111,2,FALSE)) ->  | BA55: =IF(OR($E56="",$H56="",$K56<=0),"",AX55*AY55) ->  | BC55: =IF(OR($E56="",$H56="",$K56=0),"",VLOOKUP($E56,'Data source'!$B$4:$I$111,4,FALSE)) ->  | BD55: =IF(OR($E56="",$H56="",$K56<=0),"",(($AX55/$AX$72)*BC55)) ->  | BE55: =IF(OR($E56="",$H56="",$K56=0),"",VLOOKUP($E56,'Data source'!$B$4:$I$111,5,FALSE)) ->  | BF55: =IF(OR($E56="",$H56="",$K56<=0),"",(($AX55/$AX$72)*BE55)) ->  | BG55: =IF(OR($E56="",$H56="",$K56=0),"",VLOOKUP($E56,'Data source'!$B$4:$I$111,6,FALSE)) ->  | BH55: =IF(OR($E56="",$H56="",$K56<=0),"",(($AX55/$AX$72)*BG55)) ->  | BI55: =IF(OR($E56="",$H56="",$K56=0),"",VLOOKUP($E56,'Data source'!$B$4:$I$111,7,FALSE)) ->  | BJ55: =IF(OR($E56="",$H56="",$K56<=0),"",(BI55/100*BH55)*($AX55/$AX$72)) ->  | BK55: =IF(OR($E56="",$H56="",$K56=0),"",VLOOKUP($E56,'Data source'!$B$4:$I$111,8,FALSE)) ->  | BL55: =IF(OR($E56="",$H56="",$K56<=0),"",(($AX55/$AX$72)*BK55)) ->  | BN55: =IF(OR($E56="",$H56="",$K56=0),0,VLOOKUP($E56,'Data source'!$B$4:$T$111,13,FALSE)) -> 0 | BO55: =IF(OR($E56="",$H56="",$K56=0),0,VLOOKUP($E56,'Data source'!$B$4:$T$111,14,FALSE)) -> 0 | BP55: =IF(OR($E56="",$H56="",$K56=0),0,VLOOKUP($E56,'Data source'!$B$4:$T$111,15,FALSE)) -> 0 | BQ55: =IF(OR($E56="",$H56="",$K56=0),0,VLOOKUP($E56,'Data source'!$B$4:$T$111,16,FALSE)) -> 0 | BR55: =IF(OR($E56="",$H56="",$K56=0),0,VLOOKUP($E56,'Data source'!$B$4:$T$111,17,FALSE)) -> 0 | BS55: =IF(OR($E56="",$H56="",$K56=0),0,VLOOKUP($E56,'Data source'!$B$4:$T$111,18,FALSE)) -> 0 | BT55: =IF(OR($E56="",$H56="",$K56=0),0,VLOOKUP($E56,'Data source'!$B$4:$T$111,19,FALSE)) -> 0 | BV55: =IF(OR($E56="",$H56="",$K56<=0),0,((43.498*$BN55)+(25.574*$BO55))-((28.206*$BP55)+(62.375*$BQ55)))*$AX55*10/1000 -> 0 | BX55: =IF(OR($E56="",$H56="",$K56<=0,$AK55<=0),"",VLOOKUP($E56,'Data source'!$B$15:$M$104,12,FALSE)) ->  | BY55: =IF(OR($E56="",$H56="",$K56<=0,$AK55<=0),"",IF($BX55="Dry",$AK55/$AW55/10,IF($BX55="Wet",$AK55/($AZ55/100)*$AW55/10,0))) ->  | BZ55: =IF(OR($E56="",$H56="",$K56<=0,$AK55<=0,AY55=0),"",BY55/AY55) ->  | CA55: =IF(OR($E56="",$H56="",$K56<=0,$AK55<=0),"",($BY55*$K56)/100) -> 
D56: =IF(C56="Minerals","i","") ->  | J56: =IF(OR($C56="",$E56="",$H56=""),"",VLOOKUP($H56,'Data source'!$B$128:$C$188,2,FALSE)) ->  | L56: =IF(OR(C56="",E56="",H56=""),"",K56) ->  | M56: =IF(AX55=0,"",AX55) ->  | P56: =IF(OR(C56="",E56="",H56=""),"",O56) ->  | Q56: =IF(AX56=0,"",AX56) ->  | R56: =IF(OR(N57=">3",R57=">3"),"i","") ->  | W56: STARCH | X56: =IF(Y12="No","","<30") ->  | AA56: =IF($K$72>0,BJ72,"") ->  | AB56: =IF(OR(X56="",AA56=""),"",IF(AA56>=30/0.9,"i","")) ->  | AC56: =IF(AND($Q$35="YES",$O$72>0),BJ73,"") ->  | AD56: =IF(OR(X56="",AC56=""),"",IF(AC56>=30/0.9,"i","")) ->  | AV56: =IF(OR(P56="",$Q$35="NO"),"",2) ->  | AW56: =IF(OR($E56="",$H56="",$O56<=0,$Q$35="NO"),"",VLOOKUP($H56,'Data source'!$B$128:$C$188,2,FALSE)) ->  | AX56: =IF(OR($E56="",$H56="",$O56<=0,$Q$35="NO"),0,$O56*$AW56) -> 0 | AY56: =IF(OR($E56="",$H56="",$O56<=0,$Q$35="NO"),"",VLOOKUP($E56,'Data source'!$B$4:$I$111,3,FALSE)) ->  | AZ56: =IF(OR($E56="",$H56="",$O56<=0,$Q$35="NO"),"",VLOOKUP($E56,'Data source'!$B$4:$I$111,2,FALSE)) ->  | BA56: =IF(OR($E56="",$H56="",$O56<=0,$Q$35="NO"),"",$AX56*$AY56) ->  | BC56: =IF(OR($E56="",$H56="",$O56<=0,$Q$35="NO"),"",VLOOKUP($E56,'Data source'!$B$4:$I$111,4,FALSE)) ->  | BD56: =IF(OR($E56="",$H56="",$O56<=0,$Q$35="NO"),"",(($AX56/$AX$73)*$BC56)) ->  | BE56: =IF(OR($E56="",$H56="",$O56<=0,$Q$35="NO"),"",VLOOKUP($E56,'Data source'!$B$4:$I$111,5,FALSE)) ->  | BF56: =IF(OR($E56="",$H56="",$O56<=0,$Q$35="NO"),"",(($AX56/$AX$73)*BE56)) ->  | BG56: =IF(OR($E56="",$H56="",$O56<=0,$Q$35="NO"),"",VLOOKUP($E56,'Data source'!$B$4:$I$111,6,FALSE)) ->  | BH56: =IF(OR($E56="",$H56="",$O56<=0,$Q$35="NO"),"",(($AX56/$AX$73)*BG56)) ->  | BI56: =IF(OR($E56="",$H56="",$O56<=0,$Q$35="NO"),"",VLOOKUP($E56,'Data source'!$B$4:$I$111,7,FALSE)) ->  | BJ56: =IF(OR($E56="",$H56="",$O56<=0,$Q$35="NO"),"",(BI56/100*BH56)*($AX56/$AX$73)) ->  | BK56: =IF(OR($E56="",$H56="",$O56<=0,$Q$35="NO"),"",VLOOKUP($E56,'Data source'!$B$4:$I$111,8,FALSE)) ->  | BL56: =IF(OR($E56="",$H56="",$O56<=0,$Q$35="NO"),"",(($AX56/$AX$73)*BK56)) ->  | BN56: =IF(OR($E56="",$H56="",$O56<=0,$Q$35="NO"),0,VLOOKUP($E56,'Data source'!$B$4:$T$111,13,FALSE)) -> 0 | BO56: =IF(OR($E56="",$H56="",$O56<=0,$Q$35="NO"),0,VLOOKUP($E56,'Data source'!$B$4:$T$111,14,FALSE)) -> 0 | BP56: =IF(OR($E56="",$H56="",$O56<=0,$Q$35="NO"),0,VLOOKUP($E56,'Data source'!$B$4:$T$111,15,FALSE)) -> 0 | BQ56: =IF(OR($E56="",$H56="",$O56<=0,$Q$35="NO"),0,VLOOKUP($E56,'Data source'!$B$4:$T$111,17,FALSE)) -> 0 | BR56: =IF(OR($E56="",$H56="",$O56<=0,$Q$35="NO"),0,VLOOKUP($E56,'Data source'!$B$4:$T$111,17,FALSE)) -> 0 | BS56: =IF(OR($E56="",$H56="",$O56<=0,$Q$35="NO"),0,VLOOKUP($E56,'Data source'!$B$4:$T$111,18,FALSE)) -> 0 | BT56: =IF(OR($E56="",$H56="",$O56<=0,$Q$35="NO"),0,VLOOKUP($E56,'Data source'!$B$4:$T$111,19,FALSE)) -> 0 | BV56: =IF(OR($E56="",$H56="",$O56<=0,$Q$35="NO"),0,((43.498*$BN56)+(25.574*$BO56))-((28.206*$BP56)+(62.375*$BQ56)))*$AX56*10/1000 -> 0 | BX56: =IF(OR($E56="",$H56="",$O56<=0,$AK55<=0,$Q$35="NO"),"",VLOOKUP($E56,'Data source'!$B$15:$M$104,12,FALSE)) ->  | BY56: =IF(OR($E56="",$H56="",$O56<=0,$AK55<=0,$Q$35="NO"),"",IF($BX56="Dry",$AK55/$AW56/10,IF($BX56="Wet",$AK55/($AZ56/100)*$AW56/10,0))) ->  | BZ56: =IF(OR($E56="",$H56="",$O56<=0,$AK55<=0,AY56=0,$Q$35="NO"),"",IF(OR($I44="-",$AS56="-",$O56=0),"",BY56/AY56)) ->  | CA56: =IF(OR($E56="",$H56="",$O56<=0,$AK55<=0,$Q$35="NO"),"",IF(OR($I44="-",$AS56="-",$O56=0),"",($BY56*$O56)/100)) -> 
N57: =IF(OR($H$7="Dry", K56=""),"",IF(AND(E56="PKE",K56>3),">3","")) ->  | R57: =IF(OR($H$7="Dry", O56=""),"",IF(AND(E56="PKE",O56>3),">3","")) ->  | AL57: =IF(OR($E57="-",$H57="-",$O58<=0,$AK56<=0,$Q$35="NO"),"",IF(OR(#REF!="-",$AS57="-",$O58=0),"",($BY57*$O58)/100)) -> 
AF58: =IF($C59="Hay_Silage","FT1_",IF($C59="Concentrates","FT2_",IF($C59="By_products","FT3_",IF($C59="Fodder_beet_Default","FT4_",IF($C59="Other_Crops_Default","FT5_",IF($C59="Minerals","FT6_",IF($C59="Custom_Feeds_Minerals","FT7_",IF($C59="Custom_Bulb_Crops","FT8_","-")))))))) -> - | AL58: =IF(OR($E59="",$H59=""),"",IF(AY58="",IF(AY59>0,BZ59,0),BZ58)) ->  | AN58: =IF(OR($E59="",$H59="",$K59="",$O$6=""),"",($K59/1000)*$O$6) ->  | AO58: =CA58 ->  | AQ58: =IF(OR($E59="",$H59="",$O59="",$O$6=""),"",($O59/1000)*$O$6) ->  | AR58: =CA59 ->  | AU58: =IF(E59="","",E59) ->  | AV58: =IF(L59="","",1) ->  | AW58: =IF(OR($E59="",$H59="",$K59<=0),"",VLOOKUP($H59,'Data source'!$B$128:$C$188,2,FALSE)) ->  | AX58: =IF(OR($E59="",$H59="",$K59<=0),0,K59*AW58) -> 0 | AY58: =IF(OR($E59="",$H59="",$K59=0),"",VLOOKUP($E59,'Data source'!$B$4:$I$111,3,FALSE)) ->  | AZ58: =IF(OR($E59="",$H59="",$K59=0),"",VLOOKUP($E59,'Data source'!$B$4:$I$111,2,FALSE)) ->  | BA58: =IF(OR($E59="",$H59="",$K59<=0),"",AX58*AY58) ->  | BC58: =IF(OR($E59="",$H59="",$K59=0),"",VLOOKUP($E59,'Data source'!$B$4:$I$111,4,FALSE)) ->  | BD58: =IF(OR($E59="",$H59="",$K59<=0),"",(($AX58/$AX$72)*BC58)) ->  | BE58: =IF(OR($E59="",$H59="",$K59=0),"",VLOOKUP($E59,'Data source'!$B$4:$I$111,5,FALSE)) ->  | BF58: =IF(OR($E59="",$H59="",$K59<=0),"",(($AX58/$AX$72)*BE58)) ->  | BG58: =IF(OR($E59="",$H59="",$K59=0),"",VLOOKUP($E59,'Data source'!$B$4:$I$111,6,FALSE)) ->  | BH58: =IF(OR($E59="",$H59="",$K59<=0),"",(($AX58/$AX$72)*BG58)) ->  | BI58: =IF(OR($E59="",$H59="",$K59=0),"",VLOOKUP($E59,'Data source'!$B$4:$I$111,7,FALSE)) ->  | BJ58: =IF(OR($E59="",$H59="",$K59<=0),"",(BI58/100*BH58)*($AX58/$AX$72)) ->  | BK58: =IF(OR($E59="",$H59="",$K59=0),"",VLOOKUP($E59,'Data source'!$B$4:$I$111,8,FALSE)) ->  | BL58: =IF(OR($E59="",$H59="",$K59<=0),"",(($AX58/$AX$72)*BK58)) ->  | BN58: =IF(OR($E59="",$H59="",$K59=0),0,VLOOKUP($E59,'Data source'!$B$4:$T$111,13,FALSE)) -> 0 | BO58: =IF(OR($E59="",$H59="",$K59=0),0,VLOOKUP($E59,'Data source'!$B$4:$T$111,14,FALSE)) -> 0 | BP58: =IF(OR($E59="",$H59="",$K59=0),0,VLOOKUP($E59,'Data source'!$B$4:$T$111,15,FALSE)) -> 0 | BQ58: =IF(OR($E59="",$H59="",$K59=0),0,VLOOKUP($E59,'Data source'!$B$4:$T$111,16,FALSE)) -> 0 | BR58: =IF(OR($E59="",$H59="",$K59=0),0,VLOOKUP($E59,'Data source'!$B$4:$T$111,17,FALSE)) -> 0 | BS58: =IF(OR($E59="",$H59="",$K59=0),0,VLOOKUP($E59,'Data source'!$B$4:$T$111,18,FALSE)) -> 0 | BT58: =IF(OR($E59="",$H59="",$K59=0),0,VLOOKUP($E59,'Data source'!$B$4:$T$111,19,FALSE)) -> 0 | BV58: =IF(OR($E59="",$H59="",$K59<=0),0,((43.498*$BN58)+(25.574*$BO58))-((28.206*$BP58)+(62.375*$BQ58)))*$AX58*10/1000 -> 0 | BX58: =IF(OR($E59="",$H59="",$K59<=0,$AK58<=0),"",VLOOKUP($E59,'Data source'!$B$15:$M$104,12,FALSE)) ->  | BY58: =IF(OR($E59="",$H59="",$K59<=0,$AK58<=0),"",IF($BX58="Dry",$AK58/$AW58/10,IF($BX58="Wet",$AK58/($AZ58/100)*$AW58/10,0))) ->  | BZ58: =IF(OR($E59="",$H59="",$K59<=0,$AK58<=0,AY58=0),"",BY58/AY58) ->  | CA58: =IF(OR($E59="",$H59="",$K59<=0,$AK58<=0),"",($BY58*$K59)/100) -> 
D59: =IF(C59="Minerals","i","") ->  | J59: =IF(OR($C59="",$E59="",$H59=""),"",VLOOKUP($H59,'Data source'!$B$128:$C$188,2,FALSE)) ->  | L59: =IF(OR(C59="",E59="",H59=""),"",K59) ->  | M59: =IF(AX58=0,"",AX58) ->  | P59: =IF(OR(C59="",E59="",H59=""),"",O59) ->  | Q59: =IF(AX59=0,"",AX59) ->  | R59: =IF(OR(N60=">3",R60=">3"),"i","") ->  | W59: FAT | X59: =IF(Y12="No","","<6") ->  | AA59: =IF($K$72>0,BL72,"") ->  | AB59: =IF(OR(X59="",AA59=""),"",IF(AA59>=6/0.9,"i","")) ->  | AC59: =IF(AND($Q$35="YES",$O$72>0),BL73,"") ->  | AD59: =IF(OR(X59="",AC59=""),"",IF(AC59>=6/0.9,"i","")) ->  | AV59: =IF(OR(P59="",$Q$35="NO"),"",2) ->  | AW59: =IF(OR($E59="",$H59="",$O59<=0,$Q$35="NO"),"",VLOOKUP($H59,'Data source'!$B$128:$C$188,2,FALSE)) ->  | AX59: =IF(OR($E59="",$H59="",$O59<=0,$Q$35="NO"),0,$O59*$AW59) -> 0 | AY59: =IF(OR($E59="",$H59="",$O59<=0,$Q$35="NO"),"",VLOOKUP($E59,'Data source'!$B$4:$I$111,3,FALSE)) ->  | AZ59: =IF(OR($E59="",$H59="",$O59<=0,$Q$35="NO"),"",VLOOKUP($E59,'Data source'!$B$4:$I$111,2,FALSE)) ->  | BA59: =IF(OR($E59="",$H59="",$O59<=0,$Q$35="NO"),"",$AX59*$AY59) ->  | BC59: =IF(OR($E59="",$H59="",$O59<=0,$Q$35="NO"),"",VLOOKUP($E59,'Data source'!$B$4:$I$111,4,FALSE)) ->  | BD59: =IF(OR($E59="",$H59="",$O59<=0,$Q$35="NO"),"",(($AX59/$AX$73)*$BC59)) ->  | BE59: =IF(OR($E59="",$H59="",$O59<=0,$Q$35="NO"),"",VLOOKUP($E59,'Data source'!$B$4:$I$111,5,FALSE)) ->  | BF59: =IF(OR($E59="",$H59="",$O59<=0,$Q$35="NO"),"",(($AX59/$AX$73)*BE59)) ->  | BG59: =IF(OR($E59="",$H59="",$O59<=0,$Q$35="NO"),"",VLOOKUP($E59,'Data source'!$B$4:$I$111,6,FALSE)) ->  | BH59: =IF(OR($E59="",$H59="",$O59<=0,$Q$35="NO"),"",(($AX59/$AX$73)*BG59)) ->  | BI59: =IF(OR($E59="",$H59="",$O59<=0,$Q$35="NO"),"",VLOOKUP($E59,'Data source'!$B$4:$I$111,7,FALSE)) ->  | BJ59: =IF(OR($E59="",$H59="",$O59<=0,$Q$35="NO"),"",(BI59/100*BH59)*($AX59/$AX$73)) ->  | BK59: =IF(OR($E59="",$H59="",$O59<=0,$Q$35="NO"),"",VLOOKUP($E59,'Data source'!$B$4:$I$111,8,FALSE)) ->  | BL59: =IF(OR($E59="",$H59="",$O59<=0,$Q$35="NO"),"",(($AX59/$AX$73)*BK59)) ->  | BN59: =IF(OR($E59="",$H59="",$O59<=0,$Q$35="NO"),0,VLOOKUP($E59,'Data source'!$B$4:$T$111,13,FALSE)) -> 0 | BO59: =IF(OR($E59="",$H59="",$O59<=0,$Q$35="NO"),0,VLOOKUP($E59,'Data source'!$B$4:$T$111,14,FALSE)) -> 0 | BP59: =IF(OR($E59="",$H59="",$O59<=0,$Q$35="NO"),0,VLOOKUP($E59,'Data source'!$B$4:$T$111,15,FALSE)) -> 0 | BQ59: =IF(OR($E59="",$H59="",$O59<=0,$Q$35="NO"),0,VLOOKUP($E59,'Data source'!$B$4:$T$111,17,FALSE)) -> 0 | BR59: =IF(OR($E59="",$H59="",$O59<=0,$Q$35="NO"),0,VLOOKUP($E59,'Data source'!$B$4:$T$111,17,FALSE)) -> 0 | BS59: =IF(OR($E59="",$H59="",$O59<=0,$Q$35="NO"),0,VLOOKUP($E59,'Data source'!$B$4:$T$111,18,FALSE)) -> 0 | BT59: =IF(OR($E59="",$H59="",$O59<=0,$Q$35="NO"),0,VLOOKUP($E59,'Data source'!$B$4:$T$111,19,FALSE)) -> 0 | BV59: =IF(OR($E59="",$H59="",$O59<=0,$Q$35="NO"),0,((43.498*$BN59)+(25.574*$BO59))-((28.206*$BP59)+(62.375*$BQ59)))*$AX59*10/1000 -> 0 | BX59: =IF(OR($E59="",$H59="",$O59<=0,$AK58<=0,$Q$35="NO"),"",VLOOKUP($E59,'Data source'!$B$15:$M$104,12,FALSE)) ->  | BY59: =IF(OR($E59="",$H59="",$O59<=0,$AK58<=0,$Q$35="NO"),"",IF($BX59="Dry",$AK58/$AW59/10,IF($BX59="Wet",$AK58/($AZ59/100)*$AW59/10,0))) ->  | BZ59: =IF(OR($E59="",$H59="",$O59<=0,$AK58<=0,AY59=0,$Q$35="NO"),"",IF(OR($I47="-",$AS59="-",$O59=0),"",BY59/AY59)) ->  | CA59: =IF(OR($E59="",$H59="",$O59<=0,$AK58<=0,$Q$35="NO"),"",IF(OR($I47="-",$AS59="-",$O59=0),"",($BY59*$O59)/100)) -> 
N60: =IF(OR($H$7="Dry", K59=""),"",IF(AND(E59="PKE",K59>3),">3","")) ->  | R60: =IF(OR($H$7="Dry", O59=""),"",IF(AND(E59="PKE",O59>3),">3","")) ->  | AL60: =IF(OR($E60="-",$H60="-",$O61<=0,$AK59<=0,$Q$35="NO"),"",IF(OR(#REF!="-",$AS60="-",$O61=0),"",($BY60*$O61)/100)) -> 
AF61: =IF($C62="Hay_Silage","FT1_",IF($C62="Concentrates","FT2_",IF($C62="By_products","FT3_",IF($C62="Fodder_beet_Default","FT4_",IF($C62="Other_Crops_Default","FT5_",IF($C62="Minerals","FT6_",IF($C62="Custom_Feeds_Minerals","FT7_",IF($C62="Custom_Bulb_Crops","FT8_","-")))))))) -> - | AL61: =IF(OR($E62="",$H62=""),"",IF(AY61="",IF(AY62>0,BZ62,0),BZ61)) ->  | AN61: =IF(OR($E62="",$H62="",$K62="",$O$6=""),"",($K62/1000)*$O$6) ->  | AO61: =CA61 ->  | AQ61: =IF(OR($E62="",$H62="",$O62="",$O$6=""),"",($O62/1000)*$O$6) ->  | AR61: =CA62 ->  | AU61: =IF(E62="","",E62) ->  | AV61: =IF(L62="","",1) ->  | AW61: =IF(OR($E62="",$H62="",$K62<=0),"",VLOOKUP($H62,'Data source'!$B$128:$C$188,2,FALSE)) ->  | AX61: =IF(OR($E62="",$H62="",$K62<=0),0,K62*AW61) -> 0 | AY61: =IF(OR($E62="",$H62="",$K62=0),"",VLOOKUP($E62,'Data source'!$B$4:$I$111,3,FALSE)) ->  | AZ61: =IF(OR($E62="",$H62="",$K62=0),"",VLOOKUP($E62,'Data source'!$B$4:$I$111,2,FALSE)) ->  | BA61: =IF(OR($E62="",$H62="",$K62<=0),"",AX61*AY61) ->  | BC61: =IF(OR($E62="",$H62="",$K62=0),"",VLOOKUP($E62,'Data source'!$B$4:$I$111,4,FALSE)) ->  | BD61: =IF(OR($E62="",$H62="",$K62<=0),"",(($AX61/$AX$72)*BC61)) ->  | BE61: =IF(OR($E62="",$H62="",$K62=0),"",VLOOKUP($E62,'Data source'!$B$4:$I$111,5,FALSE)) ->  | BF61: =IF(OR($E62="",$H62="",$K62<=0),"",(($AX61/$AX$72)*BE61)) ->  | BG61: =IF(OR($E62="",$H62="",$K62=0),"",VLOOKUP($E62,'Data source'!$B$4:$I$111,6,FALSE)) ->  | BH61: =IF(OR($E62="",$H62="",$K62<=0),"",(($AX61/$AX$72)*BG61)) ->  | BI61: =IF(OR($E62="",$H62="",$K62=0),"",VLOOKUP($E62,'Data source'!$B$4:$I$111,7,FALSE)) ->  | BJ61: =IF(OR($E62="",$H62="",$K62<=0),"",(BI61/100*BH61)*($AX61/$AX$72)) ->  | BK61: =IF(OR($E62="",$H62="",$K62=0),"",VLOOKUP($E62,'Data source'!$B$4:$I$111,8,FALSE)) ->  | BL61: =IF(OR($E62="",$H62="",$K62<=0),"",(($AX61/$AX$72)*BK61)) ->  | BN61: =IF(OR($E62="",$H62="",$K62=0),0,VLOOKUP($E62,'Data source'!$B$4:$T$111,13,FALSE)) -> 0 | BO61: =IF(OR($E62="",$H62="",$K62=0),0,VLOOKUP($E62,'Data source'!$B$4:$T$111,14,FALSE)) -> 0 | BP61: =IF(OR($E62="",$H62="",$K62=0),0,VLOOKUP($E62,'Data source'!$B$4:$T$111,15,FALSE)) -> 0 | BQ61: =IF(OR($E62="",$H62="",$K62=0),0,VLOOKUP($E62,'Data source'!$B$4:$T$111,16,FALSE)) -> 0 | BR61: =IF(OR($E62="",$H62="",$K62=0),0,VLOOKUP($E62,'Data source'!$B$4:$T$111,17,FALSE)) -> 0 | BS61: =IF(OR($E62="",$H62="",$K62=0),0,VLOOKUP($E62,'Data source'!$B$4:$T$111,18,FALSE)) -> 0 | BT61: =IF(OR($E62="",$H62="",$K62=0),0,VLOOKUP($E62,'Data source'!$B$4:$T$111,19,FALSE)) -> 0 | BV61: =IF(OR($E62="",$H62="",$K62<=0),0,((43.498*$BN61)+(25.574*$BO61))-((28.206*$BP61)+(62.375*$BQ61)))*$AX61*10/1000 -> 0 | BX61: =IF(OR($E62="",$H62="",$K62<=0,$AK61<=0),"",VLOOKUP($E62,'Data source'!$B$15:$M$104,12,FALSE)) ->  | BY61: =IF(OR($E62="",$H62="",$K62<=0,$AK61<=0),"",IF($BX61="Dry",$AK61/$AW61/10,IF($BX61="Wet",$AK61/($AZ61/100)*$AW61/10,0))) ->  | BZ61: =IF(OR($E62="",$H62="",$K62<=0,$AK61<=0,AY61),"",BY61/AY61) ->  | CA61: =IF(OR($E62="",$H62="",$K62<=0,$AK61<=0),"",($BY61*$K62)/100) -> 
D62: =IF(C62="Minerals","i","") ->  | J62: =IF(OR($C62="",$E62="",$H62=""),"",VLOOKUP($H62,'Data source'!$B$128:$C$188,2,FALSE)) ->  | L62: =IF(OR(C62="",E62="",H62=""),"",K62) ->  | M62: =IF(AX61=0,"",AX61) ->  | P62: =IF(OR(C62="",E62="",H62=""),"",O62) ->  | Q62: =IF(AX62=0,"",AX62) ->  | R62: =IF(OR(N63=">3",R63=">3"),"i","") ->  | AV62: =IF(OR(P62="",$Q$35="NO"),"",2) ->  | AW62: =IF(OR($E62="",$H62="",$O62<=0,$Q$35="NO"),"",VLOOKUP($H62,'Data source'!$B$128:$C$188,2,FALSE)) ->  | AX62: =IF(OR($E62="",$H62="",$O62<=0,$Q$35="NO"),0,$O62*$AW62) -> 0 | AY62: =IF(OR($E62="",$H62="",$O62<=0,$Q$35="NO"),"",VLOOKUP($E62,'Data source'!$B$4:$I$111,3,FALSE)) ->  | AZ62: =IF(OR($E62="",$H62="",$O62<=0,$Q$35="NO"),"",VLOOKUP($E62,'Data source'!$B$4:$I$111,2,FALSE)) ->  | BA62: =IF(OR($E62="",$H62="",$O62<=0,$Q$35="NO"),"",$AX62*$AY62) ->  | BC62: =IF(OR($E62="",$H62="",$O62<=0,$Q$35="NO"),"",VLOOKUP($E62,'Data source'!$B$4:$I$111,4,FALSE)) ->  | BD62: =IF(OR($E62="",$H62="",$O62<=0,$Q$35="NO"),"",(($AX62/$AX$73)*$BC62)) ->  | BE62: =IF(OR($E62="",$H62="",$O62<=0,$Q$35="NO"),"",VLOOKUP($E62,'Data source'!$B$4:$I$111,5,FALSE)) ->  | BF62: =IF(OR($E62="",$H62="",$O62<=0,$Q$35="NO"),"",(($AX62/$AX$73)*BE62)) ->  | BG62: =IF(OR($E62="",$H62="",$O62<=0,$Q$35="NO"),"",VLOOKUP($E62,'Data source'!$B$4:$I$111,6,FALSE)) ->  | BH62: =IF(OR($E62="",$H62="",$O62<=0,$Q$35="NO"),"",(($AX62/$AX$73)*BG62)) ->  | BI62: =IF(OR($E62="",$H62="",$O62<=0,$Q$35="NO"),"",VLOOKUP($E62,'Data source'!$B$4:$I$111,7,FALSE)) ->  | BJ62: =IF(OR($E62="",$H62="",$O62<=0,$Q$35="NO"),"",(BI62/100*BH62)*($AX62/$AX$73)) ->  | BK62: =IF(OR($E62="",$H62="",$O62<=0,$Q$35="NO"),"",VLOOKUP($E62,'Data source'!$B$4:$I$111,8,FALSE)) ->  | BL62: =IF(OR($E62="",$H62="",$O62<=0,$Q$35="NO"),"",(($AX62/$AX$73)*BK62)) ->  | BN62: =IF(OR($E62="",$H62="",$O62<=0,$Q$35="NO"),0,VLOOKUP($E62,'Data source'!$B$4:$T$111,13,FALSE)) -> 0 | BO62: =IF(OR($E62="",$H62="",$O62<=0,$Q$35="NO"),0,VLOOKUP($E62,'Data source'!$B$4:$T$111,14,FALSE)) -> 0 | BP62: =IF(OR($E62="",$H62="",$O62<=0,$Q$35="NO"),0,VLOOKUP($E62,'Data source'!$B$4:$T$111,15,FALSE)) -> 0 | BQ62: =IF(OR($E62="",$H62="",$O62<=0,$Q$35="NO"),0,VLOOKUP($E62,'Data source'!$B$4:$T$111,17,FALSE)) -> 0 | BR62: =IF(OR($E62="",$H62="",$O62<=0,$Q$35="NO"),0,VLOOKUP($E62,'Data source'!$B$4:$T$111,17,FALSE)) -> 0 | BS62: =IF(OR($E62="",$H62="",$O62<=0,$Q$35="NO"),0,VLOOKUP($E62,'Data source'!$B$4:$T$111,18,FALSE)) -> 0 | BT62: =IF(OR($E62="",$H62="",$O62<=0,$Q$35="NO"),0,VLOOKUP($E62,'Data source'!$B$4:$T$111,19,FALSE)) -> 0 | BV62: =IF(OR($E62="",$H62="",$O62<=0,$Q$35="NO"),0,((43.498*$BN62)+(25.574*$BO62))-((28.206*$BP62)+(62.375*$BQ62)))*$AX62*10/1000 -> 0 | BX62: =IF(OR($E62="",$H62="",$O62<=0,$AK61<=0,$Q$35="NO"),"",VLOOKUP($E62,'Data source'!$B$15:$M$104,12,FALSE)) ->  | BY62: =IF(OR($E62="",$H62="",$O62<=0,$AK61<=0,$Q$35="NO"),"",IF($BX62="Dry",$AK61/$AW62/10,IF($BX62="Wet",$AK61/($AZ62/100)*$AW62/10,0))) ->  | BZ62: =IF(OR($E62="",$H62="",$O62<=0,$AK61<=0,AY62=0,$Q$35="NO"),"",IF(OR($I50="-",$AS62="-",$O62=0),"",BY62/AY62)) ->  | CA62: =IF(OR($E62="",$H62="",$O62<=0,$AK61<=0,$Q$35="NO"),"",IF(OR($I50="-",$AS62="-",$O62=0),"",($BY62*$O62)/100)) -> 
N63: =IF(OR($H$7="Dry", K62=""),"",IF(AND(E62="PKE",K62>3),">3","")) ->  | R63: =IF(OR($H$7="Dry", O62=""),"",IF(AND(E62="PKE",O62>3),">3","")) ->  | AL63: =IF(OR($E63="-",$H63="-",$O64<=0,$AK62<=0,$Q$35="NO"),"",IF(OR($I40="-",$AS63="-",$O64=0),"",($BY63*$O64)/100)) -> 
W64: MINERALS | AF64: =IF($C65="Hay_Silage","FT1_",IF($C65="Concentrates","FT2_",IF($C65="By_products","FT3_",IF($C65="Fodder_beet_Default","FT4_",IF($C65="Other_Crops_Default","FT5_",IF($C65="Minerals","FT6_",IF($C65="Custom_Feeds_Minerals","FT7_",IF($C65="Custom_Bulb_Crops","FT8_","-")))))))) -> - | AL64: =IF(OR($E65="",$H65=""),"",IF(AY64="",IF(AY65>0,BZ65,0),BZ64)) ->  | AN64: =IF(OR($E65="",$H65="",$K65="",$O$6=""),"",($K65/1000)*$O$6) ->  | AO64: =CA64 ->  | AQ64: =IF(OR($E65="",$H65="",$O65="",$O$6=""),"",($O65/1000)*$O$6) ->  | AR64: =CA65 ->  | AU64: =IF(E65="","",E65) ->  | AV64: =IF(L65="","",1) ->  | AW64: =IF(OR($E65="",$H65="",$K65<=0),"",VLOOKUP($H65,'Data source'!$B$128:$C$188,2,FALSE)) ->  | AX64: =IF(OR($E65="",$H65="",$K65<=0),0,K65*AW64) -> 0 | AY64: =IF(OR($E65="",$H65="",$K65=0),"",VLOOKUP($E65,'Data source'!$B$4:$I$111,3,FALSE)) ->  | AZ64: =IF(OR($E65="",$H65="",$K65=0),"",VLOOKUP($E65,'Data source'!$B$4:$I$111,2,FALSE)) ->  | BA64: =IF(OR($E65="",$H65="",$K65<=0),"",AX64*AY64) ->  | BC64: =IF(OR($E65="",$H65="",$K65=0),"",VLOOKUP($E65,'Data source'!$B$4:$I$111,4,FALSE)) ->  | BD64: =IF(OR($E65="",$H65="",$K65<=0),"",(($AX64/$AX$72)*BC64)) ->  | BE64: =IF(OR($E65="",$H65="",$K65=0),"",VLOOKUP($E65,'Data source'!$B$4:$I$111,5,FALSE)) ->  | BF64: =IF(OR($E65="",$H65="",$K65<=0),"",(($AX64/$AX$72)*BE64)) ->  | BG64: =IF(OR($E65="",$H65="",$K65=0),"",VLOOKUP($E65,'Data source'!$B$4:$I$111,6,FALSE)) ->  | BH64: =IF(OR($E65="",$H65="",$K65<=0),"",(($AX64/$AX$72)*BG64)) ->  | BI64: =IF(OR($E65="",$H65="",$K65=0),"",VLOOKUP($E65,'Data source'!$B$4:$I$111,7,FALSE)) ->  | BJ64: =IF(OR($E65="",$H65="",$K65<=0),"",(BI64/100*BH64)*($AX64/$AX$72)) ->  | BK64: =IF(OR($E65="",$H65="",$K65=0),"",VLOOKUP($E65,'Data source'!$B$4:$I$111,8,FALSE)) ->  | BL64: =IF(OR($E65="",$H65="",$K65<=0),"",(($AX64/$AX$72)*BK64)) ->  | BN64: =IF(OR($E65="",$H65="",$K65=0),0,VLOOKUP($E65,'Data source'!$B$4:$T$111,13,FALSE)) -> 0 | BO64: =IF(OR($E65="",$H65="",$K65=0),0,VLOOKUP($E65,'Data source'!$B$4:$T$111,14,FALSE)) -> 0 | BP64: =IF(OR($E65="",$H65="",$K65=0),0,VLOOKUP($E65,'Data source'!$B$4:$T$111,15,FALSE)) -> 0 | BQ64: =IF(OR($E65="",$H65="",$K65=0),0,VLOOKUP($E65,'Data source'!$B$4:$T$111,16,FALSE)) -> 0 | BR64: =IF(OR($E65="",$H65="",$K65=0),0,VLOOKUP($E65,'Data source'!$B$4:$T$111,17,FALSE)) -> 0 | BS64: =IF(OR($E65="",$H65="",$K65=0),0,VLOOKUP($E65,'Data source'!$B$4:$T$111,18,FALSE)) -> 0 | BT64: =IF(OR($E65="",$H65="",$K65=0),0,VLOOKUP($E65,'Data source'!$B$4:$T$111,19,FALSE)) -> 0 | BV64: =IF(OR($E65="",$H65="",$K65<=0),0,((43.498*$BN64)+(25.574*$BO64))-((28.206*$BP64)+(62.375*$BQ64)))*$AX64*10/1000 -> 0 | BX64: =IF(OR($E65="",$H65="",$K65<=0,$AK64<=0),"",VLOOKUP($E65,'Data source'!$B$15:$M$104,12,FALSE)) ->  | BY64: =IF(OR($E65="",$H65="",$K65<=0,$AK64<=0),"",IF($BX64="Dry",$AK64/$AW64/10,IF($BX64="Wet",$AK64/($AZ64/100)*$AW64/10,0))) ->  | BZ64: =IF(OR($E65="",$H65="",$K65<=0,$AK64<=0,AY64=0),"",BY64/AY64) ->  | CA64: =IF(OR($E65="",$H65="",$K65<=0,$AK64<=0),"",($BY64*$K65)/100) -> 
D65: =IF(C65="Minerals","i","") ->  | J65: =IF(OR($C65="",$E65="",$H65=""),"",VLOOKUP($H65,'Data source'!$B$128:$C$188,2,FALSE)) ->  | L65: =IF(OR(C65="",E65="",H65=""),"",K65) ->  | M65: =IF(AX64=0,"",AX64) ->  | P65: =IF(OR(C65="",E65="",H65=""),"",O65) ->  | Q65: =IF(AX65=0,"",AX65) ->  | R65: =IF(OR(N66=">3",R66=">3"),"i","") ->  | W65: Na | X65: =IF(Y12="No","",IF($H$7="Early",0.2,IF($H$7="Mid",0.2,IF($H$7="Late",0.2,IF($H$7="Dry",IF(AF16="YES",0.12,0.15)))))) ->  | Y65: min | AA65: =IF($K$72>0,BN72,"") ->  | AC65: =IF(AND($Q$35="YES",$O$72>0),BN73,"") ->  | AV65: =IF(OR(P65="",$Q$35="NO"),"",2) ->  | AW65: =IF(OR($E65="",$H65="",$O65<=0,$Q$35="NO"),"",VLOOKUP($H65,'Data source'!$B$128:$C$188,2,FALSE)) ->  | AX65: =IF(OR($E65="",$H65="",$O65<=0,$Q$35="NO"),0,$O65*$AW65) -> 0 | AY65: =IF(OR($E65="",$H65="",$O65<=0,$Q$35="NO"),"",VLOOKUP($E65,'Data source'!$B$4:$I$111,3,FALSE)) ->  | AZ65: =IF(OR($E65="",$H65="",$O65<=0,$Q$35="NO"),"",VLOOKUP($E65,'Data source'!$B$4:$I$111,2,FALSE)) ->  | BA65: =IF(OR($E65="",$H65="",$O65<=0,$Q$35="NO"),"",$AX65*$AY65) ->  | BC65: =IF(OR($E65="",$H65="",$O65<=0,$Q$35="NO"),"",VLOOKUP($E65,'Data source'!$B$4:$I$111,4,FALSE)) ->  | BD65: =IF(OR($E65="",$H65="",$O65<=0,$Q$35="NO"),"",(($AX65/$AX$73)*$BC65)) ->  | BE65: =IF(OR($E65="",$H65="",$O65<=0,$Q$35="NO"),"",VLOOKUP($E65,'Data source'!$B$4:$I$111,5,FALSE)) ->  | BF65: =IF(OR($E65="",$H65="",$O65<=0,$Q$35="NO"),"",(($AX65/$AX$73)*BE65)) ->  | BG65: =IF(OR($E65="",$H65="",$O65<=0,$Q$35="NO"),"",VLOOKUP($E65,'Data source'!$B$4:$I$111,6,FALSE)) ->  | BH65: =IF(OR($E65="",$H65="",$O65<=0,$Q$35="NO"),"",(($AX65/$AX$73)*BG65)) ->  | BI65: =IF(OR($E65="",$H65="",$O65<=0,$Q$35="NO"),"",VLOOKUP($E65,'Data source'!$B$4:$I$111,7,FALSE)) ->  | BJ65: =IF(OR($E65="",$H65="",$O65<=0,$Q$35="NO"),"",(BI65/100*BH65)*($AX65/$AX$73)) ->  | BK65: =IF(OR($E65="",$H65="",$O65<=0,$Q$35="NO"),"",VLOOKUP($E65,'Data source'!$B$4:$I$111,8,FALSE)) ->  | BL65: =IF(OR($E65="",$H65="",$O65<=0,$Q$35="NO"),"",(($AX65/$AX$73)*BK65)) ->  | BN65: =IF(OR($E65="",$H65="",$O65<=0,$Q$35="NO"),0,VLOOKUP($E65,'Data source'!$B$4:$T$111,13,FALSE)) -> 0 | BO65: =IF(OR($E65="",$H65="",$O65<=0,$Q$35="NO"),0,VLOOKUP($E65,'Data source'!$B$4:$T$111,14,FALSE)) -> 0 | BP65: =IF(OR($E65="",$H65="",$O65<=0,$Q$35="NO"),0,VLOOKUP($E65,'Data source'!$B$4:$T$111,15,FALSE)) -> 0 | BQ65: =IF(OR($E65="",$H65="",$O65<=0,$Q$35="NO"),0,VLOOKUP($E65,'Data source'!$B$4:$T$111,17,FALSE)) -> 0 | BR65: =IF(OR($E65="",$H65="",$O65<=0,$Q$35="NO"),0,VLOOKUP($E65,'Data source'!$B$4:$T$111,17,FALSE)) -> 0 | BS65: =IF(OR($E65="",$H65="",$O65<=0,$Q$35="NO"),0,VLOOKUP($E65,'Data source'!$B$4:$T$111,18,FALSE)) -> 0 | BT65: =IF(OR($E65="",$H65="",$O65<=0,$Q$35="NO"),0,VLOOKUP($E65,'Data source'!$B$4:$T$111,19,FALSE)) -> 0 | BV65: =IF(OR($E65="",$H65="",$O65<=0,$Q$35="NO"),0,((43.498*$BN65)+(25.574*$BO65))-((28.206*$BP65)+(62.375*$BQ65)))*$AX65*10/1000 -> 0 | BX65: =IF(OR($E65="",$H65="",$O65<=0,$AK64<=0,$Q$35="NO"),"",VLOOKUP($E65,'Data source'!$B$15:$M$104,12,FALSE)) ->  | BY65: =IF(OR($E65="",$H65="",$O65<=0,$AK64<=0,$Q$35="NO"),"",IF($BX65="Dry",$AK64/$AW65/10,IF($BX65="Wet",$AK64/($AZ65/100)*$AW65/10,0))) ->  | BZ65: =IF(OR($E65="",$H65="",$O65<=0,$AK64<=0,AY65=0,$Q$35="NO"),"",IF(OR($I53="-",$AS65="-",$O65=0),"",BY65/AY65)) ->  | CA65: =IF(OR($E65="",$H65="",$O65<=0,$AK64<=0,$Q$35="NO"),"",IF(OR($I53="-",$AS65="-",$O65=0),"",($BY65*$O65)/100)) -> 
N66: =IF(OR($H$7="Dry", K65=""),"",IF(AND(E65="PKE",K65>3),">3","")) ->  | R66: =IF(OR($H$7="Dry", O65=""),"",IF(AND(E65="PKE",O65>3),">3","")) ->  | AL66: =IF(OR($E66="-",$H66="-",$O67<=0,$AK65<=0,$Q$35="NO"),"",IF(OR($I43="-",$AS66="-",$O67=0),"",($BY66*$O67)/100)) -> 
AF67: =IF($C68="Hay_Silage","FT1_",IF($C68="Concentrates","FT2_",IF($C68="By_products","FT3_",IF($C68="Fodder_beet_Default","FT4_",IF($C68="Other_Crops_Default","FT5_",IF($C68="Minerals","FT6_",IF($C68="Custom_Feeds_Minerals","FT7_",IF($C68="Custom_Bulb_Crops","FT8_","-")))))))) -> - | AL67: =IF(OR($E68="",$H68=""),"",IF(AY67="",IF(AY68>0,BZ68,0),BZ67)) ->  | AN67: =IF(OR($E68="",$H68="",$K68="",$O$6=""),"",($K68/1000)*$O$6) ->  | AO67: =CA67 ->  | AQ67: =IF(OR($E68="",$H68="",$O68="",$O$6=""),"",($O68/1000)*$O$6) ->  | AR67: =CA68 ->  | AU67: =IF(E68="","",E68) ->  | AV67: =IF(L68="","",1) ->  | AW67: =IF(OR($E68="",$H68="",$K68<=0),"",VLOOKUP($H68,'Data source'!$B$128:$C$188,2,FALSE)) ->  | AX67: =IF(OR($E68="",$H68="",$K68<=0),0,K68*AW67) -> 0 | AY67: =IF(OR($E68="",$H68="",$K68=0),"",VLOOKUP($E68,'Data source'!$B$4:$I$111,3,FALSE)) ->  | AZ67: =IF(OR($E68="",$H68="",$K68=0),"",VLOOKUP($E68,'Data source'!$B$4:$I$111,2,FALSE)) ->  | BA67: =IF(OR($E68="",$H68="",$K68<=0),"",AX67*AY67) ->  | BC67: =IF(OR($E68="",$H68="",$K68=0),"",VLOOKUP($E68,'Data source'!$B$4:$I$111,4,FALSE)) ->  | BD67: =IF(OR($E68="",$H68="",$K68<=0),"",(($AX67/$AX$72)*BC67)) ->  | BE67: =IF(OR($E68="",$H68="",$K68=0),"",VLOOKUP($E68,'Data source'!$B$4:$I$111,5,FALSE)) ->  | BF67: =IF(OR($E68="",$H68="",$K68<=0),"",(($AX67/$AX$72)*BE67)) ->  | BG67: =IF(OR($E68="",$H68="",$K68=0),"",VLOOKUP($E68,'Data source'!$B$4:$I$111,6,FALSE)) ->  | BH67: =IF(OR($E68="",$H68="",$K68<=0),"",(($AX67/$AX$72)*BG67)) ->  | BI67: =IF(OR($E68="",$H68="",$K68=0),"",VLOOKUP($E68,'Data source'!$B$4:$I$111,7,FALSE)) ->  | BJ67: =IF(OR($E68="",$H68="",$K68<=0),"",(BI67/100*BH67)*($AX67/$AX$72)) ->  | BK67: =IF(OR($E68="",$H68="",$K68=0),"",VLOOKUP($E68,'Data source'!$B$4:$I$111,8,FALSE)) ->  | BL67: =IF(OR($E68="",$H68="",$K68<=0),"",(($AX67/$AX$72)*BK67)) ->  | BN67: =IF(OR($E68="",$H68="",$K68=0),0,VLOOKUP($E68,'Data source'!$B$4:$T$111,13,FALSE)) -> 0 | BO67: =IF(OR($E68="",$H68="",$K68=0),0,VLOOKUP($E68,'Data source'!$B$4:$T$111,14,FALSE)) -> 0 | BP67: =IF(OR($E68="",$H68="",$K68=0),0,VLOOKUP($E68,'Data source'!$B$4:$T$111,15,FALSE)) -> 0 | BQ67: =IF(OR($E68="",$H68="",$K68=0),0,VLOOKUP($E68,'Data source'!$B$4:$T$111,16,FALSE)) -> 0 | BR67: =IF(OR($E68="",$H68="",$K68=0),0,VLOOKUP($E68,'Data source'!$B$4:$T$111,17,FALSE)) -> 0 | BS67: =IF(OR($E68="",$H68="",$K68=0),0,VLOOKUP($E68,'Data source'!$B$4:$T$111,18,FALSE)) -> 0 | BT67: =IF(OR($E68="",$H68="",$K68=0),0,VLOOKUP($E68,'Data source'!$B$4:$T$111,19,FALSE)) -> 0 | BV67: =IF(OR($E68="",$H68="",$K68<=0),0,((43.498*$BN67)+(25.574*$BO67))-((28.206*$BP67)+(62.375*$BQ67)))*$AX67*10/1000 -> 0 | BX67: =IF(OR($E68="",$H68="",$K68<=0,$AK67<=0),"",VLOOKUP($E68,'Data source'!$B$15:$M$104,12,FALSE)) ->  | BY67: =IF(OR($E68="",$H68="",$K68<=0,$AK67<=0),"",IF($BX67="Dry",$AK67/$AW67/10,IF($BX67="Wet",$AK67/($AZ67/100)*$AW67/10,0))) ->  | BZ67: =IF(OR($E68="",$H68="",$K68<=0,$AK67<=0,AY72=0),"",BY67/AY67) ->  | CA67: =IF(OR($E68="",$H68="",$K68<=0,$AK67<=0),"",($BY67*$K68)/100) -> 
D68: =IF(C68="Minerals","i","") ->  | J68: =IF(OR($C68="",$E68="",$H68=""),"",VLOOKUP($H68,'Data source'!$B$128:$C$188,2,FALSE)) ->  | L68: =IF(OR(C68="",E68="",H68=""),"",K68) ->  | M68: =IF(AX67=0,"",AX67) ->  | P68: =IF(OR(C68="",E68="",H68=""),"",O68) ->  | Q68: =IF(AX68=0,"",AX68) ->  | R68: =IF(OR(N69=">3",R69=">3"),"i","") ->  | W68: K | X68: =IF(Y12="No","",IF($H$7="early",1.2,IF($H$7="mid",1.2,IF($H$7="late",1.2,IF($H$7="dry",IF(AF16="YES",1.2,1.2)))))) ->  | Y68: min | AA68: =IF($K$72>0,BO72,"") ->  | AC68: =IF(AND($Q$35="YES",$O$72>0),BO73,"") ->  | AV68: =IF(OR(P68="",$Q$35="NO"),"",2) ->  | AW68: =IF(OR($E68="",$H68="",$O68<=0,$Q$35="NO"),"",VLOOKUP($H68,'Data source'!$B$128:$C$188,2,FALSE)) ->  | AX68: =IF(OR($E68="",$H68="",$O68<=0,$Q$35="NO"),0,$O68*$AW68) -> 0 | AY68: =IF(OR($E68="",$H68="",$O68<=0,$Q$35="NO"),"",VLOOKUP($E68,'Data source'!$B$4:$I$111,3,FALSE)) ->  | AZ68: =IF(OR($E68="",$H68="",$O68<=0,$Q$35="NO"),"",VLOOKUP($E68,'Data source'!$B$4:$I$111,2,FALSE)) ->  | BA68: =IF(OR($E68="",$H68="",$O68<=0,$Q$35="NO"),"",$AX68*$AY68) ->  | BC68: =IF(OR($E68="",$H68="",$O68<=0,$Q$35="NO"),"",VLOOKUP($E68,'Data source'!$B$4:$I$111,4,FALSE)) ->  | BD68: =IF(OR($E68="",$H68="",$O68<=0,$Q$35="NO"),"",(($AX68/$AX$73)*$BC68)) ->  | BE68: =IF(OR($E68="",$H68="",$O68<=0,$Q$35="NO"),"",VLOOKUP($E68,'Data source'!$B$4:$I$111,5,FALSE)) ->  | BF68: =IF(OR($E68="",$H68="",$O68<=0,$Q$35="NO"),"",(($AX68/$AX$73)*BE68)) ->  | BG68: =IF(OR($E68="",$H68="",$O68<=0,$Q$35="NO"),"",VLOOKUP($E68,'Data source'!$B$4:$I$111,6,FALSE)) ->  | BH68: =IF(OR($E68="",$H68="",$O68<=0,$Q$35="NO"),"",(($AX68/$AX$73)*BG68)) ->  | BI68: =IF(OR($E68="",$H68="",$O68<=0,$Q$35="NO"),"",VLOOKUP($E68,'Data source'!$B$4:$I$111,7,FALSE)) ->  | BJ68: =IF(OR($E68="",$H68="",$O68<=0,$Q$35="NO"),"",(BI68/100*BH68)*($AX68/$AX$73)) ->  | BK68: =IF(OR($E68="",$H68="",$O68<=0,$Q$35="NO"),"",VLOOKUP($E68,'Data source'!$B$4:$I$111,8,FALSE)) ->  | BL68: =IF(OR($E68="",$H68="",$O68<=0,$Q$35="NO"),"",(($AX68/$AX$73)*BK68)) ->  | BN68: =IF(OR($E68="",$H68="",$O68<=0,$Q$35="NO"),0,VLOOKUP($E68,'Data source'!$B$4:$T$111,13,FALSE)) -> 0 | BO68: =IF(OR($E68="",$H68="",$O68<=0,$Q$35="NO"),0,VLOOKUP($E68,'Data source'!$B$4:$T$111,14,FALSE)) -> 0 | BP68: =IF(OR($E68="",$H68="",$O68<=0,$Q$35="NO"),0,VLOOKUP($E68,'Data source'!$B$4:$T$111,15,FALSE)) -> 0 | BQ68: =IF(OR($E68="",$H68="",$O68<=0,$Q$35="NO"),0,VLOOKUP($E68,'Data source'!$B$4:$T$111,17,FALSE)) -> 0 | BR68: =IF(OR($E68="",$H68="",$O68<=0,$Q$35="NO"),0,VLOOKUP($E68,'Data source'!$B$4:$T$111,17,FALSE)) -> 0 | BS68: =IF(OR($E68="",$H68="",$O68<=0,$Q$35="NO"),0,VLOOKUP($E68,'Data source'!$B$4:$T$111,18,FALSE)) -> 0 | BT68: =IF(OR($E68="",$H68="",$O68<=0,$Q$35="NO"),0,VLOOKUP($E68,'Data source'!$B$4:$T$111,19,FALSE)) -> 0 | BV68: =IF(OR($E68="",$H68="",$O68<=0,$Q$35="NO"),0,((43.498*$BN68)+(25.574*$BO68))-((28.206*$BP68)+(62.375*$BQ68)))*$AX68*10/1000 -> 0 | BX68: =IF(OR($E68="",$H68="",$O68<=0,$AK67<=0,$Q$35="NO"),"",VLOOKUP($E68,'Data source'!$B$15:$M$104,12,FALSE)) ->  | BY68: =IF(OR($E68="",$H68="",$O68<=0,$AK67<=0,$Q$35="NO"),"",IF($BX68="Dry",$AK67/$AW68/10,IF($BX68="Wet",$AK67/($AZ68/100)*$AW68/10,0))) ->  | BZ68: =IF(OR($E68="",$H68="",$O68<=0,$AK67<=0,AY68=0,$Q$35="NO"),"",IF(OR($I56="-",$AS68="-",$O68=0),"",BY68/AY68)) ->  | CA68: =IF(OR($E68="",$H68="",$O68<=0,$AK67<=0,$Q$35="NO"),"",IF(OR($I56="-",$AS68="-",$O68=0),"",($BY68*$O68)/100)) -> 
N69: =IF(OR($H$7="Dry", K68=""),"",IF(AND(E68="PKE",K68>3),">3","")) ->  | R69: =IF(OR($H$7="Dry", O68=""),"",IF(AND(E68="PKE",O68>3),">3","")) -> 
K70: OFFERED | M70: EATEN | O70: OFFERED | Q70: EATEN | AN70: OPTION 1 | AQ70: OPTION 2
W71: Cl | X71: =IF(Y12="No","",IF($H$7="early",0.25,IF($H$7="mid",0.25,IF($H$7="late",0.25,IF($H$7="dry",IF(AF16="YES",0.25,0.25)))))) ->  | Y71: min | AA71: =IF($K$72>0,BP72,"") ->  | AC71: =IF(AND($Q$35="YES",$O$72>0),BP73,"") -> 
E72: Total feed (kg DM/cow/day) | K72: =SUM(L41,L44,L47,L50,L53,L56,L59,L62,L65,L68) -> 0 | M72: =SUM(M41,M44,M47,M50,M53,M56,M59,M62,M65,M68) -> 0 | O72: =IF(Q35="NO","",SUM(P41,P44,P47,P50,P53,P56,P59,P62,P65,P68)) ->  | Q72: =IF($Q$35="YES",SUM(Q41,Q44,Q47,Q50,Q53,Q56,Q59,Q62,Q65,Q68),"") ->  | AK72: $/cow/day | AN72: =IF($K$73>0,$CA$72,"") ->  | AQ72: =IF(AND($Q$35="Yes",$O$73>0),$CA$73,"") ->  | AU72: OPTION | AV72: 1 | AX72: =IF(SUM(AX40,AX43,AX46,AX49,AX52,AX55,AX58,AX61,AX64,AX67)>0,SUM(AX40,AX43,AX46,AX49,AX52,AX55,AX58,AX61,AX64,AX67),"") ->  | BA72: =IF(SUM(BA40,BA43,BA46,BA49,BA52,BA55,BA58,BA61,BA64,BA67)>0,SUM(BA40,BA43,BA46,BA49,BA52,BA55,BA58,BA61,BA64,BA67),"") ->  | BD72: =IF(SUM(BD40,BD43,BD46,BD49,BD52,BD55,BD58,BD61,BD64,BD67)>0,SUM(BD40,BD43,BD46,BD49,BD52,BD55,BD58,BD61,BD64,BD67),"") ->  | BF72: =IF(SUM(BF40,BF43,BF46,BF49,BF52,BF55,BF58,BF61,BF64,BF67)>0,SUM(BF40,BF43,BF46,BF49,BF52,BF55,BF58,BF61,BF64,BF67),"") ->  | BH72: =IF(SUM(BH40,BH43,BH46,BH49,BH52,BH55,BH58,BH61,BH64,BH67)>0,SUM(BH40,BH43,BH46,BH49,BH52,BH55,BH58,BH61,BH64,BH67),"") ->  | BJ72: =IF(SUM(BJ40,BJ43,BJ46,BJ49,BJ52,BJ55,BJ58,BJ61,BJ64,BJ67)>0,SUM(BJ40,BJ43,BJ46,BJ49,BJ52,BJ55,BJ58,BJ61,BJ64,BJ67),"") ->  | BL72: =IF(SUM(BL40,BL43,BL46,BL49,BL52,BL55,BL58,BL61,BL64,BL67)>0,SUM(BL40,BL43,BL46,BL49,BL52,BL55,BL58,BL61,BL64,BL67),"") ->  | BN72: =IF((SUM(BN40,BN43,BN46,BN49,BN52,BN55,BN58,BN61,BN64,BN67))>0,SUM(($AX$40/$AX$72*BN40)+($AX$43/$AX$72*BN43)+($AX$46/$AX$72*BN46)+($AX$49/$AX$72*BN49)+($AX$52/$AX$72*BN52)+($AX$55/$AX$72*BN55)+($AX$58/$AX$72*BN58)+($AX$61/$AX$72*BN61)+($AX$64/$AX$72*BN64)+($AX$67/$AX$72*BN67)),"") ->  | BQ72: =IF((SUM(BQ40,BQ43,BQ46,BQ49,BQ52,BQ55,BQ58,BQ61,BQ64,BQ67))>0,SUM(($AX$40/$AX$72*BQ40)+($AX$43/$AX$72*BQ43)+($AX$46/$AX$72*BQ46)+($AX$49/$AX$72*BQ49)+($AX$52/$AX$72*BQ52)+($AX$55/$AX$72*BQ55)+($AX$58/$AX$72*BQ58)+($AX$61/$AX$72*BQ61)+($AX$64/$AX$72*BQ64)+($AX$67/$AX$72*BQ67)),"") ->  | BT72: =IF((SUM(BT40,BT43,BT46,BT49,BT52,BT55,BT58,BT61,BT64,BT67))>0,SUM(($AX$40/$AX$72*BT40)+($AX$43/$AX$72*BT43)+($AX$46/$AX$72*BT46)+($AX$49/$AX$72*BT49)+($AX$52/$AX$72*BT52)+($AX$55/$AX$72*BT55)+($AX$58/$AX$72*BT58)+($AX$61/$AX$72*BT61)+($AX$64/$AX$72*BT64)+($AX$67/$AX$72*BT67)),"") ->  | BV72: =(BV40+BV43+BV46+BV49+BV52+BV55+BV58+BV61+BV64+BV67) -> 0 | BX72: $/mob | BY72: =CA72*$O$6 -> 0 | BZ72: $/cow | CA72: =SUM(CA43,CA46,CA49,CA52,CA55,CA58,CA61,CA64,CA67) -> 0
E73: Supplement (kg DM/cow/day) | K73: =SUM(L44,L47,L50,L53,L56,L59,L62,L65,L68) -> 0 | M73: =SUM(M44,M47,M50,M53,M56,M59,M62,M65,M68) -> 0 | O73: =(IF(Q35="YES",SUM(P44,P47,P50,P53,P56,P59,P62,P65,P68),"")) ->  | Q73: =IF($Q$35="YES",SUM(Q44,Q47,Q50,Q53,Q56,Q59,Q62,Q65,Q68),"") ->  | AK73: $/mob/day | AN73: =IF(AND($K$73>0,$O$6>0),$BY$72,"") ->  | AQ73: =IF(AND($Q$35="Yes",$O$73>0,$O$6>0),$BY$73,"") ->  | AU73: OPTION | AV73: 2 | AX73: =IF(SUM(AX41,AX44,AX47,AX50,AX53,AX56,AX59,AX62,AX65,AX68)>0,SUM(AX41,AX44,AX47,AX50,AX53,AX56,AX59,AX62,AX65,AX68),"") ->  | BA73: =IF($O$72>0,SUM(BA41,BA44,BA47,BA50,BA53,BA56,BA59,BA62,BA65,BA68),"") -> 0 | BD73: =IF($O$72>0,SUM(BD41,BD44,BD47,BD50,BD53,BD56,BD59,BD62,BD65,BD68),"") -> 0 | BF73: =IF($O$72>0,SUM(BF41,BF44,BF47,BF50,BF53,BF56,BF59,BF62,BF65,BF68),"") -> 0 | BH73: =IF($O$72>0,SUM(BH41,BH44,BH47,BH50,BH53,BH56,BH59,BH62,BH65,BH68),"") -> 0 | BJ73: =IF($O$72>0,SUM(BJ41,BJ44,BJ47,BJ50,BJ53,BJ56,BJ59,BJ62,BJ65,BJ68),"") -> 0 | BL73: =IF($O$72>0,SUM(BL41,BL44,BL47,BL50,BL53,BL56,BL59,BL62,BL65,BL68),"") -> 0 | BN73: =IF((SUM(BN41,BN44,BN47,BN50,BN53,BN56,BN59,BN62,BN65,BN68))>0,SUM(($AX$41/$AX$73*BN41)+($AX$44/$AX$73*BN44)+($AX$47/$AX$73*BN47)+($AX$50/$AX$73*BN50)+($AX$53/$AX$73*BN53)+($AX$56/$AX$73*BN56)+($AX$59/$AX$73*BN59)+($AX$62/$AX$73*BN62)+($AX$65/$AX$73*BN65)+($AX$68/$AX$73*BN68)),"") ->  | BQ73: =IF((SUM(BQ41,BQ44,BQ47,BQ50,BQ53,BQ56,BQ59,BQ62,BQ65,BQ68))>0,SUM(($AX$41/$AX$73*BQ41)+($AX$44/$AX$73*BQ44)+($AX$47/$AX$73*BQ47)+($AX$50/$AX$73*BQ50)+($AX$53/$AX$73*BQ53)+($AX$56/$AX$73*BQ56)+($AX$59/$AX$73*BQ59)+($AX$62/$AX$73*BQ62)+($AX$65/$AX$73*BQ65)+($AX$68/$AX$73*BQ68)),"") ->  | BT73: =IF((SUM(BT41,BT44,BT47,BT50,BT53,BT56,BT59,BT62,BT65,BT68))>0,SUM(($AX$41/$AX$73*BT41)+($AX$44/$AX$73*BT44)+($AX$47/$AX$73*BT47)+($AX$50/$AX$73*BT50)+($AX$53/$AX$73*BT53)+($AX$56/$AX$73*BT56)+($AX$59/$AX$73*BT59)+($AX$62/$AX$73*BT62)+($AX$65/$AX$73*BT65)+($AX$68/$AX$73*BT68)),"") ->  | BV73: =SUM(BV41,BV44,BV47,BV50,BV53,BV56,BV59,BV62,BV65,BV68) -> 0 | BY73: =CA73*O6 -> 0 | CA73: =SUM(CA44,CA47,CA50,CA53,CA56,CA59,CA62,CA65,CA68) -> 0
C74: =IF(C56="Hay_Silage","i","") ->  | W74: S | X74: =IF($Y$12="No","",IF($H$7="early",0.25,IF($H$7="mid",0.25,IF($H$7="late",0.25,IF($H$7="dry",IF(AF16="YES",0.25,0.25)))))) ->  | Y74: min | AA74: =IF($K$72>0,BQ72,"") ->  | AC74: =IF(AND($Q$35="YES",$O$72>0),BQ73,"") -> 
W77: Mg | X77: =IF($Y$12="No","",IF($H$7="early",0.4,IF($H$7="mid",0.25,IF($H$7="late",0.25,IF($H$7="dry",IF(AF16="YES",0.4,0.3)))))) ->  | Y77: min | AA77: =IF($K$72>0,BR72,"") ->  | AC77: =IF(AND($Q$35="YES",$O$72>0),BR73,"") -> 
W80: Ca | X80: =IF($Y$12="NO","",IF($H$7="early","1.1",IF($H$7="mid","0.8",IF($H$7="late","0.6",IF($H$7="dry",IF($AF$15="YES",0.5,"0.50")))))) ->  | Y80: min | Z80: =IF(AF15="YES","i","") ->  | AA80: =IF($K$72>0,BS72,"") ->  | AB80: =IF(H7="DRY","","i") -> i | AC80: =IF(AND($Q$35="YES",$O$72>0),BS73,"") ->  | AD80: =IF(H7="DRY","","i") -> i
X82: =IF($Y$12="NO","",IF($H$7="early",0.8,IF($H$7="mid",0.6,IF($H$7="late",0.6,IF($H$7="dry",IF($AF$15="YES",2,0.3)))))) ->  | Y82: max | AA82: =IF($K$72>0,BS72,"") ->  | AC82: =IF(AND($Q$35="YES",$O$72>0),BS73,"") -> 
W85: P | X85: =IF($Y$12="No","",IF($H$7="early",0.35,IF($H$7="mid",0.3,IF($H$7="late",0.3,IF($H$7="dry",IF(AF15="YES",0.25,0.3)))))) ->  | Y85: min | Z85: =IF(AF15="YES","i","") ->  | AA85: =IF($K$72>0,BT72,"") ->  | AC85: =IF(AND($Q$35="YES",$O$72>0),BT73,"") -> 
X87: =IF($Y$12="NO","",IF($H$7="early","0.35",IF($H$7="mid","0.30",IF($H$7="late","0.30",IF($H$7="dry",IF(AF15="YES",0.45,"0.35")))))) ->  | Y87: max | AA87: =IF($K$72>0,BT72,"") ->  | AC87: =IF(AND($Q$35="YES",$O$72>0),BT73,"") -> 
W90: DCAD calculations? | AC90: NO
W91: DCAD | AC91: =IF(AND($H$7="Dry",AD15="YES",AC90="YES"),"YES","NO") -> NO
X92: meq/100g DM
W93: DCAD (mEq/100g DM) | X93: <0 | Z93: =IF(AC90="YES","i","") ->  | AA93: =BV72 -> 0 | AC93: =BV73 -> 0

Sheet CUSTOM FEED SET-UP
C1: %bulb | D1: %leaf
A2: Custom fodder beet ratio | B2: Custom: Bulb% & Leaf% | E2: Use this with default fodder beet feeding values
A3: FODDER BEET DEFAULT | E3: DM | F3: ME | G3: CP | H3: NDF | I3: SSS | J3: starch | K3: fat | L3: BP P | M3: Sol P | N3: Degrad P | O3: Dry/Wet | P3: Na | Q3: K | R3: Cl | S3: S | T3: Mg | U3: Ca | V3: P
B4: Fodder beet_Default | C4: %bulb | D4: %leaf | E4: % | F4: MJ/kg DM | G4: %DM | H4: %DM | I4: %DM | J4: %SSS | K4: %DM | L4: %CP | M4: %CP | N4: %CP | O4: $ | P4: %DM | Q4: %DM | R4: %DM | S4: %DM | T4: %DM | U4: %DM | V4: %DM
B5: Bulb only | C5: 100 | D5: =100-C5 -> 0 | E5: ='Data source'!C46 -> 10 | F5: ='Data source'!D46 -> 12 | G5: ='Data source'!E46 -> 8.6 | H5: ='Data source'!F46 -> 11.4 | I5: ='Data source'!G46 -> 64 | J5: ='Data source'!H46 -> 5 | K5: ='Data source'!I46 -> 0 | L5: ='Data source'!J46 -> 0 | M5: ='Data source'!K46 -> 0 | N5: ='Data source'!L46 -> 0 | O5: ='Data source'!M46 -> Dry | P5: ='Data source'!N46 -> 0.3 | Q5: ='Data source'!O46 -> 2 | R5: ='Data source'!P46 -> 0.3 | S5: ='Data source'!Q46 -> 0.07 | T5: ='Data source'!R46 -> 0.16 | U5: ='Data source'!S46 -> 0.14 | V5: ='Data source'!T46 -> 0.13
B6: Leaf only | C6: 0 | D6: 100 | E6: ='Data source'!C47 -> 17 | F6: ='Data source'!D47 -> 10.4 | G6: ='Data source'!E47 -> 20 | H6: ='Data source'!F47 -> 32 | I6: ='Data source'!G47 -> 17.5 | J6: ='Data source'!H47 -> 0 | K6: ='Data source'!I47 -> 0 | L6: ='Data source'!J47 -> 0 | M6: ='Data source'!K47 -> 0 | N6: ='Data source'!L47 -> 0 | O6: ='Data source'!M47 -> Dry | P6: ='Data source'!N47 -> 1.3 | Q6: ='Data source'!O47 -> 3.2 | R6: ='Data source'!P47 -> 0.3 | S6: ='Data source'!Q47 -> 0.3 | T6: ='Data source'!R47 -> 1 | U6: ='Data source'!S47 -> 1.8 | V6: ='Data source'!T47 -> 0.3
A7: Spring | B7: Bulb 90% Leaf 10% | C7: 90 | D7: 10 | E7: =((E$6*$D7/100)+(E$5*$C7/100)) -> 10.7 | F7: =((F$6*$D7/100)+(F$5*$C7/100)) -> 11.84 | G7: 9.74 | H7: =((H$6*$D7/100)+(H$5*$C7/100)) -> 13.46 | I7: 59.35 | J7: 4.5 | K7: 0 | L7: 0 | M7: 0 | N7: 0 | O7: Dry | P7: =((P$6*$D7/100)+(P$5*$C7/100)) -> 0.4 | Q7: 2.12 | R7: 0.3 | S7: 0.093 | T7: 0.244 | U7: 0.306 | V7: 0.147
A8: Late spring | B8: Bulb 85% Leaf 15% | C8: 85 | D8: 15 | E8: =((E$6*$D8/100)+(E$5*$C8/100)) -> 11.05 | F8: 11.76 | G8: 10.31 | H8: 14.49 | I8: 57.025 | J8: 4.25 | K8: =((K$6*$D8/100)+(K$5*$C8/100)) -> 0 | L8: 0 | M8: 0 | N8: 0 | O8: Dry | P8: 0.45 | Q8: 2.18 | R8: 0.3 | S8: 0.1045 | T8: 0.286 | U8: 0.389 | V8: 0.1555
A9: Summer | B9: Bulb 80% Leaf 20% | C9: 80 | D9: 20 | E9: =((E$6*$D9/100)+(E$5*$C9/100)) -> 11.4 | F9: =((F$6*$D9/100)+(F$5*$C9/100)) -> 11.68 | G9: 10.88 | H9: 15.52 | I9: 54.7 | J9: 4 | K9: 0 | L9: 0 | M9: 0 | N9: 0 | O9: Dry | P9: 0.5 | Q9: 2.24 | R9: 0.3 | S9: 0.116 | T9: 0.328 | U9: 0.472 | V9: 0.164
A10: Late Summer | B10: Bulb 75% Leaf 25% | C10: 75 | D10: 25 | E10: =((E$6*$D10/100)+(E$5*$C10/100)) -> 11.75 | F10: 11.6 | G10: 11.45 | H10: 16.55 | I10: 52.375 | J10: 3.75 | K10: 0 | L10: 0 | M10: 0 | N10: 0 | O10: Dry | P10: 0.55 | Q10: 2.3 | R10: 0.3 | S10: 0.1275 | T10: 0.37 | U10: 0.555 | V10: 0.1725
A11: Winter | B11: Bulb 70% leaf 30% | C11: 70 | D11: 30 | E11: =((E$6*$D11/100)+(E$5*$C11/100)) -> 12.1 | F11: 11.52 | G11: 12.02 | H11: 17.58 | I11: 50.05 | J11: 3.5 | K11: 0 | L11: 0 | M11: 0 | N11: 0 | O11: Dry | P11: 0.6 | Q11: 2.36 | R11: 0.3 | S11: 0.139 | T11: 0.412 | U11: 0.638 | V11: 0.181
B12: Custom: Bulb% & Leaf% | C12: =C2 -> 0 | D12: =D2 -> 0 | E12: =((E$6*$D2/100)+(E$5*$C2/100)) -> 0 | F12: 0 | G12: 0 | H12: 0 | I12: 0 | J12: 0 | K12: 0 | L12: 0 | M12: 0 | N12: 0 | O12: Dry | P12: =((P$6*$D2/100)+(P$5*$C2/100)) -> 0 | Q12: 0 | R12: 0 | S12: 0 | T12: 0 | U12: 0 | V12: 0
A14: Custom bulb crop ratio | B14: Custom: Bulb% & Leaf% | E14: Use this with custom bulb crop feed values below
A15: CUSTOM BULB CROPS | E15: DM | F15: ME | G15: CP | H15: NDF | I15: SSS | J15: starch | K15: fat | L15: BP P | M15: Sol P | N15: Degrad P | O15: Dry/Wet | P15: Na | Q15: K | R15: Cl | S15: S | T15: Mg | U15: Ca | V15: P
B16: Custom_Crops | C16: %bulb | D16: %leaf | E16: % | F16: MJ/kg DM | G16: %DM | H16: %DM | I16: %DM | J16: %SSS | K16: %DM | L16: %CP | M16: %CP | N16: %CP | O16: $ | P16: %DM | Q16: %DM | R16: %DM | S16: %DM | T16: %DM | U16: %DM | V16: %DM
B17: Bulb only | C17: 100 | D17: =100-C17 -> 0 | E17: =E28 -> 0 | F17: =F28 -> 0 | G17: 0 | H17: 0 | I17: 0 | J17: 0 | K17: 0 | L17: 0 | M17: 0 | N17: 0 | O17: =O28 -> 0 | P17: 0 | Q17: 0 | R17: 0 | S17: 0 | T17: 0 | U17: 0 | V17: 0
B18: Leaf only | C18: 0 | D18: 100 | E18: =E29 -> 0 | F18: =F29 -> 0 | G18: 0 | H18: 0 | I18: 0 | J18: 0 | K18: 0 | L18: 0 | M18: 0 | N18: 0 | O18: =O29 -> 0 | P18: 0 | Q18: 0 | R18: 0 | S18: 0 | T18: 0 | U18: 0 | V18: 0
A19: Spring | B19: Bulb 90% Leaf 10% | C19: 90 | D19: 10 | E19: =((E$18*$D19/100)+(E$17*$C19/100)) -> 0 | F19: 0 | G19: 0 | H19: 0 | I19: 0 | J19: 0 | K19: 0 | L19: 0 | M19: 0 | N19: 0 | O19: =O17 -> 0 | P19: 0 | Q19: 0 | R19: 0 | S19: 0 | T19: 0 | U19: 0 | V19: 0
A20: Late spring | B20: Bulb 85% Leaf 15% | C20: 85 | D20: 15 | E20: =((E$18*$D20/100)+(E$17*$C20/100)) -> 0 | F20: =((F$18*$D20/100)+(F$17*$C20/100)) -> 0 | G20: 0 | H20: 0 | I20: 0 | J20: 0 | K20: 0 | L20: 0 | M20: 0 | N20: 0 | O20: =O18 -> 0 | P20: =((P$18*$D20/100)+(P$17*$C20/100)) -> 0 | Q20: 0 | R20: 0 | S20: 0 | T20: 0 | U20: 0 | V20: 0
A21: Summer | B21: Bulb 80% Leaf 20% | C21: 80 | D21: 20 | E21: 0 | F21: 0 | G21: 0 | H21: 0 | I21: 0 | J21: 0 | K21: 0 | L21: 0 | M21: 0 | N21: 0 | O21: 0 | P21: 0 | Q21: 0 | R21: 0 | S21: 0 | T21: 0 | U21: 0 | V21: 0
A22: Late Summer | B22: Bulb 75% Leaf 25% | C22: 75 | D22: 25 | E22: =((E$18*$D22/100)+(E$17*$C22/100)) -> 0 | F22: 0 | G22: 0 | H22: 0 | I22: 0 | J22: 0 | K22: 0 | L22: 0 | M22: 0 | N22: 0 | O22: 0 | P22: 0 | Q22: 0 | R22: 0 | S22: 0 | T22: 0 | U22: 0 | V22: 0
A23: Winter | B23: Bulb 70% leaf 30% | C23: 70 | D23: 30 | E23: 0 | F23: 0 | G23: 0 | H23: 0 | I23: 0 | J23: 0 | K23: 0 | L23: 0 | M23: 0 | N23: 0 | O23: =O21 -> 0 | P23: 0 | Q23: 0 | R23: 0 | S23: 0 | T23: 0 | U23: 0 | V23: 0
B24: Custom: Bulb% & Leaf% | C24: =C14 -> 0 | D24: =D14 -> 0 | E24: =((E$18*$D14/100)+(E$17*$C14/100)) -> 0 | F24: 0 | G24: 0 | H24: =((H$18*$D14/100)+(H$17*$C14/100)) -> 0 | I24: 0 | J24: 0 | K24: 0 | L24: 0 | M24: 0 | N24: 0 | O24: 0 | P24: 0 | Q24: 0 | R24: 0 | S24: 0 | T24: 0 | U24: 0 | V24: 0
A26: Add custom bulb crop analysis here | E26: DM | F26: ME | G26: CP | H26: NDF | I26: SSS | J26: starch | K26: fat | L26: BP P | M26: Sol P | N26: Degrad P | O26: Dry/Wet | P26: Na | Q26: K | R26: Cl | S26: S | T26: Mg | U26: Ca | V26: P
C27: %bulb | D27: %leaf | E27: % | F27: MJ/kg DM | G27: %DM | H27: %DM | I27: %DM | J27: %SSS | K27: %DM | L27: %CP | M27: %CP | N27: %CP | O27: $ | P27: %DM | Q27: %DM | R27: %DM | S27: %DM | T27: %DM | U27: %DM | V27: %DM
B28: Custom bulb | C28: 100 | D28: 0
B29: Custom leaf | C29: 0 | D29: 100
A32: Add custom feed and mineral analysis here | E32: DM | F32: ME | G32: CP | H32: NDF | I32: SSS | J32: starch | K32: fat | L32: BP P | M32: Sol P | N32: Degrad P | O32: Dry/Wet | P32: Na | Q32: K | R32: Cl | S32: S | T32: Mg | U32: Ca | V32: P
B33: Custom_Feeds_&_Minerals | E33: % | F33: MJ/kg DM | G33: %DM | H33: %DM | I33: %DM | J33: %SSS | K33: %DM | L33: %CP | M33: %CP | N33: %CP | O33: $ | P33: %DM | Q33: %DM | R33: %DM | S33: %DM | T33: %DM | U33: %DM | V33: %DM | X33: Leaf available
B34: Custom feed 1 | X34: =IF(D34<>"Leaf (if available)","",IF(COUNTA($E34:$V34)=18,1,0)) -> 
B35: Custom feed 2
B36: Custom feed 3
B37: Custom feed 4
B38: Custom feed 5
B39: Custom feed 6
B40: Custom feed 7
B41: Custom feed 8
B42: Custom feed 9
B43: Custom feed 10

Sheet ASK (hidden)
K1: Today | Q1: Calcs from this date (optional)
E2: FARM INPUTS | K2: =TODAY() -> 2022-12-06
B5: FARM | H5: COWS | N5: PASTURE | T5: SUPPLEMENT ON HAND/CONTRACT
E7: PLATFORM SIZE (Effective Ha) | K7: BREED | Q7: CURRENT TOTAL GRAZABLE AREA (ha) | W7: FEED TYPE | Y7: FEED | AA7: Available (t)
E8: 100 | K8: Friesian | L8: * | Q8: 90 | V8: Feed 1 | W8: Hay_Silage | X8: * | Y8: Hay pasture good | Z8: * | AA8: 14 | AG8: KEY
E10: TERRAIN | K10: AVERAGE LIVEWEIGHT | Q10: AREA GRAZED/DAY (ha) all mobs | AG10: Select from drop-down menu | AI10: -
E11: flat | K11: 600 | L11: * | Q11: 3 | V11: Feed 2 | W11: Concentrates | X11: * | Y11: Barley | Z11: * | AA11: 10 | AG11: Enter values
AG12: Required for the ASSESS page | AI12: *
E13: PLANNED START OF CALVING (PSC) | K13: STAGE OF LACTATION | Q13: AVERAGE PASTURE COVER
E14: 2017-07-01 | F14: (next calving) | K14: Late | L14: * | Q14: 2400 | V14: Feed 3 | W14: Forages | X14: * | Y14: Chicory | Z14: * | AA14: 20
K16: TOTAL COWS (at peak)
K17: 330 | V17: Feed 4 | W17: By_products | X17: * | Y17: PKE | Z17: * | AA17: 5
K19: COWS ON FARM NOW
K20: 280 | V20: Feed 5 | W20: Minerals | X20: * | Y20: CaCO3, %DM | Z20: * | AA20: 0.2
K22: BCS (herd avg)
K23: 4 | V23: Feed 6 | W23: Concentrates | X23: * | Y23: Maize grain | Z23: * | AA23: 8
Y26: Minerals with conc. supplement Y/N? | AA26: NO
W27: =IF(AA26="Yes","Take account of minerals fed when changing supplement allowances","") -> 
L28: All FARM/COW/PASTURE inputs complete? | R28: =IF(OR(E8="",E11="-",E14="",K8="-",K11="-",K14="-",K17="",K20="",K23="-",Q8="",Q11="",Q14=""),"No","YES") -> YES
Q30: CALCULATIONS
K33: Stocking rate at peak (cows/ha) | M33: =IF($R$28="Yes",$K$17/$E$8,"") -> 3.3 | Q33: Rotation length | S33: =IF(R28="Yes",Q8/Q11,"") -> 30
K34: kg LWT/ha | M34: =IF($R$28="Yes",($K$17*$K$11)/$E$8,"") -> 1980 | Q34: Weeks until PSC | S34: =IF(R28="Yes",IF(Q2>0,((E14-Q2)/7),(E14-K2)/7),"") -> -283.4285714
K35: Current Stocking rate (cows/ha) | M35: =IF(R28="Yes",K20/Q8,"") -> 3.111111111
K36: Current kg LWT/ha | M36: =IF($R$28="Yes",($K$20*$K$11)/$Q$8,"") -> 1866.666667

Sheet OBSERVE (hidden)

Sheet ASSESS & COMPARE (hidden)
B2: INPUTS | G2: Today | M2: Calcs from this date | V2: CALCULATIONS
G3: =TODAY() -> 2022-12-06 | N3: 2017-05-22 | AH3: KEY | AL3: ENERGY REQUIREMENTS
AQ4: MJME/cow | BY4: Background calcs (these could be hidden or somewhere else)
B5: MOB INPUTS | V5: CALCULATION OPTIONS | AC5: Select from drop down list | AI5: Jersey | AL5: maintenance | AQ5: =IF($J$53="Yes",VLOOKUP(G8,'Data source'!$B$190:$C$199,2,FALSE),"") -> 
C6: Breed | G6: =IF(' ASK '!K8="","",' ASK '!K8) -> Friesian | I6: Cows in mob | O6: 150 | V6: COMPARE TWO FEEDING OPTIONS | AA6: YES | AC6: Enter values - Option 1 | AI6: 2 | AL6: total MS production | AQ6: =IF($J$53="Yes",$O$7*$BZ$12,"") -> 
C7: Stage of lactation | G7: =IF(' ASK '!K14="","",' ASK '!K14) -> Late | I7: Milk solids (kg MS/cow/day) | O7: 1.1 | V7: COST OF FEED | AA7: YES | AC7: Calculated value | AL7: daily BCS gain/loss | AQ7: =IF($J$53="Yes",IF($G$9<0,$CE$9,IF($G$9>0,$CE$10,0)),"") ->  | BZ7: Option 1 | CA7: Option 2 | CE7: Option 1 | CF7: Option 2 | CI7: Option 1 | CK7: Option 2
C8: Average liveweight (kg) | G8: =IF(' ASK '!K11="","",' ASK '!K11) -> 600 | I8: Terrain | O8: =IF(' ASK '!E11="","",' ASK '!E11) -> flat | V8: CRUDE PROTEIN COMPONENTS | AA8: YES | AC8: Out of recommended range | AL8: pregnancy | AQ8: =IF($J$53="Yes",BZ13,"") ->  | BY8: stage of lactation | BZ8: =IF($G$7="-","",VLOOKUP($G$7,'Data source'!$B$251:$C$254,2,FALSE)) -> 14 | CA8: =$BZ$8 -> 14 | CC8: change LWT/d | CE8: =IF(OR(G8="-",G9="-"),"",ABS($G$8*0.0658*$G$9)/30) -> 0.1316 | CF8: =CE8 -> 0.1316 | CH8: Average ME of diet (MJ ME) | CI8: =$AB$16/$Y$49 ->  | CK8: =IF($Y$50="","",$AB$18/$Y$50) -> 
C9: Estimated BCS loss/gain next month | G9: -0.1 | I9: Total daily walking distance (km) | O9: 1.5 | V9: MINERALS | AA9: NO | AL9: total activity | AQ9: =IF($J$53="Yes",$BZ$14*O9,"") ->  | BY9: breed | BZ9: =IF($G$6="-","",IF($G$6="Jersey","j",IF($G$6="Friesian","f",IF($G$6="cross-bred","x","-")))) -> f | CA9: =BZ9 -> f | CC9: ME loss/d | CE9: =IF($G$7="-","",IF($G$7="dry",$CE$8*-30,$CE$8*-37)) -> -4.8692 | CF9: =CE9 -> -4.8692 | CH9: Total DMI requirements (kg DM) | CI9: =$AQ$10/$CI$8 ->  | CK9: =IF(CK8="","",CI9) -> 
C10: Planned start of calving - next season | G10: =IF(' ASK '!E14="","",' ASK '!E14) -> 2017-07-01 | I10: Weeks to PSC next season | O10: =IF(G10="","<--- enter PSC",IF(N3="",(G10-G3)/7,(G10-N3)/7)) -> 5.714285714 | AL10: Total ME requirements | AQ10: =IF($J$53="Yes",SUM(AQ5:AQ9),"") ->  | BY10: energy density of diet | BZ10: =IF($CI$8<=10.5,1,IF(AND($CI$8>10.5,$CI$8<11.5),2,IF($CI$8>=11.5,3,""))) ->  | CC10: ME gain/d | CE10: =IF($G$7="-","",IF($G$7="dry",$CE$8*72,$CE$8*50)) -> 6.58 | CF10: =CE10 -> 6.58 | CH10: Difference in ME intake (MJ) | CI10: =AB16-$AQ$10 ->  | CK10: =IF($AB$18="","",$AB$18-$AQ$10) -> 
BY11: wk precalving | BZ11: =IF(O10="","",IF($O$10>12,"12+",$O$10)) -> 5.714285714 | CA11: 5.714285714 | CC11: DM difference | CE11: =CI11 ->  | CH11: Difference in DMI (kg DM) | CI11: =$CI$10/$CI$8 ->  | CK11: =IF($CK$8="","",$CK$10/$CK$8) -> 
V12: DIET CHECK | AA12: per cow | AY12: CRUDE PROTEIN | BJ12: MINERALS | BP12: DCAD EATEN | BY12: milk production | BZ12: =IF(AND($BZ$10=1,$BZ$9="j"),81,IF(AND($BZ$10=2,$BZ$9="j"),77,IF(AND($BZ$10=3,$BZ$9="j"),74,IF(AND($BZ$10=1,$BZ$9="x"),84,IF(AND($BZ$10=2,$BZ$9="x"),80,IF(AND($BZ$10=3,$BZ$9="x"),77,IF(AND($BZ$10=1,$BZ$9="f"),86,IF(AND($BZ$10=2,$BZ$9="f"),82,IF(AND($BZ$10=3,$BZ$9="f"),79,""))))))))) ->  | CC12: Bypass | CE12: 0.35 | CF12: 0.35
B13: PASTURE QUALITY & ALLOCATION | J13: MJME | L13: adjust MJME? | Z13: DM | AA13: @MJME | AB13: MJME | AE13: PROTEIN | AH13: NDF | AK13: SSS | AN13: STARCH | AQ13: FAT | AS13: $/Cow per day | AU13: $/Mob per day | AZ13: UDP | BB13: Soluable | BD13: RDP | BH13: Na | BI13: K | BJ13: Cl | BK13: S | BL13: Mg | BM13: P | BO13: meq/100g DM | BY13: pregnancy | BZ13: =IF($BZ$11>=12,0,IF(AND($BZ$11<=2,$BZ$9="j"),40,IF(AND($BZ$11<=4,$BZ$9="j"),30,IF(AND($BZ$11<=8,$BZ$9="j"),17,IF(AND($BZ$11<=12,$BZ$9="j"),10,IF(AND($BZ$11<=2,$BZ$9="x"),45,IF(AND($BZ$11<=4,$BZ$9="x"),35,IF(AND($BZ$11<=8,$BZ$9="x"),20,IF(AND($BZ$11<=12,$BZ$9="x"),11,IF(AND($BZ$11<=2,$BZ$9="f"),51,IF(AND($BZ$11<=4,$BZ$9="f"),39,IF(AND($BZ$11<=8,$BZ$9="f"),22,IF(AND($BZ$11<=12,$BZ$9="f"),12,))))))))))))) -> 22 | CA13: 22 | CC13: Soluble | CE13: 0.32 | CF13: 0.32
C14: Pasture quality | G14: Pasture autumn and winter | J14: =IF(G14="-","",VLOOKUP(G14,'Data source'!$B$4:$I$12,3,FALSE)) ->  | V14: RECOMMENDED | Z14: =IF($J$53="Yes",CI9,"") ->  | AA14: =IF($J$53="Yes",$CI$8,"") ->  | AB14: =IF($J$53="Yes",$AQ$10,"") ->  | AE14: =IF($J$53="Yes",$BZ$8,"") ->  | AH14: =IF($J$53="Yes",">35","") ->  | AK14: =IF($J$53="Yes","<38","") ->  | AN14: =IF($J$53="Yes","<30","") ->  | AQ14: =IF($J$53="Yes","<6","") ->  | AZ14: >35 | BB14: >32 | BD14: <65 | BH14: >0.12 | BI14: >1.2 | BJ14: >0.50 | BK14: >0.25 | BL14: >0.30 | BM14: >0.25, <0.45 | BO14: <0 | BP14: closer to -10 | BY14: per kg walked | BZ14: =IF(O8="-","",VLOOKUP($O$8,'Data source'!$B$209:$C$211,2,FALSE)) -> 2 | CA14: 2 | CC14: Degradable | CE14: 0.65 | CF14: 0.65
C15: Pre-grazing cover | H15: kg DM/ha
C16: Post-grazing residual | H16: kg DM/ha | V16: FEED OPTION 1 | Z16: =IF($J$53="Yes",$Y$49,"") ->  | AA16: =IF($J$53="Yes",$CI$8,"") ->  | AB16: =IF($J$53="Yes",$AB$49,"") ->  | AE16: =IF($J$53="Yes",$AE$49,"") ->  | AH16: =IF($J$53="Yes",$AH$49,"") ->  | AK16: =IF($J$53="Yes",$AK$49,"") ->  | AN16: =IF($J$53="Yes",$AN$49,"") ->  | AQ16: =IF($J$53="Yes",$AQ$49,"") ->  | AS16: =IF($J$53="Yes",$AV$49,"") ->  | AU16: =IF($J$53="Yes",$AT$49,"") ->  | AZ16: =IF($J$53="Yes",$AZ$49,"") ->  | BB16: =IF($J$53="Yes",$BB$49,"") ->  | BD16: =IF($J$53="Yes",$BD$49,"") ->  | BH16: =BH49 ->  | BI16: =BI49 ->  | BJ16: =BJ49 ->  | BK16: =BK49 ->  | BL16: =BL49 ->  | BN16: =BM49 ->  | BO16: =IF($J$53="Yes",($BO$49*1000)/($Y$49*10),"") ->  | BY16: YES
C17: Hectares grazed/day -this mob | H17: ha/day | Y17: diff | Z17: =IF($J$53="Yes",$Z$16-$Z$14,"") ->  | AB17: =IF($J$53="Yes",$AB$16-$AB$14,"") ->  | BY17: NO
J18: Direct input | V18: FEED OPTION 2 | Z18: =IF($J$54="Yes",$Y$50,"") ->  | AA18: =IF(OR($J$53="No",L28<=0),"",$CI$8) ->  | AB18: =IF($J$54="Yes",$AB$50,"") ->  | AE18: =IF($J$54="Yes",$AE$50,"") ->  | AH18: =IF($J$54="Yes",$AH$50,"") ->  | AK18: =IF($J$54="Yes",$AK$50,"") ->  | AN18: =IF($J$54="Yes",$AN$50,"") ->  | AQ18: =IF($J$54="Yes",$AQ$50,"") ->  | AS18: =IF($J$54="Yes",$AV$50,"") ->  | AU18: =IF($J$54="Yes",$AT$50,"") ->  | AZ18: =IF($J$54="Yes",$AZ$50,"") ->  | BB18: =IF($J$54="Yes",$BB$50,"") ->  | BD18: =IF($J$54="Yes",$BD$50,0) -> 0 | BH18: =BH50 ->  | BI18: =BI50 ->  | BJ18: =BJ50 ->  | BK18: =BK50 ->  | BL18: =BL50 ->  | BN18: =BM50 ->  | BO18: =IF(AND($J$54="No",$AA$6="NO"),0,($BO$50*1000)/($Y$50*10)) -> 
C19: Allocation per day | G19: =IF(OR(G15="",G16="",G17="",O6=""),"",((G15-G16)*G17)/O6) ->  | H19: kg DM/cow | J19: 12 | K19: kg DM/cow | Y19: diff | Z19: =IF($J$54="Yes",$Z$18-$Z$14,"") ->  | AB19: =IF($J$54="Yes",$AB$18-$AB$14,"") -> 
R21: =IF(L14>0,L14,J14) -> 
B23: ENERGY SUPPLY | J23: ALLOCATION | L23: ALLOCATION | Z23: ENERGY | AJ23: COMPOSITION | AS23: COST OF FEED | AY23: CRUDE PROTEIN BREAKDOWN | BH23: MINERALS
J24: OPTION 1 | L24: OPTION 2 | O24: Feed cost | AB24: ME | AD24: Crude protein | AG24: NDF | AJ24: SSS | AM24: Starch | AP24: Fat | AS24: Wt | AT24: Eaten | AU24: Eaten | AV24: Cost | AZ24: UDP | BB24: Soluable | BD24: RDP | BH24: Na | BI24: K | BJ24: Cl | BK24: S | BL24: Mg | BM24: Ca | BN24: P | BO24: DCAD
C25: FEED TYPE | E25: FEED | G25: FEEDING METHOD | J25: Kg DM/cow | L25: KgDM/cow | O25: $/tonne | X25: Util. | Y25: Eaten | Z25: ME | AA25: DM% | AB25: in diet | AD25: % DM | AE25: % diet | AG25: % DM | AH25: % diet | AJ25: % DM | AK25: % diet | AM25: % S | AN25: % diet | AP25: % DM | AQ25: % diet | AS25: Wet/Dry | AT25: c/kg DM | AU25: c/MJ ME | AV25: $/Cow | AZ25: % DM | BB25: % DM | BD25: % DM | BH25: %DM | BI25: %DM | BJ25: %DM | BK25: %DM | BL25: %DM | BM25: %DM | BN25: %DM | BO25: meq/100g DM | BZ25: UDP | CA25: Sol. | CB25: RDP
C27: PASTURE | E27: =$G$14 -> Pasture autumn and winter | G27: - | J27: =IF(J19="",G19,J19) -> 12 | R27: =IF(OR($C27="-",$G27="-",$J27<=0,$J$53="No"),"",$J27) ->  | S27: =IF(OR($C27="-",$G27="-",$J$53="No"),0,1) -> 0 | V27: =E27 -> Pasture autumn and winter | W27: Opt.1 | X27: =IF(OR($E27="-",$G27="-",$J27="",$J$53="No"),"",VLOOKUP($G27,'Data source'!$B$122:$C$124,2,FALSE)) ->  | Y27: =IF(OR($E27="-",$G27="-",$J27="",$J$53="No"),"",J27*X27) ->  | Z27: =IF(OR($E27="-",$G27="-",$J27="",$J$53="No"),"",$R$21) ->  | AA27: =IF(OR($E27="-",$G27="-",$J27="",$J$53="No"),"",VLOOKUP($E27,'Data source'!$B$4:$I$12,2,FALSE)) ->  | AB27: =IF(OR($E27="-",$G27="-",$J27="",$J$53="No"),"",Y27*Z27) ->  | AD27: =IF(OR($E27="-",$G27="-",$J27="",$J$53="No"),"",VLOOKUP($E27,'Data source'!$B$4:$I$12,4,FALSE)) ->  | AE27: =IF(OR($E27="-",$G27="-",$J27="",$J$53="No"),"",(($Y27/$Y$49)*AD27)) ->  | AG27: =IF(OR($E27="-",$G27="-",$J27="",$J$53="No"),"",VLOOKUP($E27,'Data source'!$B$4:$I$12,5,FALSE)) ->  | AH27: =IF(OR($E27="-",$G27="-",$J27="",$J$53="No"),"",(($Y27/$Y$49)*AG27)) ->  | AJ27: =IF(OR($E27="-",$G27="-",$J27="",$J$53="No"),"",VLOOKUP($E27,'Data source'!$B$4:$I$12,6,FALSE)) ->  | AK27: =IF(OR($E27="-",$G27="-",$J27="",$J$53="No"),"",(($Y27/$Y$49)*AJ27)) ->  | AM27: =IF(OR($E27="-",$G27="-",$J27="",$J$53="No"),"",VLOOKUP($E27,'Data source'!$B$4:$I$12,7,FALSE)) ->  | AN27: =IF(OR($E27="-",$G27="-",$J27="",$J$53="No"),"",(($Y27/$Y$49)*AM27)) ->  | AP27: =IF(OR($E27="-",$G27="-",$J27="",$J$53="No"),"",VLOOKUP($E27,'Data source'!$B$4:$I$12,8,FALSE)) ->  | AQ27: =IF(OR($E27="-",$G27="-",$J27="",$J$53="No"),"",(AP27/100*AN27)*($Y27/$Y$49)) ->  | AS27: =IF(OR($E27="-",$G27="-",$J27="",$J$53="No"),"",VLOOKUP($E27,'Data source'!$B$4:$M$12,12,FALSE)) ->  | AT27: =IF(OR($E27="-",$G27="-",$J27="",$J$53="No"),"",IF($AS27="Dry",$O27/$X27/10,IF($AS27="Wet",$O27/($AA27/100)*$X27/10,0))) ->  | AU27: =IF(OR($E27="-",$G27="-",$J27="",$J$53="No"),"",AT27/Z27) ->  | AV27: =IF(OR($E27="-",$G27="-",$J27="",$J$53="No"),"",($AT27*$J27)/100) ->  | AZ27: =IF(OR($E27="-",$G27="-",$J27="",$J$53="No",$AA$8="No"),"",VLOOKUP($E27,'Data source'!$B$4:$M$12,9,FALSE)) ->  | BB27: =IF(OR($E27="-",$G27="-",$J27<="",$J$53="No",$AA$8="No"),"",VLOOKUP($E27,'Data source'!$B$4:$M$12,10,FALSE)) ->  | BD27: =IF(OR($E27="-",$G27="-",$J27="",$J$53="No",$AA$8="No"),"",VLOOKUP($E27,'Data source'!$B$4:$M$12,11,FALSE)) ->  | BH27: =IF(OR($E27="-",$G27="-",$J27="",$J$53="No"),0,VLOOKUP($E27,'Data source'!$B$4:$T$12,13,FALSE)) -> 0 | BI27: =IF(OR($E27="-",$G27="-",$J27="",$J$53="No"),0,VLOOKUP($E27,'Data source'!$B$4:$T$12,14,FALSE)) -> 0 | BJ27: =IF(OR($E27="-",$G27="-",$J27="",$J$53="No"),0,VLOOKUP($E27,'Data source'!$B$4:$T$12,15,FALSE)) -> 0 | BK27: =IF(OR($E27="-",$G27="-",$J27="",$J$53="No"),0,VLOOKUP($E27,'Data source'!$B$4:$T$12,16,FALSE)) -> 0 | BL27: =IF(OR($E27="-",$G27="-",$J27="",$J$53="No"),0,VLOOKUP($E27,'Data source'!$B$4:$T$12,17,FALSE)) -> 0 | BM27: =IF(OR($E27="-",$G27="-",$J27="",$J$53="No"),0,VLOOKUP($E27,'Data source'!$B$4:$T$12,18,FALSE)) -> 0 | BN27: =IF(OR($E27="-",$G27="-",$J27="",$J$53="No"),0,VLOOKUP($E27,'Data source'!$B$4:$T$12,19,FALSE)) -> 0 | BO27: =IF(OR($E27="-",$G27="-",$J27="",$J$53="No"),0,(((43.498*$BH27)+(25.574*$BI27))-((28.206*$BJ27)+(62.375*$BK27)))*$Y27*10/1000) -> 0 | BZ27: =IF($AZ27="",0,$AZ27*$AE27) -> 0 | CA27: =IF($BB27="",0,$BB27*$AE27) -> 0 | CB27: =IF($BD27="",0,$BD27*$AE27) -> 0
R28: =IF(OR($C27="-",$G27="-",$L28<=0,$J$54="No"),"",$L28) ->  | W28: Opt.2 | X28: =IF(OR($E27="-",$G27="-",$L28<=0,$J$54="No",$AA$6="NO"),"",VLOOKUP($G27,'Data source'!$B$122:$C$124,2,FALSE)) ->  | Y28: =IF(OR($E27="-",$G27="-",$L28<=0,$J$54="No",$AA$6="NO"),0,$L28*$X28) -> 0 | Z28: =IF(OR($E27="-",$G27="-",$L28<=0,$J$54="No",$AA$6="NO"),"",$R$21) ->  | AA28: =IF(OR($E27="-",$G27="-",$L28<=0,$J$54="No",$AA$6="NO"),"",VLOOKUP($E$27,'Data source'!$B$4:$I$12,2,FALSE)) ->  | AB28: =IF(OR($E27="-",$G27="-",$L28<=0,$J$54="No",$AA$6="NO"),"",$Y28*$Z28) ->  | AD28: =IF(OR($E27="-",$G27="-",$L28<=0,$J$54="No",$AA$6="NO"),"",VLOOKUP($E$27,'Data source'!$B$4:$I$12,4,FALSE)) ->  | AE28: =IF(OR($E27="-",$G27="-",$L28<=0,$J$54="No",$AA$6="NO"),"",(($Y28/$Y$50)*$AD28)) ->  | AG28: =IF(OR($E27="-",$G27="-",$L28<=0,$J$54="No",$AA$6="NO"),"",VLOOKUP($E$27,'Data source'!$B$4:$I$12,5,FALSE)) ->  | AH28: =IF(OR($E27="-",$G27="-",$L28<=0,$J$54="No",$AA$6="NO"),"",(($Y28/$Y$50)*AG28)) ->  | AJ28: =IF(OR($E27="-",$G27="-",$L28<=0,$J$54="No",$AA$6="NO"),"",VLOOKUP($E$27,'Data source'!$B$4:$I$12,6,FALSE)) ->  | AK28: =IF(OR($E7="-",$G27="-",$L28<=0,$J$54="No",$AA$6="NO"),"",(($Y28/$Y$50)*AJ28)) ->  | AM28: =IF(OR($E27="-",$G27="-",$L28<=0,$J$54="No",$AA$6="NO"),"",VLOOKUP($E$27,'Data source'!$B$4:$I$12,7,FALSE)) ->  | AN28: =IF(OR($E27="-",$G27="-",$L28<=0,$J$54="No",$AA$6="NO"),"",(($Y28/$Y$50)*AM28)) ->  | AP28: =IF(OR($E27="-",$G27="-",$L28<=0,$J$54="No",$AA$6="NO"),"",VLOOKUP($E$27,'Data source'!$B$4:$I$12,8,FALSE)) ->  | AQ28: =IF(OR($E27="-",$G27="-",$L28<=0,$J$54="No",$AA$6="NO"),"",(AP28/100*AN28)*($Y28/$Y$50)) ->  | AS28: =IF(OR($E27="-",$G27="-",$L28<=0,$J$55="No",$AA$6="NO"),"",VLOOKUP($E27,'Data source'!$B$4:$M$12,12,FALSE)) ->  | AT28: =IF(OR($E27="-",$G27="-",$L28<=0,$J$55="No",$AA$6="NO"),"",IF($AS28="Dry",$O27/$X28/10,IF($AS28="Wet",$O27/($AA28/100)*$X28/10,0))) ->  | AU28: =IF(OR($E27="-",$G27="-",$L28<=0,$J$55="No",$AA$6="NO"),"",AT28/Z28) ->  | AV28: =IF(OR($E27="-",$G27="-",$L28<=0,$J$55="No",$AA$6="NO"),"",($AT28*$L28)/100) ->  | AZ28: =IF(OR($E27="-",$G27="-",$L28<=0,$J$54="No",$AA$6="NO"),"",VLOOKUP($E27,'Data source'!$B$4:$M$12,9,FALSE)) ->  | BB28: =IF(OR($E27="-",$G27="-",$L28<=0,$J$54="No",$AA$6="NO"),"",VLOOKUP($E27,'Data source'!$B$4:$M$12,10,FALSE)) ->  | BD28: =IF(OR($E27="-",$G27="-",$L28<=0,$J$54="No",$AA$6="NO"),"",VLOOKUP($E27,'Data source'!$B$4:$M$12,11,FALSE)) ->  | BH28: =IF(OR($E27="-",$G27="-",$L28<=0,$J$54="No",$AA$6="NO"),0,VLOOKUP($E$27,'Data source'!$B$4:$T$12,13,FALSE)) -> 0 | BI28: =IF(OR($E27="-",$G27="-",$L28<=0,$J$54="No",$AA$6="NO"),0,VLOOKUP($E$27,'Data source'!$B$4:$T$12,14,FALSE)) -> 0 | BJ28: =IF(OR($E27="-",$G27="-",$L28<=0,$J$54="No",$AA$6="NO"),0,VLOOKUP($E$27,'Data source'!$B$4:$T$12,15,FALSE)) -> 0 | BK28: =IF(OR($E27="-",$G27="-",$L28<=0,$J$54="No",$AA$6="NO"),0,VLOOKUP($E$27,'Data source'!$B$4:$T$12,16,FALSE)) -> 0 | BL28: =IF(OR($E27="-",$G27="-",$L28<=0,$J$54="No",$AA$6="NO"),0,VLOOKUP($E$27,'Data source'!$B$4:$T$12,17,FALSE)) -> 0 | BM28: =IF(OR($E27="-",$G27="-",$L28<=0,$J$54="No",$AA$6="NO"),0,VLOOKUP($E$27,'Data source'!$B$4:$T$12,18,FALSE)) -> 0 | BN28: =IF(OR($E27="-",$G27="-",$L28<=0,$J$54="No",$AA$6="NO"),0,VLOOKUP($E$27,'Data source'!$B$4:$T$12,19,FALSE)) -> 0 | BO28: =IF(OR($E27="-",$G27="-",$L28<=0,$J$54="No",$AA$6="NO"),0,((43.498*$BH28)+(25.574*$BI28))-((28.206*$BJ28)+(62.375*$BK28)))*$Y28*10/1000 -> 0 | BZ28: =IF($AZ28="",0,$AZ28*$AE28) -> 0 | CA28: =IF($BB28="",0,$BB28*$AE28) -> 0 | CB28: =IF($BD28="",0,$BD28*$AE28) -> 0
C30: =IF(' ASK '!W8="","",' ASK '!W8) -> Hay_Silage | E30: =IF(' ASK '!Y8="","",' ASK '!Y8) -> Hay pasture good | G30: - | R30: =IF(OR($E30="-",$G30="-",$J30<=0,$J$53="No"),"",$J30) ->  | S30: =IF(OR($E30="-",$G30="-",$J$53="No"),0,1) -> 0 | V30: =E30 -> Hay pasture good | W30: Opt.1 | X30: =IF(OR($E30="-",$G30="-",$J30<=0,$J$53="No"),"",VLOOKUP($G30,'Data source'!$B$128:$C$137,2,FALSE)) ->  | Y30: =IF(OR($E30="-",$G30="-",$J30<=0,$J$53="No"),0,J30*X30) -> 0 | Z30: =IF(OR($E30="-",$G30="-",$J30<=0,$J$53="No"),"",$R$21) ->  | AA30: =IF(OR($E30="-",$G30="-",$J30<=0,$J$53="No"),"",VLOOKUP($E30,'Data source'!$B$15:$I$99,2,FALSE)) ->  | AB30: =IF(OR($E30="-",$G30="-",$J30<=0,$J$53="No"),"",Y30*Z30) ->  | AD30: =IF(OR($E30="-",$G30="-",$J30<=0,$J$53="No"),"",VLOOKUP($E30,'Data source'!$B$15:$I$99,4,FALSE)) ->  | AE30: =IF(OR($E30="-",$G30="-",$J30<=0,$J$53="No"),"",(($Y30/$Y$49)*AD30)) ->  | AG30: =IF(OR($E30="-",$G30="-",$J30<=0,$J$53="No"),"",VLOOKUP($E30,'Data source'!$B$15:$I$99,5,FALSE)) ->  | AH30: =IF(OR($E30="-",$G30="-",$J30<=0,$J$53="No"),"",(($Y30/$Y$49)*AG30)) ->  | AJ30: =IF(OR($E30="-",$G30="-",$J30<=0,$J$53="No"),"",VLOOKUP($E30,'Data source'!$B$15:$I$99,6,FALSE)) ->  | AK30: =IF(OR($E30="-",$G30="-",$J30<=0,$J$53="No"),"",(($Y30/$Y$49)*AJ30)) ->  | AM30: =IF(OR($E30="-",$G30="-",$J30<=0,$J$53="No"),"",VLOOKUP($E30,'Data source'!$B$15:$I$99,7,FALSE)) ->  | AN30: =IF(OR($E30="-",$G30="-",$J30<=0,$J$53="No"),"",(($Y30/$Y$49)*AM30)) ->  | AP30: =IF(OR($E30="-",$G30="-",$J30<=0,$J$53="No"),"",VLOOKUP($E30,'Data source'!$B$15:$I$99,8,FALSE)) ->  | AQ30: =IF(OR($E30="-",$G30="-",$J30="",$J$53="No"),"",(AP30/100*AN30)*($Y30/$Y$49)) ->  | AS30: =IF(OR($E30="-",$G30="-",$J30<=0,$J$53="No"),"",VLOOKUP($E30,'Data source'!$B$15:$M$99,12,FALSE)) ->  | AT30: =IF(OR($E30="-",$G30="-",$J30<=0,$J$53="No"),"",IF($AS30="Dry",$O30/$X30/10,IF($AS30="Wet",$O30/($AA30/100)*$X30/10,0))) ->  | AU30: =IF(OR($E30="-",$G30="-",$J30<=0,$J$53="No"),"",AT30/Z30) ->  | AV30: =IF(OR($E30="-",$G30="-",$J30<=0,$J$53="No"),"",($AT30*$J30)/100) ->  | AZ30: =IF(OR($E30="-",$G30="-",$J30<=0,$J$53="No"),"",VLOOKUP($E30,'Data source'!$B$12:$M$99,9,FALSE)) ->  | BB30: =IF(OR($E30="-",$G30="-",$J30<=0,$J$53="No"),"",VLOOKUP($E30,'Data source'!$B$12:$M$99,10,FALSE)) ->  | BD30: =IF(OR($E30="-",$G30="-",$J30<=0,$J$53="No"),"",VLOOKUP($E30,'Data source'!$B$12:$M$99,11,FALSE)) ->  | BH30: =IF(OR($E30="-",$G30="-",$J30<=0,$J$53="No"),0,VLOOKUP($E30,'Data source'!$B$15:$T$99,13,FALSE)) -> 0 | BI30: =IF(OR($E30="-",$G30="-",$J30<=0,$J$53="No"),0,VLOOKUP($E30,'Data source'!$B$15:$T$99,14,FALSE)) -> 0 | BJ30: =IF(OR($E30="-",$G30="-",$J30<=0,$J$53="No"),0,VLOOKUP($E30,'Data source'!$B$15:$T$99,15,FALSE)) -> 0 | BK30: =IF(OR($E30="-",$G30="-",$J30<=0,$J$53="No"),0,VLOOKUP($E30,'Data source'!$B$15:$T$99,16,FALSE)) -> 0 | BL30: =IF(OR($E30="-",$G30="-",$J30<=0,$J$53="No"),0,VLOOKUP($E30,'Data source'!$B$15:$T$99,17,FALSE)) -> 0 | BM30: =IF(OR($E30="-",$G30="-",$J30<=0,$J$53="No"),0,VLOOKUP($E30,'Data source'!$B$15:$T$99,18,FALSE)) -> 0 | BN30: =IF(OR($E30="-",$G30="-",$J30<=0,$J$53="No"),0,VLOOKUP($E30,'Data source'!$B$15:$T$99,19,FALSE)) -> 0 | BO30: =IF(OR($E30="-",$G30="-",$J30<=0,$J$53="No"),0,((43.498*$BH30)+(25.574*$BI30))-((28.206*$BJ30)+(62.375*$BK30)))*$Y30*10/1000 -> 0 | BZ30: =IF($AZ30="",0,$AZ30*$AE30) -> 0 | CA30: =IF($BB30="",0,$BB30*$AE30) -> 0 | CB30: =IF($BD30="",0,$BD30*$AE30) -> 0
R31: =IF(OR($E30="-",$G30="-",$L31<=0,$J$54="No"),"",$L31) ->  | W31: Opt.2 | X31: =IF(OR($E30="-",$G30="-",$L31<=0,$J$54="No",$AA$6="NO"),"",VLOOKUP($G30,'Data source'!$B$128:$C$137,2,FALSE)) ->  | Y31: =IF(OR($E30="-",$G30="-",$L31<=0,$J$54="No",$AA$6="NO"),0,$L31*$X31) -> 0 | Z31: =IF(OR($E30="-",$G30="-",$L31<=0,$J$54="No",$AA$6="NO"),"",$R$21) ->  | AA31: =IF(OR($E30="-",$G30="-",$L31<=0,$J$54="No",$AA$6="NO"),"",VLOOKUP($E30,'Data source'!$B$12:$I$99,2,FALSE)) ->  | AB31: =IF(OR($E30="-",$G30="-",$L31<=0,$J$54="No",$AA$6="NO"),"",$Y31*$Z31) ->  | AD31: =IF(OR($E30="-",$G30="-",$L31<=0,$J$54="No",$AA$6="NO"),"",VLOOKUP($E30,'Data source'!$B$12:$I$99,4,FALSE)) ->  | AE31: =IF(OR($E30="-",$G30="-",$L31<=0,$J$54="No",$AA$6="NO"),"",(($Y31/$Y$50)*$AD31)) ->  | AG31: =IF(OR($E30="-",$G30="-",$L31<=0,$J$54="No",$AA$6="NO"),"",VLOOKUP($E30,'Data source'!$B$12:$I$99,5,FALSE)) ->  | AH31: =IF(OR($E30="-",$G30="-",$L31<=0,$J$54="No",$AA$6="NO"),"",(($Y31/$Y$50)*AG31)) ->  | AJ31: =IF(OR($E30="-",$G30="-",$L31<=0,$J$54="No",$AA$6="NO"),"",VLOOKUP($E30,'Data source'!$B$12:$I$99,6,FALSE)) ->  | AK31: =IF(OR($E30="-",$G30="-",$L31<=0,$J$54="No",$AA$6="NO"),"",(($Y31/$Y$50)*AJ31)) ->  | AM31: =IF(OR($E30="-",$G30="-",$L31<=0,$J$54="No",$AA$6="NO"),"",VLOOKUP($E30,'Data source'!$B$12:$I$99,7,FALSE)) ->  | AN31: =IF(OR($E30="-",$G30="-",$L31<=0,$J$54="No",$AA$6="NO"),"",(($Y31/$Y$50)*AM31)) ->  | AP31: =IF(OR($E30="-",$G30="-",$L31<=0,$J$54="No",$AA$6="NO"),"",VLOOKUP($E30,'Data source'!$B$12:$I$99,8,FALSE)) ->  | AQ31: =IF(OR($E30="-",$G30="-",$L31<=0,$J$54="No",$AA$6="NO"),"",(AP31/100*AN31)*($Y31/$Y$50)) ->  | AS31: =IF(OR($E30="-",$G30="-",$L31<=0,$J$54="No",$AA$6="NO"),"",VLOOKUP($E30,'Data source'!$B$15:$M$99,12,FALSE)) ->  | AT31: =IF(OR($E30="-",$G30="-",$L31<=0,$J$54="No",$AA$6="NO"),"",IF($AS31="Dry",$O30/$X31/10,IF($AS31="Wet",$O30/($AA31/100)*$X31/10,0))) ->  | AU31: =IF(OR($E30="-",$G30="-",$L31<=0,$J$54="No",$AA$6="NO"),"",IF(OR($H17="-",$Q31="-",$L31=0),"",AT31/Z31)) ->  | AV31: =IF(OR($E30="-",$G30="-",$L31<=0,$J$54="No",$AA$6="NO"),"",IF(OR($H17="-",$Q31="-",$L31=0),"",($AT31*$L31)/100)) ->  | AZ31: =IF(OR($E30="-",$G30="-",$L31<=0,$J$54="No",$AA$6="NO"),"",VLOOKUP($E30,'Data source'!$B$15:$M$99,9,FALSE)) ->  | BB31: =IF(OR($E30="-",$G30="-",$L31<=0,$J$54="No",$AA$6="NO"),"",VLOOKUP($E30,'Data source'!$B$15:$M$99,10,FALSE)) ->  | BD31: =IF(OR($E30="-",$G30="-",$L31<=0,$J$54="No",$AA$6="NO"),"",VLOOKUP($E30,'Data source'!$B$15:$M$99,11,FALSE)) ->  | BH31: =IF(OR($E30="-",$G30="-",$L31<=0,$J$54="No",$AA$6="NO"),0,VLOOKUP($E30,'Data source'!$B$15:$T$99,13,FALSE)) -> 0 | BI31: =IF(OR($E30="-",$G30="-",$L31<=0,$J$54="No",$AA$6="NO"),0,VLOOKUP($E30,'Data source'!$B$15:$T$99,14,FALSE)) -> 0 | BJ31: =IF(OR($E30="-",$G30="-",$L31<=0,$J$54="No",$AA$6="NO"),0,VLOOKUP($E30,'Data source'!$B$15:$T$99,15,FALSE)) -> 0 | BK31: =IF(OR($E30="-",$G30="-",$L31<=0,$J$54="No",$AA$6="NO"),0,VLOOKUP($E30,'Data source'!$B$15:$T$99,16,FALSE)) -> 0 | BL31: =IF(OR($E30="-",$G30="-",$L31<=0,$J$54="No",$AA$6="NO"),0,VLOOKUP($E30,'Data source'!$B$15:$T$99,17,FALSE)) -> 0 | BM31: =IF(OR($E30="-",$G30="-",$L31<=0,$J$54="No",$AA$6="NO"),0,VLOOKUP($E30,'Data source'!$B$15:$T$99,18,FALSE)) -> 0 | BN31: =IF(OR($E30="-",$G30="-",$L31<=0,$J$54="No",$AA$6="NO"),0,VLOOKUP($E30,'Data source'!$B$15:$T$99,19,FALSE)) -> 0 | BO31: =IF(OR($E30="-",$G30="-",$L31<=0,$J$54="No",$AA$6="NO"),0,((43.498*$BH31)+(25.574*$BI31))-((28.206*$BJ31)+(62.375*$BK31)))*$Y31*10/1000 -> 0 | BZ31: =IF($AZ31="",0,$AZ31*$AE31) -> 0 | CA31: =IF($BB31="",0,$BB31*$AE31) -> 0 | CB31: =IF($BD31="",0,$BD31*$AE31) -> 0
C33: =IF(' ASK '!W11="","",' ASK '!W11) -> Concentrates | E33: =IF(' ASK '!Y11="","",' ASK '!Y11) -> Barley | G33: - | R33: =IF(OR($C33="-",$G33="-",$J33<=0,$J$53="No"),"",$J33) ->  | S33: =IF(OR($C33="-",$G33="-",$J$53="No"),0,1) -> 0 | V33: =C33 -> Concentrates | W33: Opt.1 | X33: =IF(OR($E33="-",$G33="-",$J33<=0,$J$53="No"),"",VLOOKUP($G33,'Data source'!$B$128:$C$137,2,FALSE)) ->  | Y33: =IF(OR($E33="-",$G33="-",$J33<=0,$J$53="No"),0,J33*X33) -> 0 | Z33: =IF(OR($E33="-",$G33="-",$J33<=0,$J$53="No"),"",$R$21) ->  | AA33: =IF(OR($E33="-",$G33="-",$J33<=0,$J$53="No"),"",VLOOKUP($E33,'Data source'!$B$15:$I$99,2,FALSE)) ->  | AB33: =IF(OR($E33="-",$G33="-",$J33<=0,$J$53="No"),"",Y33*Z33) ->  | AD33: =IF(OR($E33="-",$G33="-",$J33<=0,$J$53="No"),"",VLOOKUP($E33,'Data source'!$B$15:$I$99,4,FALSE)) ->  | AE33: =IF(OR($E33="-",$G33="-",$J33<=0,$J$53="No"),"",(($Y33/$Y$49)*AD33)) ->  | AG33: =IF(OR($E33="-",$G33="-",$J33<=0,$J$53="No"),"",VLOOKUP($E33,'Data source'!$B$15:$I$99,5,FALSE)) ->  | AH33: =IF(OR($E33="-",$G33="-",$J33<=0,$J$53="No"),"",(($Y33/$Y$49)*AG33)) ->  | AJ33: =IF(OR($E33="-",$G33="-",$J33<=0,$J$53="No"),"",VLOOKUP($E33,'Data source'!$B$15:$I$99,6,FALSE)) ->  | AK33: =IF(OR($E33="-",$G33="-",$J33<=0,$J$53="No"),"",(($Y33/$Y$49)*AJ33)) ->  | AM33: =IF(OR($E33="-",$G33="-",$J33<=0,$J$53="No"),"",VLOOKUP($E33,'Data source'!$B$15:$I$99,7,FALSE)) ->  | AN33: =IF(OR($E33="-",$G33="-",$J33<=0,$J$53="No"),"",(($Y33/$Y$49)*AM33)) ->  | AP33: =IF(OR($E33="-",$G33="-",$J33<=0,$J$53="No"),"",VLOOKUP($E33,'Data source'!$B$15:$I$99,8,FALSE)) ->  | AQ33: =IF(OR($E33="-",$G33="-",$J33="",$J$53="No"),"",(AP33/100*AN33)*($Y33/$Y$49)) ->  | AS33: =IF(OR($E33="-",$G33="-",$J33<=0,$J$53="No"),"",VLOOKUP($E33,'Data source'!$B$15:$M$99,12,FALSE)) ->  | AT33: =IF(OR($E33="-",$G33="-",$J33<=0,$J$53="No"),"",IF($AS33="Dry",$O33/$X33/10,IF($AS33="Wet",$O33/($AA33/100)*$X33/10,0))) ->  | AU33: =IF(OR($E33="-",$G33="-",$J33<=0,$J$53="No"),"",AT33/Z33) ->  | AV33: =IF(OR($E33="-",$G33="-",$J33<=0,$J$53="No"),"",($AT33*$J33)/100) ->  | AZ33: =IF(OR($E33="-",$G33="-",$J33<=0,$J$53="No"),"",VLOOKUP($E33,'Data source'!$B$12:$M$99,9,FALSE)) ->  | BB33: =IF(OR($E33="-",$G33="-",$J33<=0,$J$53="No"),"",VLOOKUP($E33,'Data source'!$B$12:$M$99,10,FALSE)) ->  | BD33: =IF(OR($E33="-",$G33="-",$J33<=0,$J$53="No"),"",VLOOKUP($E33,'Data source'!$B$12:$M$99,11,FALSE)) ->  | BH33: =IF(OR($E33="-",$G33="-",$J33<=0,$J$53="No"),0,VLOOKUP($E33,'Data source'!$B$15:$T$99,13,FALSE)) -> 0 | BI33: =IF(OR($E33="-",$G33="-",$J33<=0,$J$53="No"),0,VLOOKUP($E33,'Data source'!$B$15:$T$99,14,FALSE)) -> 0 | BJ33: =IF(OR($E33="-",$G33="-",$J33<=0,$J$53="No"),0,VLOOKUP($E33,'Data source'!$B$15:$T$99,15,FALSE)) -> 0 | BK33: =IF(OR($E33="-",$G33="-",$J33<=0,$J$53="No"),0,VLOOKUP($E33,'Data source'!$B$15:$T$99,16,FALSE)) -> 0 | BL33: =IF(OR($E33="-",$G33="-",$J33<=0,$J$53="No"),0,VLOOKUP($E33,'Data source'!$B$15:$T$99,17,FALSE)) -> 0 | BM33: =IF(OR($E33="-",$G33="-",$J33<=0,$J$53="No"),0,VLOOKUP($E33,'Data source'!$B$15:$T$99,18,FALSE)) -> 0 | BN33: =IF(OR($E33="-",$G33="-",$J33<=0,$J$53="No"),0,VLOOKUP($E33,'Data source'!$B$15:$T$99,19,FALSE)) -> 0 | BO33: =IF(OR($E33="-",$G33="-",$J33<=0,$J$53="No"),0,((43.498*$BH33)+(25.574*$BI33))-((28.206*$BJ33)+(62.375*$BK33)))*$Y33*10/1000 -> 0 | BZ33: =IF($AZ33="",0,$AZ33*$AE33) -> 0 | CA33: =IF($BB33="",0,$BB33*$AE33) -> 0 | CB33: =IF($BD33="",0,$BD33*$AE33) -> 0
R34: =IF(OR($C33="-",$G33="-",$L34<=0,$J$54="No"),"",$L34) ->  | W34: Opt.2 | X34: =IF(OR($E33="-",$G33="-",$L34<=0,$J$54="No",$AA$6="NO"),"",VLOOKUP($G33,'Data source'!$B$128:$C$137,2,FALSE)) ->  | Y34: =IF(OR($E33="-",$G33="-",$L34<=0,$J$54="No",$AA$6="NO"),0,$L34*$X34) -> 0 | Z34: =IF(OR($E33="-",$G33="-",$L34<=0,$J$54="No",$AA$6="NO"),"",$R$21) ->  | AA34: =IF(OR($E33="-",$G33="-",$L34<=0,$J$54="No",$AA$6="NO"),"",VLOOKUP($E33,'Data source'!$B$12:$I$99,2,FALSE)) ->  | AB34: =IF(OR($E33="-",$G33="-",$L34<=0,$J$54="No",$AA$6="NO"),"",$Y34*$Z34) ->  | AD34: =IF(OR($E33="-",$G33="-",$L34<=0,$J$54="No",$AA$6="NO"),"",VLOOKUP($E33,'Data source'!$B$12:$I$99,4,FALSE)) ->  | AE34: =IF(OR($E33="-",$G33="-",$L34<=0,$J$54="No",$AA$6="NO"),"",(($Y34/$Y$50)*$AD34)) ->  | AG34: =IF(OR($E33="-",$G33="-",$L34<=0,$J$54="No",$AA$6="NO"),"",VLOOKUP($E33,'Data source'!$B$12:$I$99,5,FALSE)) ->  | AH34: =IF(OR($E33="-",$G33="-",$L34<=0,$J$54="No",$AA$6="NO"),"",(($Y34/$Y$50)*AG34)) ->  | AJ34: =IF(OR($E33="-",$G33="-",$L34<=0,$J$54="No",$AA$6="NO"),"",VLOOKUP($E33,'Data source'!$B$12:$I$99,6,FALSE)) ->  | AK34: =IF(OR($E33="-",$G33="-",$L34<=0,$J$54="No",$AA$6="NO"),"",(($Y34/$Y$50)*AJ34)) ->  | AM34: =IF(OR($E33="-",$G33="-",$L34<=0,$J$54="No",$AA$6="NO"),"",VLOOKUP($E33,'Data source'!$B$12:$I$99,7,FALSE)) ->  | AN34: =IF(OR($E33="-",$G33="-",$L34<=0,$J$54="No",$AA$6="NO"),"",(($Y34/$Y$50)*AM34)) ->  | AP34: =IF(OR($E33="-",$G33="-",$L34<=0,$J$54="No",$AA$6="NO"),"",VLOOKUP($E33,'Data source'!$B$12:$I$99,8,FALSE)) ->  | AQ34: =IF(OR($E33="-",$G33="-",$L34<=0,$J$54="No",$AA$6="NO"),"",(AP34/100*AN34)*($Y34/$Y$50)) ->  | AS34: =IF(OR($E33="-",$G33="-",$L34<=0,$J$54="No",$AA$6="NO"),"",VLOOKUP($E33,'Data source'!$B$15:$M$99,12,FALSE)) ->  | AT34: =IF(OR($E33="-",$G33="-",$L34<=0,$J$54="No",$AA$6="NO"),"",IF($AS34="Dry",$O33/$X34/10,IF($AS34="Wet",$O33/($AA34/100)*$X34/10,0))) ->  | AU34: =IF(OR($E33="-",$G33="-",$L34<=0,$J$54="No",$AA$6="NO"),"",IF(OR($H20="-",$Q34="-",$L34=0),"",AT34/Z34)) ->  | AV34: =IF(OR($E33="-",$G33="-",$L34<=0,$J$54="No",$AA$6="NO"),"",IF(OR($H20="-",$Q34="-",$L34=0),"",($AT34*$L34)/100)) ->  | AZ34: =IF(OR($E33="-",$G33="-",$L34<=0,$J$54="No",$AA$6="NO"),"",VLOOKUP($E33,'Data source'!$B$15:$M$99,9,FALSE)) ->  | BB34: =IF(OR($E33="-",$G33="-",$L34<=0,$J$54="No",$AA$6="NO"),"",VLOOKUP($E33,'Data source'!$B$15:$M$99,10,FALSE)) ->  | BD34: =IF(OR($E33="-",$G33="-",$L34<=0,$J$54="No",$AA$6="NO"),"",VLOOKUP($E33,'Data source'!$B$15:$M$99,11,FALSE)) ->  | BH34: =IF(OR($E33="-",$G33="-",$L34<=0,$J$54="No",$AA$6="NO"),0,VLOOKUP($E33,'Data source'!$B$15:$T$99,13,FALSE)) -> 0 | BI34: =IF(OR($E33="-",$G33="-",$L34<=0,$J$54="No",$AA$6="NO"),0,VLOOKUP($E33,'Data source'!$B$15:$T$99,14,FALSE)) -> 0 | BJ34: =IF(OR($E33="-",$G33="-",$L34<=0,$J$54="No",$AA$6="NO"),0,VLOOKUP($E33,'Data source'!$B$15:$T$99,15,FALSE)) -> 0 | BK34: =IF(OR($E33="-",$G33="-",$L34<=0,$J$54="No",$AA$6="NO"),0,VLOOKUP($E33,'Data source'!$B$15:$T$99,16,FALSE)) -> 0 | BL34: =IF(OR($E33="-",$G33="-",$L34<=0,$J$54="No",$AA$6="NO"),0,VLOOKUP($E33,'Data source'!$B$15:$T$99,17,FALSE)) -> 0 | BM34: =IF(OR($E33="-",$G33="-",$L34<=0,$J$54="No",$AA$6="NO"),0,VLOOKUP($E33,'Data source'!$B$15:$T$99,18,FALSE)) -> 0 | BN34: =IF(OR($E33="-",$G33="-",$L34<=0,$J$54="No",$AA$6="NO"),0,VLOOKUP($E33,'Data source'!$B$15:$T$99,19,FALSE)) -> 0 | BO34: =IF(OR($E33="-",$G33="-",$L34<=0,$J$54="No",$AA$6="NO"),0,((43.498*$BH34)+(25.574*$BI34))-((28.206*$BJ34)+(62.375*$BK34)))*$Y34*10/1000 -> 0 | BZ34: =IF($AZ34="",0,$AZ34*$AE34) -> 0 | CA34: =IF($BB34="",0,$BB34*$AE34) -> 0 | CB34: =IF($BD34="",0,$BD34*$AE34) -> 0
C36: =IF(' ASK '!W14="","",' ASK '!W14) -> Forages | E36: =IF(' ASK '!Y14="","",' ASK '!Y14) -> Chicory | G36: - | R36: =IF(OR($C36="-",$G36="-",$J36<=0,$J$53="No"),"",$J36) ->  | S36: =IF(OR($C36="-",$G36="-",$J$53="No"),0,1) -> 0 | V36: =C36 -> Forages | W36: Opt.1 | X36: =IF(OR($E36="-",$G36="-",$J36<=0,$J$53="No"),"",VLOOKUP($G36,'Data source'!$B$128:$C$137,2,FALSE)) ->  | Y36: =IF(OR($E36="-",$G36="-",$J36<=0,$J$53="No"),0,J36*X36) -> 0 | Z36: =IF(OR($E36="-",$G36="-",$J36<=0,$J$53="No"),"",$R$21) ->  | AA36: =IF(OR($E36="-",$G36="-",$J36<=0,$J$53="No"),"",VLOOKUP($E36,'Data source'!$B$15:$I$99,2,FALSE)) ->  | AB36: =IF(OR($E36="-",$G36="-",$J36<=0,$J$53="No"),"",Y36*Z36) ->  | AD36: =IF(OR($E36="-",$G36="-",$J36<=0,$J$53="No"),"",VLOOKUP($E36,'Data source'!$B$15:$I$99,4,FALSE)) ->  | AE36: =IF(OR($E36="-",$G36="-",$J36<=0,$J$53="No"),"",(($Y36/$Y$49)*AD36)) ->  | AG36: =IF(OR($E36="-",$G36="-",$J36<=0,$J$53="No"),"",VLOOKUP($E36,'Data source'!$B$15:$I$99,5,FALSE)) ->  | AH36: =IF(OR($E36="-",$G36="-",$J36<=0,$J$53="No"),"",(($Y36/$Y$49)*AG36)) ->  | AJ36: =IF(OR($E36="-",$G36="-",$J36<=0,$J$53="No"),"",VLOOKUP($E36,'Data source'!$B$15:$I$99,6,FALSE)) ->  | AK36: =IF(OR($E36="-",$G36="-",$J36<=0,$J$53="No"),"",(($Y36/$Y$49)*AJ36)) ->  | AM36: =IF(OR($E36="-",$G36="-",$J36<=0,$J$53="No"),"",VLOOKUP($E36,'Data source'!$B$15:$I$99,7,FALSE)) ->  | AN36: =IF(OR($E36="-",$G36="-",$J36<=0,$J$53="No"),"",(($Y36/$Y$49)*AM36)) ->  | AP36: =IF(OR($E36="-",$G36="-",$J36<=0,$J$53="No"),"",VLOOKUP($E36,'Data source'!$B$15:$I$99,8,FALSE)) ->  | AQ36: =IF(OR($E36="-",$G36="-",$J36="",$J$53="No"),"",(AP36/100*AN36)*($Y36/$Y$49)) ->  | AS36: =IF(OR($E36="-",$G36="-",$J36<=0,$J$53="No"),"",VLOOKUP($E36,'Data source'!$B$15:$M$99,12,FALSE)) ->  | AT36: =IF(OR($E36="-",$G36="-",$J36<=0,$J$53="No"),"",IF($AS36="Dry",$O36/$X36/10,IF($AS36="Wet",$O36/($AA36/100)*$X36/10,0))) ->  | AU36: =IF(OR($E36="-",$G36="-",$J36<=0,$J$53="No"),"",AT36/Z36) ->  | AV36: =IF(OR($E36="-",$G36="-",$J36<=0,$J$53="No"),"",($AT36*$J36)/100) ->  | AZ36: =IF(OR($E36="-",$G36="-",$J36<=0,$J$53="No"),"",VLOOKUP($E36,'Data source'!$B$12:$M$99,9,FALSE)) ->  | BB36: =IF(OR($E36="-",$G36="-",$J36<=0,$J$53="No"),"",VLOOKUP($E36,'Data source'!$B$12:$M$99,10,FALSE)) ->  | BD36: =IF(OR($E36="-",$G36="-",$J36<=0,$J$53="No"),"",VLOOKUP($E36,'Data source'!$B$12:$M$99,11,FALSE)) ->  | BH36: =IF(OR($E36="-",$G36="-",$J36<=0,$J$53="No"),0,VLOOKUP($E36,'Data source'!$B$15:$T$99,13,FALSE)) -> 0 | BI36: =IF(OR($E36="-",$G36="-",$J36<=0,$J$53="No"),0,VLOOKUP($E36,'Data source'!$B$15:$T$99,14,FALSE)) -> 0 | BJ36: =IF(OR($E36="-",$G36="-",$J36<=0,$J$53="No"),0,VLOOKUP($E36,'Data source'!$B$15:$T$99,15,FALSE)) -> 0 | BK36: =IF(OR($E36="-",$G36="-",$J36<=0,$J$53="No"),0,VLOOKUP($E36,'Data source'!$B$15:$T$99,16,FALSE)) -> 0 | BL36: =IF(OR($E36="-",$G36="-",$J36<=0,$J$53="No"),0,VLOOKUP($E36,'Data source'!$B$15:$T$99,17,FALSE)) -> 0 | BM36: =IF(OR($E36="-",$G36="-",$J36<=0,$J$53="No"),0,VLOOKUP($E36,'Data source'!$B$15:$T$99,18,FALSE)) -> 0 | BN36: =IF(OR($E36="-",$G36="-",$J36<=0,$J$53="No"),0,VLOOKUP($E36,'Data source'!$B$15:$T$99,19,FALSE)) -> 0 | BO36: =IF(OR($E36="-",$G36="-",$J36<=0,$J$53="No"),0,((43.498*$BH36)+(25.574*$BI36))-((28.206*$BJ36)+(62.375*$BK36)))*$Y36*10/1000 -> 0 | BZ36: =IF($AZ36="",0,$AZ36*$AE36) -> 0 | CA36: =IF($BB36="",0,$BB36*$AE36) -> 0 | CB36: =IF($BD36="",0,$BD36*$AE36) -> 0
R37: =IF(OR($C36="-",$G36="-",$L37<=0,$J$54="No"),"",$L37) ->  | W37: Opt.2 | X37: =IF(OR($E36="-",$G36="-",$L37<=0,$J$54="No",$AA$6="NO"),"",VLOOKUP($G36,'Data source'!$B$128:$C$137,2,FALSE)) ->  | Y37: =IF(OR($E36="-",$G36="-",$L37<=0,$J$54="No",$AA$6="NO"),0,$L37*$X37) -> 0 | Z37: =IF(OR($E36="-",$G36="-",$L37<=0,$J$54="No",$AA$6="NO"),"",$R$21) ->  | AA37: =IF(OR($E36="-",$G36="-",$L37<=0,$J$54="No",$AA$6="NO"),"",VLOOKUP($E36,'Data source'!$B$12:$I$99,2,FALSE)) ->  | AB37: =IF(OR($E36="-",$G36="-",$L37<=0,$J$54="No",$AA$6="NO"),"",$Y37*$Z37) ->  | AD37: =IF(OR($E36="-",$G36="-",$L37<=0,$J$54="No",$AA$6="NO"),"",VLOOKUP($E36,'Data source'!$B$12:$I$99,4,FALSE)) ->  | AE37: =IF(OR($E36="-",$G36="-",$L37<=0,$J$54="No",$AA$6="NO"),"",(($Y37/$Y$50)*$AD37)) ->  | AG37: =IF(OR($E36="-",$G36="-",$L37<=0,$J$54="No",$AA$6="NO"),"",VLOOKUP($E36,'Data source'!$B$12:$I$99,5,FALSE)) ->  | AH37: =IF(OR($E36="-",$G36="-",$L37<=0,$J$54="No",$AA$6="NO"),"",(($Y37/$Y$50)*AG37)) ->  | AJ37: =IF(OR($E36="-",$G36="-",$L37<=0,$J$54="No",$AA$6="NO"),"",VLOOKUP($E36,'Data source'!$B$12:$I$99,6,FALSE)) ->  | AK37: =IF(OR($E36="-",$G36="-",$L37<=0,$J$54="No",$AA$6="NO"),"",(($Y37/$Y$50)*AJ37)) ->  | AM37: =IF(OR($E36="-",$G36="-",$L37<=0,$J$54="No",$AA$6="NO"),"",VLOOKUP($E36,'Data source'!$B$12:$I$99,7,FALSE)) ->  | AN37: =IF(OR($E36="-",$G36="-",$L37<=0,$J$54="No",$AA$6="NO"),"",(($Y37/$Y$50)*AM37)) ->  | AP37: =IF(OR($E36="-",$G36="-",$L37<=0,$J$54="No",$AA$6="NO"),"",VLOOKUP($E36,'Data source'!$B$12:$I$99,8,FALSE)) ->  | AQ37: =IF(OR($E36="-",$G36="-",$L37<=0,$J$54="No",$AA$6="NO"),"",(AP37/100*AN37)*($Y37/$Y$50)) ->  | AS37: =IF(OR($E36="-",$G36="-",$L37<=0,$J$54="No",$AA$6="NO"),"",VLOOKUP($E36,'Data source'!$B$15:$M$99,12,FALSE)) ->  | AT37: =IF(OR($E36="-",$G36="-",$L37<=0,$J$54="No",$AA$6="NO"),"",IF($AS37="Dry",$O36/$X37/10,IF($AS37="Wet",$O36/($AA37/100)*$X37/10,0))) ->  | AU37: =IF(OR($E36="-",$G36="-",$L37<=0,$J$54="No",$AA$6="NO"),"",IF(OR($H23="-",$Q37="-",$L37=0),"",AT37/Z37)) ->  | AV37: =IF(OR($E36="-",$G36="-",$L37<=0,$J$54="No",$AA$6="NO"),"",IF(OR($H23="-",$Q37="-",$L37=0),"",($AT37*$L37)/100)) ->  | AZ37: =IF(OR($E36="-",$G36="-",$L37<=0,$J$54="No",$AA$6="NO"),"",VLOOKUP($E36,'Data source'!$B$15:$M$99,9,FALSE)) ->  | BB37: =IF(OR($E36="-",$G36="-",$L37<=0,$J$54="No",$AA$6="NO"),"",VLOOKUP($E36,'Data source'!$B$15:$M$99,10,FALSE)) ->  | BD37: =IF(OR($E36="-",$G36="-",$L37<=0,$J$54="No",$AA$6="NO"),"",VLOOKUP($E36,'Data source'!$B$15:$M$99,11,FALSE)) ->  | BH37: =IF(OR($E36="-",$G36="-",$L37<=0,$J$54="No",$AA$6="NO"),0,VLOOKUP($E36,'Data source'!$B$15:$T$99,13,FALSE)) -> 0 | BI37: =IF(OR($E36="-",$G36="-",$L37<=0,$J$54="No",$AA$6="NO"),0,VLOOKUP($E36,'Data source'!$B$15:$T$99,14,FALSE)) -> 0 | BJ37: =IF(OR($E36="-",$G36="-",$L37<=0,$J$54="No",$AA$6="NO"),0,VLOOKUP($E36,'Data source'!$B$15:$T$99,15,FALSE)) -> 0 | BK37: =IF(OR($E36="-",$G36="-",$L37<=0,$J$54="No",$AA$6="NO"),0,VLOOKUP($E36,'Data source'!$B$15:$T$99,16,FALSE)) -> 0 | BL37: =IF(OR($E36="-",$G36="-",$L37<=0,$J$54="No",$AA$6="NO"),0,VLOOKUP($E36,'Data source'!$B$15:$T$99,17,FALSE)) -> 0 | BM37: =IF(OR($E36="-",$G36="-",$L37<=0,$J$54="No",$AA$6="NO"),0,VLOOKUP($E36,'Data source'!$B$15:$T$99,18,FALSE)) -> 0 | BN37: =IF(OR($E36="-",$G36="-",$L37<=0,$J$54="No",$AA$6="NO"),0,VLOOKUP($E36,'Data source'!$B$15:$T$99,19,FALSE)) -> 0 | BO37: =IF(OR($E36="-",$G36="-",$L37<=0,$J$54="No",$AA$6="NO"),0,((43.498*$BH37)+(25.574*$BI37))-((28.206*$BJ37)+(62.375*$BK37)))*$Y37*10/1000 -> 0 | BZ37: =IF($AZ37="",0,$AZ37*$AE37) -> 0 | CA37: =IF($BB37="",0,$BB37*$AE37) -> 0 | CB37: =IF($BD37="",0,$BD37*$AE37) -> 0
C39: =IF(' ASK '!W17="","",' ASK '!W17) -> By_products | E39: =IF(' ASK '!Y17="","",' ASK '!Y17) -> PKE | G39: - | R39: =IF(OR($C39="-",$G39="-",$J39<=0,$J$53="No"),"",$J39) ->  | S39: =IF(OR($C39="-",$G39="-",$J$53="No"),0,1) -> 0 | V39: =C39 -> By_products | W39: Opt.1 | X39: =IF(OR($E39="-",$G39="-",$J39<=0,$J$53="No"),"",VLOOKUP($G39,'Data source'!$B$128:$C$137,2,FALSE)) ->  | Y39: =IF(OR($E39="-",$G39="-",$J39<=0,$J$53="No"),0,J39*X39) -> 0 | Z39: =IF(OR($E39="-",$G39="-",$J39<=0,$J$53="No"),"",$R$21) ->  | AA39: =IF(OR($E39="-",$G39="-",$J39<=0,$J$53="No"),"",VLOOKUP($E39,'Data source'!$B$15:$I$99,2,FALSE)) ->  | AB39: =IF(OR($E39="-",$G39="-",$J39<=0,$J$53="No"),"",Y39*Z39) ->  | AD39: =IF(OR($E39="-",$G39="-",$J39<=0,$J$53="No"),"",VLOOKUP($E39,'Data source'!$B$15:$I$99,4,FALSE)) ->  | AE39: =IF(OR($E39="-",$G39="-",$J39<=0,$J$53="No"),"",(($Y39/$Y$49)*AD39)) ->  | AG39: =IF(OR($E39="-",$G39="-",$J39<=0,$J$53="No"),"",VLOOKUP($E39,'Data source'!$B$15:$I$99,5,FALSE)) ->  | AH39: =IF(OR($E39="-",$G39="-",$J39<=0,$J$53="No"),"",(($Y39/$Y$49)*AG39)) ->  | AJ39: =IF(OR($E39="-",$G39="-",$J39<=0,$J$53="No"),"",VLOOKUP($E39,'Data source'!$B$15:$I$99,6,FALSE)) ->  | AK39: =IF(OR($E39="-",$G39="-",$J39<=0,$J$53="No"),"",(($Y39/$Y$49)*AJ39)) ->  | AM39: =IF(OR($E39="-",$G39="-",$J39<=0,$J$53="No"),"",VLOOKUP($E39,'Data source'!$B$15:$I$99,7,FALSE)) ->  | AN39: =IF(OR($E39="-",$G39="-",$J39<=0,$J$53="No"),"",(($Y39/$Y$49)*AM39)) ->  | AP39: =IF(OR($E39="-",$G39="-",$J39<=0,$J$53="No"),"",VLOOKUP($E39,'Data source'!$B$15:$I$99,8,FALSE)) ->  | AQ39: =IF(OR($E39="-",$G39="-",$J39="",$J$53="No"),"",(AP39/100*AN39)*($Y39/$Y$49)) ->  | AS39: =IF(OR($E39="-",$G39="-",$J39<=0,$J$53="No"),"",VLOOKUP($E39,'Data source'!$B$15:$M$99,12,FALSE)) ->  | AT39: =IF(OR($E39="-",$G39="-",$J39<=0,$J$53="No"),"",IF($AS39="Dry",$O39/$X39/10,IF($AS39="Wet",$O39/($AA39/100)*$X39/10,0))) ->  | AU39: =IF(OR($E39="-",$G39="-",$J39<=0,$J$53="No"),"",AT39/Z39) ->  | AV39: =IF(OR($E39="-",$G39="-",$J39<=0,$J$53="No"),"",($AT39*$J39)/100) ->  | AZ39: =IF(OR($E39="-",$G39="-",$J39<=0,$J$53="No"),"",VLOOKUP($E39,'Data source'!$B$12:$M$99,9,FALSE)) ->  | BB39: =IF(OR($E39="-",$G39="-",$J39<=0,$J$53="No"),"",VLOOKUP($E39,'Data source'!$B$12:$M$99,10,FALSE)) ->  | BD39: =IF(OR($E39="-",$G39="-",$J39<=0,$J$53="No"),"",VLOOKUP($E39,'Data source'!$B$12:$M$99,11,FALSE)) ->  | BH39: =IF(OR($E39="-",$G39="-",$J39<=0,$J$53="No"),0,VLOOKUP($E39,'Data source'!$B$15:$T$99,13,FALSE)) -> 0 | BI39: =IF(OR($E39="-",$G39="-",$J39<=0,$J$53="No"),0,VLOOKUP($E39,'Data source'!$B$15:$T$99,14,FALSE)) -> 0 | BJ39: =IF(OR($E39="-",$G39="-",$J39<=0,$J$53="No"),0,VLOOKUP($E39,'Data source'!$B$15:$T$99,15,FALSE)) -> 0 | BK39: =IF(OR($E39="-",$G39="-",$J39<=0,$J$53="No"),0,VLOOKUP($E39,'Data source'!$B$15:$T$99,16,FALSE)) -> 0 | BL39: =IF(OR($E39="-",$G39="-",$J39<=0,$J$53="No"),0,VLOOKUP($E39,'Data source'!$B$15:$T$99,17,FALSE)) -> 0 | BM39: =IF(OR($E39="-",$G39="-",$J39<=0,$J$53="No"),0,VLOOKUP($E39,'Data source'!$B$15:$T$99,18,FALSE)) -> 0 | BN39: =IF(OR($E39="-",$G39="-",$J39<=0,$J$53="No"),0,VLOOKUP($E39,'Data source'!$B$15:$T$99,19,FALSE)) -> 0 | BO39: =IF(OR($E39="-",$G39="-",$J39<=0,$J$53="No"),0,((43.498*$BH39)+(25.574*$BI39))-((28.206*$BJ39)+(62.375*$BK39)))*$Y39*10/1000 -> 0 | BZ39: =IF($AZ39="",0,$AZ39*$AE39) -> 0 | CA39: =IF($BB39="",0,$BB39*$AE39) -> 0 | CB39: =IF($BD39="",0,$BD39*$AE39) -> 0
R40: =IF(OR($C39="-",$G39="-",$L40<=0,$J$54="No"),"",$L40) ->  | W40: Opt.2 | X40: =IF(OR($E39="-",$G39="-",$L40<=0,$J$54="No",$AA$6="NO"),"",VLOOKUP($G39,'Data source'!$B$128:$C$137,2,FALSE)) ->  | Y40: =IF(OR($E39="-",$G39="-",$L40<=0,$J$54="No",$AA$6="NO"),0,$L40*$X40) -> 0 | Z40: =IF(OR($E39="-",$G39="-",$L40<=0,$J$54="No",$AA$6="NO"),"",$R$21) ->  | AA40: =IF(OR($E39="-",$G39="-",$L40<=0,$J$54="No",$AA$6="NO"),"",VLOOKUP($E39,'Data source'!$B$12:$I$99,2,FALSE)) ->  | AB40: =IF(OR($E39="-",$G39="-",$L40<=0,$J$54="No",$AA$6="NO"),"",$Y40*$Z40) ->  | AD40: =IF(OR($E39="-",$G39="-",$L40<=0,$J$54="No",$AA$6="NO"),"",VLOOKUP($E39,'Data source'!$B$12:$I$99,4,FALSE)) ->  | AE40: =IF(OR($E39="-",$G39="-",$L40<=0,$J$54="No",$AA$6="NO"),"",(($Y40/$Y$50)*$AD40)) ->  | AG40: =IF(OR($E39="-",$G39="-",$L40<=0,$J$54="No",$AA$6="NO"),"",VLOOKUP($E39,'Data source'!$B$12:$I$99,5,FALSE)) ->  | AH40: =IF(OR($E39="-",$G39="-",$L40<=0,$J$54="No",$AA$6="NO"),"",(($Y40/$Y$50)*AG40)) ->  | AJ40: =IF(OR($E39="-",$G39="-",$L40<=0,$J$54="No",$AA$6="NO"),"",VLOOKUP($E39,'Data source'!$B$12:$I$99,6,FALSE)) ->  | AK40: =IF(OR($E39="-",$G39="-",$L40<=0,$J$54="No",$AA$6="NO"),"",(($Y40/$Y$50)*AJ40)) ->  | AM40: =IF(OR($E39="-",$G39="-",$L40<=0,$J$54="No",$AA$6="NO"),"",VLOOKUP($E39,'Data source'!$B$12:$I$99,7,FALSE)) ->  | AN40: =IF(OR($E39="-",$G39="-",$L40<=0,$J$54="No",$AA$6="NO"),"",(($Y40/$Y$50)*AM40)) ->  | AP40: =IF(OR($E39="-",$G39="-",$L40<=0,$J$54="No",$AA$6="NO"),"",VLOOKUP($E39,'Data source'!$B$12:$I$99,8,FALSE)) ->  | AQ40: =IF(OR($E39="-",$G39="-",$L40<=0,$J$54="No",$AA$6="NO"),"",(AP40/100*AN40)*($Y40/$Y$50)) ->  | AS40: =IF(OR($E39="-",$G39="-",$L40<=0,$J$54="No",$AA$6="NO"),"",VLOOKUP($E39,'Data source'!$B$15:$M$99,12,FALSE)) ->  | AT40: =IF(OR($E39="-",$G39="-",$L40<=0,$J$54="No",$AA$6="NO"),"",IF($AS40="Dry",$O39/$X40/10,IF($AS40="Wet",$O39/($AA40/100)*$X40/10,0))) ->  | AU40: =IF(OR($E39="-",$G39="-",$L40<=0,$J$54="No",$AA$6="NO"),"",IF(OR($H26="-",$Q40="-",$L40=0),"",AT40/Z40)) ->  | AV40: =IF(OR($E39="-",$G39="-",$L40<=0,$J$54="No",$AA$6="NO"),"",IF(OR($H26="-",$Q40="-",$L40=0),"",($AT40*$L40)/100)) ->  | AZ40: =IF(OR($E39="-",$G39="-",$L40<=0,$J$54="No",$AA$6="NO"),"",VLOOKUP($E39,'Data source'!$B$15:$M$99,9,FALSE)) ->  | BB40: =IF(OR($E39="-",$G39="-",$L40<=0,$J$54="No",$AA$6="NO"),"",VLOOKUP($E39,'Data source'!$B$15:$M$99,10,FALSE)) ->  | BD40: =IF(OR($E39="-",$G39="-",$L40<=0,$J$54="No",$AA$6="NO"),"",VLOOKUP($E39,'Data source'!$B$15:$M$99,11,FALSE)) ->  | BH40: =IF(OR($E39="-",$G39="-",$L40<=0,$J$54="No",$AA$6="NO"),0,VLOOKUP($E39,'Data source'!$B$15:$T$99,13,FALSE)) -> 0 | BI40: =IF(OR($E39="-",$G39="-",$L40<=0,$J$54="No",$AA$6="NO"),0,VLOOKUP($E39,'Data source'!$B$15:$T$99,14,FALSE)) -> 0 | BJ40: =IF(OR($E39="-",$G39="-",$L40<=0,$J$54="No",$AA$6="NO"),0,VLOOKUP($E39,'Data source'!$B$15:$T$99,15,FALSE)) -> 0 | BK40: =IF(OR($E39="-",$G39="-",$L40<=0,$J$54="No",$AA$6="NO"),0,VLOOKUP($E39,'Data source'!$B$15:$T$99,16,FALSE)) -> 0 | BL40: =IF(OR($E39="-",$G39="-",$L40<=0,$J$54="No",$AA$6="NO"),0,VLOOKUP($E39,'Data source'!$B$15:$T$99,17,FALSE)) -> 0 | BM40: =IF(OR($E39="-",$G39="-",$L40<=0,$J$54="No",$AA$6="NO"),0,VLOOKUP($E39,'Data source'!$B$15:$T$99,18,FALSE)) -> 0 | BN40: =IF(OR($E39="-",$G39="-",$L40<=0,$J$54="No",$AA$6="NO"),0,VLOOKUP($E39,'Data source'!$B$15:$T$99,19,FALSE)) -> 0 | BO40: =IF(OR($E39="-",$G39="-",$L40<=0,$J$54="No",$AA$6="NO"),0,((43.498*$BH40)+(25.574*$BI40))-((28.206*$BJ40)+(62.375*$BK40)))*$Y40*10/1000 -> 0 | BZ40: =IF($AZ40="",0,$AZ40*$AE40) -> 0 | CA40: =IF($BB40="",0,$BB40*$AE40) -> 0 | CB40: =IF($BD40="",0,$BD40*$AE40) -> 0
C42: =IF(' ASK '!W20="","",' ASK '!W20) -> Minerals | E42: =IF(' ASK '!Y20="","",' ASK '!Y20) -> CaCO3, %DM | G42: - | R42: =IF(OR($C42="-",$G42="-",$J42<=0,$J$53="No"),"",$J42) ->  | S42: =IF(OR($C42="-",$G42="-",$J$53="No"),0,1) -> 0 | V42: =C42 -> Minerals | W42: Opt.1 | X42: =IF(OR($E42="-",$G42="-",$J42<=0,$J$53="No"),"",VLOOKUP($G42,'Data source'!$B$128:$C$137,2,FALSE)) ->  | Y42: =IF(OR($E42="-",$G42="-",$J42<=0,$J$53="No"),0,J42*X42) -> 0 | Z42: =IF(OR($E42="-",$G42="-",$J42<=0,$J$53="No"),"",$R$21) ->  | AA42: =IF(OR($E42="-",$G42="-",$J42<=0,$J$53="No"),"",VLOOKUP($E42,'Data source'!$B$15:$I$99,2,FALSE)) ->  | AB42: =IF(OR($E42="-",$G42="-",$J42<=0,$J$53="No"),"",Y42*Z42) ->  | AD42: =IF(OR($E42="-",$G42="-",$J42<=0,$J$53="No"),"",VLOOKUP($E42,'Data source'!$B$15:$I$99,4,FALSE)) ->  | AE42: =IF(OR($E42="-",$G42="-",$J42<=0,$J$53="No"),"",(($Y42/$Y$49)*AD42)) ->  | AG42: =IF(OR($E42="-",$G42="-",$J42<=0,$J$53="No"),"",VLOOKUP($E42,'Data source'!$B$15:$I$99,5,FALSE)) ->  | AH42: =IF(OR($E42="-",$G42="-",$J42<=0,$J$53="No"),"",(($Y42/$Y$49)*AG42)) ->  | AJ42: =IF(OR($E42="-",$G42="-",$J42<=0,$J$53="No"),"",VLOOKUP($E42,'Data source'!$B$15:$I$99,6,FALSE)) ->  | AK42: =IF(OR($E42="-",$G42="-",$J42<=0,$J$53="No"),"",(($Y42/$Y$49)*AJ42)) ->  | AM42: =IF(OR($E42="-",$G42="-",$J42<=0,$J$53="No"),"",VLOOKUP($E42,'Data source'!$B$15:$I$99,7,FALSE)) ->  | AN42: =IF(OR($E42="-",$G42="-",$J42<=0,$J$53="No"),"",(($Y42/$Y$49)*AM42)) ->  | AP42: =IF(OR($E42="-",$G42="-",$J42<=0,$J$53="No"),"",VLOOKUP($E42,'Data source'!$B$15:$I$99,8,FALSE)) ->  | AQ42: =IF(OR($E42="-",$G42="-",$J42="",$J$53="No"),"",(AP42/100*AN42)*($Y42/$Y$49)) ->  | AS42: =IF(OR($E42="-",$G42="-",$J42<=0,$J$53="No"),"",VLOOKUP($E42,'Data source'!$B$15:$M$99,12,FALSE)) ->  | AT42: =IF(OR($E42="-",$G42="-",$J42<=0,$J$53="No"),"",IF($AS42="Dry",$O42/$X42/10,IF($AS42="Wet",$O42/($AA42/100)*$X42/10,0))) ->  | AU42: =IF(OR($E42="-",$G42="-",$J42<=0,$J$53="No"),"",AT42/Z42) ->  | AV42: =IF(OR($E42="-",$G42="-",$J42<=0,$J$53="No"),"",($AT42*$J42)/100) ->  | AZ42: =IF(OR($E42="-",$G42="-",$J42<=0,$J$53="No"),"",VLOOKUP($E42,'Data source'!$B$12:$M$99,9,FALSE)) ->  | BB42: =IF(OR($E42="-",$G42="-",$J42<=0,$J$53="No"),"",VLOOKUP($E42,'Data source'!$B$12:$M$99,10,FALSE)) ->  | BD42: =IF(OR($E42="-",$G42="-",$J42<=0,$J$53="No"),"",VLOOKUP($E42,'Data source'!$B$12:$M$99,11,FALSE)) ->  | BH42: =IF(OR($E42="-",$G42="-",$J42<=0,$J$53="No"),0,VLOOKUP($E42,'Data source'!$B$15:$T$99,13,FALSE)) -> 0 | BI42: =IF(OR($E42="-",$G42="-",$J42<=0,$J$53="No"),0,VLOOKUP($E42,'Data source'!$B$15:$T$99,14,FALSE)) -> 0 | BJ42: =IF(OR($E42="-",$G42="-",$J42<=0,$J$53="No"),0,VLOOKUP($E42,'Data source'!$B$15:$T$99,15,FALSE)) -> 0 | BK42: =IF(OR($E42="-",$G42="-",$J42<=0,$J$53="No"),0,VLOOKUP($E42,'Data source'!$B$15:$T$99,16,FALSE)) -> 0 | BL42: =IF(OR($E42="-",$G42="-",$J42<=0,$J$53="No"),0,VLOOKUP($E42,'Data source'!$B$15:$T$99,17,FALSE)) -> 0 | BM42: =IF(OR($E42="-",$G42="-",$J42<=0,$J$53="No"),0,VLOOKUP($E42,'Data source'!$B$15:$T$99,18,FALSE)) -> 0 | BN42: =IF(OR($E42="-",$G42="-",$J42<=0,$J$53="No"),0,VLOOKUP($E42,'Data source'!$B$15:$T$99,19,FALSE)) -> 0 | BO42: =IF(OR($E42="-",$G42="-",$J42<=0,$J$53="No"),0,((43.498*$BH42)+(25.574*$BI42))-((28.206*$BJ42)+(62.375*$BK42)))*$Y42*10/1000 -> 0 | BZ42: =IF($AZ42="",0,$AZ42*$AE42) -> 0 | CA42: =IF($BB42="",0,$BB42*$AE42) -> 0 | CB42: =IF($BD42="",0,$BD42*$AE42) -> 0
R43: =IF(OR($C42="-",$G42="-",$L43<=0,$J$54="No"),"",$L43) ->  | W43: Opt.2 | X43: =IF(OR($E42="-",$G42="-",$L43<=0,$J$54="No",$AA$6="NO"),"",VLOOKUP($G42,'Data source'!$B$128:$C$137,2,FALSE)) ->  | Y43: =IF(OR($E42="-",$G42="-",$L43<=0,$J$54="No",$AA$6="NO"),0,$L43*$X43) -> 0 | Z43: =IF(OR($E42="-",$G42="-",$L43<=0,$J$54="No",$AA$6="NO"),"",$R$21) ->  | AA43: =IF(OR($E42="-",$G42="-",$L43<=0,$J$54="No",$AA$6="NO"),"",VLOOKUP($E42,'Data source'!$B$12:$I$99,2,FALSE)) ->  | AB43: =IF(OR($E42="-",$G42="-",$L43<=0,$J$54="No",$AA$6="NO"),"",$Y43*$Z43) ->  | AD43: =IF(OR($E42="-",$G42="-",$L43<=0,$J$54="No",$AA$6="NO"),"",VLOOKUP($E42,'Data source'!$B$12:$I$99,4,FALSE)) ->  | AE43: =IF(OR($E42="-",$G42="-",$L43<=0,$J$54="No",$AA$6="NO"),"",(($Y43/$Y$50)*$AD43)) ->  | AG43: =IF(OR($E42="-",$G42="-",$L43<=0,$J$54="No",$AA$6="NO"),"",VLOOKUP($E42,'Data source'!$B$12:$I$99,5,FALSE)) ->  | AH43: =IF(OR($E42="-",$G42="-",$L43<=0,$J$54="No",$AA$6="NO"),"",(($Y43/$Y$50)*AG43)) ->  | AJ43: =IF(OR($E42="-",$G42="-",$L43<=0,$J$54="No",$AA$6="NO"),"",VLOOKUP($E42,'Data source'!$B$12:$I$99,6,FALSE)) ->  | AK43: =IF(OR($E42="-",$G42="-",$L43<=0,$J$54="No",$AA$6="NO"),"",(($Y43/$Y$50)*AJ43)) ->  | AM43: =IF(OR($E42="-",$G42="-",$L43<=0,$J$54="No",$AA$6="NO"),"",VLOOKUP($E42,'Data source'!$B$12:$I$99,7,FALSE)) ->  | AN43: =IF(OR($E42="-",$G42="-",$L43<=0,$J$54="No",$AA$6="NO"),"",(($Y43/$Y$50)*AM43)) ->  | AP43: =IF(OR($E42="-",$G42="-",$L43<=0,$J$54="No",$AA$6="NO"),"",VLOOKUP($E42,'Data source'!$B$12:$I$99,8,FALSE)) ->  | AQ43: =IF(OR($E42="-",$G42="-",$L43<=0,$J$54="No",$AA$6="NO"),"",(AP43/100*AN43)*($Y43/$Y$50)) ->  | AS43: =IF(OR($E42="-",$G42="-",$L43<=0,$J$54="No",$AA$6="NO"),"",VLOOKUP($E42,'Data source'!$B$15:$M$99,12,FALSE)) ->  | AT43: =IF(OR($E42="-",$G42="-",$L43<=0,$J$54="No",$AA$6="NO"),"",IF($AS43="Dry",$O42/$X43/10,IF($AS43="Wet",$O42/($AA43/100)*$X43/10,0))) ->  | AU43: =IF(OR($E42="-",$G42="-",$L43<=0,$J$54="No",$AA$6="NO"),"",IF(OR($H29="-",$Q43="-",$L43=0),"",AT43/Z43)) ->  | AV43: =IF(OR($E42="-",$G42="-",$L43<=0,$J$54="No",$AA$6="NO"),"",IF(OR($H29="-",$Q43="-",$L43=0),"",($AT43*$L43)/100)) ->  | AZ43: =IF(OR($E42="-",$G42="-",$L43<=0,$J$54="No",$AA$6="NO"),"",VLOOKUP($E42,'Data source'!$B$15:$M$99,9,FALSE)) ->  | BB43: =IF(OR($E42="-",$G42="-",$L43<=0,$J$54="No",$AA$6="NO"),"",VLOOKUP($E42,'Data source'!$B$15:$M$99,10,FALSE)) ->  | BD43: =IF(OR($E42="-",$G42="-",$L43<=0,$J$54="No",$AA$6="NO"),"",VLOOKUP($E42,'Data source'!$B$15:$M$99,11,FALSE)) ->  | BH43: =IF(OR($E42="-",$G42="-",$L43<=0,$J$54="No",$AA$6="NO"),0,VLOOKUP($E42,'Data source'!$B$15:$T$99,13,FALSE)) -> 0 | BI43: =IF(OR($E42="-",$G42="-",$L43<=0,$J$54="No",$AA$6="NO"),0,VLOOKUP($E42,'Data source'!$B$15:$T$99,14,FALSE)) -> 0 | BJ43: =IF(OR($E42="-",$G42="-",$L43<=0,$J$54="No",$AA$6="NO"),0,VLOOKUP($E42,'Data source'!$B$15:$T$99,15,FALSE)) -> 0 | BK43: =IF(OR($E42="-",$G42="-",$L43<=0,$J$54="No",$AA$6="NO"),0,VLOOKUP($E42,'Data source'!$B$15:$T$99,16,FALSE)) -> 0 | BL43: =IF(OR($E42="-",$G42="-",$L43<=0,$J$54="No",$AA$6="NO"),0,VLOOKUP($E42,'Data source'!$B$15:$T$99,17,FALSE)) -> 0 | BM43: =IF(OR($E42="-",$G42="-",$L43<=0,$J$54="No",$AA$6="NO"),0,VLOOKUP($E42,'Data source'!$B$15:$T$99,18,FALSE)) -> 0 | BN43: =IF(OR($E42="-",$G42="-",$L43<=0,$J$54="No",$AA$6="NO"),0,VLOOKUP($E42,'Data source'!$B$15:$T$99,19,FALSE)) -> 0 | BO43: =IF(OR($E42="-",$G42="-",$L43<=0,$J$54="No",$AA$6="NO"),0,((43.498*$BH43)+(25.574*$BI43))-((28.206*$BJ43)+(62.375*$BK43)))*$Y43*10/1000 -> 0 | BZ43: =IF($AZ43="",0,$AZ43*$AE43) -> 0 | CA43: =IF($BB43="",0,$BB43*$AE43) -> 0 | CB43: =IF($BD43="",0,$BD43*$AE43) -> 0
C45: =IF(' ASK '!W23="","",' ASK '!W23) -> Concentrates | E45: =IF(' ASK '!Y23="","",' ASK '!Y23) -> Maize grain | G45: - | R45: =IF(OR($C45="-",$G45="-",$J45<=0,$J$53="No"),"",$J45) ->  | S45: =IF(OR($C45="-",$G45="-",$J$53="No"),0,1) -> 0 | V45: =C45 -> Concentrates | W45: Opt.1 | X45: =IF(OR($E45="-",$G45="-",$J45<=0,$J$53="No"),"",VLOOKUP($G45,'Data source'!$B$128:$C$137,2,FALSE)) ->  | Y45: =IF(OR($E45="-",$G45="-",$J45<=0,$J$53="No"),0,J45*X45) -> 0 | Z45: =IF(OR($E45="-",$G45="-",$J45<=0,$J$53="No"),"",$R$21) ->  | AA45: =IF(OR($E45="-",$G45="-",$J45<=0,$J$53="No"),"",VLOOKUP($E45,'Data source'!$B$15:$I$99,2,FALSE)) ->  | AB45: =IF(OR($E45="-",$G45="-",$J45<=0,$J$53="No"),"",Y45*Z45) ->  | AD45: =IF(OR($E45="-",$G45="-",$J45<=0,$J$53="No"),"",VLOOKUP($E45,'Data source'!$B$15:$I$99,4,FALSE)) ->  | AE45: =IF(OR($E45="-",$G45="-",$J45<=0,$J$53="No"),"",(($Y45/$Y$49)*AD45)) ->  | AG45: =IF(OR($E45="-",$G45="-",$J45<=0,$J$53="No"),"",VLOOKUP($E45,'Data source'!$B$15:$I$99,5,FALSE)) ->  | AH45: =IF(OR($E45="-",$G45="-",$J45<=0,$J$53="No"),"",(($Y45/$Y$49)*AG45)) ->  | AJ45: =IF(OR($E45="-",$G45="-",$J45<=0,$J$53="No"),"",VLOOKUP($E45,'Data source'!$B$15:$I$99,6,FALSE)) ->  | AK45: =IF(OR($E45="-",$G45="-",$J45<=0,$J$53="No"),"",(($Y45/$Y$49)*AJ45)) ->  | AM45: =IF(OR($E45="-",$G45="-",$J45<=0,$J$53="No"),"",VLOOKUP($E45,'Data source'!$B$15:$I$99,7,FALSE)) ->  | AN45: =IF(OR($E45="-",$G45="-",$J45<=0,$J$53="No"),"",(($Y45/$Y$49)*AM45)) ->  | AP45: =IF(OR($E45="-",$G45="-",$J45<=0,$J$53="No"),"",VLOOKUP($E45,'Data source'!$B$15:$I$99,8,FALSE)) ->  | AQ45: =IF(OR($E45="-",$G45="-",$J45="",$J$53="No"),"",(AP45/100*AN45)*($Y45/$Y$49)) ->  | AS45: =IF(OR($E45="-",$G45="-",$J45<=0,$J$53="No"),"",VLOOKUP($E45,'Data source'!$B$15:$M$99,12,FALSE)) ->  | AT45: =IF(OR($E45="-",$G45="-",$J45<=0,$J$53="No"),"",IF($AS45="Dry",$O45/$X45/10,IF($AS45="Wet",$O45/($AA45/100)*$X45/10,0))) ->  | AU45: =IF(OR($E45="-",$G45="-",$J45<=0,$J$53="No"),"",AT45/Z45) ->  | AV45: =IF(OR($E45="-",$G45="-",$J45<=0,$J$53="No"),"",($AT45*$J45)/100) ->  | AZ45: =IF(OR($E45="-",$G45="-",$J45<=0,$J$53="No"),"",VLOOKUP($E45,'Data source'!$B$12:$M$99,9,FALSE)) ->  | BB45: =IF(OR($E45="-",$G45="-",$J45<=0,$J$53="No"),"",VLOOKUP($E45,'Data source'!$B$12:$M$99,10,FALSE)) ->  | BD45: =IF(OR($E45="-",$G45="-",$J45<=0,$J$53="No"),"",VLOOKUP($E45,'Data source'!$B$12:$M$99,11,FALSE)) ->  | BH45: =IF(OR($E45="-",$G45="-",$J45<=0,$J$53="No"),0,VLOOKUP($E45,'Data source'!$B$15:$T$99,13,FALSE)) -> 0 | BI45: =IF(OR($E45="-",$G45="-",$J45<=0,$J$53="No"),0,VLOOKUP($E45,'Data source'!$B$15:$T$99,14,FALSE)) -> 0 | BJ45: =IF(OR($E45="-",$G45="-",$J45<=0,$J$53="No"),0,VLOOKUP($E45,'Data source'!$B$15:$T$99,15,FALSE)) -> 0 | BK45: =IF(OR($E45="-",$G45="-",$J45<=0,$J$53="No"),0,VLOOKUP($E45,'Data source'!$B$15:$T$99,16,FALSE)) -> 0 | BL45: =IF(OR($E45="-",$G45="-",$J45<=0,$J$53="No"),0,VLOOKUP($E45,'Data source'!$B$15:$T$99,17,FALSE)) -> 0 | BM45: =IF(OR($E45="-",$G45="-",$J45<=0,$J$53="No"),0,VLOOKUP($E45,'Data source'!$B$15:$T$99,18,FALSE)) -> 0 | BN45: =IF(OR($E45="-",$G45="-",$J45<=0,$J$53="No"),0,VLOOKUP($E45,'Data source'!$B$15:$T$99,19,FALSE)) -> 0 | BO45: =IF(OR($E45="-",$G45="-",$J45<=0,$J$53="No"),0,((43.498*$BH45)+(25.574*$BI45))-((28.206*$BJ45)+(62.375*$BK45)))*$Y45*10/1000 -> 0 | BZ45: =IF($AZ45="",0,$AZ45*$AE45) -> 0 | CA45: =IF($BB45="",0,$BB45*$AE45) -> 0 | CB45: =IF($BD45="",0,$BD45*$AE45) -> 0
R46: =IF(OR($C45="-",$G45="-",$L46<=0,$J$54="No"),"",$L46) ->  | W46: Opt.2 | X46: =IF(OR($E45="-",$G45="-",$L46<=0,$J$54="No",$AA$6="NO"),"",VLOOKUP($G45,'Data source'!$B$128:$C$137,2,FALSE)) ->  | Y46: =IF(OR($E45="-",$G45="-",$L46<=0,$J$54="No",$AA$6="NO"),0,$L46*$X46) -> 0 | Z46: =IF(OR($E45="-",$G45="-",$L46<=0,$J$54="No",$AA$6="NO"),"",$R$21) ->  | AA46: =IF(OR($E45="-",$G45="-",$L46<=0,$J$54="No",$AA$6="NO"),"",VLOOKUP($E45,'Data source'!$B$12:$I$99,2,FALSE)) ->  | AB46: =IF(OR($E45="-",$G45="-",$L46<=0,$J$54="No",$AA$6="NO"),"",$Y46*$Z46) ->  | AD46: =IF(OR($E45="-",$G45="-",$L46<=0,$J$54="No",$AA$6="NO"),"",VLOOKUP($E45,'Data source'!$B$12:$I$99,4,FALSE)) ->  | AE46: =IF(OR($E45="-",$G45="-",$L46<=0,$J$54="No",$AA$6="NO"),"",(($Y46/$Y$50)*$AD46)) ->  | AG46: =IF(OR($E45="-",$G45="-",$L46<=0,$J$54="No",$AA$6="NO"),"",VLOOKUP($E45,'Data source'!$B$12:$I$99,5,FALSE)) ->  | AH46: =IF(OR($E45="-",$G45="-",$L46<=0,$J$54="No",$AA$6="NO"),"",(($Y46/$Y$50)*AG46)) ->  | AJ46: =IF(OR($E45="-",$G45="-",$L46<=0,$J$54="No",$AA$6="NO"),"",VLOOKUP($E45,'Data source'!$B$12:$I$99,6,FALSE)) ->  | AK46: =IF(OR($E45="-",$G45="-",$L46<=0,$J$54="No",$AA$6="NO"),"",(($Y46/$Y$50)*AJ46)) ->  | AM46: =IF(OR($E45="-",$G45="-",$L46<=0,$J$54="No",$AA$6="NO"),"",VLOOKUP($E45,'Data source'!$B$12:$I$99,7,FALSE)) ->  | AN46: =IF(OR($E45="-",$G45="-",$L46<=0,$J$54="No",$AA$6="NO"),"",(($Y46/$Y$50)*AM46)) ->  | AP46: =IF(OR($E45="-",$G45="-",$L46<=0,$J$54="No",$AA$6="NO"),"",VLOOKUP($E45,'Data source'!$B$12:$I$99,8,FALSE)) ->  | AQ46: =IF(OR($E45="-",$G45="-",$L46<=0,$J$54="No",$AA$6="NO"),"",(AP46/100*AN46)*($Y46/$Y$50)) ->  | AS46: =IF(OR($E45="-",$G45="-",$L46<=0,$J$54="No",$AA$6="NO"),"",VLOOKUP($E45,'Data source'!$B$15:$M$99,12,FALSE)) ->  | AT46: =IF(OR($E45="-",$G45="-",$L46<=0,$J$54="No",$AA$6="NO"),"",IF($AS46="Dry",$O45/$X46/10,IF($AS46="Wet",$O45/($AA46/100)*$X46/10,0))) ->  | AU46: =IF(OR($E45="-",$G45="-",$L46<=0,$J$54="No",$AA$6="NO"),"",IF(OR($H32="-",$Q46="-",$L46=0),"",AT46/Z46)) ->  | AV46: =IF(OR($E45="-",$G45="-",$L46<=0,$J$54="No",$AA$6="NO"),"",IF(OR($H32="-",$Q46="-",$L46=0),"",($AT46*$L46)/100)) ->  | AZ46: =IF(OR($E45="-",$G45="-",$L46<=0,$J$54="No",$AA$6="NO"),"",VLOOKUP($E45,'Data source'!$B$15:$M$99,9,FALSE)) ->  | BB46: =IF(OR($E45="-",$G45="-",$L46<=0,$J$54="No",$AA$6="NO"),"",VLOOKUP($E45,'Data source'!$B$15:$M$99,10,FALSE)) ->  | BD46: =IF(OR($E45="-",$G45="-",$L46<=0,$J$54="No",$AA$6="NO"),"",VLOOKUP($E45,'Data source'!$B$15:$M$99,11,FALSE)) ->  | BH46: =IF(OR($E45="-",$G45="-",$L46<=0,$J$54="No",$AA$6="NO"),0,VLOOKUP($E45,'Data source'!$B$15:$T$99,13,FALSE)) -> 0 | BI46: =IF(OR($E45="-",$G45="-",$L46<=0,$J$54="No",$AA$6="NO"),0,VLOOKUP($E45,'Data source'!$B$15:$T$99,14,FALSE)) -> 0 | BJ46: =IF(OR($E45="-",$G45="-",$L46<=0,$J$54="No",$AA$6="NO"),0,VLOOKUP($E45,'Data source'!$B$15:$T$99,15,FALSE)) -> 0 | BK46: =IF(OR($E45="-",$G45="-",$L46<=0,$J$54="No",$AA$6="NO"),0,VLOOKUP($E45,'Data source'!$B$15:$T$99,16,FALSE)) -> 0 | BL46: =IF(OR($E45="-",$G45="-",$L46<=0,$J$54="No",$AA$6="NO"),0,VLOOKUP($E45,'Data source'!$B$15:$T$99,17,FALSE)) -> 0 | BM46: =IF(OR($E45="-",$G45="-",$L46<=0,$J$54="No",$AA$6="NO"),0,VLOOKUP($E45,'Data source'!$B$15:$T$99,18,FALSE)) -> 0 | BN46: =IF(OR($E45="-",$G45="-",$L46<=0,$J$54="No",$AA$6="NO"),0,VLOOKUP($E45,'Data source'!$B$15:$T$99,19,FALSE)) -> 0 | BO46: =IF(OR($E45="-",$G45="-",$L46<=0,$J$54="No",$AA$6="NO"),0,((43.498*$BH46)+(25.574*$BI46))-((28.206*$BJ46)+(62.375*$BK46)))*$Y46*10/1000 -> 0 | BZ46: =IF($AZ46="",0,$AZ46*$AE46) -> 0 | CA46: =IF($BB46="",0,$BB46*$AE46) -> 0 | CB46: =IF($BD46="",0,$BD46*$AE46) -> 0
J48: KgDM/cow | L48: KgDM/cow
G49: Total kg DM offered: Option 1 | J49: =IF($J$53="No","",SUM(R27,R30,R33,R36,R39,R42,R45)) ->  | W49: OPTION 1 | Y49: =IF($J$53="No","",SUM(Y27,Y30,Y33,Y36,Y39,Y42,Y45)) ->  | AB49: =IF($J$53="No","",SUM(AB27,AB30,AB33,AB36,AB39,AB42,AB45)) ->  | AE49: =IF($J$53="No","",SUM(AE27,AE30,AE33,AE36,AE39,AE42,AE45)) ->  | AH49: =IF($J$53="No","",SUM(AH27,AH30,AH33,AH36,AH39,AH42,AH45)) ->  | AK49: =IF($J$53="No","",SUM(AK27,AK30,AK33,AK36,AK39,AK42,AK45)) ->  | AN49: =IF($J$53="No","",SUM(AN27,AN30,AN33,AN36,AN39,AN42,AN45)) ->  | AQ49: =IF($J$53="No","",SUM(AQ27,AQ30,AQ33,AQ36,AQ39,AQ42,AQ45)) ->  | AS49: $/mob | AT49: =AV49*$O$6 ->  | AU49: $/cow | AV49: =IF($J$53="No","",SUM(AV27,AV30,AV33,AV36,AV39,AV42,AV45)) ->  | AZ49: =IF($J$53="No","",SUM(BZ27,BZ30,BZ33,BZ36,BZ39,BZ42,BZ45)/AE49) ->  | BB49: =IF($J$53="No","",SUM(CA27,CA30,CA33,CA36,CA39,CA42,CA45)/AE49) ->  | BD49: =IF($J$53="No","",SUM(CB27,CB30,CB33,CB36,CB39,CB42,CB45)/AE49) ->  | BH49: =IF($J$53="No","",IF((SUM(BH27,BH30,BH33,BH36,BH39,BH42,BH45))>0,SUM(BH27,BH30,BH33,BH36,BH39,BH42,BH45)/$Y$49,"")) ->  | BO49: =IF($J$53="No","",SUM(BO27,BO30,BO33,BO36,BO39,BO42,BO45)) -> 
H50: Option 2 | L50: =IF($J$54="No","",SUM(R28,R31,R34,R37,R40,R43,R46)) ->  | W50: OPTION 2 | Y50: =IF($J$54="No","",SUM(Y28,Y31,Y34,Y37,Y40,Y43,Y46)) ->  | AB50: =IF($J$54="No","",SUM(AB28,AB31,AB34,AB37,AB40,AB43,AB46)) ->  | AE50: =IF($J$54="No","",SUM(AE28,AE31,AE34,AE37,AE40,AE43,AE46)) ->  | AH50: =IF($J$54="No","",SUM(AH28,AH31,AH34,AH37,AH40,AH43,AH46)) ->  | AK50: =IF($J$54="No","",SUM(AK28,AK31,AK34,AK37,AK40,AK43,AK46)) ->  | AN50: =IF($J$54="No","",SUM(AN28,AN31,AN34,AN37,AN40,AN43,AN46)) ->  | AQ50: =IF($J$54="No","",SUM(AQ28,AQ31,AQ34,AQ37,AQ40,AQ43,AQ46)) ->  | AT50: =AV50*O6 ->  | AV50: =IF($J$54="No","",SUM(AV28,AV31,AV34,AV37,AV40,AV43,AV46)) ->  | AZ50: =IF($J$54="No","",SUM(BZ28,BZ31,BZ34,BZ37,BZ40,BZ43,BZ46)/AE50) ->  | BB50: =IF($J$54="No","",SUM(CA28,CA31,CA34,CA37,CA40,CA43,CA46)/AE50) ->  | BD50: =IF($J$54="No","",SUM(CB28,CB31,CB34,CB37,CB40,CB43,CB46)/AE50) ->  | BH50: =IF($J$54="No","",IF((SUM(BH28,BH31,BH34,BH37,BH40,BH43,BH46))>0,SUM(BH28,BH31,BH34,BH37,BH40,BH43,BH46)/$Y$50,"")) ->  | BO50: =IF($J$53="No","",SUM(BO28,BO31,BO34,BO37,BO40,BO43,BO46)) -> 
V52: WARNINGS
H53: All MOB and PASTURE inputs complete? | I53: Option 1 | J53: =IF(OR($G$6="-",$G$7="-",$G$8="-",$G$9="-",$G$10="",$O$6="",$O$7="",$O$8="-",$O$9="-",$G$14="-",$G$27="-"),"No","Yes") -> No | W53: DM | Y53: =IF(Z53="Dry matter intake is less than required","Opt.1","") ->  | Z53: =IF($J$53="Yes",IF($Z$17<-0.5,"Dry matter intake is less than required"," "),"") -> 
I54: Option 2 | J54: =IF(OR($G$6="-",$G$7="-",$G$8="-",$G$9="-",$G$10="",$O$6="",$O$7="",$O$8="-",$O$9="-",$G$14="-",$G$27="-",$L$28<=0),"No","Yes") -> No | Y54: =IF(Z54="Dry matter intake is less than required","Opt.2","") ->  | Z54: =IF(AND($J$54="Yes",$AA$6="YES"),IF(OR($Z$19<-0.5),"Dry matter intake is less than required"," "),"") -> 
W55: Protein | Y55: =IF(Z55="Protein levels are below recommended values; however, consider costs and benefits before adding additional protein","Opt.1","") ->  | Z55: =IF($J$53="Yes",IF($AE$16<$AE$14,"Protein levels are below recommended values; however, consider costs and benefits before adding additional protein"," "),"") -> 
Y56: =IF(Z56="Protein levels are below recommended values; however, consider costs and benefits before adding additional protein","Opt.2","") ->  | Z56: =IF(AND($J$54="Yes",$AA$6="YES"),IF($AE$18<$AE$14,"Protein levels are below recommended values; however, consider costs and benefits before adding additional protein"," "),"") -> 
W57: NDF | Y57: =IF(Z57="Neutral detergent fibre levels are below recommended value. Add more fibre to the diet (e.g. silage/pasture) or reduce starch based supplements","Opt.1","") ->  | Z57: =IF($J$53="Yes",IF($AH$16<=35,"Neutral detergent fibre levels are below recommended value. Add more fibre to the diet (e.g. silage/pasture) or reduce starch based supplements"," "),"") -> 
Y58: =IF(Z58="Neutral detergent fibre levels are below recommended value. Add more fibre to the diet (e.g. silage/pasture) or reduce starch based supplements","Opt.2","") ->  | Z58: =IF(AND($J$54="Yes",$AA$6="YES"),IF($AH$18<=35,"Neutral detergent fibre levels are below recommended value. Add more fibre to the diet (e.g. silage/pasture) or reduce starch based supplements"," "),"") -> 
W59: SS | Y59: =IF(Z59="Soluble sugar and starch levels are greater than reccomended. Reduce supplements high in starch or sugars (e.g. barley/maize grain","Opt.1","") ->  | Z59: =IF($J$53="Yes",IF($AK$16>=38,"Soluble sugar and starch levels are greater than reccomended. Reduce supplements high in starch or sugars (e.g. barley/maize grain"," "),"") -> 
Y60: =IF(Z60="Soluble sugar and starch levels are greater than reccomended. Reduce supplements high in starch or sugars (e.g. barley/maize grain","Opt.2","") ->  | Z60: =IF(AND($J$54="Yes",$AA$6="YES"),IF($AK$18>=38,"Soluble sugar and starch levels are greater than reccomended. Reduce supplements high in starch or sugars (e.g. barley/maize grain"," "),"") -> 
W61: Starch | Y61: =IF(Z61="Starch levels in the diet are greater than reccomended. Reduce supplements that are high in starch (e.g. barley or wheat)","Opt.1","") ->  | Z61: =IF($J$53="Yes",IF(AN16>=30,"Starch levels in the diet are greater than reccomended. Reduce supplements that are high in starch (e.g. barley or wheat)"," "),"") -> 
Y62: =IF(Z62="Starch levels in the diet are greater than reccomended. Reduce supplements that are high in starch (e.g. barley or wheat)","Opt.2","") ->  | Z62: =IF(AND($J$54="Yes",$AA$6="YES"),IF(AN18>=30,"Starch levels in the diet are greater than reccomended. Reduce supplements that are high in starch (e.g. barley or wheat)"," "),"") -> 
W63: Fat | Y63: =IF(Z63="Fat levels in the diet are greater than reccomended. Reduce feeds high in unsaturated fats (e.g. sunflower oil)","Opt.1","") ->  | Z63: =IF(AND($J$54="Yes",$AA$6="YES"),IF(AQ16>=6,"Fat levels in the diet are greater than reccomended. Reduce feeds high in unsaturated fats (e.g. sunflower oil)"," "),"") -> 
Y64: =IF(Z64="Fat levels in the diet are greater than reccomended. Reduce feeds high in unsaturated fats (e.g. sunflower oil)","Opt.2","") ->  | Z64: =IF($J$54="Yes",IF(AQ18>=6,"Fat levels in the diet are greater than reccomended. Reduce feeds high in unsaturated fats (e.g. sunflower oil)"," "),"") -> 
V66: =IF($AA$8="YES","TOTAL PROTEIN","") -> TOTAL PROTEIN | AA66: =IF(OR(AF16<AF14,AF18<AF14),"Protein levels are below recommended values; however, it is often not economical to use an expensive protein supplement. See Example in Extra Info tab"," ") -> 
W67: =IF($AA$8="YES","UDP","") -> UDP | Y67: =IF(OR(Z67="Check that data in Data Source is complete, UDP + RDP should = 100% ",Z67="UDP levels are below recommended values; however, other factors such as passage rate and total dietary protein content need to be taken into account. See FeedRight TechNote 15 for more information"),"Opt.1","") ->  | Z67: =IF($J$53="Yes",IF(($AZ$49+$BD$49)<100,"Check that data in Data Source is complete, UDP + RDP should = 100% ",IF(AZ49<=35,"UDP levels are below recommended values; however, other factors such as passage rate and total dietary protein content need to be taken into account. See FeedRight TechNote 15 for more information","")),"") -> 
Y68: =IF(OR(Z68="Check that data in Data Source is complete, UDP + RDP should = 100% ",Z68="UDP levels are below recommended values; however, other factors such as passage rate and total dietary protein content need to be taken into account. See FeedRight TechNote 15 for more information"),"Opt.2","") ->  | Z68: =IF(AND($J$54="Yes",$AA$6="YES"),IF(($AZ$50+$BD$50)<100,"Check that data in Data Source is complete, UDP + RDP should = 100% ",IF($AZ$50<=35,"UDP levels are below recommended values; however, other factors such as passage rate and total dietary protein content need to be taken into account. See FeedRight TechNote 15 for more information","")),"") -> 
W69: =IF($AA$8="YES","Soluble","") -> Soluble | Y69: =IF(OR(Z69="Check that data in Data Source is complete, UDP + RDP should = 100% ",Z69="Soluble protein levels are below recommended values; however, other factors such as passage rate and total dietary protein content need to be taken into account. See FeedRight TechNote 15 for more information"),"Opt.1","") ->  | Z69: =IF($J$53="Yes",IF(($AZ$49+$BD$49)<100,"Check that data in Data Source is complete, UDP + RDP should = 100% ",IF(BB49<=32,"Soluble protein levels are below recommended values; however, other factors such as passage rate and total dietary protein content need to be taken into account. See FeedRight TechNote 15 for more information","")),"") -> 
Y70: =IF(OR(Z70="Check that data in Data Source is complete, UDP + RDP should = 100% ",Z70="Soluble protein levels are below recommended values; however, other factors such as passage rate and total dietary protein content need to be taken into account. See FeedRight TechNote 15 for more information"),"Opt.2","") ->  | Z70: =IF(AND($J$54="Yes",$AA$6="YES"),IF(($AZ$50+$BD$50)<100,"Check that data in Data Source is complete, UDP + RDP should = 100% ",IF(BB50<=32,"Soluble protein levels are below recommended values; however, other factors such as passage rate and total dietary protein content need to be taken into account. See FeedRight TechNote 15 for more information","")),"") -> 
W71: =IF($AA$8="YES","RDP","") -> RDP | Y71: =IF(OR(Z71="Check that data in Data Source is complete, UDP + RDP should = 100% ",Z71="RDP levels are above recommended values; however, other factors such as passage rate and total dietary protein content need to be taken into account before dietary changes are made. See FeedRight TechNote 15 for more information"),"Opt.1","") ->  | Z71: =IF($J$53="Yes",IF(($AZ$49+$BD$49)<100,"Check that data in Data Source is complete, UDP + RDP should = 100% ",IF($BD$49>=65,"RDP levels are above recommended values; however, other factors such as passage rate and total dietary protein content need to be taken into account before dietary changes are made. See FeedRight TechNote 15 for more information","")),"") -> 
Y72: =IF(OR(Z72="Check that data in Data Source is complete, UDP + RDP should = 100% ",Z72="RDP levels are above recommended values; however, other factors such as passage rate and total dietary protein content need to be taken into account before dietary changes are made. See FeedRight TechNote 15 for more information"),"Opt.2","") ->  | Z72: =IF(AND($J$54="Yes",$AA$6="YES"),IF(($AZ$50+$BD$50)<100,"Check that data in Data Source is complete, UDP + RDP should = 100% ",IF($BD$50>=65,"RDP levels are above recommended values; however, other factors such as passage rate and total dietary protein content need to be taken into account before dietary changes are made. See FeedRight TechNote 15 for more information","")),"") -> 
V73: =IF($AA$8="YES","RDP = rumen degradable protein","") -> RDP = rumen degradable protein
V74: =IF($AA$8="YES","UDP =unegradable dietary protein","") -> UDP =unegradable dietary protein

Sheet SUMMARISE 2 (hidden)
B3: FARM & MOB INFO
C5: FARM | J5: FEED TYPE | L5: FEED | P5: FEEDING METHOD | T5: ON-HAND | U5: OPTION 1 | W5: OPTION 2
C6: Platform Sixe (Effective ha) | G6: =IF(' ASK '!E8="","-",' ASK '!E8) -> 100 | U6: kg DM | V6: Tonne | W6: kg DM | X6: Tonne
C7: =FEEDCHECKER!J8 -> Terrain | G7: =IF(' ASK '!E11="","-",' ASK '!E11) -> flat | U7: cow/day | V7: mob/day | W7: cow/day | X7: mob/day
C8: Current total grazable area (ha) | J8: =IF(FEEDCHECKER!C41="","-",FEEDCHECKER!C41) -> PASTURE | L8: =IF(FEEDCHECKER!E41="","-",FEEDCHECKER!E41) -> - | P8: =IF(FEEDCHECKER!H41="","-",FEEDCHECKER!H41) -> - | T8: Tonne | U8: =IF(FEEDCHECKER!K41="","-",FEEDCHECKER!K41) -> - | V8: =IF($P$8="-","-",($G$22*$U8)/1000) -> - | W8: =IF(FEEDCHECKER!O41="","-",FEEDCHECKER!O41) -> - | X8: =IF($P$8="-","-",($G$22*$U8)/1000) -> -
C9: Area grazed/day (ha - all mobs) | J9: =IF(FEEDCHECKER!C44="","-",FEEDCHECKER!C44) -> - | L9: =IF(FEEDCHECKER!E44="","-",FEEDCHECKER!E44) -> - | P9: =IF(FEEDCHECKER!H44="","-",FEEDCHECKER!H44) -> - | U9: =IF(FEEDCHECKER!K44="","-",FEEDCHECKER!K44) -> - | V9: =IF($P$9="-","-",($G$22*$U9)/1000) -> - | W9: =IF(FEEDCHECKER!O44="","-",FEEDCHECKER!O44) -> - | X9: =IF($P$9="-","-",($G$22*$W9)/1000) -> -
C10: Average pasture cover (kg DM/ha) | J10: =IF(FEEDCHECKER!C47="","-",FEEDCHECKER!C47) -> - | L10: =IF(FEEDCHECKER!E47="","-",FEEDCHECKER!E47) -> - | P10: =IF(FEEDCHECKER!H47="","-",FEEDCHECKER!H47) -> - | U10: =IF(FEEDCHECKER!K47="","-",FEEDCHECKER!K47) -> - | V10: =IF($P$10="-","-",($G$22*$U10)/1000) -> - | W10: =IF(FEEDCHECKER!O47="","-",FEEDCHECKER!O47) -> - | X10: =IF($P$10="-","-",($G$22*$W10)/1000) -> -
J11: =IF(FEEDCHECKER!C59="","-",FEEDCHECKER!C59) -> - | L11: =IF(FEEDCHECKER!E59="","-",FEEDCHECKER!E59) -> - | P11: =IF(FEEDCHECKER!H59="","-",FEEDCHECKER!H59) -> - | U11: =IF(FEEDCHECKER!K59="","-",FEEDCHECKER!K59) -> - | V11: =IF($P$11="-","-",($G$22*$U11)/1000) -> - | W11: =IF(FEEDCHECKER!O59="","-",FEEDCHECKER!O59) -> - | X11: =IF($P$11="-","-",($G$22*$W11)/1000) -> -
C12: HERD | J12: =IF(FEEDCHECKER!C62="","-",FEEDCHECKER!C62) -> - | L12: =IF(FEEDCHECKER!E62="","-",FEEDCHECKER!E62) -> - | P12: =IF(FEEDCHECKER!H62="","-",FEEDCHECKER!H62) -> - | U12: =IF(FEEDCHECKER!K62="","-",FEEDCHECKER!K62) -> - | V12: =IF($P$12="-","-",($G$22*$U12)/1000) -> - | W12: =IF(FEEDCHECKER!O62="","-",FEEDCHECKER!O62) -> - | X12: =IF($P$12="-","-",($G$22*$W12)/1000) -> -
C13: Breed | J13: =IF(FEEDCHECKER!C65="","-",FEEDCHECKER!C65) -> - | L13: =IF(FEEDCHECKER!E65="","-",FEEDCHECKER!E65) -> - | P13: =IF(FEEDCHECKER!H65="","-",FEEDCHECKER!H65) -> - | U13: =IF(FEEDCHECKER!K65="","-",FEEDCHECKER!K65) -> - | V13: =IF($P$13="-","-",($G$22*$U13)/1000) -> - | W13: =IF(FEEDCHECKER!O65="","-",FEEDCHECKER!O65) -> - | X13: =IF($P$13="-","-",($G$22*$W13)/1000) -> -
C14: Average liveweight (kg) | J14: =IF(FEEDCHECKER!C68="","-",FEEDCHECKER!C68) -> - | L14: =IF(FEEDCHECKER!E68="","-",FEEDCHECKER!E68) -> - | P14: =IF(FEEDCHECKER!H68="","-",FEEDCHECKER!H68) -> - | U14: =IF(FEEDCHECKER!K68="","-",FEEDCHECKER!K68) -> - | V14: =IF($P$14="-","-",($G$22*$U14)/1000) -> - | W14: =IF(FEEDCHECKER!O68="","-",FEEDCHECKER!O68) -> - | X14: =IF($P$14="-","-",($G$22*$W14)/1000) -> -
C15: Number of cows at peak
C16: Number of cows on farm now | R16: Offered (kg DM) | U16: =IF(FEEDCHECKER!K72="","-",FEEDCHECKER!K72) -> 0 | V16: =IF($U16="-","-",($G$22*$U16)/1000) ->  | W16: =IF(FEEDCHECKER!O72="","-",FEEDCHECKER!O72) -> - | X16: =IF($W16="-","-",($G$22*$W16)/1000) -> -
C17: =FEEDCHECKER!C7 -> Stage of lactation | R17: Eaten | U17: =IF(FEEDCHECKER!AX72="","-",FEEDCHECKER!AX72) -> - | V17: =IF($U17="-","-",($G$22*$U17)/1000) -> - | W17: =IF(FEEDCHECKER!AX73="","-",FEEDCHECKER!AX73) -> - | X17: =IF($W17="-","-",($G$22*$W17)/1000) -> -
C18: BSC (herd average)
C19: =FEEDCHECKER!C10 -> Date of next calving (PSC)
C21: COWS IN THIS MOB | I21: PASTURE | M21: ALLOCATION | P21: SUMMARY METRICS
C22: =FEEDCHECKER!J6 -> Cows in mob | G22: =IF(FEEDCHECKER!O6="","-",FEEDCHECKER!O6) -> - | I22: Pasture MJME/kg DM | M22: =IF(FEEDCHECKER!AY40="","-",FEEDCHECKER!AY40) -> - | P22: Stocking rate at peak (cows/ha) | V22: Rotation length
C23: =FEEDCHECKER!J7 -> Milk solids (kg MS/cow/day) | G23: =IF(FEEDCHECKER!O7="","-",FEEDCHECKER!O7) -> - | I23: =IF('ASSESS & COMPARE'!C15="","-",'ASSESS & COMPARE'!C15) -> Pre-grazing cover | M23: =IF(FEEDCHECKER!O14="","-",FEEDCHECKER!O14) -> - | P23: kg LWT/ha | V23: Weeks until PSC
C24: Est, BCS loss next month | G24: =IF(FEEDCHECKER!H9="","-",FEEDCHECKER!H9) -> - | I24: =IF('ASSESS & COMPARE'!C16="","-",'ASSESS & COMPARE'!C16) -> Post-grazing residual | M24: =IF(FEEDCHECKER!O15="","-",FEEDCHECKER!O15) -> - | P24: Current Stocking rate (cows/ha)
C25: Total daily walking distance (km) | I25: =IF('ASSESS & COMPARE'!C17="","-",'ASSESS & COMPARE'!C17) -> Hectares grazed/day -this mob | M25: =IF(FEEDCHECKER!O16="","-",FEEDCHECKER!O16) -> - | P25: Current kg LWT/ha
C26: Average liveweight (kg)
B27: DIET CHECK
E29: DM | F29: ME | H29: PROT. | I29: NDF | J29: SSS | K29: STARCH | L29: FAT | N29: Na | O29: K | P29: Cl | Q29: S | R29: Mg | S29: Ca | T29: P | V29: DCAD | W29: FEED COST
C30: RECOMMENDED | E30: =IF(FEEDCHECKER!#REF!="","-",FEEDCHECKER!#REF!) ->  | F30: =IF(FEEDCHECKER!#REF!="","-",FEEDCHECKER!#REF!) ->  | H30: =IF(FEEDCHECKER!#REF!="","-",FEEDCHECKER!#REF!) ->  | I30: >35 | J30: <38 | K30: <30 | L30: <6 | N30: >0.12 | O30: >1.2 | P30: >0.50 | Q30: >0.25 | R30: >0.30 | S30: <0.5,>2.0 | T30: 0.25-0.45 | V30: <0 | W30: $/Cow/d | X30: $/Mob/d
C32: CURRENT | E32: =IF(FEEDCHECKER!#REF!="","-",FEEDCHECKER!#REF!) ->  | F32: =IF(FEEDCHECKER!#REF!="","-",FEEDCHECKER!#REF!) ->  | H32: =IF(FEEDCHECKER!#REF!="","-",FEEDCHECKER!#REF!) ->  | I32: =IF(FEEDCHECKER!#REF!="","-",FEEDCHECKER!#REF!) ->  | J32: =IF(FEEDCHECKER!#REF!="","-",FEEDCHECKER!#REF!) ->  | K32: =IF(FEEDCHECKER!#REF!="","-",FEEDCHECKER!#REF!) ->  | L32: =IF(FEEDCHECKER!#REF!="","-",FEEDCHECKER!#REF!) ->  | N32: =FEEDCHECKER!#REF! ->  | O32: =FEEDCHECKER!#REF! ->  | P32: =FEEDCHECKER!#REF! ->  | Q32: =FEEDCHECKER!#REF! ->  | R32: =FEEDCHECKER!#REF! ->  | S32: =FEEDCHECKER!#REF! ->  | T32: =FEEDCHECKER!#REF! ->  | V32: =IF(FEEDCHECKER!$BT$9="YES",FEEDCHECKER!#REF!,"") ->  | W32: =IF(FEEDCHECKER!$Q$35="YES",FEEDCHECKER!#REF!,"") ->  | X32: =IF(FEEDCHECKER!$Q$35="YES",FEEDCHECKER!AQ72,"") -> 
C34: PROPOSED | E34: =IF(FEEDCHECKER!#REF!="","-",FEEDCHECKER!#REF!) ->  | F34: =IF(FEEDCHECKER!#REF!="","-",FEEDCHECKER!#REF!) ->  | H34: =IF(FEEDCHECKER!#REF!="","-",FEEDCHECKER!#REF!) ->  | I34: =IF(FEEDCHECKER!#REF!="","-",FEEDCHECKER!#REF!) ->  | J34: =IF(FEEDCHECKER!#REF!="","-",FEEDCHECKER!#REF!) ->  | K34: =IF(FEEDCHECKER!#REF!="","-",FEEDCHECKER!#REF!) ->  | L34: =IF(FEEDCHECKER!#REF!="","-",FEEDCHECKER!#REF!) ->  | N34: =FEEDCHECKER!#REF! ->  | O34: =FEEDCHECKER!#REF! ->  | P34: =FEEDCHECKER!#REF! ->  | Q34: =FEEDCHECKER!#REF! ->  | R34: =FEEDCHECKER!#REF! ->  | S34: =FEEDCHECKER!#REF! ->  | T34: =FEEDCHECKER!BT18 -> 0 | V34: =IF(FEEDCHECKER!$BT$9="YES",FEEDCHECKER!#REF!,"") ->  | W34: =IF(FEEDCHECKER!$Q$35="YES",FEEDCHECKER!AN72,"") ->  | X34: =IF(FEEDCHECKER!$Q$35="YES",FEEDCHECKER!AP79,"") -> 

Sheet SUMMARISE (hidden)
B2: FARM INFO | E2: TODAY | F2: =' ASK '!K2 -> 2022-12-06 | H2: Date for calculations | J2: =IF(' ASK '!$Q$2="",$F$2,' ASK '!$Q$2) -> 2022-12-06
C4: FARM | H4: COWS | L4: PASTURE | P4: CROPS/FORAGE/SUPPLEMENT on hand/contract
S5: tonne
C6: =' ASK '!E7 -> PLATFORM SIZE (Effective Ha) | F6: =IF(' ASK '!$E$8="","-",' ASK '!$E$8) -> 100 | H6: =' ASK '!K7 -> BREED | J6: =IF(' ASK '!$K$8="","-",' ASK '!$K$8) -> Friesian | L6: =' ASK '!Q7 -> CURRENT TOTAL GRAZABLE AREA (ha) | N6: =IF(' ASK '!$Q$8="","-",' ASK '!$Q$8) -> 90 | P6: Feed 1 | Q6: =IF(' ASK '!$Y$8="","-",' ASK '!$Y$8) -> Hay pasture good | S6: =IF(' ASK '!$AA$8="","-",' ASK '!$AA$8) -> 14
C7: =' ASK '!E10 -> TERRAIN | F7: =' ASK '!$E$11 -> flat | H7: =' ASK '!K10 -> AVERAGE LIVEWEIGHT | J7: =' ASK '!$K$11 -> 600 | L7: =' ASK '!Q10 -> AREA GRAZED/DAY (ha) all mobs | N7: =IF(' ASK '!$Q$11="","-",' ASK '!$Q$11) -> 3 | P7: Feed 2 | Q7: =IF(' ASK '!$Y$11="","-",' ASK '!$Y$11) -> Barley | S7: =IF(' ASK '!$AA$11="","-",' ASK '!$AA$11) -> 10
C8: =' ASK '!#REF! ->  | F8: =IF(' ASK '!#REF!="","-",' ASK '!#REF!) ->  | H8: =' ASK '!K13 -> STAGE OF LACTATION | J8: =IF(' ASK '!$K$14="","-",' ASK '!$K$14) -> Late | L8: =' ASK '!Q13 -> AVERAGE PASTURE COVER | N8: =IF(' ASK '!$Q$14="","-",' ASK '!$Q$14) -> 2400 | P8: Feed 3 | Q8: =IF(' ASK '!$Y$14="","-",' ASK '!$Y$14) -> Chicory | S8: =IF(' ASK '!$AA$14="","-",' ASK '!$AA$14) -> 20
C9: =' ASK '!E13 -> PLANNED START OF CALVING (PSC) | F9: =IF(' ASK '!$E$14="","-",' ASK '!$E$14) -> 2017-07-01 | H9: =' ASK '!K16 -> TOTAL COWS (at peak) | J9: =IF(' ASK '!$K$17="","-",' ASK '!$K$17) -> 330 | L9: MJME | N9: =IF('ASSESS & COMPARE'!Z27="","-",'ASSESS & COMPARE'!Z27) -> - | P9: Feed 4 | Q9: =IF(' ASK '!$Y$17="","-",' ASK '!$Y$17) -> PKE | S9: =IF(' ASK '!$AA$17="","-",' ASK '!$AA$17) -> 5
H10: =' ASK '!K19 -> COWS ON FARM NOW | J10: =IF(' ASK '!$K$20="","-",' ASK '!$K$20) -> 280 | P10: Feed 5 | Q10: =IF(' ASK '!$Y$20="","-",' ASK '!$Y$20) -> CaCO3, %DM | S10: =IF(' ASK '!$AA$20="","-",' ASK '!$AA$20) -> 0.2
H11: =' ASK '!K22 -> BCS (herd avg) | J11: =IF(' ASK '!$K$23="","-",' ASK '!$K$23) -> 4 | P11: Feed 6 | Q11: =IF(' ASK '!$Y$23="","-",' ASK '!$Y$23) -> Maize grain | S11: =IF(' ASK '!$AA$23="","-",' ASK '!$AA$23) -> 8
P12: Minerals with conc. supplement Y/N? | S12: =IF(' ASK '!$AA$26="","-",' ASK '!$AA$26) -> NO
C13: STATS
C14: =' ASK '!K33 -> Stocking rate at peak (cows/ha) | F14: =' ASK '!M33 -> 3.3 | H14: =' ASK '!K34 -> kg LWT/ha | J14: =' ASK '!M34 -> 1980 | L14: =' ASK '!Q34 -> Weeks until PSC | M14: =' ASK '!S34 -> -283.4285714
C15: =' ASK '!Q33 -> Rotation length | F15: =' ASK '!S33 -> 30 | H15: =' ASK '!#REF! ->  | J15: =' ASK '!#REF! -> 
B18: MOB INFO
C20: COWS | F20: MOB | I20: FEED ON HAND/CONTRACT | N20: OPTION 1 | P20: OPTION 2
L21: Feeding method | N21: kg DM/cow/d | O21: t/mob/d | P21: kg DM/cow/d | Q21: t/mob/d
C22: ='ASSESS & COMPARE'!C7 -> Stage of lactation | F22: =IF('ASSESS & COMPARE'!G7="","-",'ASSESS & COMPARE'!G7) -> Late | I22: =IF('ASSESS & COMPARE'!E27="","-",'ASSESS & COMPARE'!E27) -> Pasture autumn and winter | L22: =IF('ASSESS & COMPARE'!G27="","-",'ASSESS & COMPARE'!G27) -> - | N22: =IF('ASSESS & COMPARE'!J27="","-",'ASSESS & COMPARE'!J27) -> 12 | O22: =IF($N$22="-","-",($F$23*$N$22)/1000) -> 1.8 | P22: =IF('ASSESS & COMPARE'!L28="","-",'ASSESS & COMPARE'!L28) -> - | Q22: =IF($P$22="-","-",($F$23*$P$22)/1000) -> -
C23: ='ASSESS & COMPARE'!I6 -> Cows in mob | F23: =IF('ASSESS & COMPARE'!O6="","-",'ASSESS & COMPARE'!O6) -> 150 | I23: =IF('ASSESS & COMPARE'!E30="","-",'ASSESS & COMPARE'!E30) -> Hay pasture good | L23: =IF('ASSESS & COMPARE'!G30="","-",'ASSESS & COMPARE'!G30) -> - | N23: =IF('ASSESS & COMPARE'!J30="","-",'ASSESS & COMPARE'!J30) -> - | O23: =IF($N$23="-","-",($F$23*$N$23)/1000) -> - | P23: =IF('ASSESS & COMPARE'!L31="","-",'ASSESS & COMPARE'!L31) -> - | Q23: =IF($P$23="-","-",($F$23*$P$23)/1000) -> -
C24: ='ASSESS & COMPARE'!I7 -> Milk solids (kg MS/cow/day) | F24: =IF('ASSESS & COMPARE'!O7="","-",'ASSESS & COMPARE'!O7) -> 1.1 | I24: =IF('ASSESS & COMPARE'!E33="","-",'ASSESS & COMPARE'!E33) -> Barley | L24: =IF('ASSESS & COMPARE'!G33="","-",'ASSESS & COMPARE'!G33) -> - | N24: =IF('ASSESS & COMPARE'!J33="","-",'ASSESS & COMPARE'!J33) -> - | O24: =IF($N$24="-","-",($F$23*$N$24)/1000) -> - | P24: =IF('ASSESS & COMPARE'!L34="","-",'ASSESS & COMPARE'!L34) -> - | Q24: =IF($P$24="-","-",($F$23*$P$24)/1000) -> -
C25: ='ASSESS & COMPARE'!C9 -> Estimated BCS loss/gain next month | F25: =IF('ASSESS & COMPARE'!G9="","-",'ASSESS & COMPARE'!G9) -> -0.1 | I25: =IF('ASSESS & COMPARE'!E36="","-",'ASSESS & COMPARE'!E36) -> Chicory | L25: =IF('ASSESS & COMPARE'!G36="","-",'ASSESS & COMPARE'!G36) -> - | N25: =IF('ASSESS & COMPARE'!J36="","-",'ASSESS & COMPARE'!J36) -> - | O25: =IF($N$25="-","-",($F$23*$N$25)/1000) -> - | P25: =IF('ASSESS & COMPARE'!L37="","-",'ASSESS & COMPARE'!L37) -> - | Q25: =IF($P$25="-","-",($F$23*$P$25)/1000) -> -
I26: =IF('ASSESS & COMPARE'!E39="","-",'ASSESS & COMPARE'!E39) -> PKE | L26: =IF('ASSESS & COMPARE'!G39="","-",'ASSESS & COMPARE'!G39) -> - | N26: =IF('ASSESS & COMPARE'!J39="","-",'ASSESS & COMPARE'!J39) -> - | O26: =IF($N$26="-","-",($F$23*$N$26)/1000) -> - | P26: =IF('ASSESS & COMPARE'!L40="","-",'ASSESS & COMPARE'!L40) -> - | Q26: =IF($P$26="-","-",($F$23*$P$26)/1000) -> -
I27: =IF('ASSESS & COMPARE'!E42="","-",'ASSESS & COMPARE'!E42) -> CaCO3, %DM | L27: =IF('ASSESS & COMPARE'!G42="","-",'ASSESS & COMPARE'!G42) -> - | N27: =IF('ASSESS & COMPARE'!J42="","-",'ASSESS & COMPARE'!J42) -> - | O27: =IF($N$27="-","-",($F$23*$N$27)/1000) -> - | P27: =IF('ASSESS & COMPARE'!L43="","-",'ASSESS & COMPARE'!L43) -> - | Q27: =IF($P$27="-","-",($F$23*$P$27)/1000) -> -
C28: PASTURE | F28: CURRENT | I28: =IF('ASSESS & COMPARE'!E45="","-",'ASSESS & COMPARE'!E45) -> Maize grain | L28: =IF('ASSESS & COMPARE'!G45="","-",'ASSESS & COMPARE'!G45) -> - | N28: =IF('ASSESS & COMPARE'!J45="","-",'ASSESS & COMPARE'!J45) -> - | O28: =IF($N$28="-","-",($F$23*$N$28)/1000) -> - | P28: =IF('ASSESS & COMPARE'!L46="","-",'ASSESS & COMPARE'!L46) -> - | Q28: =IF($P$28="-","-",($F$23*$P$28)/1000) -> -
C30: =IF('ASSESS & COMPARE'!C15="","-",'ASSESS & COMPARE'!C15) -> Pre-grazing cover | F30: =IF('ASSESS & COMPARE'!G15="","-",'ASSESS & COMPARE'!G15) -> -
C31: =IF('ASSESS & COMPARE'!C16="","-",'ASSESS & COMPARE'!C16) -> Post-grazing residual | F31: =IF('ASSESS & COMPARE'!G16="","-",'ASSESS & COMPARE'!G16) -> - | L31: Offered (kg DM) | N31: =IF('ASSESS & COMPARE'!J49="","-",'ASSESS & COMPARE'!J49) -> - | O31: =IF($N31="-","-",($F$23*$N31)/1000) -> - | P31: =IF('ASSESS & COMPARE'!L50="","-",'ASSESS & COMPARE'!L50) -> - | Q31: =IF($P31="-","-",($F$23*$P31)/1000) -> -
C32: =IF('ASSESS & COMPARE'!C17="","-",'ASSESS & COMPARE'!C17) -> Hectares grazed/day -this mob | F32: =IF('ASSESS & COMPARE'!G17="","-",'ASSESS & COMPARE'!G17) -> - | L32: Eaten | N32: =IF('ASSESS & COMPARE'!Y49="","-",'ASSESS & COMPARE'!Y49) -> - | O32: =IF($N32="-","-",($F$23*$N32)/1000) -> - | P32: =IF('ASSESS & COMPARE'!Y50="","-",'ASSESS & COMPARE'!Y50) -> - | Q32: =IF($P32="-","-",($F$23*$P32)/1000) -> -
B35: DIET CHECK | N35: COST CHECK
E37: DM | F37: ME | H37: PROTEIN | I37: NDF | J37: SSS | K37: STARCH | L37: FAT | N37: $/Cow/d | O37: $/Mob/d
C38: RECOMMENDED | E38: =IF('ASSESS & COMPARE'!Z14="","-",'ASSESS & COMPARE'!Z14) -> - | F38: =IF('ASSESS & COMPARE'!AB14="","-",'ASSESS & COMPARE'!AB14) -> - | H38: =IF('ASSESS & COMPARE'!AE14="","-",'ASSESS & COMPARE'!AE14) -> - | I38: >35 | J38: <38 | K38: <30 | L38: <6
C40: CURRENT | E40: =IF('ASSESS & COMPARE'!Z16="","-",'ASSESS & COMPARE'!Z16) -> - | F40: =IF('ASSESS & COMPARE'!AB16="","-",'ASSESS & COMPARE'!AB16) -> - | H40: =IF('ASSESS & COMPARE'!AE16="","-",'ASSESS & COMPARE'!AE16) -> - | I40: =IF('ASSESS & COMPARE'!AH16="","-",'ASSESS & COMPARE'!AH16) -> - | J40: =IF('ASSESS & COMPARE'!AK16="","-",'ASSESS & COMPARE'!AK16) -> - | K40: =IF('ASSESS & COMPARE'!AN16="","-",'ASSESS & COMPARE'!AN16) -> - | L40: =IF('ASSESS & COMPARE'!AQ16="","-",'ASSESS & COMPARE'!AQ16) -> - | N40: =IF('ASSESS & COMPARE'!AS16="","-",'ASSESS & COMPARE'!AS16) -> - | O40: =IF('ASSESS & COMPARE'!AU16="","-",'ASSESS & COMPARE'!AU16) -> -
C42: PROPOSED | E42: =IF('ASSESS & COMPARE'!Z18="","-",'ASSESS & COMPARE'!Z18) -> - | F42: =IF('ASSESS & COMPARE'!AB18="","-",'ASSESS & COMPARE'!AB18) -> - | H42: =IF('ASSESS & COMPARE'!AE18="","-",'ASSESS & COMPARE'!AE18) -> - | I42: =IF('ASSESS & COMPARE'!AH18="","-",'ASSESS & COMPARE'!AH18) -> - | J42: =IF('ASSESS & COMPARE'!AK18="","-",'ASSESS & COMPARE'!AK18) -> - | K42: =IF('ASSESS & COMPARE'!AN18="","-",'ASSESS & COMPARE'!AN18) -> - | L42: =IF('ASSESS & COMPARE'!AQ18="","-",'ASSESS & COMPARE'!AQ18) -> - | N42: =IF('ASSESS & COMPARE'!AS18="","-",'ASSESS & COMPARE'!AS18) -> - | O42: =IF('ASSESS & COMPARE'!AU18="","-",'ASSESS & COMPARE'!AU18) -> -

Sheet Not so QUICK CHECK (hidden)
B2: INPUTS | R2: CALCULATIONS | W2: ENERGY REQUIREMENTS | AC2: OPTION 1 | AE2: OPTION 2 | AP2: KEY
AC3: MJME | AF3: MJME | BL3: Background calcs (these could be hidden or somewhere else)
W4: maintenance | AC4: =VLOOKUP(' ASK '!$K$11,'Data source'!$B$190:$C$199,2,FALSE) -> 68 | AF4: =VLOOKUP(' ASK '!$K$11,'Data source'!$B$190:$C$199,2,FALSE) -> 68 | AK4: Feed selection fron drop down list
W5: total MS production | AC5: =$G$9*$BM$11 ->  | AF5: =$K$9*$BN$11 ->  | AK5: Option 1 drop-down or enter values
B6: MOB INPUTS | G6: OPTION 1 | I6: OPTION 2 | W6: daily BCS gain/loss | AC6: =IF($G$11<0,$BR$8,IF($G$11>0,$BR$9,0)) -> -4.8692 | AF6: =IF($K$11<0,$BS$8,IF($K$11>0,$BS$9,0)) -> 0 | AK6: Option 2 drop-down or enter values | BM6: Current | BN6: Proposed | BR6: Current | BS6: Proposed | BV6: Current | BX6: Proposed
D7: Stage of lactation | G7: mid | I7: mid | K7: =IF($I7="-",$G7,$I7) -> mid | W7: pregnancy | AC7: =BM12 -> 51 | AF7: =BN12 -> 51 | AK7: Calculated value | AQ7: 10 | BL7: stage of lactation | BM7: =VLOOKUP(G7,'Data source'!$B$251:$AN$255,2,FALSE) -> 16 | BN7: =VLOOKUP(K7,'Data source'!$B$251:$AN$255,2,FALSE) -> 16 | BP7: change LWT/d | BR7: =ABS(' ASK '!$K$11*0.0658*$G$11)/30 -> 0.1316 | BS7: =ABS(' ASK '!$K$11*0.0658*$K$11)/30 -> 0 | BU7: Average ME of diet (MJ ME) | BV7: =$V$15/$S$52 ->  | BX7: =$W$17/S53 -> 
D8: Cows in mob | G8: 130 | I8: 150 | K8: =IF(I8>0,I8,G8) -> 150 | W8: total activity | AC8: =$BM$13*' ASK '!#REF! ->  | AF8: =$BN$13*' ASK '!#REF! ->  | AK8: Out of recommended range | BL8: breed | BM8: =IF(' ASK '!$K$8="Jersey","j",IF(' ASK '!$K$8="Friesian","f",IF(' ASK '!$K$8="cross-bred","x","-"))) -> f | BN8: =IF(' ASK '!$K$8="Jersey","j",IF(' ASK '!$K$8="Friesian","f",IF(' ASK '!$K$8="cross-bred","x","-"))) -> f | BP8: ME loss/d | BR8: =IF($G$7="dry",$BR$7*-30,$BR$7*-37) -> -4.8692 | BS8: =IF($K$7="dry",$BS$7*-30,$BS$7*-37) -> 0 | BU8: Total DMI requirements (kg DM) | BV8: =$AC$9/$BV$7 ->  | BX8: =AF9/$BX$7 -> 
D9: Milk solids (kg MS/cow/day) | G9: 1.2 | I9: 1.1 | K9: =IF(I9>0,I9,G9) -> 1.1 | W9: Total ME requirements | AC9: =SUM(AC4:AC8) ->  | AF9: =SUM(AF4:AF8) ->  | BL9: energy density of diet | BM9: =IF($BV$7<10.5,1,IF(AND($BV$7>10.5,$BV$7<11.5),2,IF($BV$7>11.5,3,FALSE))) ->  | BN9: =IF($BX$7<10.5,1,IF(AND($BX$7>10.5,$BX$7<11.5),2,IF($BX$7>11.5,3,FALSE))) ->  | BP9: ME gain/d | BR9: =IF($G$7="dry",$BR$7*72,$BR$7*50) -> 6.58 | BS9: =IF($K$7="dry",$BS$7*72,$BS$7*50) -> 0 | BU9: Difference in ME intake (MJ) | BV9: =V15-$AC$9 ->  | BX9: =$W$17-AF9 -> 
D10: Daily walking distance (km) | G10: 3 | I10: 3 | K10: =IF(I10>0,I10,G10) -> 3 | BL10: wk precalving | BM10: =IF(' ASK '!$S$34>12,"12+",' ASK '!$S$34) -> -283.4285714 | BN10: =IF(' ASK '!$S$34>12,"12+",' ASK '!$S$34) -> -283.4285714 | BP10: DM difference | BR10: =BV10 ->  | BS10: =BX10 ->  | BU10: Difference in DMI (kg DM) | BV10: =$BV$9/$BV$7 ->  | BX10: =$BX$9/$BX$7 -> 
D11: Monthly BCS loss/gain | G11: -0.1 | I11: 0 | K11: =IF($I11="-",$G11,$I11) -> 0 | P11: DIET CHECK | AO11: COST CHECK | BL11: milk production | BM11: =IF(AND($BM$9=1,$BM$8="j"),76,IF(AND($BM$9=2,$BM$8="j"),73,IF(AND($BM$9=3,$BM$8="j"),70,IF(AND($BM$9=1,$BM$8="x"),79,IF(AND($BM$9=2,$BM$8="x"),75,IF(AND($BM$9=3,$BM$8="x"),73,IF(AND($BM$9=1,$BM$8="f"),81,IF(AND($BM$9=2,$BM$8="f"),77,IF(AND($BM$9=3,$BM$8="f"),75,FALSE))))))))) ->  | BN11: =IF(AND($BN$9=1,$BN$8="j"),76,IF(AND($BN$9=2,$BN$8="j"),73,IF(AND($BN$9=3,$BN$8="j"),70,IF(AND($BN$9=1,$BN$8="x"),79,IF(AND($BN$9=2,$BN$8="x"),75,IF(AND($BN$9=3,$BN$8="x"),73,IF(AND($BN$9=1,$BN$8="f"),81,IF(AND($BN$9=2,$BN$8="f"),77,IF(AND($BN$9=3,$BN$8="f"),75,FALSE))))))))) ->  | BP11: Bypass | BR11: 0.35 | BS11: 0.35
T12: DM | U12: @MJME | V12: ME Curr. | W12: ME Prop. | Z12: PROTEIN | AC12: NDF | AF12: SSS | AI12: STARCH | AL12: FAT | AP12: $/Cow per day | AR12: $/Mob per day | BL12: pregnancy | BM12: =IF($BM$10="12+",0,IF(AND($BM$10<=2,$BM$8="j"),40,IF(AND($BM$10<=4,$BM$8="j"),30,IF(AND($BM$10<=8,$BM$8="j"),17,IF(AND($BM$10<=12,$BM$8="j"),10,IF(AND($BM$10<=2,$BM$8="x"),45,IF(AND($BM$10<=4,$BM$8="x"),35,IF(AND($BM$10<=8,$BM$8="x"),20,IF(AND($BM$10<=12,$BM$8="x"),11,IF(AND($BM$10<=2,$BM$8="f"),51,IF(AND($BM$10<=4,$BM$8="f"),39,IF(AND($BM$10<=8,$BM$8="f"),22,IF(AND($BM$10<=12,$BM$8="f"),12,))))))))))))) -> 51 | BN12: =IF($BN$10="12+",0,IF(AND($BN$10<=2,$BN$8="j"),40,IF(AND($BN$10<=4,$BN$8="j"),30,IF(AND($BN$10<=8,$BN$8="j"),17,IF(AND($BN$10<=12,$BN$8="j"),10,IF(AND($BN$10<=2,$BN$8="x"),45,IF(AND($BN$10<=4,$BN$8="x"),35,IF(AND($BN$10<=8,$BN$8="x"),20,IF(AND($BN$10=12,$BN$8="x"),11,IF(AND($BN$10<2.01,$BN$8="f"),51,IF(AND($BN$10<=4,$BN$8="f"),39,IF(AND($BN$10<=8,$BN$8="f"),22,IF(AND($BN$10<=12,$BN$8="f"),12,))))))))))))) -> 51 | BP12: Soluble | BR12: 0.32 | BS12: 0.32
Q13: RECOMMENDED | T13: =BV8 ->  | U13: =BV$7 ->  | V13: =$AC$9 ->  | W13: =$AF$9 ->  | Z13: =BM7 -> 16 | AC13: >35 | AF13: <38 | AI13: <30 | AL13: <6 | BL13: per kg walked | BM13: =VLOOKUP(' ASK '!$E$11,'Data source'!$B$209:$C$212,2,FALSE) -> 2 | BN13: =VLOOKUP(' ASK '!$E$11,'Data source'!$B$209:$C$212,2,FALSE) -> 2 | BP13: Degradable | BR13: 0.65 | BS13: 0.65
B14: PASTURE QUALITY
G15: MJME | I15: adjust MJME? | Q15: OPTION 1 | T15: =S52 ->  | U15: =BV$7 ->  | V15: =V52 ->  | Z15: =Z52 ->  | AC15: =AC52 ->  | AF15: =AF52 ->  | AI15: =AI52 ->  | AL15: =AL52 ->  | AP15: =AT52 ->  | AR15: =AQ52 -> 
D16: Pasture summer stalky | G16: =IF(D16="-","",VLOOKUP(D16,'Data source'!$B$15:$I$99,3,FALSE)) ->  | I16: 9.5 | K16: =IF(I16>0,I16,G16) -> 9.5 | L16: = | S16: diff | T16: =T15-T13 ->  | V16: =V15-V13 -> 
K17: =IF(I17>0,I17,G17) -> 0 | Q17: OPTION 2 | T17: =S53 ->  | U17: =BX7 ->  | W17: =V53 ->  | Z17: =Z53 ->  | AC17: =AC53 ->  | AF17: =AF53 ->  | AI17: =AI53 ->  | AL17: =AL53 ->  | AP17: =AT53 ->  | AR17: =AQ53 -> 
S18: diff | T18: =T17-T13 ->  | W18: =W17-W13 -> 
B21: ENERGY SUPPLY | T21: ENERGY | AE21: COMPOSITION | AR21: COST OF FEED | AW21: CRUDE PROTEIN BREAKDOWN
G22: OPTION 1 | I22: OPTION 2 | V22: ME | Y22: Crude protein | AB22: NDF | AE22: SSS | AH22: Starch | AK22: Fat | AP22: Feed | AQ22: Wt | AR22: Eaten | AS22: Eaten | AT22: Cost | AX22: % of | AZ22: undegradable | BC22: soluable | BF22: degradable
B23: FEED | D23: FEEDING METHOD | G23: KgDM | I23: KgDM | R23: Util. | S23: Eaten | T23: ME | U23: DM% | V23: in diet | Y23: % DM | Z23: % diet | AB23: % DM | AC23: % diet | AE23: % DM | AF23: % diet | AH23: % S | AI23: % diet | AK23: % DM | AL23: % diet | AP23: $/t | AQ23: Wet/Dry | AR23: c/kg DM | AS23: c/MJ ME | AT23: $/Cow | AX23: diet | AZ23: % | BA23: Total % | BC23: % | BD23: Total % | BF23: % | BG23: Total %
B24: =D16 -> Pasture summer stalky | D24: grazing - good conditions | G24: 8 | L24: =IF(OR($D$16="-",$D24="-",$G24=0),0,G24) -> 8 | R24: =IF(OR($D16="-",$D24="-",$G24=0),"",VLOOKUP($D24,'Data source'!$B$122:$C$125,2,FALSE)) -> 0.9 | S24: =IF(OR(D16="-",$D24="-",$G24=0),"",G24*R24) -> 7.2 | T24: =K16 -> 9.5 | U24: =IF(OR($D16="-",$D24="-",$G24=0),"",VLOOKUP($D16,'Data source'!$B$15:$I$99,2,FALSE)) ->  | V24: =IF(OR($D16="-",$D24="-",$G24=0),"",S24*T24) -> 68.4 | Y24: =IF(OR($D16="-",$D24="-",$G24=0),"",VLOOKUP($D16,'Data source'!$B$15:$I$99,4,FALSE)) ->  | Z24: =IF(OR($D16="-",$D24="-",$G24=0),"",(($S24/$S$52)*Y24)) ->  | AB24: =IF(OR($D16="-",$D24="-",$G24=0),"",VLOOKUP($D16,'Data source'!$B$15:$I$99,5,FALSE)) ->  | AC24: =IF(OR($D16="-",$D24="-",$G24=0),"",(($S24/$S$52)*AB24)) ->  | AE24: =IF(OR($D16="-",$D24="-",$G24=0),"",VLOOKUP($D16,'Data source'!$B$15:$I$99,6,FALSE)) ->  | AF24: =IF(OR($D16="-",$D24="-",$G24=0),"",(($S24/$S$52)*AE24)) ->  | AH24: =IF(OR($D16="-",$D24="-",$G24=0),"",VLOOKUP($D16,'Data source'!$B$15:$I$99,7,FALSE)) ->  | AI24: =IF(OR($D16="-",$D24="-",$G24=0),"",(($S24/$S$52)*AH24)) ->  | AK24: =IF(OR($D16="-",$D24="-",$G24=0),"",VLOOKUP($D16,'Data source'!$B$15:$I$99,8,FALSE)) ->  | AL24: =IF(OR($D16="-",$D24="-",$G24=0),"",(($S24/$S$52)*AK24)) ->  | AP24: 70 | AQ24: =IF(OR($D16="-",$D24="-",$G24=0),"",VLOOKUP($D16,'Data source'!$B$15:$M$99,12,FALSE)) ->  | AR24: =IF(OR($D16="-",$D24="-",$G24=0),"",IF($AQ24="Dry",$AP24/$R24/10,IF($AQ24="Wet",$AP24/($U24/100)*$R24/10,0))) ->  | AS24: =IF(OR($D16="-",$D24="-",$G24=0),"",AR24/T24) ->  | AT24: =IF(OR($D16="-",$D24="-",$G24=0),"",($AR24*$G24)/100) ->  | AX24: =Z24 ->  | AZ24: =IF(OR($D$16="-",$D24="-",$G24=0),"",VLOOKUP($D$16,'Data source'!$B$15:$M99,9,FALSE)) ->  | BA24: =IF(OR($AX24="",$AZ24=""),"",$AX24*$AZ24) ->  | BC24: =IF(OR($D16="-",$D24="-",$G24=0),"",VLOOKUP($D16,'Data source'!$B$15:$M$99,10,FALSE)) ->  | BD24: =IF(OR($AX24="",$BC24=""),"",$AX24*$BC24) ->  | BF24: =IF(OR($D16="-",$D24="-",$G24=0),"",VLOOKUP($D16,'Data source'!$B$15:$M$99,11,FALSE)) ->  | BG24: =IF(OR($AX24="",$BF24=""),"",$AX24*$BF24) -> 
D26: - | I26: 13 | K26: =IF(D26="-",D24,D26) -> grazing - good conditions | L26: =IF(OR($D$16="-",D24="-",$I26=0),0,I26) -> 13 | R26: =IF(OR(D16="-",$K26="-",$I26=0),"",VLOOKUP($K26,'Data source'!$B$122:$C$125,2,FALSE)) -> 0.9 | S26: =IF(OR($D16="-",K26="-",$I26=0),"",$I26*$R26) -> 11.7 | T26: =K16 -> 9.5 | U26: =IF(OR(D16="-",$K26="-",$I26=""),"",VLOOKUP(D16,'Data source'!$B$15:$I$99,2,FALSE)) ->  | V26: =IF(OR(D16="-",$K26="-",$I26=""),"",$S26*$T26) -> 111.15 | Y26: =IF(OR($D16="-",$K26="-",$I26=""),"",VLOOKUP($D16,'Data source'!$B$15:$I$99,4,FALSE)) ->  | Z26: =IF(OR($D16="-",$K26="-",$I26=""),"",(($S26/$S$53)*$Y26)) ->  | AB26: =IF(OR($D16="-",$K26="-",$I26=0),"",VLOOKUP($D16,'Data source'!$B$15:$I$99,5,FALSE)) ->  | AC26: =IF(OR($D16="-",$K26="-",$I26=0),"",(($S26/$S$53)*AB26)) ->  | AE26: =IF(OR($D16="-",$K26="-",$I26=0),"",VLOOKUP($D16,'Data source'!$B$15:$I$99,6,FALSE)) ->  | AF26: =IF(OR($D16="-",$K26="-",$I26=0),"",(($S26/$S$53)*AE26)) ->  | AH26: =IF(OR($D16="-",$K26="-",$I26=0),"",VLOOKUP($D16,'Data source'!$B$15:$I$99,7,FALSE)) ->  | AI26: =IF(OR($D16="-",$K26="-",$I26=0),"",(($S26/$S$53)*AH26)) ->  | AK26: =IF(OR($D16="-",$K26="-",$I26=0),"",VLOOKUP($D16,'Data source'!$B$15:$I$99,8,FALSE)) ->  | AL26: =IF(OR($D16="-",$K26="-",$I26=0),"",(($S26/$S$53)*AK26)) ->  | AQ26: =IF(OR($D16="-",$K26="-",$I26=0),"",VLOOKUP($D16,'Data source'!$B$15:$M$99,12,FALSE)) ->  | AR26: =IF(OR($D16="-",$K26="-",$I26=0),"",IF($AQ26="Dry",$AP24/$R26/10,IF($AQ26="Wet",$AP24/($U26/100)*$R26/10,0))) ->  | AS26: =IF(OR($D16="-",$K26="-",$I26=0),"",AR26/T26) ->  | AT26: =IF(OR($D16="-",$K26="-",$I26=0),"",($AR26*$I26)/100) ->  | AX26: =Z26 ->  | AZ26: =IF(OR($D$16="-",$K26="-",$I26=0),"",VLOOKUP($D$16,'Data source'!$B$15:$M188,9,FALSE)) ->  | BA26: =IF(OR(AX26="",AZ26=""),"",AX26*AZ26) ->  | BC26: =IF(OR($D$16="-",$K26="-",$I26=0),"",VLOOKUP($D$16,'Data source'!$B$15:$M188,10,FALSE)) ->  | BD26: =IF(OR($AX26="",$BC26=""),"",$AX26*$BC26) ->  | BF26: =IF(OR($D$16="-",$K26="-",$I26=0),"",VLOOKUP($D$16,'Data source'!$B$15:$M188,11,FALSE)) ->  | BG26: =IF(OR($AX26="",$BF26=""),"",$AX26*$BF26) -> 
BD27: =IF(OR($AX27="",$BC27=""),"",$AX27*$BC27) ->  | BG27: =IF(OR($AX27="",$BF27=""),"",$AX27*$BF27) -> 
A28: Feed 1 | B28: silage lucerne | D28: grazing - good conditions | G28: 2 | L28: =IF(OR($D$16="-",$D28="-",$G28=0),0,G28) -> 2 | R28: =IF(OR($B28="-",K30="-",$G28="-"),"",VLOOKUP(D28,'Data source'!$B$127:$C$137,2,FALSE)) ->  | S28: =IF(OR($B$28="-",D28="-",$G$28="-"),"",$G$28*$R$28) ->  | T28: =IF(OR($B$28="-",D28="-",$G$28="-"),"",VLOOKUP($B$28,'Data source'!$B$15:$I$99,3,FALSE)) ->  | U28: =IF(OR($B$28="-",D28="-",$G$28="-"),"",VLOOKUP($B$28,'Data source'!$B$15:$I$99,2,FALSE)) ->  | V28: =IF(OR($B$28="-",D28="-",$G$28="-"),"",$S$28*$T$28) ->  | Y28: =IF(OR($B$28="-",D28="-",$G$28="-"),"",VLOOKUP($B$28,'Data source'!$B$15:$I$99,4,FALSE)) ->  | Z28: =IF(OR($B$28="-",D28="-",$G$28="-"),"",(($S$28/$S$52)*$Y$28)) ->  | AB28: =IF(OR($B28="-",D28="-",$G28="-"),"",VLOOKUP($B28,'Data source'!$B$15:$I$99,5,FALSE)) ->  | AC28: =IF(OR($B28="-",D28="-",$G28="-"),"",(($S28/$S$52)*AB28)) ->  | AE28: =IF(OR($B28="-",D28="-",$G28="-"),"",VLOOKUP($B28,'Data source'!$B$15:$I$99,6,FALSE)) ->  | AF28: =IF(OR($B28="-",D28="-",$G28="-"),"",(($S28/$S$52)*AE28)) ->  | AH28: =IF(OR($B28="-",D28="-",$G28="-"),"",VLOOKUP($B28,'Data source'!$B$15:$I$99,7,FALSE)) ->  | AI28: =IF(OR($B28="-",D28="-",$G28="-"),"",(($S28/$S$52)*AH28)) ->  | AK28: =IF(OR($B28="-",D28="-",$G28="-"),"",VLOOKUP($B28,'Data source'!$B$15:$I$99,8,FALSE)) ->  | AL28: =IF(OR($B28="-",D16="-",$G28="-"),"",(($S28/$S$52)*AK28)) ->  | AP28: 150 | AQ28: =IF(OR($B28="-",D28="-",$G28="-"),"",VLOOKUP($B28,'Data source'!$B$15:$M$99,12,FALSE)) ->  | AR28: =IF(OR($B28="-",D28="-",$G28="-"),"",IF($AQ28="Dry",$AP28/$R28/10,IF($AQ28="Wet",$AP28/($U28/100)*$R28/10,0))) ->  | AS28: =IF(OR($B28="-",D28="-",$G28="-"),"",AR28/T28) ->  | AT28: =IF(OR($B28="-",D28="-",$G28="-"),"",($AR28*$G28)/100) ->  | AX28: =Z28 ->  | AZ28: =IF(OR($B28="-",$D28="-",$G28=0),"",VLOOKUP($B28,'Data source'!$B$15:$M$99,9,FALSE)) ->  | BC28: =IF(OR($B28="-",$D28="-",$G28=0),"",VLOOKUP($B28,'Data source'!$B$15:$M$99,10,FALSE)) ->  | BD28: =IF(OR($AX28="",$BC28=""),"",$AX28*$BC28) ->  | BF28: =IF(OR($B28="-",$D28="-",$G28=0),"",VLOOKUP($B28,'Data source'!$B$15:$M$99,11,FALSE)) ->  | BG28: =IF(OR($AX28="",$BF28=""),"",$AX28*$BF28) -> 
D30: - | I30: 5 | K30: =IF(D28="-",#REF!,D28) -> grazing - good conditions | L30: =IF(OR($D$16="-",D28="-",$I30=0),0,I30) -> 5 | R30: =IF(OR($B28="-",$K30="-",$I30<=0),"",VLOOKUP($K30,'Data source'!$B$127:$C$137,2,FALSE)) ->  | S30: =IF(OR($B28="-",$K30="-",$I30<=0),"",$I30*$R30) ->  | T30: =IF(OR($B28="-",$K30="-",$I30<=0),"",VLOOKUP($B28,'Data source'!$B$15:$I$99,3,FALSE)) ->  | U30: =IF(OR($B28="-",$K30="-",$I30<=0),"",VLOOKUP($B28,'Data source'!$B$15:$I$99,2,FALSE)) ->  | V30: =IF(OR($B28="-",$K30="-",$I30<=0),"",$S30*$T30) ->  | Y30: =IF(OR($B28="-",$K30="-",$I30<=0),"",VLOOKUP($B28,'Data source'!$B$15:$I$99,4,FALSE)) ->  | Z30: =IF(OR($B28="-",$K30="-",$I30<=0),"",(($S30/$S$53)*$Y30)) ->  | AB30: =IF(OR($B28="-",$K30="-",$I30<=0),"",VLOOKUP($B28,'Data source'!$B$15:$I$99,5,FALSE)) ->  | AC30: =IF(OR($B28="-",$K30="-",$I30<=0),"",(($S30/$S$53)*AB30)) ->  | AE30: =IF(OR($B28="-",$K30="-",$I30<=0),"",VLOOKUP($B28,'Data source'!$B$15:$I$99,6,FALSE)) ->  | AF30: =IF(OR($B28="-",$K30="-",$I30<=0),"",(($S30/$S$53)*AE30)) ->  | AH30: =IF(OR($B28="-",$K30="-",$I30<=0),"",VLOOKUP($B28,'Data source'!$B$15:$I$99,7,FALSE)) ->  | AI30: =IF(OR($B28="-",$K30="-",$I30<=0),"",(($S30/$S$53)*AH30)) ->  | AK30: =IF(OR($B28="-",$K30="-",$I30<=0),"",VLOOKUP($B28,'Data source'!$B$15:$I$99,8,FALSE)) ->  | AL30: =IF(OR($B28="-",$K30="-",$I30<=0),"",(($S30/$S$53)*AK30)) ->  | AQ30: =IF(OR($B28="-",$K30="-",$I30=0),"",VLOOKUP($B28,'Data source'!$B$15:$M$99,12,FALSE)) ->  | AR30: =IF(OR($B28="-",$K30="-",$I30=0),"",IF($AQ30="Dry",$AP28/$R30/10,IF($AQ30="Wet",$AP28/($U30/100)*$R30/10,0))) ->  | AS30: =IF(OR($B28="-",$K30="-",$I30=0),"",AR30/T30) ->  | AT30: =IF(OR($B28="-",$K30="-",$I30=0),"",($AR30*$I30)/100) ->  | AX30: =Z30 ->  | AZ30: =IF(OR($B28="-",$K30="-",$I30=0),"",VLOOKUP($B28,'Data source'!$B$15:$M$99,9,FALSE)) ->  | BC30: =IF(OR($B28="-",$K30="-",$I30=0),"",VLOOKUP($B28,'Data source'!$B$15:$M$99,10,FALSE)) ->  | BD30: =IF(OR($AX30="",$BC30=""),"",$AX30*$BC30) ->  | BF30: =IF(OR($B28="-",$K30="-",$I30=0),"",VLOOKUP($B28,'Data source'!$B$15:$M$99,11,FALSE)) ->  | BG30: =IF(OR($AX30="",$BF30=""),"",$AX30*$BF30) -> 
A32: Feed 2 | B32: Apple pomace | D32: grazing - good conditions | G32: 2 | L32: =IF(OR($D$16="-",$D32="-",$G32=0),0,G32) -> 2 | R32: =IF(OR($B32="-",$D32="-",$G32="-"),"",VLOOKUP($D32,'Data source'!$B$127:$C$137,2,FALSE)) ->  | S32: =IF(OR($B32="-",$D32="-",$G32="-"),"",G32*R32) ->  | T32: =IF(OR($B32="-",$D32="-",$G32="-"),"",VLOOKUP($B32,'Data source'!$B$15:$I$99,3,FALSE)) -> 10.4 | U32: =IF(OR($B32="-",$D32="-",$G32="-"),"",VLOOKUP($B32,'Data source'!$B$15:$I$99,2,FALSE)) -> 22 | V32: =IF(OR($B32="-",$D32="-",$G32="-"),"",S32*T32) ->  | Y32: =IF(OR($B32="-",$D32="-",$G32="-"),"",VLOOKUP($B32,'Data source'!$B$15:$I$99,4,FALSE)) -> 5.4 | Z32: =IF(OR($B32="-",$D32="-",$G32="-"),"",(($S32/$S$52)*Y32)) ->  | AB32: =IF(OR($B32="-",$D32="-",$G32="-"),"",VLOOKUP($B32,'Data source'!$B$15:$I$99,5,FALSE)) -> 41 | AC32: =IF(OR($B32="-",$D32="-",$G32="-"),"",(($S32/$S$52)*AB32)) ->  | AE32: =IF(OR($B32="-",$D32="-",$G32="-"),"",VLOOKUP($B32,'Data source'!$B$15:$I$99,6,FALSE)) -> 44 | AF32: =IF(OR($B32="-",$D32="-",$G32="-"),"",(($S32/$S$52)*AE32)) ->  | AH32: =IF(OR($B32="-",$D32="-",$G32="-"),"",VLOOKUP($B32,'Data source'!$B$15:$I$99,7,FALSE)) -> 100 | AI32: =IF(OR($B32="-",$D32="-",$G32="-"),"",(($S32/$S$52)*AH32)) ->  | AK32: =IF(OR($B32="-",$D32="-",$G32="-"),"",VLOOKUP($B32,'Data source'!$B$15:$I$99,8,FALSE)) -> 4.7 | AL32: =IF(OR($B32="-",$D32="-",$G32="-"),"",(($S32/$S$52)*AK32)) ->  | AP32: 125 | AQ32: =IF(OR($B32="-",$D32="-",$G32="-"),"",VLOOKUP($B32,'Data source'!$B$15:$M$99,12,FALSE)) -> Wet | AR32: =IF(OR($B32="-",$D32="-",$G32="-"),"",IF($AQ32="Dry",$AP32/$R32/10,IF($AQ32="Wet",$AP32/($U32/100)*$R32/10,0))) ->  | AS32: =IF(OR($B32="-",$D32="-",$G32="-"),"",AR32/T32) ->  | AT32: =IF(OR($B32="-",$D32="-",$G32="-"),"",($AR32*$G32)/100) ->  | AX32: =Z32 ->  | AZ32: =IF(OR($B32="-",$D32="-",$G32=0),"",VLOOKUP($B32,'Data source'!$B$15:$M$99,9,FALSE)) -> 51 | BC32: =IF(OR($B32="-",$D32="-",$G32=0),"",VLOOKUP($B32,'Data source'!$B$15:$M$99,10,FALSE)) -> 11 | BD32: =IF(OR($AX32="",$BC32=""),"",$AX32*$BC32) ->  | BF32: =IF(OR($B32="-",$D32="-",$G32=0),"",VLOOKUP($B32,'Data source'!$B$15:$M$99,11,FALSE)) -> 49 | BG32: =IF(OR($AX32="",$BF32=""),"",$AX32*$BF32) -> 
D34: - | I34: 0 | K34: =IF(D34="-",D32,D34) -> grazing - good conditions | L34: =IF(OR($D$16="-",D32="-",$I34=0),0,I34) -> 0 | R34: =IF(OR($B32="-",$K34="-",$I34<=0),"",VLOOKUP($K34,'Data source'!$B$127:$C$137,2,FALSE)) ->  | S34: =IF(OR($B32="-",$K34="-",$I34<=0),"",$I34*$R34) ->  | T34: =IF(OR($B32="-",$K34="-",$I34<=0),"",VLOOKUP($B32,'Data source'!$B$15:$I$99,3,FALSE)) ->  | U34: =IF(OR($B32="-",$K34="-",$I34<=0),"",VLOOKUP($B32,'Data source'!$B$15:$I$99,2,FALSE)) ->  | V34: =IF(OR($B32="-",$K34="-",$I34<=0),"",$S34*$T34) ->  | Y34: =IF(OR($B32="-",$K34="-",$I34<=0),"",VLOOKUP($B32,'Data source'!$B$15:$I$99,4,FALSE)) ->  | Z34: =IF(OR($B32="-",$K34="-",$I34<=0),"",(($S34/$S$53)*$Y34)) ->  | AB34: =IF(OR($B32="-",$K34="-",$I34<=0),"",VLOOKUP($B32,'Data source'!$B$15:$I$99,5,FALSE)) ->  | AC34: =IF(OR($B32="-",$K34="-",$I34<=0),"",(($S34/$S$53)*AB34)) ->  | AE34: =IF(OR($B32="-",$K34="-",$I34<=0),"",VLOOKUP($B32,'Data source'!$B$15:$I$99,6,FALSE)) ->  | AF34: =IF(OR($B32="-",$K34="-",$I34<=0),"",(($S34/$S$53)*AE34)) ->  | AH34: =IF(OR($B32="-",$K34="-",$I34<=0),"",VLOOKUP($B32,'Data source'!$B$15:$I$99,7,FALSE)) ->  | AI34: =IF(OR($B32="-",$K34="-",$I34<=0),"",(($S34/$S$53)*AH34)) ->  | AK34: =IF(OR($B32="-",$K34="-",$I34<=0),"",VLOOKUP($B32,'Data source'!$B$15:$I$99,8,FALSE)) ->  | AL34: =IF(OR($B32="-",$K34="-",$I34<=0),"",(($S34/$S$53)*AK34)) ->  | AQ34: =IF(OR($B32="-",$K34="-",$I34=0),"",VLOOKUP($B32,'Data source'!$B$15:$M$99,12,FALSE)) ->  | AR34: =IF(OR($B32="-",$K34="-",$I34=0),"",IF($AQ34="Dry",$AP32/$R34/10,IF($AQ34="Wet",$AP32/($U34/100)*$R34/10,0))) ->  | AS34: =IF(OR($B32="-",$K34="-",$I34=0),"",AR34/T34) ->  | AT34: =IF(OR($B32="-",$K34="-",$I34=0),"",($AR34*$I34)/100) ->  | AX34: =Z34 ->  | AZ34: =IF(OR($B32="-",$K34="-",$I34=0),"",VLOOKUP($B32,'Data source'!$B$15:$M$99,9,FALSE)) ->  | BC34: =IF(OR($B32="-",$K34="-",$I34=0),"",VLOOKUP($B32,'Data source'!$B$15:$M$99,10,FALSE)) ->  | BF34: =IF(OR($B32="-",$K34="-",$I34=0),"",VLOOKUP($B32,'Data source'!$B$15:$M$99,11,FALSE)) -> 
A36: Feed 3 | B36: Swedes | D36: grazing - good conditions | G36: 2 | L36: =IF(OR($D$16="-",$D36="-",$G36=0),0,G36) -> 2 | R36: =IF(OR($B36="-",$D36="-",$G36="-"),"",VLOOKUP($D36,'Data source'!$B$127:$C$137,2,FALSE)) ->  | S36: =IF(OR($B36="-",$D36="-",$G36="-"),"",G36*R36) ->  | T36: =IF(OR($B36="-",$D36="-",$G36="-"),"",VLOOKUP($B36,'Data source'!$B$15:$I$99,3,FALSE)) -> 12 | U36: =IF(OR($B36="-",$D36="-",$G36="-"),"",VLOOKUP($B36,'Data source'!$B$15:$I$99,2,FALSE)) -> 11 | V36: =IF(OR($B36="-",$D36="-",$G36="-"),"",S36*T36) ->  | Y36: =IF(OR($B36="-",$D36="-",$G36="-"),"",VLOOKUP($B36,'Data source'!$B$15:$I$99,4,FALSE)) -> 16 | Z36: =IF(OR($B36="-",$D36="-",$G36="-"),"",(($S36/$S$52)*Y36)) ->  | AB36: =IF(OR($B36="-",$D36="-",$G36="-"),"",VLOOKUP($B36,'Data source'!$B$15:$I$99,5,FALSE)) -> 23 | AC36: =IF(OR($B36="-",$D36="-",$G36="-"),"",(($S36/$S$52)*AB36)) ->  | AE36: =IF(OR($B36="-",$D36="-",$G36="-"),"",VLOOKUP($B36,'Data source'!$B$15:$I$99,6,FALSE)) -> 47 | AF36: =IF(OR($B36="-",$D36="-",$G36="-"),"",(($S36/$S$52)*AE36)) ->  | AH36: =IF(OR($B36="-",$D36="-",$G36="-"),"",VLOOKUP($B36,'Data source'!$B$15:$I$99,7,FALSE)) -> 0.1 | AI36: =IF(OR($B36="-",$D36="-",$G36="-"),"",(($S36/$S$52)*AH36)) ->  | AK36: =IF(OR($B36="-",$D36="-",$G36="-"),"",VLOOKUP($B36,'Data source'!$B$15:$I$99,8,FALSE)) -> 0 | AL36: =IF(OR($B36="-",$D36="-",$G36="-"),"",(($S36/$S$52)*AK36)) ->  | AP36: 280 | AQ36: =IF(OR($B36="-",$D36="-",$G36="-"),"",VLOOKUP($B36,'Data source'!$B$15:$M$99,12,FALSE)) -> Dry | AR36: =IF(OR($B36="-",$D36="-",$G36="-"),"",IF($AQ36="Dry",$AP36/$R36/10,IF($AQ36="Wet",$AP36/($U36/100)*$R36/10,0))) ->  | AS36: =IF(OR($B36="-",$D36="-",$G36="-"),"",AR36/T36) ->  | AT36: =IF(OR($B36="-",$D36="-",$G36="-"),"",($AR36*$G36)/100) ->  | AX36: =Z36 ->  | AZ36: =IF(OR($B36="-",$D36="-",$G36=0),"",VLOOKUP($B36,'Data source'!$B$15:$M$99,9,FALSE)) -> 0 | BC36: =IF(OR($B36="-",$D36="-",$G36=0),"",VLOOKUP($B36,'Data source'!$B$15:$M$99,10,FALSE)) -> 0 | BF36: =IF(OR($B36="-",$D36="-",$G36=0),"",VLOOKUP($B36,'Data source'!$B$15:$M$99,11,FALSE)) -> 0
D38: - | I38: 0 | K38: =IF(D38="-",D36,D38) -> grazing - good conditions | L38: =IF(OR($D$16="-",D36="-",$I38=0),0,I38) -> 0 | R38: =IF(OR($B36="-",$K38="-",$I38<=0),"",VLOOKUP($K38,'Data source'!$B$127:$C$137,2,FALSE)) ->  | S38: =IF(OR($B36="-",$K38="-",$I38<=0),"",$I38*$R38) ->  | T38: =IF(OR($B36="-",$K38="-",$I38<=0),"",VLOOKUP($B36,'Data source'!$B$15:$I$99,3,FALSE)) ->  | U38: =IF(OR($B36="-",$K38="-",$I38<=0),"",VLOOKUP($B36,'Data source'!$B$15:$I$99,2,FALSE)) ->  | V38: =IF(OR($B36="-",$K38="-",$I38<=0),"",$S38*$T38) ->  | Y38: =IF(OR($B36="-",$K38="-",$I38<=0),"",VLOOKUP($B36,'Data source'!$B$15:$I$99,4,FALSE)) ->  | Z38: =IF(OR($B36="-",$K38="-",$I38<=0),"",(($S38/$S$53)*$Y38)) ->  | AB38: =IF(OR($B36="-",$K38="-",$I38<=0),"",VLOOKUP($B36,'Data source'!$B$15:$I$99,5,FALSE)) ->  | AC38: =IF(OR($B36="-",$K38="-",$I38<=0),"",(($S38/$S$53)*AB38)) ->  | AE38: =IF(OR($B36="-",$K38="-",$I38<=0),"",VLOOKUP($B36,'Data source'!$B$15:$I$99,6,FALSE)) ->  | AF38: =IF(OR($B36="-",$K38="-",$I38<=0),"",(($S38/$S$53)*AE38)) ->  | AH38: =IF(OR($B36="-",$K38="-",$I38<=0),"",VLOOKUP($B36,'Data source'!$B$15:$I$99,7,FALSE)) ->  | AI38: =IF(OR($B36="-",$K38="-",$I38<=0),"",(($S38/$S$53)*AH38)) ->  | AK38: =IF(OR($B36="-",$K38="-",$I38<=0),"",VLOOKUP($B36,'Data source'!$B$15:$I$99,8,FALSE)) ->  | AL38: =IF(OR($B36="-",$K38="-",$I38<=0),"",(($S38/$S$53)*AK38)) ->  | AQ38: =IF(OR($B36="-",$K38="-",$I38=0),"",VLOOKUP($B36,'Data source'!$B$15:$M$99,12,FALSE)) ->  | AR38: =IF(OR($B36="-",$K38="-",$I38=0),"",IF($AQ38="Dry",$AP36/$R38/10,IF($AQ38="Wet",$AP36/($U38/100)*$R38/10,0))) ->  | AS38: =IF(OR($B36="-",$K38="-",$I38=0),"",AR38/T38) ->  | AT38: =IF(OR($B36="-",$K38="-",$I38=0),"",($AR38*$I38)/100) ->  | AX38: =Z38 ->  | AZ38: =IF(OR($B36="-",$K38="-",$I38=0),"",VLOOKUP($B36,'Data source'!$B$15:$M$99,9,FALSE)) ->  | BC38: =IF(OR($B36="-",$K38="-",$I38=0),"",VLOOKUP($B36,'Data source'!$B$15:$M$99,10,FALSE)) ->  | BF38: =IF(OR($B36="-",$K38="-",$I38=0),"",VLOOKUP($B36,'Data source'!$B$15:$M$99,11,FALSE)) -> 
A40: Feed 4 | B40: Fodder beet | D40: grazing - good conditions | G40: 3 | L40: =IF(OR($D$16="-",$D40="-",$G40=0),0,G40) -> 3 | R40: =IF(OR($B40="-",$D40="-",$G40="-"),"",VLOOKUP($D40,'Data source'!$B$127:$C$137,2,FALSE)) ->  | S40: =IF(OR($B40="-",$D40="-",$G40="-"),"",G40*R40) ->  | T40: =IF(OR($B40="-",$D40="-",$G40="-"),"",VLOOKUP($B40,'Data source'!$B$15:$I$99,3,FALSE)) ->  | U40: =IF(OR($B40="-",$D40="-",$G40="-"),"",VLOOKUP($B40,'Data source'!$B$15:$I$99,2,FALSE)) ->  | V40: =IF(OR($B40="-",$D40="-",$G40="-"),"",S40*T40) ->  | Y40: =IF(OR($B40="-",$D40="-",$G40="-"),"",VLOOKUP($B40,'Data source'!$B$15:$I$99,4,FALSE)) ->  | Z40: =IF(OR($B40="-",$D40="-",$G40="-"),"",(($S40/$S$52)*Y40)) ->  | AB40: =IF(OR($B40="-",$D40="-",$G40="-"),"",VLOOKUP($B40,'Data source'!$B$15:$I$99,5,FALSE)) ->  | AC40: =IF(OR($B40="-",$D40="-",$G40="-"),"",(($S40/$S$52)*AB40)) ->  | AE40: =IF(OR($B40="-",$D40="-",$G40="-"),"",VLOOKUP($B40,'Data source'!$B$15:$I$99,6,FALSE)) ->  | AF40: =IF(OR($B40="-",$D40="-",$G40="-"),"",(($S40/$S$52)*AE40)) ->  | AH40: =IF(OR($B40="-",$D40="-",$G40="-"),"",VLOOKUP($B40,'Data source'!$B$15:$I$99,7,FALSE)) ->  | AI40: =IF(OR($B40="-",$D40="-",$G40="-"),"",(($S40/$S$52)*AH40)) ->  | AK40: =IF(OR($B40="-",$D40="-",$G40="-"),"",VLOOKUP($B40,'Data source'!$B$15:$I$99,8,FALSE)) ->  | AL40: =IF(OR($B40="-",$D40="-",$G40="-"),"",(($S40/$S$52)*AK40)) ->  | AP40: 180 | AQ40: =IF(OR($B40="-",$D40="-",$G40="-"),"",VLOOKUP($B40,'Data source'!$B$15:$M$99,12,FALSE)) ->  | AR40: =IF(OR($B40="-",$D40="-",$G40="-"),"",IF($AQ40="Dry",$AP40/$R40/10,IF($AQ40="Wet",$AP40/($U40/100)*$R40/10,0))) ->  | AS40: =IF(OR($B40="-",$D40="-",$G40="-"),"",AR40/T40) ->  | AT40: =IF(OR($B40="-",$D40="-",$G40="-"),"",($AR40*$G40)/100) ->  | AX40: =Z40 ->  | AZ40: =IF(OR($B40="-",$D40="-",$G40=0),"",VLOOKUP($B40,'Data source'!$B$15:$M$99,9,FALSE)) ->  | BC40: =IF(OR($B40="-",$D40="-",$G40=0),"",VLOOKUP($B40,'Data source'!$B$15:$M$99,10,FALSE)) ->  | BF40: =IF(OR($B40="-",$D40="-",$G40=0),"",VLOOKUP($B40,'Data source'!$B$15:$M$99,11,FALSE)) -> 
D42: - | I42: 0 | K42: =IF(D42="-",D40,D42) -> grazing - good conditions | L42: =IF(OR($D$16="-",D40="-",$I42=0),0,I42) -> 0 | R42: =IF(OR($B40="-",$K42="-",$I42<=0),"",VLOOKUP($K42,'Data source'!$B$127:$C$137,2,FALSE)) ->  | S42: =IF(OR($B40="-",$K42="-",$I42<=0),"",$I42*$R42) ->  | T42: =IF(OR($B40="-",$K42="-",$I42<=0),"",VLOOKUP($B40,'Data source'!$B$15:$I$99,3,FALSE)) ->  | U42: =IF(OR($B40="-",$K42="-",$I42<=0),"",VLOOKUP($B40,'Data source'!$B$15:$I$99,2,FALSE)) ->  | V42: =IF(OR($B40="-",$K42="-",$I42<=0),"",$S42*$T42) ->  | Y42: =IF(OR($B40="-",$K42="-",$I42<=0),"",VLOOKUP($B40,'Data source'!$B$15:$I$99,4,FALSE)) ->  | Z42: =IF(OR($B40="-",$K42="-",$I42<=0),"",(($S42/$S$53)*$Y42)) ->  | AB42: =IF(OR($B40="-",$K42="-",$I42<=0),"",VLOOKUP($B40,'Data source'!$B$15:$I$99,5,FALSE)) ->  | AC42: =IF(OR($B40="-",$K42="-",$I42<=0),"",(($S42/$S$53)*AB42)) ->  | AE42: =IF(OR($B40="-",$K42="-",$I42<=0),"",VLOOKUP($B40,'Data source'!$B$15:$I$99,6,FALSE)) ->  | AF42: =IF(OR($B40="-",$K42="-",$I42<=0),"",(($S42/$S$53)*AE42)) ->  | AH42: =IF(OR($B40="-",$K42="-",$I42<=0),"",VLOOKUP($B40,'Data source'!$B$15:$I$99,7,FALSE)) ->  | AI42: =IF(OR($B40="-",$K42="-",$I42<=0),"",(($S42/$S$53)*AH42)) ->  | AK42: =IF(OR($B40="-",$K42="-",$I42<=0),"",VLOOKUP($B40,'Data source'!$B$15:$I$99,8,FALSE)) ->  | AL42: =IF(OR($B40="-",$K42="-",$I42<=0),"",(($S42/$S$53)*AK42)) ->  | AQ42: =IF(OR($B40="-",$K42="-",$I42=0),"",VLOOKUP($B40,'Data source'!$B$15:$M$99,12,FALSE)) ->  | AR42: =IF(OR($B40="-",$K42="-",$I42=0),"",IF($AQ42="Dry",$AP40/$R42/10,IF($AQ42="Wet",$AP40/($U42/100)*$R42/10,0))) ->  | AS42: =IF(OR($B40="-",$K42="-",$I42=0),"",AR42/T42) ->  | AT42: =IF(OR($B40="-",$K42="-",$I42=0),"",($AR42*$I42)/100) ->  | AX42: =Z42 ->  | AZ42: =IF(OR($B40="-",$K42="-",$I42=0),"",VLOOKUP($B40,'Data source'!$B$15:$M$99,9,FALSE)) ->  | BC42: =IF(OR($B40="-",$K42="-",$I42=0),"",VLOOKUP($B40,'Data source'!$B$15:$M$99,10,FALSE)) ->  | BF42: =IF(OR($B40="-",$K42="-",$I42=0),"",VLOOKUP($B40,'Data source'!$B$15:$M$99,11,FALSE)) -> 
A44: Feed 5 | B44: PKE | D44: in trailer | G44: 1 | L44: =IF(OR($D$16="-",$D44="-",$G44=0),0,G44) -> 1 | R44: =IF(OR($B44="-",$D44="-",$G44="-"),"",VLOOKUP($D44,'Data source'!$B$127:$C$137,2,FALSE)) -> 0.85 | S44: =IF(OR($B44="-",$D44="-",$G44="-"),"",G44*R44) -> 0.85 | T44: =IF(OR($B44="-",$D44="-",$G44="-"),"",VLOOKUP($B44,'Data source'!$B$15:$I$99,3,FALSE)) -> 11 | U44: =IF(OR($B44="-",$D44="-",$G44="-"),"",VLOOKUP($B44,'Data source'!$B$15:$I$99,2,FALSE)) -> 90 | V44: =IF(OR($B44="-",$D44="-",$G44="-"),"",S44*T44) -> 9.35 | Y44: =IF(OR($B44="-",$D44="-",$G44="-"),"",VLOOKUP($B44,'Data source'!$B$15:$I$99,4,FALSE)) -> 14 | Z44: =IF(OR($B44="-",$D44="-",$G44="-"),"",(($S44/$S$52)*Y44)) ->  | AB44: =IF(OR($B44="-",$D44="-",$G44="-"),"",VLOOKUP($B44,'Data source'!$B$15:$I$99,5,FALSE)) -> 54 | AC44: =IF(OR($B44="-",$D44="-",$G44="-"),"",(($S44/$S$52)*AB44)) ->  | AE44: =IF(OR($B44="-",$D44="-",$G44="-"),"",VLOOKUP($B44,'Data source'!$B$15:$I$99,6,FALSE)) -> 0 | AF44: =IF(OR($B44="-",$D44="-",$G44="-"),"",(($S44/$S$52)*AE44)) ->  | AH44: =IF(OR($B44="-",$D44="-",$G44="-"),"",VLOOKUP($B44,'Data source'!$B$15:$I$99,7,FALSE)) -> 5 | AI44: =IF(OR($B44="-",$D44="-",$G44="-"),"",(($S44/$S$52)*AH44)) ->  | AK44: =IF(OR($B44="-",$D44="-",$G44="-"),"",VLOOKUP($B44,'Data source'!$B$15:$I$99,8,FALSE)) -> 8 | AL44: =IF(OR($B44="-",$D44="-",$G44="-"),"",(($S44/$S$52)*AK44)) ->  | AP44: 160 | AQ44: =IF(OR($B44="-",$D44="-",$G44="-"),"",VLOOKUP($B44,'Data source'!$B$15:$M$99,12,FALSE)) -> Wet | AR44: =IF(OR($B44="-",$D44="-",$G44="-"),"",IF($AQ44="Dry",$AP44/$R44/10,IF($AQ44="Wet",$AP44/($U44/100)*$R44/10,0))) -> 15.11111111 | AS44: =IF(OR($B44="-",$D44="-",$G44="-"),"",AR44/T44) -> 1.373737374 | AT44: =IF(OR($B44="-",$D44="-",$G44="-"),"",($AR44*$G44)/100) -> 0.1511111111 | AX44: =Z44 ->  | AZ44: =IF(OR($B44="-",$D44="-",$G44=0),"",VLOOKUP($B44,'Data source'!$B$15:$M$99,9,FALSE)) -> 1.6 | BC44: =IF(OR($B44="-",$D44="-",$G44=0),"",VLOOKUP($B44,'Data source'!$B$15:$M$99,10,FALSE)) -> 80.8 | BD44: =IF(OR($AX44="",$BC44=""),"",$AX44*$BC44) ->  | BF44: =IF(OR($B44="-",$D44="-",$G44=0),"",VLOOKUP($B44,'Data source'!$B$15:$M$99,11,FALSE)) -> 98.4 | BG44: =IF(OR($AX44="",$BF44=""),"",$AX44*$BF44) -> 
D46: feed pad | I46: 0 | K46: =IF(D46="-",D44,D46) -> feed pad | L46: =IF(OR($D$16="-",D44="-",$I46=0),0,I46) -> 0 | R46: =IF(OR($B44="-",$K46="-",$I46<=0),"",VLOOKUP($K46,'Data source'!$B$127:$C$137,2,FALSE)) ->  | S46: =IF(OR($B44="-",$K46="-",$I46<=0),"",$I46*$R46) ->  | T46: =IF(OR($B44="-",$K46="-",$I46<=0),"",VLOOKUP($B44,'Data source'!$B$15:$I$99,3,FALSE)) ->  | U46: =IF(OR($B44="-",$K46="-",$I46<=0),"",VLOOKUP($B44,'Data source'!$B$15:$I$99,2,FALSE)) ->  | V46: =IF(OR($B44="-",$K46="-",$I46<=0),"",$S46*$T46) ->  | Y46: =IF(OR($B44="-",$K46="-",$I46<=0),"",VLOOKUP($B44,'Data source'!$B$15:$I$99,4,FALSE)) ->  | Z46: =IF(OR($B44="-",$K46="-",$I46<=0),"",(($S46/$S$53)*$Y46)) ->  | AB46: =IF(OR($B44="-",$K46="-",$I46<=0),"",VLOOKUP($B44,'Data source'!$B$15:$I$99,5,FALSE)) ->  | AC46: =IF(OR($B44="-",$K46="-",$I46<=0),"",(($S46/$S$53)*AB46)) ->  | AE46: =IF(OR($B44="-",$K46="-",$I46<=0),"",VLOOKUP($B44,'Data source'!$B$15:$I$99,6,FALSE)) ->  | AF46: =IF(OR($B44="-",$K46="-",$I46<=0),"",(($S46/$S$53)*AE46)) ->  | AH46: =IF(OR($B44="-",$K46="-",$I46<=0),"",VLOOKUP($B44,'Data source'!$B$15:$I$99,7,FALSE)) ->  | AI46: =IF(OR($B44="-",$K46="-",$I46<=0),"",(($S46/$S$53)*AH46)) ->  | AK46: =IF(OR($B44="-",$K46="-",$I46<=0),"",VLOOKUP($B44,'Data source'!$B$15:$I$99,8,FALSE)) ->  | AL46: =IF(OR($B44="-",$K46="-",$I46<=0),"",(($S46/$S$53)*AK46)) ->  | AQ46: =IF(OR($B44="-",$K46="-",$I46=0),"",VLOOKUP($B44,'Data source'!$B$15:$M$99,12,FALSE)) ->  | AR46: =IF(OR($B44="-",$K46="-",$I46=0),"",IF($AQ46="Dry",$AP44/$R46/10,IF($AQ46="Wet",$AP44/($U46/100)*$R46/10,0))) ->  | AS46: =IF(OR($B44="-",$K46="-",$I46=0),"",AR46/T46) ->  | AT46: =IF(OR($B44="-",$K46="-",$I46=0),"",($AR46*$I46)/100) ->  | AX46: =Z46 ->  | AZ46: =IF(OR($B44="-",$K46="-",$I46=0),"",VLOOKUP($B44,'Data source'!$B$15:$M$99,9,FALSE)) ->  | BC46: =IF(OR($B44="-",$K46="-",$I46=0),"",VLOOKUP($B44,'Data source'!$B$15:$M$99,10,FALSE)) ->  | BD46: =IF(OR($AX46="",$BC46=""),"",$AX46*$BC46) ->  | BF46: =IF(OR($B44="-",$K46="-",$I46=0),"",VLOOKUP($B44,'Data source'!$B$15:$M$99,11,FALSE)) ->  | BG46: =IF(OR($AX46="",$BF46=""),"",$AX46*$BF46) -> 
BD47: =IF(OR($AX47="",$BC47=""),"",$AX47*$BC47) ->  | BG47: =IF(OR($AX47="",$BF47=""),"",$AX47*$BF47) -> 
A48: Feed 6 | B48: Soyabean meal | D48: in trailer | G48: 4 | L48: =IF(OR($D$16="-",$D48="-",$G48=0),0,G48) -> 4 | R48: =IF(OR($B48="-",$D48="-",$G48="-"),"",VLOOKUP($D48,'Data source'!$B$127:$C$137,2,FALSE)) -> 0.85 | S48: =IF(OR($B48="-",$D48="-",$G48="-"),"",G48*R48) -> 3.4 | T48: =IF(OR($B48="-",$D48="-",$G48="-"),"",VLOOKUP($B48,'Data source'!$B$15:$I$99,3,FALSE)) -> 12.9 | U48: =IF(OR($B48="-",$D48="-",$G48="-"),"",VLOOKUP($B48,'Data source'!$B$15:$I$99,2,FALSE)) -> 90 | V48: =IF(OR($B48="-",$D48="-",$G48=0),"",S48*T48) -> 43.86 | Y48: =IF(OR($B48="-",$D48="-",$G48="-"),"",VLOOKUP($B48,'Data source'!$B$15:$I$99,4,FALSE)) -> 50 | Z48: =IF(OR($B48="-",$D48="-",$G48="-"),"",(($S48/$S$52)*Y48)) ->  | AB48: =IF(OR($B48="-",$D48="-",$G48="-"),"",VLOOKUP($B48,'Data source'!$B$15:$I$99,5,FALSE)) -> 14 | AC48: =IF(OR($B48="-",$D48="-",$G48="-"),"",(($S48/$S$52)*AB48)) ->  | AE48: =IF(OR($B48="-",$D48="-",$G48="-"),"",VLOOKUP($B48,'Data source'!$B$15:$I$99,6,FALSE)) -> 27 | AF48: =IF(OR($B48="-",$D48="-",$G48="-"),"",(($S48/$S$52)*AE48)) ->  | AH48: =IF(OR($B48="-",$D48="-",$G48="-"),"",VLOOKUP($B48,'Data source'!$B$15:$I$99,7,FALSE)) -> 90 | AI48: =IF(OR($B48="-",$D48="-",$G48="-"),"",(($S48/$S$52)*AH48)) ->  | AK48: =IF(OR($B48="-",$D48="-",$G48="-"),"",VLOOKUP($B48,'Data source'!$B$15:$I$99,8,FALSE)) -> 1.4 | AL48: =IF(OR($B48="-",$D48="-",$G48="-"),"",(($S48/$S$52)*AK48)) ->  | AP48: 70 | AQ48: =IF(OR($B48="-",$D48="-",$G48="-"),"",VLOOKUP($B48,'Data source'!$B$15:$M$99,12,FALSE)) -> Wet | AR48: =IF(OR($B48="-",$D48="-",$G48="-"),"",IF($AQ48="Dry",$AP48/$R48/10,IF($AQ48="Wet",$AP48/($U48/100)*$R48/10,0))) -> 6.611111111 | AS48: =IF(OR($B48="-",$D48="-",$G48="-"),"",AR48/T48) -> 0.5124892334 | AT48: =IF(OR($B48="-",$D48="-",$G48="-"),"",($AR48*$G48)/100) -> 0.2644444444 | AX48: =Z48 ->  | AZ48: =IF(OR($B48="-",$D48="-",$G48=0),"",VLOOKUP($B48,'Data source'!$B$15:$M$99,9,FALSE)) -> 35 | BA48: =IF(OR(AX48="",AZ48=""),"",AX48*AZ48) ->  | BC48: =IF(OR($B48="-",$D48="-",$G48=0),"",VLOOKUP($B48,'Data source'!$B$15:$M$99,10,FALSE)) -> 20 | BD48: =IF(OR($AX48="",$BC48=""),"",$AX48*$BC48) ->  | BF48: =IF(OR($B48="-",$D48="-",$G48=0),"",VLOOKUP($B48,'Data source'!$B$15:$M$99,11,FALSE)) -> 65 | BG48: =IF(OR($AX48="",$BF48=""),"",$AX48*$BF48) -> 
D50: - | I50: 1 | K50: =IF(D50="-",D48,D50) -> in trailer | L50: =IF(OR($D$16="-",D48="-",$I50=0),0,I50) -> 1 | R50: =IF(OR($B48="-",$K50="-",$I50<=0),"",VLOOKUP($K50,'Data source'!$B$127:$C$137,2,FALSE)) -> 0.85 | S50: =IF(OR($B48="-",$K50="-",$I50<=0),"",$I50*$R50) -> 0.85 | T50: =IF(OR($B48="-",$K50="-",$I50<=0),"",VLOOKUP($B48,'Data source'!$B$15:$I$99,3,FALSE)) -> 12.9 | U50: =IF(OR($B48="-",$K50="-",$I50<=0),"",VLOOKUP($B48,'Data source'!$B$15:$I$99,2,FALSE)) -> 90 | V50: =IF(OR($B48="-",$K50="-",$I50<=0),"",$S50*$T50) -> 10.965 | Y50: =IF(OR($B48="-",$K50="-",$I50<=0),"",VLOOKUP($B48,'Data source'!$B$15:$I$99,4,FALSE)) -> 50 | Z50: =IF(OR($B48="-",$K50="-",$I50<=0),"",(($S50/$S$53)*$Y50)) ->  | AB50: =IF(OR($B48="-",$K50="-",$I50<=0),"",VLOOKUP($B48,'Data source'!$B$15:$I$99,5,FALSE)) -> 14 | AC50: =IF(OR($B48="-",$K50="-",$I50<=0),"",(($S50/$S$53)*AB50)) ->  | AE50: =IF(OR($B48="-",$K50="-",$I50<=0),"",VLOOKUP($B48,'Data source'!$B$15:$I$99,6,FALSE)) -> 27 | AF50: =IF(OR($B48="-",$K50="-",$I50<=0),"",(($S50/$S$53)*AE50)) ->  | AH50: =IF(OR($B48="-",$K50="-",$I50<=0),"",VLOOKUP($B48,'Data source'!$B$15:$I$99,7,FALSE)) -> 90 | AI50: =IF(OR($B48="-",$K50="-",$I50<=0),"",(($S50/$S$53)*AH50)) ->  | AK50: =IF(OR($B48="-",$K50="-",$I50<=0),"",VLOOKUP($B48,'Data source'!$B$15:$I$99,8,FALSE)) -> 1.4 | AL50: =IF(OR($B48="-",$K50="-",$I50<=0),"",(($S50/$S$53)*AK50)) ->  | AQ50: =IF(OR($B48="-",$K50="-",$I50=0),"",VLOOKUP($B48,'Data source'!$B$15:$M$99,12,FALSE)) -> Wet | AR50: =IF(OR($B48="-",$K50="-",$I50=0),"",IF($AQ50="Dry",$AP48/$R50/10,IF($AQ50="Wet",$AP48/($U50/100)*$R50/10,0))) -> 6.611111111 | AS50: =IF(OR($B48="-",$K50="-",$I50=0),"",AR50/T50) -> 0.5124892334 | AT50: =IF(OR($B48="-",$K50="-",$I50=0),"",($AR50*$I50)/100) -> 0.06611111111 | AX50: =Z50 ->  | AZ50: =IF(OR($B48="-",$K50="-",$I50=0),"",VLOOKUP($B48,'Data source'!$B$15:$M$99,9,FALSE)) -> 35 | BC50: =IF(OR($B48="-",$K50="-",$I50=0),"",VLOOKUP($B48,'Data source'!$B$15:$M$99,10,FALSE)) -> 20 | BF50: =IF(OR($B48="-",$K50="-",$I50=0),"",VLOOKUP($B48,'Data source'!$B$15:$M$99,11,FALSE)) -> 65
AX51: Total in diet
G52: OPTION 1 | I52: OPTION 2 | Q52: OPTION 1 | S52: =SUM(S24,S28,S32,S36,S40,S44,S48) ->  | V52: =SUM(V24,V28,V32,V36,V40,V44,V48) ->  | Z52: =SUM(Z24,Z28,Z32,Z36,Z40,Z44,Z48) ->  | AC52: =SUM(AC24,AC28,AC32,AC36,AC40,AC44,AC48) ->  | AF52: =SUM(AF24,AF28,AF32,AF36,AF40,AF44,AF48) ->  | AI52: =SUM(AI24,AI28,AI32,AI36,AI40,AI44,AI48) ->  | AL52: =SUM(AL24,AL28,AL32,AL36,AL40,AL44,AL48) ->  | AP52: $ for mob | AQ52: =$AT$52*$G$8 ->  | AS52: $ per cow | AT52: =SUM(AT24,AT28,AT32,AT36,AT40,AT44,AT48) ->  | AX52: =$Z$52 ->  | AZ52: =SUM(BA24,BA28,BA32,BA36,BA40,BA44,BA48)/$AX$52 ->  | BC52: =SUM(BD24,BD28,BD32,BD36,BD40,BD44,BD48)/$AX$52 ->  | BF52: =SUM(BG24,BG28,BG32,BG36,BG40,BG44,BG48)/$AX$52 -> 
D53: Total kg DM offered | G53: =SUM(L24,L28,L32,L36,L40,L44,L48) -> 22 | I53: =SUM(L26,L30,L34,L38,L42,L46,L50) -> 19 | Q53: OPTION 2 | S53: =SUM(S26,S30,S34,S38,S42,S46,S50) ->  | V53: =SUM(V26,V30,V34,V38,V42,V46,V50) ->  | Z53: =SUM(Z26,Z30,Z34,Z38,Z42,Z46,Z50) ->  | AC53: =SUM(AC26,AC30,AC34,AC38,AC42,AC46,AC50) ->  | AF53: =SUM(AF26,AF30,AF34,AF38,AF42,AF46,AF50) ->  | AI53: =SUM(AI26,AI30,AI34,AI38,AI42,AI46,AI50) ->  | AL53: =SUM(AL26,AL30,AL34,AL38,AL42,AL46,AL50) ->  | AQ53: =$AT$53*$K$8 ->  | AT53: =SUM(AT26,AT30,AT34,AT38,AT42,AT46,AT50) ->  | AX53: =$Z$53 ->  | AZ53: =SUM(BA26,BA30,BA34,BA38,BA42,BA46,BA50)/$AX$53 ->  | BC53: =SUM(BD26,BD30,BD34,BD38,BD42,BD46,BD50)/$AX$53 ->  | BF53: =SUM(BG26,BG30,BG34,BG38,BG42,BG46,BG50)/$AX$53 -> 
Q55: WARNINGS
Q56: DM | S56: =IF(AND(T16<-0.5,T18<-0.5),"Both",IF(T16<-0.5,"Curr.",IF(T18<-0.5,"Prop.",""))) ->  | T56: =IF(OR(T16<-0.5,T18<-0.5),"Dry matter intake is less than required"," ") -> 
Q57: NDF | S57: =IF(AND(AC15<35,AC17<35),"Both",IF(AC15<35,"Curr.",IF(AC17<35,"Prop.",""))) ->  | T57: =IF(OR(AC15<35,AC17<35),"Neutral detergent fibre levels are below recommended value. Add more fibre to the diet (e.g. silage/pasture) or reduce starch based supplements"," ") -> 
Q58: SS | S58: =IF(AND(AF15>=38,AF17>=38),"Both",IF(AF15>=38,"Curr.",IF(AF17>=38,"Prop.",""))) ->  | T58: =IF(OR(AF15>=38,AF17>=38),"Soluble sugar and starch levels are greater than reccomended. Reduce supplements high in starch or sugars (e.g. barley/maize grain"," ") -> 
Q59: Starch | S59: =IF(AND(AI15>30,AI17>=30),"Both",IF(AI15>30,"Curr.",IF(AI17>=30,"Prop.",""))) ->  | T59: =IF(OR(AI15>30,AI17>=30),"Starch levels in the diet are greater than reccomended. Reduce supplements that are high in starch (e.g. barley or wheat)"," ") -> 
Q60: Fat | S60: =IF(AND(AL15>8,AL17>8),"Both",IF(AL15>8,"Curr.",IF(AL17>8,"Prop.",""))) ->  | T60: =IF(OR(AL15>8,AL17>8),"Fat levels in the diet are greater than reccomended. Reduce feeds high in unsaturated fats (e.g. sunflower oil"," ") -> 
Q61: Total Protein | S61: =IF(AND(Z15<Z13,Z17<Z13),"Both",IF(Z15<Z13,"Curr.",IF(Z17<Z13,"Prop.",""))) ->  | T61: =IF(OR(Z15<Z13,Z17<Z13),"Protein levels are below recommended values; however, it is often not economical to use an expensive protein supplement. See Example in Extra Info tab"," ") -> 
Q62: UDP | T62: =IF(AND((AZ52+BF52)<100,AZ52>35)," ","UDP levels are below recommended values; however, other factors such as passage rate and total dietary protein content need to be taken into account. See FeedRight TechNote 15 for more information") -> 
Q63: Soluble | T63: =IF(AND((AZ52+BC52)<100,AZ52>32)," ","Soluble protein levels are below recommended values; however, other factors such as passage rate and total dietary protein content need to be taken into account. See FeedRight TechNote 15 for more information") -> 
Q64: RDP | T64: =IF(AND((AZ52+BF52)<100,BF52<65)," ","RDP levels are above recommended values; however, other factors such as passage rate and total dietary protein content need to be taken into account before dietary changes are made. See FeedRight TechNote 15 for more information") -> 
P66: RDP = rumen degradable protein
P67: UDP = undegradable dietary protein

Sheet Extra info
A1: daily BCS gain
A3: monthly BCS gain | B3: 0.1 | C3: BCS
A4: monthly LWT gain | B4: =33*B3 -> 3.3 | C4: kg
A5: daily LWT gain | B5: =B4/31 -> 0.1064516129 | C5: kg

Sheet Sheet2 (hidden)

Sheet Data source (hidden)
B1: Supplement | C1: DM | D1: ME | E1: CP | F1: NDF | G1: SSS | H1: starch | I1: fat | J1: BP P | K1: Sol P | L1: Degrad P | M1: Dry/Wet | N1: Na | O1: K | P1: Cl | Q1: S | R1: Mg | S1: Ca | T1: P
A2: FEED | C2: % | D2: MJ /kg DM | E2: % DM | F2: % DM | G2: % DM | H2: % SSS | I2: % DM | J2: % CP | K2: % CP | L2: % CP | M2: $ | N2: %DM | O2: %DM | P2: %DM | Q2: %DM | R2: %DM | S2: %DM | T2: %DM
A3: Pasture
B4: Autumn and winter | C4: 16 | D4: 11 | E4: 17 | F4: 44 | G4: 16 | H4: 3 | I4: 4 | J4: 0 | K4: 0 | L4: 0 | M4: Dry | N4: 0.35 | O4: 3.6 | P4: 1.3 | Q4: 0.4 | R4: 0.25 | S4: 0.45 | T4: 0.4
B5: Autumn & winter -Irrigated | C5: 17 | D5: 12 | E5: 25 | F5: 43 | G5: 19 | H5: 3 | I5: 4 | J5: 0 | K5: 0 | L5: 0 | M5: Dry | N5: 0.35 | O5: 3.6 | P5: 1.3 | Q5: 0.4 | R5: 0.25 | S5: 0.45 | T5: 0.4
B6: Spring | C6: 14 | D6: 12 | E6: 27 | F6: 41 | G6: 16 | H6: 3 | I6: 4 | J6: 25 | K6: 37.5 | L6: =100-J6 -> 75 | M6: Dry | N6: 0.35 | O6: 3.6 | P6: 1.3 | Q6: 0.4 | R6: 0.25 | S6: 0.7 | T6: 0.4 | Y6: kolver
B7: Spring - Irrigated | C7: 17 | D7: 12 | E7: 24 | F7: 40 | G7: 20 | H7: 3 | I7: 4 | J7: 25 | K7: 37.5 | L7: 75 | M7: Dry | N7: 0.35 | O7: 3.6 | P7: 1.3 | Q7: 0.4 | R7: 0.25 | S7: 0.7 | T7: 0.4 | Y7: est
B8: Summer - leafy | C8: 17 | D8: 11 | E8: 18 | F8: 47 | G8: 16 | H8: 3 | I8: 4 | J8: 30 | K8: 27.5 | L8: =100-J8 -> 70 | M8: Dry | N8: 0.35 | O8: 3.6 | P8: 1.3 | Q8: 0.4 | R8: 0.25 | S8: 0.5 | T8: 0.4 | Y8: kolver
B9: Summer - leafy - irrigated | C9: 17 | D9: 12 | E9: 24 | F9: 43 | G9: 20 | H9: 3 | I9: 4 | J9: 30 | K9: 27.5 | L9: 70 | M9: Dry | N9: 0.35 | O9: 3.6 | P9: 1.3 | Q9: 0.4 | R9: 0.25 | S9: 0.5 | T9: 0.4 | Y9: est
B10: Summer - stalky | C10: 25 | D10: 10 | E10: 15 | F10: 50 | G10: 9 | H10: 3 | I10: 3 | J10: 40 | K10: 20 | L10: =100-J10 -> 60 | M10: Dry | N10: 0.35 | O10: 3.6 | P10: 1.3 | Q10: 0.4 | R10: 0.25 | S10: 0.5 | T10: 0.4 | Y10: kolver
B11: Kikuyu - leafy | C11: 25 | D11: 10 | E11: 18 | F11: 70 | G11: 4.5 | H11: 90 | I11: 0 | J11: 0 | K11: 0 | L11: 0 | M11: Dry | N11: 0.35 | O11: 3.6 | P11: 1.3 | Q11: 0.4 | R11: 0.25 | S11: 0.5 | T11: 0.4
B12: Kikuyu - stemmy | C12: 50 | D12: 8 | E12: 8 | F12: 65 | G12: 4.5 | H12: 90 | I12: 0 | J12: 0 | K12: 0 | L12: 0 | M12: Dry | N12: 0.35 | O12: 3.6 | P12: 1.3 | Q12: 0.4 | R12: 0.25 | S12: 0.5 | T12: 0.4 | CI12: =IF($CI$10>=12,0,IF($CI$10<=2,VLOOKUP($H$8,'Data source'!B190:H199,7,IF($CI$10<=4,VLOOKUP($H$8,'Data source'!B190:H199,6,IF($CI$10<=8,VLOOKUP($H$8,'Data source'!B190:H199,5,IF($CI$10<=12,VLOOKUP($H$8,'Data source'!B190:H199,4,FALSE))))))))) -> 
A15: Hay & Silage
B16: Hay - pasture - good | C16: 85 | D16: 9.7 | E16: 17 | F16: 54 | G16: 18 | H16: 44 | I16: 2.6 | J16: 31 | K16: 31 | L16: =100-J16 -> 69 | M16: Dry | N16: 0.2 | O16: 2.32 | P16: 0.62 | Q16: 0.26 | R16: 0.2 | S16: 0.8 | T16: 0.4 | U16: Table 4.2 Technote 4
B17: Hay - pasture - poor | C17: 85 | D17: 7.3 | E17: 7 | F17: 66 | G17: 15 | H17: 45 | I17: 2.6 | J17: 37 | K17: 29 | L17: 63 | M17: Dry | N17: 0.15 | O17: 1.67 | P17: 0.6 | Q17: 0.2 | R17: 0.18 | S17: 0.4 | T17: 0.3 | U17: Table 4.2 Technote 4
B18: Straw - cereal | C18: 88 | D18: 7 | E18: 5 | F18: 80 | G18: 8 | H18: 100 | I18: 2 | J18: 76 | K18: 20 | L18: 24 | M18: Dry | N18: 0.1 | O18: 2 | P18: 0.67 | Q18: 0.17 | R18: 0.23 | S18: 0.3 | T18: 0.1 | U18: Barley straw but there is also wheat straw | Y18: kolver
B19: Silage -pasture - good | C19: 23 | D19: 10 | E19: 17 | F19: 45 | G19: 22 | H19: 7 | I19: 3 | J19: 22 | K19: 52 | L19: 78 | M19: Dry | N19: 0.1 | O19: 2.3 | P19: 0.2 | Q19: 0.24 | R19: 0.21 | S19: 0.3 | T19: 0.3 | U19: Table 4.2 Technote 4
B20: Silage - pasture - poor | C20: 38 | D20: 9 | E20: 15 | F20: 55 | G20: 15 | H20: 8 | I20: 3.1 | J20: 29 | K20: 44 | L20: 71 | M20: Dry | N20: 0.16 | O20: 2 | P20: 0.19 | Q20: 0.2 | R20: 0.14 | S20: 0.55 | T20: 0.28 | U20: Table 4.2 Technote 4
B21: Silage - maize - good | C21: 35 | D21: 11 | E21: 8 | F21: 43 | G21: 35 | H21: 77 | I21: 3 | J21: 31 | K21: 48 | L21: 69 | M21: Dry | N21: 0.01 | O21: 1.2 | P21: 0.4 | Q21: 0.13 | R21: 0.18 | S21: 0.23 | T21: 0.25 | U21: only one value given for maize grain | Y21: kolver
B22: Silage - maize - poor | C22: 31 | D22: 10 | E22: 8 | F22: 47 | G22: 30 | H22: 75 | I22: 3 | J22: 18.5 | K22: 57.8 | L22: 81.5 | M22: Dry | N22: 0.01 | O22: 1.2 | P22: 0.4 | Q22: 0.13 | R22: 0.18 | S22: 0.23 | T22: 0.25 | Y22: nrc2001
B23: Silage -whole crop | C23: 37 | D23: 10 | E23: 8 | F23: 57 | G23: 23 | H23: 77 | I23: 4 | J23: 0 | K23: 0 | L23: 0 | M23: Dry | N23: 0.07 | O23: 2.85 | P23: 0.07 | Q23: 0.25 | R23: 0.2 | S23: 0.32 | T23: 0.57 | U23: for whole crop
B24: Silage -lucerne | C24: 20 | D24: 9.5 | E24: 20 | F24: 51 | G24: 17 | H24: 45 | I24: 3.5 | J24: 23 | K24: 54 | L24: =100-J24 -> 77 | M24: Dry | N24: 0.05 | O24: 2.84 | P24: 0.34 | Q24: 0.29 | R24: 0.25 | S24: 1.29 | T24: 0.29 | U24: Table 4.2 Technote 4 | Y24: kolver
B25: Silage - cereal | C25: 36 | D25: 10.5 | E25: 13 | F25: 59 | G25: 16.1 | H25: 100 | I25: 3.6 | J25: 0 | K25: 0 | L25: 0 | M25: dry | N25: 0.07 | O25: 2.85 | P25: 0.07 | Q25: 0.25 | R25: 0.2 | S25: 0.57 | T25: 0.32 | U25: F&F
B26: Baleage | C26: 40 | D26: 10.5 | E26: 15 | F26: 50 | G26: 8 | H26: 3 | I26: 3 | J26: 0 | K26: 0 | L26: 0 | M26: Dry | N26: 0.46 | O26: 1.79 | P26: 0.29 | Q26: 0.06 | R26: 0.12 | S26: 0.18 | T26: 0.4
A28: Concentrates
B29: Barley | C29: 89 | D29: 13 | E29: 11 | F29: 21 | G29: 61 | H29: 90 | I29: 2 | J29: 27 | K29: 31 | L29: =100-J29 -> 73 | M29: Wet | N29: 0.03 | O29: 0.57 | P29: 0.18 | Q29: 0.17 | R29: 0.18 | S29: 0.06 | T29: 0.44 | U29: Table 4.2 Technote 4
B30: Bran (wheat) | C30: 85 | D30: 9.8 | E30: 17.1 | F30: 51 | G30: 21 | H30: 95 | I30: 4.4 | J30: 29 | K30: 42 | L30: =100-J30 -> 71 | M30: Wet | N30: 0.04 | O30: 1.5 | P30: 0.05 | Q30: 0.25 | R30: 0.6 | S30: 0.13 | T30: 1.31 | U30: Table 4.2 Technote 4
B31: Canola meal | C31: 90 | D31: 11.5 | E31: 38 | F31: 30 | G31: 0 | H31: 1.5 | I31: 3.5 | J31: 0 | K31: 0 | L31: 0 | M31: Wet | N31: 0.07 | O31: 1.41 | P31: 0.04 | Q31: 0.73 | R31: 0.53 | S31: 0.75 | T31: 1.1 | U31: Table 4.2 Technote 4
B32: Maize grain | C32: 89 | D32: 13.6 | E32: 8 | F32: 9 | G32: 75 | H32: 99 | I32: 4.3 | J32: 52 | K32: 12 | L32: =100-J32 -> 48 | M32: Wet | N32: 0.003 | O32: 0.4 | P32: 0.05 | Q32: 0.12 | R32: 0.12 | S32: 0.02 | T32: 0.31 | U32: Table 4.2 Technote 4
B33: Oats | C33: 89 | D33: 11.5 | E33: 13 | F33: 31 | G33: 48 | H33: 90 | I33: 4.9 | J33: 17 | K33: 27 | L33: =100-J33 -> 83 | M33: Wet | N33: 0.01 | O33: 0.53 | P33: 0.11 | Q33: 0.19 | R33: 0.15 | S33: 0.1 | T33: 0.41 | U33: Table 4.2 Technote 4
B34: Soyabean hulls | C34: 88 | D34: 12 | E34: 13.5 | F34: 60 | G34: 14 | H34: 1.4 | I34: 2.5 | J34: 5.3 | K34: 22.5 | L34: =100-J34 -> 94.7 | M34: Wet | N34: 0.01 | O34: 1.51 | P34: 0.05 | Q34: 0.12 | R34: 0.25 | S34: 0.53 | T34: 0.18 | U34: Table 4.2 Technote 4
B35: Soyabean meal | C35: 90 | D35: 12.9 | E35: 50 | F35: 14 | G35: 27 | H35: 90 | I35: 1.4 | J35: 35 | K35: 20 | L35: =100-J35 -> 65 | M35: Wet | N35: 0.01 | O35: 2.12 | P35: 0.08 | Q35: 0.37 | R35: 0.3 | S35: 0.3 | T35: 0.68 | U35: Table 4.2 Technote 4
B36: Tapioca | C36: 88 | D36: 12.8 | E36: 5 | F36: 20 | G36: 74 | H36: 71 | I36: 2 | J36: 0 | K36: 0 | L36: 0 | M36: Wet | N36: 0 | O36: 1.1 | P36: 0 | Q36: 0 | R36: 0.15 | S36: 0.2 | T36: 0 | U36: Table 4.2 Technote 4
B37: Wheat | C37: 89 | D37: 12.6 | E37: 11.3 | F37: 14 | G37: 70 | H37: 90 | I37: 1.9 | J37: 29 | K37: 42 | L37: =100-J37 -> 71 | M37: Wet | N37: 0.01 | O37: 0.46 | P37: 0.08 | Q37: 0.16 | R37: 0.13 | S37: 0.07 | T37: 0.36 | U37: Table 4.2 Technote 4
A40: Forages and crops
B41: Chicory | C41: 13 | D41: 12.5 | E41: 23 | F41: 34 | G41: 7 | H41: 0 | I41: 0 | J41: 0 | K41: 0 | L41: 0 | M41: Dry | N41: 0.21 | O41: 3.64 | P41: 0.2 | Q41: 0.3 | R41: 0.28 | S41: 1.49 | T41: 0.34 | U41: Table 4.2 Technote 4
B42: Kale | C42: 13 | D42: 12 | E42: 15 | F42: 27 | G42: 37 | H42: 0 | I42: 2.1 | J42: 0 | K42: 0 | L42: 0 | M42: Dry | N42: 0.1 | O42: 4 | P42: 0.2 | Q42: 0.7 | R42: 0.5 | S42: 0.8 | T42: 0.35 | U42: Table 4.2 Technote 4
B43: Lucerne | C43: 24 | D43: 11 | E43: 30 | F43: 0 | G43: 0 | H43: 0 | I43: 2.5 | J43: 0 | K43: 0 | L43: 0 | M43: Dry | N43: 0.06 | O43: 2.5 | P43: 0.35 | Q43: 0.3 | R43: 0.25 | S43: 1.6 | T43: 0.3 | U43: Table 4.2 Technote 4
B44: Swedes | C44: 11 | D44: 12 | E44: 16 | F44: 23 | G44: 47 | H44: 0.1 | J44: 0 | K44: 0 | L44: 0 | M44: Dry | N44: 0.2 | O44: 0.5 | P44: 0.2 | Q44: 0.7 | R44: 0.1 | S44: 0.4 | T44: 0.35 | U44: Table 4.2 Technote 4
B45: Turnips | C45: 10 | D45: 12 | E45: 15 | F45: 27 | G45: 17 | H45: 10 | I45: 2 | J45: 0 | K45: 0 | L45: 0 | M45: Dry | N45: 0.28 | O45: 3 | P45: 1.45 | Q45: 0.33 | R45: 0.23 | S45: 1.75 | T45: 0.37 | U45: Table 4.2 Technote 4
B46: Fodder beet - bulb | C46: 10 | D46: 12 | E46: 8.6 | F46: 11.4 | G46: 64 | H46: 5 | I46: 0 | J46: 0 | K46: 0 | L46: 0 | M46: Dry | N46: 0.3 | O46: 2 | P46: 0.3 | Q46: 0.07 | R46: 0.16 | S46: 0.14 | T46: 0.13 | U46: Literature review SFF Fodder beet
B47: Fodder beet - leaf | C47: 17 | D47: 10.4 | E47: 20 | F47: 32 | G47: 17.5 | H47: 0 | I47: 0 | J47: 0 | K47: 0 | L47: 0 | M47: Dry | N47: 1.3 | O47: 3.2 | P47: 0.3 | Q47: 0.3 | R47: 1 | S47: 1.8 | T47: 0.3 | U47: Literature review SFF Fodder beet
A51: By-products
B52: PKE | C52: 90 | D52: 11 | E52: 14 | F52: 54 | G52: 0 | H52: 5 | I52: 8 | J52: 1.6 | K52: 80.8 | L52: =100-J52 -> 98.4 | M52: Wet | N52: 0.02 | O52: 0.8 | P52: 0.25 | Q52: 0.24 | R52: 0.3 | S52: 0.25 | T52: 0.65 | U52: Table 4.2 Technote 4
B53: Apple pomace | C53: 22 | D53: 10.4 | E53: 5.4 | F53: 41 | G53: 44 | H53: 100 | I53: 4.7 | J53: 51 | K53: 11 | L53: =100-J53 -> 49 | M53: Wet | N53: 0 | O53: 0.53 | P53: 0 | Q53: 0.11 | R53: 0 | S53: 0.23 | T53: 0.11 | U53: Table 4.2 Technote 4
B54: Brewers grain | C54: 24 | D54: 10 | E54: 23 | F54: 49 | G54: 7 | H54: 100 | I54: 7.3 | J54: 45 | K54: 10 | L54: =100-J54 -> 55 | M54: Wet | N54: 0.2 | O54: 0.1 | P54: 0.17 | Q54: 0.36 | R54: 0.1 | S54: 0.3 | T54: 0.6 | U54: Table 4.2 Technote 4
B55: Broll | C55: 85 | D55: 10.5 | E55: 13 | F55: 12 | G55: 22 | H55: 90 | I55: 5 | J55: 0 | K55: 0 | L55: 0 | M55: Wet | N55: 0.01 | O55: 1.5 | P55: 0.09 | Q55: 0.19 | R55: 0.5 | S55: 0.15 | T55: 0.8 | U55: Table 4.2 Technote 4
B56: DDG (Dried distillers grain) | C56: 90 | D56: 12.5 | E56: 29 | F56: 30 | G56: 4 | H56: 90 | I56: 9 | J56: 17.1 | K56: 18.3 | L56: =100-J56 -> 82.9 | M56: Wet | N56: 0.3 | O56: 0.1 | P56: 0.26 | Q56: 0.44 | R56: 0.33 | S56: 0.18 | T56: 0.83 | U56: Table 4.2 Technote 4
B57: Molasses | C57: 75 | D57: 12 | E57: 4 | F57: 0 | G57: 83 | H57: 0 | I57: 0.1 | J57: 0 | K57: 95 | L57: =100-J57 -> 100 | M57: Wet | N57: 0.15 | O57: 3.3 | P57: 3.1 | Q57: 0.47 | R57: 0.43 | S57: 1.1 | T57: 0.09 | U57: Table 4.2 Technote 4
B58: Potatoes | C58: 23 | D58: 13 | E58: 10 | F58: 7.6 | G58: 77 | H58: 100 | I58: 0.4 | J58: 5 | K58: 4.5 | L58: =100-J58 -> 95 | M58: Wet | N58: 0.09 | O58: 2.17 | P58: 0.28 | Q58: 0.09 | R58: 0.14 | S58: 0.04 | T58: 0.24 | U58: Table 4.2 Technote 4
B59: Urea | C59: 99 | D59: 0 | E59: 281 | F59: 0 | G59: 0 | H59: 0 | I59: 0 | J59: 0 | K59: 0 | L59: 0 | M59: Wet | N59: 0 | O59: 0 | P59: 0 | Q59: 0 | R59: 0 | S59: 0 | T59: 0 | U59: Table 4.2 Technote 4
A61: custom
A62: Crops_Fodder_beet_Default | B62: ='CUSTOM FEED SET-UP'!B4 -> Fodder beet_Default
B63: ='CUSTOM FEED SET-UP'!B5 -> Bulb only | C63: ='CUSTOM FEED SET-UP'!E5 -> 10 | D63: ='CUSTOM FEED SET-UP'!F5 -> 12 | E63: ='CUSTOM FEED SET-UP'!G5 -> 8.6 | F63: ='CUSTOM FEED SET-UP'!H5 -> 11.4 | G63: ='CUSTOM FEED SET-UP'!I5 -> 64 | H63: ='CUSTOM FEED SET-UP'!J5 -> 5 | I63: ='CUSTOM FEED SET-UP'!K5 -> 0 | J63: ='CUSTOM FEED SET-UP'!L5 -> 0 | K63: ='CUSTOM FEED SET-UP'!M5 -> 0 | L63: ='CUSTOM FEED SET-UP'!N5 -> 0 | M63: ='CUSTOM FEED SET-UP'!O5 -> Dry | N63: ='CUSTOM FEED SET-UP'!P5 -> 0.3 | O63: ='CUSTOM FEED SET-UP'!Q5 -> 2 | P63: ='CUSTOM FEED SET-UP'!R5 -> 0.3 | Q63: ='CUSTOM FEED SET-UP'!S5 -> 0.07 | R63: ='CUSTOM FEED SET-UP'!T5 -> 0.16 | S63: ='CUSTOM FEED SET-UP'!U5 -> 0.14 | T63: ='CUSTOM FEED SET-UP'!V5 -> 0.13
B64: ='CUSTOM FEED SET-UP'!B6 -> Leaf only | C64: ='CUSTOM FEED SET-UP'!E6 -> 17 | D64: ='CUSTOM FEED SET-UP'!F6 -> 10.4 | E64: ='CUSTOM FEED SET-UP'!G6 -> 20 | F64: ='CUSTOM FEED SET-UP'!H6 -> 32 | G64: ='CUSTOM FEED SET-UP'!I6 -> 17.5 | H64: ='CUSTOM FEED SET-UP'!J6 -> 0 | I64: ='CUSTOM FEED SET-UP'!K6 -> 0 | J64: ='CUSTOM FEED SET-UP'!L6 -> 0 | K64: ='CUSTOM FEED SET-UP'!M6 -> 0 | L64: ='CUSTOM FEED SET-UP'!N6 -> 0 | M64: ='CUSTOM FEED SET-UP'!O6 -> Dry | N64: ='CUSTOM FEED SET-UP'!P6 -> 1.3 | O64: ='CUSTOM FEED SET-UP'!Q6 -> 3.2 | P64: ='CUSTOM FEED SET-UP'!R6 -> 0.3 | Q64: ='CUSTOM FEED SET-UP'!S6 -> 0.3 | R64: ='CUSTOM FEED SET-UP'!T6 -> 1 | S64: ='CUSTOM FEED SET-UP'!U6 -> 1.8 | T64: ='CUSTOM FEED SET-UP'!V6 -> 0.3
B65: ='CUSTOM FEED SET-UP'!B7 -> Bulb 90% Leaf 10% | C65: ='CUSTOM FEED SET-UP'!E7 -> 10.7 | D65: ='CUSTOM FEED SET-UP'!F7 -> 11.84 | E65: ='CUSTOM FEED SET-UP'!G7 -> 9.74 | F65: ='CUSTOM FEED SET-UP'!H7 -> 13.46 | G65: ='CUSTOM FEED SET-UP'!I7 -> 59.35 | H65: ='CUSTOM FEED SET-UP'!J7 -> 4.5 | I65: ='CUSTOM FEED SET-UP'!K7 -> 0 | J65: ='CUSTOM FEED SET-UP'!L7 -> 0 | K65: ='CUSTOM FEED SET-UP'!M7 -> 0 | L65: ='CUSTOM FEED SET-UP'!N7 -> 0 | M65: ='CUSTOM FEED SET-UP'!O7 -> Dry | N65: ='CUSTOM FEED SET-UP'!P7 -> 0.4 | O65: ='CUSTOM FEED SET-UP'!Q7 -> 2.12 | P65: ='CUSTOM FEED SET-UP'!R7 -> 0.3 | Q65: ='CUSTOM FEED SET-UP'!S7 -> 0.093 | R65: ='CUSTOM FEED SET-UP'!T7 -> 0.244 | S65: ='CUSTOM FEED SET-UP'!U7 -> 0.306 | T65: ='CUSTOM FEED SET-UP'!V7 -> 0.147
B66: ='CUSTOM FEED SET-UP'!B8 -> Bulb 85% Leaf 15% | C66: ='CUSTOM FEED SET-UP'!E8 -> 11.05 | D66: ='CUSTOM FEED SET-UP'!F8 -> 11.76 | E66: ='CUSTOM FEED SET-UP'!G8 -> 10.31 | F66: ='CUSTOM FEED SET-UP'!H8 -> 14.49 | G66: ='CUSTOM FEED SET-UP'!I8 -> 57.025 | H66: ='CUSTOM FEED SET-UP'!J8 -> 4.25 | I66: ='CUSTOM FEED SET-UP'!K8 -> 0 | J66: ='CUSTOM FEED SET-UP'!L8 -> 0 | K66: ='CUSTOM FEED SET-UP'!M8 -> 0 | L66: ='CUSTOM FEED SET-UP'!N8 -> 0 | M66: ='CUSTOM FEED SET-UP'!O8 -> Dry | N66: ='CUSTOM FEED SET-UP'!P8 -> 0.45 | O66: ='CUSTOM FEED SET-UP'!Q8 -> 2.18 | P66: ='CUSTOM FEED SET-UP'!R8 -> 0.3 | Q66: ='CUSTOM FEED SET-UP'!S8 -> 0.1045 | R66: ='CUSTOM FEED SET-UP'!T8 -> 0.286 | S66: ='CUSTOM FEED SET-UP'!U8 -> 0.389 | T66: ='CUSTOM FEED SET-UP'!V8 -> 0.1555
B67: ='CUSTOM FEED SET-UP'!B9 -> Bulb 80% Leaf 20% | C67: ='CUSTOM FEED SET-UP'!E9 -> 11.4 | D67: ='CUSTOM FEED SET-UP'!F9 -> 11.68 | E67: ='CUSTOM FEED SET-UP'!G9 -> 10.88 | F67: ='CUSTOM FEED SET-UP'!H9 -> 15.52 | G67: ='CUSTOM FEED SET-UP'!I9 -> 54.7 | H67: ='CUSTOM FEED SET-UP'!J9 -> 4 | I67: ='CUSTOM FEED SET-UP'!K9 -> 0 | J67: ='CUSTOM FEED SET-UP'!L9 -> 0 | K67: ='CUSTOM FEED SET-UP'!M9 -> 0 | L67: ='CUSTOM FEED SET-UP'!N9 -> 0 | M67: ='CUSTOM FEED SET-UP'!O9 -> Dry | N67: ='CUSTOM FEED SET-UP'!P9 -> 0.5 | O67: ='CUSTOM FEED SET-UP'!Q9 -> 2.24 | P67: ='CUSTOM FEED SET-UP'!R9 -> 0.3 | Q67: ='CUSTOM FEED SET-UP'!S9 -> 0.116 | R67: ='CUSTOM FEED SET-UP'!T9 -> 0.328 | S67: ='CUSTOM FEED SET-UP'!U9 -> 0.472 | T67: ='CUSTOM FEED SET-UP'!V9 -> 0.164
B68: ='CUSTOM FEED SET-UP'!B10 -> Bulb 75% Leaf 25% | C68: ='CUSTOM FEED SET-UP'!E10 -> 11.75 | D68: ='CUSTOM FEED SET-UP'!F10 -> 11.6 | E68: ='CUSTOM FEED SET-UP'!G10 -> 11.45 | F68: ='CUSTOM FEED SET-UP'!H10 -> 16.55 | G68: ='CUSTOM FEED SET-UP'!I10 -> 52.375 | H68: ='CUSTOM FEED SET-UP'!J10 -> 3.75 | I68: ='CUSTOM FEED SET-UP'!K10 -> 0 | J68: ='CUSTOM FEED SET-UP'!L10 -> 0 | K68: ='CUSTOM FEED SET-UP'!M10 -> 0 | L68: ='CUSTOM FEED SET-UP'!N10 -> 0 | M68: ='CUSTOM FEED SET-UP'!O10 -> Dry | N68: ='CUSTOM FEED SET-UP'!P10 -> 0.55 | O68: ='CUSTOM FEED SET-UP'!Q10 -> 2.3 | P68: ='CUSTOM FEED SET-UP'!R10 -> 0.3 | Q68: ='CUSTOM FEED SET-UP'!S10 -> 0.1275 | R68: ='CUSTOM FEED SET-UP'!T10 -> 0.37 | S68: ='CUSTOM FEED SET-UP'!U10 -> 0.555 | T68: ='CUSTOM FEED SET-UP'!V10 -> 0.1725
B69: ='CUSTOM FEED SET-UP'!B11 -> Bulb 70% leaf 30% | C69: ='CUSTOM FEED SET-UP'!E11 -> 12.1 | D69: ='CUSTOM FEED SET-UP'!F11 -> 11.52 | E69: ='CUSTOM FEED SET-UP'!G11 -> 12.02 | F69: ='CUSTOM FEED SET-UP'!H11 -> 17.58 | G69: ='CUSTOM FEED SET-UP'!I11 -> 50.05 | H69: ='CUSTOM FEED SET-UP'!J11 -> 3.5 | I69: ='CUSTOM FEED SET-UP'!K11 -> 0 | J69: ='CUSTOM FEED SET-UP'!L11 -> 0 | K69: ='CUSTOM FEED SET-UP'!M11 -> 0 | L69: ='CUSTOM FEED SET-UP'!N11 -> 0 | M69: ='CUSTOM FEED SET-UP'!O11 -> Dry | N69: ='CUSTOM FEED SET-UP'!P11 -> 0.6 | O69: ='CUSTOM FEED SET-UP'!Q11 -> 2.36 | P69: ='CUSTOM FEED SET-UP'!R11 -> 0.3 | Q69: ='CUSTOM FEED SET-UP'!S11 -> 0.139 | R69: ='CUSTOM FEED SET-UP'!T11 -> 0.412 | S69: ='CUSTOM FEED SET-UP'!U11 -> 0.638 | T69: ='CUSTOM FEED SET-UP'!V11 -> 0.181
B70: ='CUSTOM FEED SET-UP'!B2 -> Custom: Bulb% & Leaf% | C70: ='CUSTOM FEED SET-UP'!E12 -> 0 | D70: ='CUSTOM FEED SET-UP'!F12 -> 0 | E70: ='CUSTOM FEED SET-UP'!G12 -> 0 | F70: ='CUSTOM FEED SET-UP'!H12 -> 0 | G70: ='CUSTOM FEED SET-UP'!I12 -> 0 | H70: ='CUSTOM FEED SET-UP'!J12 -> 0 | I70: ='CUSTOM FEED SET-UP'!K12 -> 0 | J70: ='CUSTOM FEED SET-UP'!L12 -> 0 | K70: ='CUSTOM FEED SET-UP'!M12 -> 0 | L70: ='CUSTOM FEED SET-UP'!N12 -> 0 | M70: ='CUSTOM FEED SET-UP'!O12 -> Dry | N70: ='CUSTOM FEED SET-UP'!P12 -> 0 | O70: ='CUSTOM FEED SET-UP'!Q12 -> 0 | P70: ='CUSTOM FEED SET-UP'!R12 -> 0 | Q70: ='CUSTOM FEED SET-UP'!S12 -> 0 | R70: ='CUSTOM FEED SET-UP'!T12 -> 0 | S70: ='CUSTOM FEED SET-UP'!U12 -> 0 | T70: ='CUSTOM FEED SET-UP'!V12 -> 0
A72: Custom_Bulb_Crop_Measured | B72: ='CUSTOM FEED SET-UP'!B16 -> Custom_Crops
B73: ='CUSTOM FEED SET-UP'!B17 -> Bulb only | C73: ='CUSTOM FEED SET-UP'!E17 -> 0 | D73: ='CUSTOM FEED SET-UP'!F17 -> 0 | E73: ='CUSTOM FEED SET-UP'!G17 -> 0 | F73: ='CUSTOM FEED SET-UP'!H17 -> 0 | G73: ='CUSTOM FEED SET-UP'!I17 -> 0 | H73: ='CUSTOM FEED SET-UP'!J17 -> 0 | I73: ='CUSTOM FEED SET-UP'!K17 -> 0 | J73: ='CUSTOM FEED SET-UP'!L17 -> 0 | K73: ='CUSTOM FEED SET-UP'!M17 -> 0 | L73: ='CUSTOM FEED SET-UP'!N17 -> 0 | M73: ='CUSTOM FEED SET-UP'!O17 -> 0 | N73: ='CUSTOM FEED SET-UP'!P17 -> 0 | O73: ='CUSTOM FEED SET-UP'!Q17 -> 0 | P73: ='CUSTOM FEED SET-UP'!R17 -> 0 | Q73: ='CUSTOM FEED SET-UP'!S17 -> 0 | R73: ='CUSTOM FEED SET-UP'!T17 -> 0 | S73: ='CUSTOM FEED SET-UP'!U17 -> 0 | T73: ='CUSTOM FEED SET-UP'!V17 -> 0
B74: ='CUSTOM FEED SET-UP'!B18 -> Leaf only | C74: ='CUSTOM FEED SET-UP'!E18 -> 0 | D74: ='CUSTOM FEED SET-UP'!F18 -> 0 | E74: ='CUSTOM FEED SET-UP'!G18 -> 0 | F74: ='CUSTOM FEED SET-UP'!H18 -> 0 | G74: ='CUSTOM FEED SET-UP'!I18 -> 0 | H74: ='CUSTOM FEED SET-UP'!J18 -> 0 | I74: ='CUSTOM FEED SET-UP'!K18 -> 0 | J74: ='CUSTOM FEED SET-UP'!L18 -> 0 | K74: ='CUSTOM FEED SET-UP'!M18 -> 0 | L74: ='CUSTOM FEED SET-UP'!N18 -> 0 | M74: ='CUSTOM FEED SET-UP'!O18 -> 0 | N74: ='CUSTOM FEED SET-UP'!P18 -> 0 | O74: ='CUSTOM FEED SET-UP'!Q18 -> 0 | P74: ='CUSTOM FEED SET-UP'!R18 -> 0 | Q74: ='CUSTOM FEED SET-UP'!S18 -> 0 | R74: ='CUSTOM FEED SET-UP'!T18 -> 0 | S74: ='CUSTOM FEED SET-UP'!U18 -> 0 | T74: ='CUSTOM FEED SET-UP'!V18 -> 0
B75: ='CUSTOM FEED SET-UP'!B19 -> Bulb 90% Leaf 10% | C75: ='CUSTOM FEED SET-UP'!E19 -> 0 | D75: ='CUSTOM FEED SET-UP'!F19 -> 0 | E75: ='CUSTOM FEED SET-UP'!G19 -> 0 | F75: ='CUSTOM FEED SET-UP'!H19 -> 0 | G75: ='CUSTOM FEED SET-UP'!I19 -> 0 | H75: ='CUSTOM FEED SET-UP'!J19 -> 0 | I75: ='CUSTOM FEED SET-UP'!K19 -> 0 | J75: ='CUSTOM FEED SET-UP'!L19 -> 0 | K75: ='CUSTOM FEED SET-UP'!M19 -> 0 | L75: ='CUSTOM FEED SET-UP'!N19 -> 0 | M75: ='CUSTOM FEED SET-UP'!O19 -> 0 | N75: ='CUSTOM FEED SET-UP'!P19 -> 0 | O75: ='CUSTOM FEED SET-UP'!Q19 -> 0 | P75: ='CUSTOM FEED SET-UP'!R19 -> 0 | Q75: ='CUSTOM FEED SET-UP'!S19 -> 0 | R75: ='CUSTOM FEED SET-UP'!T19 -> 0 | S75: ='CUSTOM FEED SET-UP'!U19 -> 0 | T75: ='CUSTOM FEED SET-UP'!V19 -> 0
B76: ='CUSTOM FEED SET-UP'!B20 -> Bulb 85% Leaf 15% | C76: ='CUSTOM FEED SET-UP'!E20 -> 0 | D76: ='CUSTOM FEED SET-UP'!F20 -> 0 | E76: ='CUSTOM FEED SET-UP'!G20 -> 0 | F76: ='CUSTOM FEED SET-UP'!H20 -> 0 | G76: ='CUSTOM FEED SET-UP'!I20 -> 0 | H76: ='CUSTOM FEED SET-UP'!J20 -> 0 | I76: ='CUSTOM FEED SET-UP'!K20 -> 0 | J76: ='CUSTOM FEED SET-UP'!L20 -> 0 | K76: ='CUSTOM FEED SET-UP'!M20 -> 0 | L76: ='CUSTOM FEED SET-UP'!N20 -> 0 | M76: ='CUSTOM FEED SET-UP'!O20 -> 0 | N76: ='CUSTOM FEED SET-UP'!P20 -> 0 | O76: ='CUSTOM FEED SET-UP'!Q20 -> 0 | P76: ='CUSTOM FEED SET-UP'!R20 -> 0 | Q76: ='CUSTOM FEED SET-UP'!S20 -> 0 | R76: ='CUSTOM FEED SET-UP'!T20 -> 0 | S76: ='CUSTOM FEED SET-UP'!U20 -> 0 | T76: ='CUSTOM FEED SET-UP'!V20 -> 0
B77: ='CUSTOM FEED SET-UP'!B21 -> Bulb 80% Leaf 20% | C77: ='CUSTOM FEED SET-UP'!E21 -> 0 | D77: ='CUSTOM FEED SET-UP'!F21 -> 0 | E77: ='CUSTOM FEED SET-UP'!G21 -> 0 | F77: ='CUSTOM FEED SET-UP'!H21 -> 0 | G77: ='CUSTOM FEED SET-UP'!I21 -> 0 | H77: ='CUSTOM FEED SET-UP'!J21 -> 0 | I77: ='CUSTOM FEED SET-UP'!K21 -> 0 | J77: ='CUSTOM FEED SET-UP'!L21 -> 0 | K77: ='CUSTOM FEED SET-UP'!M21 -> 0 | L77: ='CUSTOM FEED SET-UP'!N21 -> 0 | M77: ='CUSTOM FEED SET-UP'!O21 -> 0 | N77: ='CUSTOM FEED SET-UP'!P21 -> 0 | O77: ='CUSTOM FEED SET-UP'!Q21 -> 0 | P77: ='CUSTOM FEED SET-UP'!R21 -> 0 | Q77: ='CUSTOM FEED SET-UP'!S21 -> 0 | R77: ='CUSTOM FEED SET-UP'!T21 -> 0 | S77: ='CUSTOM FEED SET-UP'!U21 -> 0 | T77: ='CUSTOM FEED SET-UP'!V21 -> 0
B78: ='CUSTOM FEED SET-UP'!B22 -> Bulb 75% Leaf 25% | C78: ='CUSTOM FEED SET-UP'!E22 -> 0 | D78: ='CUSTOM FEED SET-UP'!F22 -> 0 | E78: ='CUSTOM FEED SET-UP'!G22 -> 0 | F78: ='CUSTOM FEED SET-UP'!H22 -> 0 | G78: ='CUSTOM FEED SET-UP'!I22 -> 0 | H78: ='CUSTOM FEED SET-UP'!J22 -> 0 | I78: ='CUSTOM FEED SET-UP'!K22 -> 0 | J78: ='CUSTOM FEED SET-UP'!L22 -> 0 | K78: ='CUSTOM FEED SET-UP'!M22 -> 0 | L78: ='CUSTOM FEED SET-UP'!N22 -> 0 | M78: ='CUSTOM FEED SET-UP'!O22 -> 0 | N78: ='CUSTOM FEED SET-UP'!P22 -> 0 | O78: ='CUSTOM FEED SET-UP'!Q22 -> 0 | P78: ='CUSTOM FEED SET-UP'!R22 -> 0 | Q78: ='CUSTOM FEED SET-UP'!S22 -> 0 | R78: ='CUSTOM FEED SET-UP'!T22 -> 0 | S78: ='CUSTOM FEED SET-UP'!U22 -> 0 | T78: ='CUSTOM FEED SET-UP'!V22 -> 0
B79: ='CUSTOM FEED SET-UP'!B23 -> Bulb 70% leaf 30% | C79: ='CUSTOM FEED SET-UP'!E23 -> 0 | D79: ='CUSTOM FEED SET-UP'!F23 -> 0 | E79: ='CUSTOM FEED SET-UP'!G23 -> 0 | F79: ='CUSTOM FEED SET-UP'!H23 -> 0 | G79: ='CUSTOM FEED SET-UP'!I23 -> 0 | H79: ='CUSTOM FEED SET-UP'!J23 -> 0 | I79: ='CUSTOM FEED SET-UP'!K23 -> 0 | J79: ='CUSTOM FEED SET-UP'!L23 -> 0 | K79: ='CUSTOM FEED SET-UP'!M23 -> 0 | L79: ='CUSTOM FEED SET-UP'!N23 -> 0 | M79: ='CUSTOM FEED SET-UP'!O23 -> 0 | N79: ='CUSTOM FEED SET-UP'!P23 -> 0 | O79: ='CUSTOM FEED SET-UP'!Q23 -> 0 | P79: ='CUSTOM FEED SET-UP'!R23 -> 0 | Q79: ='CUSTOM FEED SET-UP'!S23 -> 0 | R79: ='CUSTOM FEED SET-UP'!T23 -> 0 | S79: ='CUSTOM FEED SET-UP'!U23 -> 0 | T79: ='CUSTOM FEED SET-UP'!V23 -> 0
B80: ='CUSTOM FEED SET-UP'!B24 -> Custom: Bulb% & Leaf% | C80: ='CUSTOM FEED SET-UP'!E24 -> 0 | D80: ='CUSTOM FEED SET-UP'!F24 -> 0 | E80: ='CUSTOM FEED SET-UP'!G24 -> 0 | F80: ='CUSTOM FEED SET-UP'!H24 -> 0 | G80: ='CUSTOM FEED SET-UP'!I24 -> 0 | H80: ='CUSTOM FEED SET-UP'!J24 -> 0 | I80: ='CUSTOM FEED SET-UP'!K24 -> 0 | J80: ='CUSTOM FEED SET-UP'!L24 -> 0 | K80: ='CUSTOM FEED SET-UP'!M24 -> 0 | L80: ='CUSTOM FEED SET-UP'!N24 -> 0 | M80: ='CUSTOM FEED SET-UP'!O24 -> 0 | N80: ='CUSTOM FEED SET-UP'!P24 -> 0 | O80: ='CUSTOM FEED SET-UP'!Q24 -> 0 | P80: ='CUSTOM FEED SET-UP'!R24 -> 0 | Q80: ='CUSTOM FEED SET-UP'!S24 -> 0 | R80: ='CUSTOM FEED SET-UP'!T24 -> 0 | S80: ='CUSTOM FEED SET-UP'!U24 -> 0 | T80: ='CUSTOM FEED SET-UP'!V24 -> 0
A83: Custom_feed | B83: ='CUSTOM FEED SET-UP'!B34 -> Custom feed 1 | C83: ='CUSTOM FEED SET-UP'!E34 -> 0 | D83: ='CUSTOM FEED SET-UP'!F34 -> 0 | E83: ='CUSTOM FEED SET-UP'!G34 -> 0 | F83: ='CUSTOM FEED SET-UP'!H34 -> 0 | G83: ='CUSTOM FEED SET-UP'!I34 -> 0 | H83: ='CUSTOM FEED SET-UP'!J34 -> 0 | I83: ='CUSTOM FEED SET-UP'!K34 -> 0 | J83: ='CUSTOM FEED SET-UP'!L34 -> 0 | K83: ='CUSTOM FEED SET-UP'!M34 -> 0 | L83: ='CUSTOM FEED SET-UP'!N34 -> 0 | M83: ='CUSTOM FEED SET-UP'!O34 -> 0 | N83: ='CUSTOM FEED SET-UP'!P34 -> 0 | O83: ='CUSTOM FEED SET-UP'!Q34 -> 0 | P83: ='CUSTOM FEED SET-UP'!R34 -> 0 | Q83: ='CUSTOM FEED SET-UP'!S34 -> 0 | R83: ='CUSTOM FEED SET-UP'!T34 -> 0 | S83: ='CUSTOM FEED SET-UP'!U34 -> 0 | T83: ='CUSTOM FEED SET-UP'!V34 -> 0
B84: ='CUSTOM FEED SET-UP'!B35 -> Custom feed 2 | C84: ='CUSTOM FEED SET-UP'!E35 -> 0 | D84: ='CUSTOM FEED SET-UP'!F35 -> 0 | E84: ='CUSTOM FEED SET-UP'!G35 -> 0 | F84: ='CUSTOM FEED SET-UP'!H35 -> 0 | G84: ='CUSTOM FEED SET-UP'!I35 -> 0 | H84: ='CUSTOM FEED SET-UP'!J35 -> 0 | I84: ='CUSTOM FEED SET-UP'!K35 -> 0 | J84: ='CUSTOM FEED SET-UP'!L35 -> 0 | K84: ='CUSTOM FEED SET-UP'!M35 -> 0 | L84: ='CUSTOM FEED SET-UP'!N35 -> 0 | M84: ='CUSTOM FEED SET-UP'!O35 -> 0 | N84: ='CUSTOM FEED SET-UP'!P35 -> 0 | O84: ='CUSTOM FEED SET-UP'!Q35 -> 0 | P84: ='CUSTOM FEED SET-UP'!R35 -> 0 | Q84: ='CUSTOM FEED SET-UP'!S35 -> 0 | R84: ='CUSTOM FEED SET-UP'!T35 -> 0 | S84: ='CUSTOM FEED SET-UP'!U35 -> 0 | T84: ='CUSTOM FEED SET-UP'!V35 -> 0
B85: ='CUSTOM FEED SET-UP'!B36 -> Custom feed 3 | C85: ='CUSTOM FEED SET-UP'!E36 -> 0 | D85: ='CUSTOM FEED SET-UP'!F36 -> 0 | E85: ='CUSTOM FEED SET-UP'!G36 -> 0 | F85: ='CUSTOM FEED SET-UP'!H36 -> 0 | G85: ='CUSTOM FEED SET-UP'!I36 -> 0 | H85: ='CUSTOM FEED SET-UP'!J36 -> 0 | I85: ='CUSTOM FEED SET-UP'!K36 -> 0 | J85: ='CUSTOM FEED SET-UP'!L36 -> 0 | K85: ='CUSTOM FEED SET-UP'!M36 -> 0 | L85: ='CUSTOM FEED SET-UP'!N36 -> 0 | M85: ='CUSTOM FEED SET-UP'!O36 -> 0 | N85: ='CUSTOM FEED SET-UP'!P36 -> 0 | O85: ='CUSTOM FEED SET-UP'!Q36 -> 0 | P85: ='CUSTOM FEED SET-UP'!R36 -> 0 | Q85: ='CUSTOM FEED SET-UP'!S36 -> 0 | R85: ='CUSTOM FEED SET-UP'!T36 -> 0 | S85: ='CUSTOM FEED SET-UP'!U36 -> 0 | T85: ='CUSTOM FEED SET-UP'!V36 -> 0
B86: ='CUSTOM FEED SET-UP'!B37 -> Custom feed 4 | C86: ='CUSTOM FEED SET-UP'!E37 -> 0 | D86: ='CUSTOM FEED SET-UP'!F37 -> 0 | E86: ='CUSTOM FEED SET-UP'!G37 -> 0 | F86: ='CUSTOM FEED SET-UP'!H37 -> 0 | G86: ='CUSTOM FEED SET-UP'!I37 -> 0 | H86: ='CUSTOM FEED SET-UP'!J37 -> 0 | I86: ='CUSTOM FEED SET-UP'!K37 -> 0 | J86: ='CUSTOM FEED SET-UP'!L37 -> 0 | K86: ='CUSTOM FEED SET-UP'!M37 -> 0 | L86: ='CUSTOM FEED SET-UP'!N37 -> 0 | M86: ='CUSTOM FEED SET-UP'!O37 -> 0 | N86: ='CUSTOM FEED SET-UP'!P37 -> 0 | O86: ='CUSTOM FEED SET-UP'!Q37 -> 0 | P86: ='CUSTOM FEED SET-UP'!R37 -> 0 | Q86: ='CUSTOM FEED SET-UP'!S37 -> 0 | R86: ='CUSTOM FEED SET-UP'!T37 -> 0 | S86: ='CUSTOM FEED SET-UP'!U37 -> 0 | T86: ='CUSTOM FEED SET-UP'!V37 -> 0
B87: ='CUSTOM FEED SET-UP'!B38 -> Custom feed 5 | C87: ='CUSTOM FEED SET-UP'!E38 -> 0 | D87: ='CUSTOM FEED SET-UP'!F38 -> 0 | E87: ='CUSTOM FEED SET-UP'!G38 -> 0 | F87: ='CUSTOM FEED SET-UP'!H38 -> 0 | G87: ='CUSTOM FEED SET-UP'!I38 -> 0 | H87: ='CUSTOM FEED SET-UP'!J38 -> 0 | I87: ='CUSTOM FEED SET-UP'!K38 -> 0 | J87: ='CUSTOM FEED SET-UP'!L38 -> 0 | K87: ='CUSTOM FEED SET-UP'!M38 -> 0 | L87: ='CUSTOM FEED SET-UP'!N38 -> 0 | M87: ='CUSTOM FEED SET-UP'!O38 -> 0 | N87: ='CUSTOM FEED SET-UP'!P38 -> 0 | O87: ='CUSTOM FEED SET-UP'!Q38 -> 0 | P87: ='CUSTOM FEED SET-UP'!R38 -> 0 | Q87: ='CUSTOM FEED SET-UP'!S38 -> 0 | R87: ='CUSTOM FEED SET-UP'!T38 -> 0 | S87: ='CUSTOM FEED SET-UP'!U38 -> 0 | T87: ='CUSTOM FEED SET-UP'!V38 -> 0
B88: ='CUSTOM FEED SET-UP'!B39 -> Custom feed 6 | C88: ='CUSTOM FEED SET-UP'!E39 -> 0 | D88: ='CUSTOM FEED SET-UP'!F39 -> 0 | E88: ='CUSTOM FEED SET-UP'!G39 -> 0 | F88: ='CUSTOM FEED SET-UP'!H39 -> 0 | G88: ='CUSTOM FEED SET-UP'!I39 -> 0 | H88: ='CUSTOM FEED SET-UP'!J39 -> 0 | I88: ='CUSTOM FEED SET-UP'!K39 -> 0 | J88: ='CUSTOM FEED SET-UP'!L39 -> 0 | K88: ='CUSTOM FEED SET-UP'!M39 -> 0 | L88: ='CUSTOM FEED SET-UP'!N39 -> 0 | M88: ='CUSTOM FEED SET-UP'!O39 -> 0 | N88: ='CUSTOM FEED SET-UP'!P39 -> 0 | O88: ='CUSTOM FEED SET-UP'!Q39 -> 0 | P88: ='CUSTOM FEED SET-UP'!R39 -> 0 | Q88: ='CUSTOM FEED SET-UP'!S39 -> 0 | R88: ='CUSTOM FEED SET-UP'!T39 -> 0 | S88: ='CUSTOM FEED SET-UP'!U39 -> 0 | T88: ='CUSTOM FEED SET-UP'!V39 -> 0
B89: ='CUSTOM FEED SET-UP'!B40 -> Custom feed 7 | C89: ='CUSTOM FEED SET-UP'!E40 -> 0 | D89: ='CUSTOM FEED SET-UP'!F40 -> 0 | E89: ='CUSTOM FEED SET-UP'!G40 -> 0 | F89: ='CUSTOM FEED SET-UP'!H40 -> 0 | G89: ='CUSTOM FEED SET-UP'!I40 -> 0 | H89: ='CUSTOM FEED SET-UP'!J40 -> 0 | I89: ='CUSTOM FEED SET-UP'!K40 -> 0 | J89: ='CUSTOM FEED SET-UP'!L40 -> 0 | K89: ='CUSTOM FEED SET-UP'!M40 -> 0 | L89: ='CUSTOM FEED SET-UP'!N40 -> 0 | M89: ='CUSTOM FEED SET-UP'!O40 -> 0 | N89: ='CUSTOM FEED SET-UP'!P40 -> 0 | O89: ='CUSTOM FEED SET-UP'!Q40 -> 0 | P89: ='CUSTOM FEED SET-UP'!R40 -> 0 | Q89: ='CUSTOM FEED SET-UP'!S40 -> 0 | R89: ='CUSTOM FEED SET-UP'!T40 -> 0 | S89: ='CUSTOM FEED SET-UP'!U40 -> 0 | T89: ='CUSTOM FEED SET-UP'!V40 -> 0
B90: ='CUSTOM FEED SET-UP'!B41 -> Custom feed 8 | C90: ='CUSTOM FEED SET-UP'!E41 -> 0 | D90: ='CUSTOM FEED SET-UP'!F41 -> 0 | E90: ='CUSTOM FEED SET-UP'!G41 -> 0 | F90: ='CUSTOM FEED SET-UP'!H41 -> 0 | G90: ='CUSTOM FEED SET-UP'!I41 -> 0 | H90: ='CUSTOM FEED SET-UP'!J41 -> 0 | I90: ='CUSTOM FEED SET-UP'!K41 -> 0 | J90: ='CUSTOM FEED SET-UP'!L41 -> 0 | K90: ='CUSTOM FEED SET-UP'!M41 -> 0 | L90: ='CUSTOM FEED SET-UP'!N41 -> 0 | M90: ='CUSTOM FEED SET-UP'!O41 -> 0 | N90: ='CUSTOM FEED SET-UP'!P41 -> 0 | O90: ='CUSTOM FEED SET-UP'!Q41 -> 0 | P90: ='CUSTOM FEED SET-UP'!R41 -> 0 | Q90: ='CUSTOM FEED SET-UP'!S41 -> 0 | R90: ='CUSTOM FEED SET-UP'!T41 -> 0 | S90: ='CUSTOM FEED SET-UP'!U41 -> 0 | T90: ='CUSTOM FEED SET-UP'!V41 -> 0
B91: ='CUSTOM FEED SET-UP'!B42 -> Custom feed 9 | C91: ='CUSTOM FEED SET-UP'!E42 -> 0 | D91: ='CUSTOM FEED SET-UP'!F42 -> 0 | E91: ='CUSTOM FEED SET-UP'!G42 -> 0 | F91: ='CUSTOM FEED SET-UP'!H42 -> 0 | G91: ='CUSTOM FEED SET-UP'!I42 -> 0 | H91: ='CUSTOM FEED SET-UP'!J42 -> 0 | I91: ='CUSTOM FEED SET-UP'!K42 -> 0 | J91: ='CUSTOM FEED SET-UP'!L42 -> 0 | K91: ='CUSTOM FEED SET-UP'!M42 -> 0 | L91: ='CUSTOM FEED SET-UP'!N42 -> 0 | M91: ='CUSTOM FEED SET-UP'!O42 -> 0 | N91: ='CUSTOM FEED SET-UP'!P42 -> 0 | O91: ='CUSTOM FEED SET-UP'!Q42 -> 0 | P91: ='CUSTOM FEED SET-UP'!R42 -> 0 | Q91: ='CUSTOM FEED SET-UP'!S42 -> 0 | R91: ='CUSTOM FEED SET-UP'!T42 -> 0 | S91: ='CUSTOM FEED SET-UP'!U42 -> 0 | T91: ='CUSTOM FEED SET-UP'!V42 -> 0
B92: ='CUSTOM FEED SET-UP'!B43 -> Custom feed 10 | C92: ='CUSTOM FEED SET-UP'!E43 -> 0 | D92: ='CUSTOM FEED SET-UP'!F43 -> 0 | E92: ='CUSTOM FEED SET-UP'!G43 -> 0 | F92: ='CUSTOM FEED SET-UP'!H43 -> 0 | G92: ='CUSTOM FEED SET-UP'!I43 -> 0 | H92: ='CUSTOM FEED SET-UP'!J43 -> 0 | I92: ='CUSTOM FEED SET-UP'!K43 -> 0 | J92: ='CUSTOM FEED SET-UP'!L43 -> 0 | K92: ='CUSTOM FEED SET-UP'!M43 -> 0 | L92: ='CUSTOM FEED SET-UP'!N43 -> 0 | M92: ='CUSTOM FEED SET-UP'!O43 -> 0 | N92: ='CUSTOM FEED SET-UP'!P43 -> 0 | O92: ='CUSTOM FEED SET-UP'!Q43 -> 0 | P92: ='CUSTOM FEED SET-UP'!R43 -> 0 | Q92: ='CUSTOM FEED SET-UP'!S43 -> 0 | R92: ='CUSTOM FEED SET-UP'!T43 -> 0 | S92: ='CUSTOM FEED SET-UP'!U43 -> 0 | T92: ='CUSTOM FEED SET-UP'!V43 -> 0
A95: Minerals
B96: MgSO4 | M96: Dry | Q96: 13 | R96: 10
B97: MgCl2 | M97: Dry | P97: 35 | R97: 12
B98: MgO | M98: Dry | R98: 55
B99: Gypsum | M99: Dry | Q99: 23 | S99: 30
B100: limeflour | M100: Dry | S100: 41
B101: DCP | M101: Dry | S101: 24 | T101: 18
B102: MSP | M102: Dry | N102: 31 | T102: 26
B103: NaCl | M103: Dry | N103: 39 | P103: 61
B104: MCP | M104: Dry | R104: 1 | S104: 16.5 | T104: 22.7
B105: MGP | M105: Dry | R105: 25.5 | S105: 1 | T105: 14.5
A120: FEED METHOD UTILISATION | B120: PASTURE
B121: grazing - very good conditions | C121: 0.95
B122: grazing - good conditions | C122: 0.9
B123: grazing - wet conditions | C123: 0.8
B124: grazing - very poor conditions | C124: 0.7
B127: HAY_SILAGE
B128: feed pad | C128: 0.9
B129: in paddock good conditions | C129: 0.8
B130: in paddock poor conditions | C130: 0.6
B131: in a bale feeder | C131: 0.8 | D131: check
B133: CONCENTRATE
B134: in-shed | C134: 0.95
B135: feed pad | C135: 0.9
B136: in trailer | C136: 0.85
B139: FORAGES
B140: grazing - very good conditions | C140: 0.95
B141: grazing - good conditions | C141: 0.9
B142: grazing - wet conditions | C142: 0.8
B143: grazing - very poor conditions | C143: 0.7
B146: BY_PRODUCTS
B147: in-shed | C147: 0.95
B148: feed pad | C148: 0.9
B149: in trailer | C149: 0.85
B150: in paddock good conditions | C150: 0.8
B151: in paddock wet conditions | C151: 0.6
B154: MINERALS
B155: in-shed | C155: 0.95
B156: feed pad | C156: 0.9
B157: in trailer | C157: 0.85
B158: dusted - good conditions | C158: 0.5
B159: dusted - wet conditions | C159: 0.33
B160: in water | C160: 1
B161: in slurry | C161: 0.8
B162: loose lick | C162: 1
B165: CUSTOM FEEDS
B166: in-shed | C166: 0.95
B167: feed pad | C167: 0.9
B168: in trailer | C168: 0.85
B169: in paddock good conditions | C169: 0.8
B170: in paddock wet conditions | C170: 0.6
B171: grazing - very good conditions | C171: 0.95
B172: grazing - good conditions | C172: 0.9
B173: grazing - wet conditions | C173: 0.8
B174: grazing - very poor conditions | C174: 0.7
B177: BULB CROPS
B178: Utilisation 95% | C178: 0.95
B179: Utilisation 90% | C179: 0.9
B180: Utilisation 85% | C180: 0.85
B181: Utilisation 80% | C181: 0.8
B182: Utilisation 75% | C182: 0.75
B183: Utilisation 70% | C183: 0.7
B184: Utilisation 65% | C184: 0.65
B185: Utilisation 60% | C185: 0.6
B186: Utilisation 55% | C186: 0.55
A189: LWT | C189: ME for maintenance as of F&F mar 17 | E189: 12 | F189: 8 | G189: 4 | H189: 2
B190: 375 | C190: 48 | D190: 0 | E190: 11.75 | F190: 20 | G190: 33.2 | H190: 43.1
B191: 400 | C191: 50 | D191: 0 | E191: 10.5 | F191: 19.3 | G191: 33.6 | H191: 43.5
B192: 425 | C192: =((C193-C191)/2)+C191 -> 52 | D192: 0 | E192: 11.25 | F192: 19.5 | G192: 34.9 | H192: 45.9
B193: 450 | C193: 54 | D193: 0 | E193: 12 | F193: 20.8 | G193: 37.3 | H193: 48.3
B194: 475 | C194: =((C195-C193)/2)+C193 -> 56.5 | D194: 0 | E194: 11.75 | F194: 21.1 | G194: 38.7 | H194: 49.7
B195: 500 | C195: 59 | D195: 0 | E195: 12.5 | F195: 22.4 | G195: 40 | H195: 52.1
B196: 525 | C196: =((C197-C195)/2)+C195 -> 61 | D196: 0 | E196: 13.25 | F196: 23.7 | G196: 41.3 | H196: 53.4
B197: 550 | C197: 63 | D197: 0 | E197: 14 | F197: 25 | G197: 42.6 | H197: 55.8
B198: 575 | C198: =((C199-C197)/2)+C197 -> 65.5 | D198: 0 | E198: 14.75 | F198: 26.3 | G198: 43.9 | H198: 58.2
B199: 600 | C199: 68 | D199: 0 | E199: 14.5 | F199: 26.6 | G199: 21.1 | H199: 59.6
A202: BREED | C202: ME for milksolids
A203: Jersey | B203: Jersey | C203: 77
A204: Friesian | B204: Friesian | C204: 82
A205: cross-bred | B205: cross-bred | C205: 80
A208: TERRAIN for activity
B209: flat | C209: 2
B210: rolling | C210: 3
B211: hilly | C211: 6
H212: Values in eqns
A213: WEEKS TO CALVING | D213: All | E213: >12 | H213: 0
B214: 12 weeks before calving | D214: j | E214: 12 | G214: J12 | H214: 10
B215: 8 weeks before calving | D215: j | E215: 8 | G215: J8 | H215: 17
B216: 4 weeks before calving | D216: j | E216: 4 | G216: J4 | H216: 30
B217: 2 weeks before calving | D217: j | E217: 2 | G217: J2 | H217: 40
B218: 12 weeks before calving | D218: x | E218: 12 | G218: X12 | H218: 11
B219: 8 weeks before calving | D219: x | E219: 8 | G219: X8 | H219: 20
B220: 4 weeks before calving | D220: x | E220: 4 | G220: X4 | H220: 35
B221: 2 weeks before calving | D221: x | E221: 2 | G221: X2 | H221: 45
B222: 12 weeks before calving | D222: f | E222: 12 | G222: F12 | H222: 12
B223: 8 weeks before calving | D223: f | E223: 8 | G223: F8 | H223: 22
B224: 4 weeks before calving | D224: f | E224: 4 | G224: F4 | H224: 39
B225: 2 weeks before calving | D225: f | E225: 2 | G225: F2 | H225: 51
A227: BCS - Herd avg
B228: 3
B229: 3.5
B230: 4
B231: 4.5
B232: 5
B233: 5.5
B234: 6
B235: 6.5
B236: 7
A238: BCS gain/loss mthly
B239: -0.8
B240: -0.6
B241: -0.4
B242: -0.2
B243: -0.1
B244: 0
B245: 0.1
B246: 0.2
B247: 0.4
B248: 0.6
A250: CRUDE PROTEIN | B250: Stage of lactation | C250: CP%
... 11 more rows

Sheet Drop down list set up (hidden)
A1: Dependent drop-down lists
D2: Add new feeds in the Data Source sheet - Coloured cells indicate spare spaces available in each section
A3: Named ranges | C3: Feeds
A4: Feed_Type | B4: Code | C4: Pasture | D4: Hay_Silage | E4: Concentrates | F4: By_products | G4: Fodder_beet_Default | H4: Other_Crops_Default | I4: Minerals | J4: Custom_Feeds_Minerals | K4: Custom_Bulb_Crops
C5: ='Data source'!B4 -> Autumn and winter | D5: ='Data source'!B16 -> Hay - pasture - good | E5: ='Data source'!B29 -> Barley | F5: ='Data source'!B53 -> Apple pomace | G5: ='CUSTOM FEED SET-UP'!B5 -> Bulb only | H5: ='Data source'!B41 -> Chicory | I5: ='Data source'!B100 -> limeflour | J5: ='CUSTOM FEED SET-UP'!B34 -> Custom feed 1 | K5: ='CUSTOM FEED SET-UP'!B17 -> Bulb only
A6: Hay_Silage | B6: FT1 | C6: ='Data source'!B5 -> Autumn & winter -Irrigated | D6: ='Data source'!B17 -> Hay - pasture - poor | E6: ='Data source'!B30 -> Bran (wheat) | F6: ='Data source'!B54 -> Brewers grain | G6: ='CUSTOM FEED SET-UP'!B7 -> Bulb 90% Leaf 10% | H6: ='Data source'!B42 -> Kale | I6: ='Data source'!B99 -> Gypsum | J6: ='CUSTOM FEED SET-UP'!B35 -> Custom feed 2 | K6: ='CUSTOM FEED SET-UP'!B19 -> Bulb 90% Leaf 10%
A7: Concentrates | B7: FT2 | C7: ='Data source'!B6 -> Spring | D7: ='Data source'!B18 -> Straw - cereal | E7: ='Data source'!B31 -> Canola meal | F7: ='Data source'!B55 -> Broll | G7: ='CUSTOM FEED SET-UP'!B8 -> Bulb 85% Leaf 15% | H7: ='Data source'!B43 -> Lucerne | I7: ='Data source'!B101 -> DCP | J7: ='CUSTOM FEED SET-UP'!B36 -> Custom feed 3 | K7: ='CUSTOM FEED SET-UP'!B20 -> Bulb 85% Leaf 15%
A8: By_products | B8: FT3 | C8: ='Data source'!B7 -> Spring - Irrigated | D8: ='Data source'!B19 -> Silage -pasture - good | E8: ='Data source'!B32 -> Maize grain | F8: ='Data source'!B56 -> DDG (Dried distillers grain) | G8: ='CUSTOM FEED SET-UP'!B9 -> Bulb 80% Leaf 20% | H8: ='Data source'!B44 -> Swedes | I8: ='Data source'!B97 -> MgCl2 | J8: ='CUSTOM FEED SET-UP'!B37 -> Custom feed 4 | K8: ='CUSTOM FEED SET-UP'!B21 -> Bulb 80% Leaf 20%
A9: Fodder_beet_Default | B9: FT4 | C9: ='Data source'!B8 -> Summer - leafy | D9: ='Data source'!B20 -> Silage - pasture - poor | E9: ='Data source'!B33 -> Oats | F9: ='Data source'!B57 -> Molasses | G9: ='CUSTOM FEED SET-UP'!B10 -> Bulb 75% Leaf 25% | H9: ='Data source'!B45 -> Turnips | I9: ='Data source'!B98 -> MgO | J9: ='CUSTOM FEED SET-UP'!B38 -> Custom feed 5 | K9: ='CUSTOM FEED SET-UP'!B22 -> Bulb 75% Leaf 25%
A10: Other_Crops_Default | B10: FT5 | C10: ='Data source'!B9 -> Summer - leafy - irrigated | D10: ='Data source'!B21 -> Silage - maize - good | E10: ='Data source'!B34 -> Soyabean hulls | F10: ='Data source'!B52 -> PKE | G10: ='CUSTOM FEED SET-UP'!B11 -> Bulb 70% leaf 30% | I10: ='Data source'!B96 -> MgSO4 | J10: ='CUSTOM FEED SET-UP'!B39 -> Custom feed 6 | K10: ='CUSTOM FEED SET-UP'!B23 -> Bulb 70% leaf 30%
A11: Minerals | B11: FT6 | C11: ='Data source'!B10 -> Summer - stalky | D11: ='Data source'!B22 -> Silage - maize - poor | E11: ='Data source'!B35 -> Soyabean meal | F11: ='Data source'!B58 -> Potatoes | G11: ='CUSTOM FEED SET-UP'!B2 -> Custom: Bulb% & Leaf% | I11: ='Data source'!B102 -> MSP | J11: ='CUSTOM FEED SET-UP'!B40 -> Custom feed 7 | K11: ='CUSTOM FEED SET-UP'!B24 -> Custom: Bulb% & Leaf%
A12: Custom_Feeds_Minerals | B12: FT7 | C12: ='Data source'!B11 -> Kikuyu - leafy | D12: ='Data source'!B23 -> Silage -whole crop | E12: ='Data source'!B36 -> Tapioca | F12: ='Data source'!B59 -> Urea | I12: ='Data source'!B104 -> MCP | J12: ='CUSTOM FEED SET-UP'!B41 -> Custom feed 8
A13: Custom_Bulb_Crops | B13: FT8 | C13: ='Data source'!B12 -> Kikuyu - stemmy | D13: ='Data source'!B24 -> Silage -lucerne | E13: ='Data source'!B37 -> Wheat | F13: ='Data source'!B60 ->  | I13: ='Data source'!B105 -> MGP | J13: ='CUSTOM FEED SET-UP'!B42 -> Custom feed 9
C14: ='Data source'!B13 ->  | D14: ='Data source'!B25 -> Silage - cereal | E14: ='Data source'!B38 ->  | F14: ='Data source'!B61 ->  | J14: ='CUSTOM FEED SET-UP'!B43 -> Custom feed 10
C15: ='Data source'!B14 ->  | D15: ='Data source'!B26 -> Baleage | E15: ='Data source'!B39 -> 
D16: ='Data source'!B27 -> 
C17: Feeding Methods | E17: These are also dragged through from the Data Source sheet
A18: Drop-down for methods | D18: FT1_ | E18: FT2_ | F18: FT3_ | G18: FT4_ | H18: FT5_ | I18: FT6_ | J18: FT7_ | K18: FT8_
A19: FT1 | C19: ='Data source'!B121 -> grazing - very good conditions | D19: ='Data source'!B128 -> feed pad | E19: ='Data source'!B134 -> in-shed | F19: ='Data source'!B147 -> in-shed | G19: ='Data source'!B178 -> Utilisation 95% | H19: ='Data source'!B178 -> Utilisation 95% | I19: ='Data source'!B155 -> in-shed | J19: ='Data source'!B166 -> in-shed | K19: ='Data source'!B178 -> Utilisation 95%
A20: FT2 | C20: ='Data source'!B122 -> grazing - good conditions | D20: ='Data source'!B129 -> in paddock good conditions | E20: ='Data source'!B135 -> feed pad | F20: ='Data source'!B148 -> feed pad | G20: ='Data source'!B179 -> Utilisation 90% | H20: ='Data source'!B179 -> Utilisation 90% | I20: ='Data source'!B156 -> feed pad | J20: ='Data source'!B167 -> feed pad | K20: ='Data source'!B179 -> Utilisation 90%
A21: FT3 | C21: ='Data source'!B123 -> grazing - wet conditions | D21: ='Data source'!B130 -> in paddock poor conditions | E21: ='Data source'!B136 -> in trailer | F21: ='Data source'!B149 -> in trailer | G21: ='Data source'!B180 -> Utilisation 85% | H21: ='Data source'!B180 -> Utilisation 85% | I21: ='Data source'!B157 -> in trailer | J21: ='Data source'!B168 -> in trailer | K21: ='Data source'!B180 -> Utilisation 85%
A22: FT4 | C22: ='Data source'!B124 -> grazing - very poor conditions | D22: ='Data source'!B131 -> in a bale feeder | E22: ='Data source'!B137 ->  | F22: ='Data source'!B150 -> in paddock good conditions | G22: ='Data source'!B181 -> Utilisation 80% | H22: ='Data source'!B181 -> Utilisation 80% | I22: ='Data source'!B158 -> dusted - good conditions | J22: ='Data source'!B169 -> in paddock good conditions | K22: ='Data source'!B181 -> Utilisation 80%
A23: FT5 | C23: ='Data source'!B125 ->  | D23: ='Data source'!B132 ->  | E23: ='Data source'!B138 ->  | F23: ='Data source'!B151 -> in paddock wet conditions | G23: ='Data source'!B182 -> Utilisation 75% | H23: ='Data source'!B182 -> Utilisation 75% | I23: ='Data source'!B159 -> dusted - wet conditions | J23: ='Data source'!B170 -> in paddock wet conditions | K23: ='Data source'!B182 -> Utilisation 75%
A24: FT6 | C24: ='Data source'!B126 ->  | F24: ='Data source'!B152 ->  | G24: ='Data source'!B145 ->  | H24: ='Data source'!B183 -> Utilisation 70% | I24: ='Data source'!B160 -> in water | J24: ='Data source'!B171 -> grazing - very good conditions | K24: ='Data source'!B183 -> Utilisation 70%
A25: FT7 | H25: ='Data source'!B184 -> Utilisation 65% | I25: ='Data source'!B161 -> in slurry | J25: ='Data source'!B172 -> grazing - good conditions | K25: ='Data source'!B184 -> Utilisation 65%
A26: FT8 | H26: ='Data source'!B185 -> Utilisation 60% | I26: ='Data source'!B162 -> loose lick | J26: ='Data source'!B173 -> grazing - wet conditions | K26: ='Data source'!B185 -> Utilisation 60%
H27: ='Data source'!B186 -> Utilisation 55% | I27: ='Data source'!B163 ->  | J27: ='Data source'!B174 -> grazing - very poor conditions | K27: ='Data source'!B186 -> Utilisation 55%
H28: ='Data source'!B187 ->  | I28: ='Data source'!B164 ->  | J28: in bale feeder | K28: ='Data source'!B187 -> 
J29: ='Data source'!B176 -> 

Sheet Sheet1 (hidden)
F4: The 5 Step Approach | Z4: The 1 Step Quick Check
H31: GREEN | N31: GREY | R31: TEAL | W31: CREAM
E35: 0
M40: 104-105-104
E41: 0.25
C46: HEADING COLOUR | E46: 0.4 | G46: 165-216-126 | J46: ` | M46: 132=133-132
E49: 0.6
G50: 195-229-169
E52: 0.75
M53: 204-205=204 | Q53: 191-230-233 | V53: 79-129-189
AC55: 40
C57: LINE COLOUR | E57: 0.9
H59: 240-248-233 | M59: 234-235-234 | W59: 251-251-250
